{"text_format":"1","workbook":"xlsx","n_sheets":3,"sheets":["المعلومات ","التفاصيل","البيانات"],"not_rendered":{"charts":0,"images":0,"macros":1,"external_links":3,"defined_names":13,"comments":0,"pivot_tables":0},"unopened":[],"bounds":{"document_bytes":16777216,"sheet_cells":100000,"rows_first":2000,"rows_last":500,"rows_between":2000,"halvings":0,"cell_chars":16384,"cell_head_chars":4096},"cells_cut":0,"cells_raw":0,"read":"whole","date_system":"1900"}

{"sheet":"المعلومات ","index":0,"n_rows":1685,"n_cols":17,"rows_kept":1685,"cut":false,"hidden":false,"merged":[]}
["التاريخ","رقم الأمر","الجهة ","اسم الزبون","النوع","الملاحظات ","كود المصنع","سعر البيع ","عدد الأمتار","سعر المتر","التلف","سعر الكلفة ","صافي الربح ","السعر ","المبلغ ","التفاصيل ","النسبة "]
["2018-07-01",2358,"شركة السعادة 1","سعيد 1","ابواب",null,33331,200,0.21,{"$f":"IF(E2=\"\",\"\",VLOOKUP(E:E,$N$2:$O$12,2,0))","v":33},{"$f":"IF(E2=\"\",\"\",VLOOKUP(E:E,$P$2:$Q$12,2,0))","v":0},{"$f":"IF(OR($E2=\"كابينات\",$E2=\"بلاي وود \"),INDEX(التفاصيل!$P:$P,MATCH('المعلومات '!$G2,التفاصيل!$M:$M,0)),IFERROR(J2*I2,\"\"))","v":6.93},{"$f":"IFERROR(H2-L2-(K2*L2),\"\")","v":193.07},"ابواب",33,{"$f":"N2","v":"ابواب"},0]
["2018-07-01",2359,"شركة السعادة 2","سعيد 2","ابواب",null,33332,400,6.35,33,0,{"$f":"IF(OR($E3=\"كابينات\",$E3=\"بلاي وود \"),INDEX(التفاصيل!$P:$P,MATCH('المعلومات '!$G3,التفاصيل!$M:$M,0)),IFERROR(J3*I3,\"\"))","v":209.54999999999998},{"$f":"IFERROR(H3-L3-(K3*L3),\"\")","v":190.45000000000002},"كورين ",44,{"$f":"N3","v":"كورين "},0.2]
["2018-07-01",2360,"شركة السعادة 3","سعيد 3","كابينات","KDN-6860","KH53",300,null,88,0.1,{"$f":"IF(OR($E4=\"كابينات\",$E4=\"بلاي وود \"),INDEX(التفاصيل!$P:$P,MATCH('المعلومات '!$G4,التفاصيل!$M:$M,0)),IFERROR(J4*I4,\"\"))","v":198},82.2,"كوارتز",55,"كوارتز",0.2]
["2018-07-01",2361,"شركة السعادة 4","سعيد 4","ابواب",null,33334,29,0.64,33,0,{"$f":"IF(OR($E5=\"كابينات\",$E5=\"بلاي وود \"),INDEX(التفاصيل!$P:$P,MATCH('المعلومات '!$G5,التفاصيل!$M:$M,0)),IFERROR(J5*I5,\"\"))","v":21.12},7.879999999999999,"الواح كورين ",66,"الواح كورين ",0]
["2018-07-01",2362,"شركة السعادة 5","سعيد 5","ابواب",null,33335,122,0.62,33,0,{"$f":"IF(OR($E6=\"كابينات\",$E6=\"بلاي وود \"),INDEX(التفاصيل!$P:$P,MATCH('المعلومات '!$G6,التفاصيل!$M:$M,0)),IFERROR(J6*I6,\"\"))","v":20.46},101.53999999999999,"الواح كوارتز ",77,"الواح كوارتز ",0]
["2018-07-01",2363,"شركة السعادة 6","سعيد 6","ابواب",null,33336,458,7.97,33,0,{"$f":"IF(OR($E7=\"كابينات\",$E7=\"بلاي وود \"),INDEX(التفاصيل!$P:$P,MATCH('المعلومات '!$G7,التفاصيل!$M:$M,0)),IFERROR(J7*I7,\"\"))","v":263.01},194.99,"كابينات",88,"كابينات",0.1]
["2018-07-01",2364,"شركة السعادة 7","سعيد 7","ابواب",null,33337,976,14.29,33,0,{"$f":"IF(OR($E8=\"كابينات\",$E8=\"بلاي وود \"),INDEX(التفاصيل!$P:$P,MATCH('المعلومات '!$G8,التفاصيل!$M:$M,0)),IFERROR(J8*I8,\"\"))","v":471.57},504.43,"اكسسوارات ",99,"اكسسوارات ",0]
["2018-07-02",2365,"شركة السعادة 8","سعيد 8","ابواب",null,33338,377,7.39,33,0,{"$f":"IF(OR($E9=\"كابينات\",$E9=\"بلاي وود \"),INDEX(التفاصيل!$P:$P,MATCH('المعلومات '!$G9,التفاصيل!$M:$M,0)),IFERROR(J9*I9,\"\"))","v":243.86999999999998},133.13000000000002,"بلاي وود ",100,"بلاي وود "]
["2018-07-02",2365,"شركة السعادة 9","سعيد 9","كابينات",null,"KH53",600,null,88,0.1,{"$f":"IF(OR($E10=\"كابينات\",$E10=\"بلاي وود \"),INDEX(التفاصيل!$P:$P,MATCH('المعلومات '!$G10,التفاصيل!$M:$M,0)),IFERROR(J10*I10,\"\"))","v":198},382.2]
["2018-07-02",2365,"شركة السعادة 10","سعيد 10","اكسسوارات ",null,33340,300,3,99,0,{"$f":"IF(OR($E11=\"كابينات\",$E11=\"بلاي وود \"),INDEX(التفاصيل!$P:$P,MATCH('المعلومات '!$G11,التفاصيل!$M:$M,0)),IFERROR(J11*I11,\"\"))","v":297},3]
["2018-07-02",2365,"شركة السعادة 11","سعيد 11","كابينات",null,"KH53",350,null,88,0.1,{"$f":"IF(OR($E12=\"كابينات\",$E12=\"بلاي وود \"),INDEX(التفاصيل!$P:$P,MATCH('المعلومات '!$G12,التفاصيل!$M:$M,0)),IFERROR(J12*I12,\"\"))","v":198},132.19999999999999]
[null,null,null,null,"بلاي وود ",null,"KH53",20,null,100,0,{"$f":"IF(OR($E13=\"كابينات\",$E13=\"بلاي وود \"),INDEX(التفاصيل!$P:$P,MATCH('المعلومات '!$G13,التفاصيل!$M:$M,0)),IFERROR(J13*I13,\"\"))","v":198},{"$f":"IFERROR(H13-L13-(K13*L13),\"\")","v":-178}]
[null,null,null,null,null,null,null,null,null,"","",{"$f":"IF(OR($E14=\"كابينات\",$E14=\"بلاي وود \"),INDEX(التفاصيل!$P:$P,MATCH('المعلومات '!$G14,التفاصيل!$M:$M,0)),IFERROR(J14*I14,\"\"))","v":""},""]
[null,null,null,null,null,null,null,null,null,"","",{"$f":"IF(OR($E15=\"كابينات\",$E15=\"بلاي وود \"),INDEX(التفاصيل!$P:$P,MATCH('المعلومات '!$G15,التفاصيل!$M:$M,0)),IFERROR(J15*I15,\"\"))","v":""},""]
[null,null,null,null,null,null,null,null,null,"","",{"$f":"IF(OR($E16=\"كابينات\",$E16=\"بلاي وود \"),INDEX(التفاصيل!$P:$P,MATCH('المعلومات '!$G16,التفاصيل!$M:$M,0)),IFERROR(J16*I16,\"\"))","v":""},""]
[null,null,null,null,null,null,null,null,null,"","",{"$f":"IF(OR($E17=\"كابينات\",$E17=\"بلاي وود \"),INDEX(التفاصيل!$P:$P,MATCH('المعلومات '!$G17,التفاصيل!$M:$M,0)),IFERROR(J17*I17,\"\"))","v":""},""]
[null,null,null,null,null,null,null,null,null,"","",{"$f":"IF(OR($E18=\"كابينات\",$E18=\"بلاي وود \"),INDEX(التفاصيل!$P:$P,MATCH('المعلومات '!$G18,التفاصيل!$M:$M,0)),IFERROR(J18*I18,\"\"))","v":""},{"$f":"IFERROR(H18-L18-(K18*L18),\"\")","v":""}]
[null,null,null,null,null,null,null,null,null,"","",{"$f":"IF(OR($E19=\"كابينات\",$E19=\"بلاي وود \"),INDEX(التفاصيل!$P:$P,MATCH('المعلومات '!$G19,التفاصيل!$M:$M,0)),IFERROR(J19*I19,\"\"))","v":""},""]
[null,null,null,null,null,null,null,null,null,"","",{"$f":"IF(OR($E20=\"كابينات\",$E20=\"بلاي وود \"),INDEX(التفاصيل!$P:$P,MATCH('المعلومات '!$G20,التفاصيل!$M:$M,0)),IFERROR(J20*I20,\"\"))","v":""},""]
[null,null,null,null,null,null,null,null,null,"","",{"$f":"IF(OR($E21=\"كابينات\",$E21=\"بلاي وود \"),INDEX(التفاصيل!$P:$P,MATCH('المعلومات '!$G21,التفاصيل!$M:$M,0)),IFERROR(J21*I21,\"\"))","v":""},""]
[null,null,null,null,null,null,null,null,null,"","",{"$f":"IF(OR($E22=\"كابينات\",$E22=\"بلاي وود \"),INDEX(التفاصيل!$P:$P,MATCH('المعلومات '!$G22,التفاصيل!$M:$M,0)),IFERROR(J22*I22,\"\"))","v":""},""]
[null,null,null,null,null,null,null,null,null,"","",{"$f":"IF(OR($E23=\"كابينات\",$E23=\"بلاي وود \"),INDEX(التفاصيل!$P:$P,MATCH('المعلومات '!$G23,التفاصيل!$M:$M,0)),IFERROR(J23*I23,\"\"))","v":""},""]
[null,null,null,null,null,null,null,null,null,"","",{"$f":"IF(OR($E24=\"كابينات\",$E24=\"بلاي وود \"),INDEX(التفاصيل!$P:$P,MATCH('المعلومات '!$G24,التفاصيل!$M:$M,0)),IFERROR(J24*I24,\"\"))","v":""},""]
[null,null,null,null,null,null,null,null,null,"","",{"$f":"IF(OR($E25=\"كابينات\",$E25=\"بلاي وود \"),INDEX(التفاصيل!$P:$P,MATCH('المعلومات '!$G25,التفاصيل!$M:$M,0)),IFERROR(J25*I25,\"\"))","v":""},""]
[null,null,null,null,null,null,null,null,null,"","",{"$f":"IF(OR($E26=\"كابينات\",$E26=\"بلاي وود \"),INDEX(التفاصيل!$P:$P,MATCH('المعلومات '!$G26,التفاصيل!$M:$M,0)),IFERROR(J26*I26,\"\"))","v":""},""]
[null,null,null,null,null,null,null,null,null,"","",{"$f":"IF(OR($E27=\"كابينات\",$E27=\"بلاي وود \"),INDEX(التفاصيل!$P:$P,MATCH('المعلومات '!$G27,التفاصيل!$M:$M,0)),IFERROR(J27*I27,\"\"))","v":""},""]
[null,null,null,null,null,null,null,null,null,"","",{"$f":"IF(OR($E28=\"كابينات\",$E28=\"بلاي وود \"),INDEX(التفاصيل!$P:$P,MATCH('المعلومات '!$G28,التفاصيل!$M:$M,0)),IFERROR(J28*I28,\"\"))","v":""},""]
[null,null,null,null,null,null,null,null,null,"","",{"$f":"IF(OR($E29=\"كابينات\",$E29=\"بلاي وود \"),INDEX(التفاصيل!$P:$P,MATCH('المعلومات '!$G29,التفاصيل!$M:$M,0)),IFERROR(J29*I29,\"\"))","v":""},""]
[null,null,null,null,null,null,null,null,null,"","",{"$f":"IF(OR($E30=\"كابينات\",$E30=\"بلاي وود \"),INDEX(التفاصيل!$P:$P,MATCH('المعلومات '!$G30,التفاصيل!$M:$M,0)),IFERROR(J30*I30,\"\"))","v":""},""]
[null,null,null,null,null,null,null,null,null,"","",{"$f":"IF(OR($E31=\"كابينات\",$E31=\"بلاي وود \"),INDEX(التفاصيل!$P:$P,MATCH('المعلومات '!$G31,التفاصيل!$M:$M,0)),IFERROR(J31*I31,\"\"))","v":""},""]
[null,null,null,null,null,null,null,null,null,"","",{"$f":"IF(OR($E32=\"كابينات\",$E32=\"بلاي وود \"),INDEX(التفاصيل!$P:$P,MATCH('المعلومات '!$G32,التفاصيل!$M:$M,0)),IFERROR(J32*I32,\"\"))","v":""},""]
[null,null,null,null,null,null,null,null,null,"","",{"$f":"IF(OR($E33=\"كابينات\",$E33=\"بلاي وود \"),INDEX(التفاصيل!$P:$P,MATCH('المعلومات '!$G33,التفاصيل!$M:$M,0)),IFERROR(J33*I33,\"\"))","v":""},""]
[null,null,null,null,null,null,null,null,null,"","",{"$f":"IF(OR($E34=\"كابينات\",$E34=\"بلاي وود \"),INDEX(التفاصيل!$P:$P,MATCH('المعلومات '!$G34,التفاصيل!$M:$M,0)),IFERROR(J34*I34,\"\"))","v":""},""]
[null,null,null,null,null,null,null,null,null,"","",{"$f":"IF(OR($E35=\"كابينات\",$E35=\"بلاي وود \"),INDEX(التفاصيل!$P:$P,MATCH('المعلومات '!$G35,التفاصيل!$M:$M,0)),IFERROR(J35*I35,\"\"))","v":""},""]
[null,null,null,null,null,null,null,null,null,"","",{"$f":"IF(OR($E36=\"كابينات\",$E36=\"بلاي وود \"),INDEX(التفاصيل!$P:$P,MATCH('المعلومات '!$G36,التفاصيل!$M:$M,0)),IFERROR(J36*I36,\"\"))","v":""},""]
[null,null,null,null,null,null,null,null,null,"","",{"$f":"IF(OR($E37=\"كابينات\",$E37=\"بلاي وود \"),INDEX(التفاصيل!$P:$P,MATCH('المعلومات '!$G37,التفاصيل!$M:$M,0)),IFERROR(J37*I37,\"\"))","v":""},""]
[null,null,null,null,null,null,null,null,null,"","",{"$f":"IF(OR($E38=\"كابينات\",$E38=\"بلاي وود \"),INDEX(التفاصيل!$P:$P,MATCH('المعلومات '!$G38,التفاصيل!$M:$M,0)),IFERROR(J38*I38,\"\"))","v":""},""]
[null,null,null,null,null,null,null,null,null,"","",{"$f":"IF(OR($E39=\"كابينات\",$E39=\"بلاي وود \"),INDEX(التفاصيل!$P:$P,MATCH('المعلومات '!$G39,التفاصيل!$M:$M,0)),IFERROR(J39*I39,\"\"))","v":""},""]
[null,null,null,null,null,null,null,null,null,"","",{"$f":"IF(OR($E40=\"كابينات\",$E40=\"بلاي وود \"),INDEX(التفاصيل!$P:$P,MATCH('المعلومات '!$G40,التفاصيل!$M:$M,0)),IFERROR(J40*I40,\"\"))","v":""},""]
[null,null,null,null,null,null,null,null,null,"","",{"$f":"IF(OR($E41=\"كابينات\",$E41=\"بلاي وود \"),INDEX(التفاصيل!$P:$P,MATCH('المعلومات '!$G41,التفاصيل!$M:$M,0)),IFERROR(J41*I41,\"\"))","v":""},""]
[null,null,null,null,null,null,null,null,null,"","",{"$f":"IF(OR($E42=\"كابينات\",$E42=\"بلاي وود \"),INDEX(التفاصيل!$P:$P,MATCH('المعلومات '!$G42,التفاصيل!$M:$M,0)),IFERROR(J42*I42,\"\"))","v":""},""]
[null,null,null,null,null,null,null,null,null,"","",{"$f":"IF(OR($E43=\"كابينات\",$E43=\"بلاي وود \"),INDEX(التفاصيل!$P:$P,MATCH('المعلومات '!$G43,التفاصيل!$M:$M,0)),IFERROR(J43*I43,\"\"))","v":""},""]
[null,null,null,null,null,null,null,null,null,"","",{"$f":"IF(OR($E44=\"كابينات\",$E44=\"بلاي وود \"),INDEX(التفاصيل!$P:$P,MATCH('المعلومات '!$G44,التفاصيل!$M:$M,0)),IFERROR(J44*I44,\"\"))","v":""},""]
[null,null,null,null,null,null,null,null,null,"","",{"$f":"IF(OR($E45=\"كابينات\",$E45=\"بلاي وود \"),INDEX(التفاصيل!$P:$P,MATCH('المعلومات '!$G45,التفاصيل!$M:$M,0)),IFERROR(J45*I45,\"\"))","v":""},""]
[null,null,null,null,null,null,null,null,null,"","",{"$f":"IF(OR($E46=\"كابينات\",$E46=\"بلاي وود \"),INDEX(التفاصيل!$P:$P,MATCH('المعلومات '!$G46,التفاصيل!$M:$M,0)),IFERROR(J46*I46,\"\"))","v":""},""]
[null,null,null,null,null,null,null,null,null,"","",{"$f":"IF(OR($E47=\"كابينات\",$E47=\"بلاي وود \"),INDEX(التفاصيل!$P:$P,MATCH('المعلومات '!$G47,التفاصيل!$M:$M,0)),IFERROR(J47*I47,\"\"))","v":""},""]
[null,null,null,null,null,null,null,null,null,"","",{"$f":"IF(OR($E48=\"كابينات\",$E48=\"بلاي وود \"),INDEX(التفاصيل!$P:$P,MATCH('المعلومات '!$G48,التفاصيل!$M:$M,0)),IFERROR(J48*I48,\"\"))","v":""},""]
[null,null,null,null,null,null,null,null,null,"","",{"$f":"IF(OR($E49=\"كابينات\",$E49=\"بلاي وود \"),INDEX(التفاصيل!$P:$P,MATCH('المعلومات '!$G49,التفاصيل!$M:$M,0)),IFERROR(J49*I49,\"\"))","v":""},""]
[null,null,null,null,null,null,null,null,null,"","",{"$f":"IF(OR($E50=\"كابينات\",$E50=\"بلاي وود \"),INDEX(التفاصيل!$P:$P,MATCH('المعلومات '!$G50,التفاصيل!$M:$M,0)),IFERROR(J50*I50,\"\"))","v":""},""]
[null,null,null,null,null,null,null,null,null,"","",{"$f":"IF(OR($E51=\"كابينات\",$E51=\"بلاي وود \"),INDEX(التفاصيل!$P:$P,MATCH('المعلومات '!$G51,التفاصيل!$M:$M,0)),IFERROR(J51*I51,\"\"))","v":""},""]
[null,null,null,null,null,null,null,null,null,"","",{"$f":"IF(OR($E52=\"كابينات\",$E52=\"بلاي وود \"),INDEX(التفاصيل!$P:$P,MATCH('المعلومات '!$G52,التفاصيل!$M:$M,0)),IFERROR(J52*I52,\"\"))","v":""},""]
[null,null,null,null,null,null,null,null,null,"","",{"$f":"IF(OR($E53=\"كابينات\",$E53=\"بلاي وود \"),INDEX(التفاصيل!$P:$P,MATCH('المعلومات '!$G53,التفاصيل!$M:$M,0)),IFERROR(J53*I53,\"\"))","v":""},""]
[null,null,null,null,null,null,null,null,null,"","",{"$f":"IF(OR($E54=\"كابينات\",$E54=\"بلاي وود \"),INDEX(التفاصيل!$P:$P,MATCH('المعلومات '!$G54,التفاصيل!$M:$M,0)),IFERROR(J54*I54,\"\"))","v":""},""]
[null,null,null,null,null,null,null,null,null,"","",{"$f":"IF(OR($E55=\"كابينات\",$E55=\"بلاي وود \"),INDEX(التفاصيل!$P:$P,MATCH('المعلومات '!$G55,التفاصيل!$M:$M,0)),IFERROR(J55*I55,\"\"))","v":""},""]
[null,null,null,null,null,null,null,null,null,"","",{"$f":"IF(OR($E56=\"كابينات\",$E56=\"بلاي وود \"),INDEX(التفاصيل!$P:$P,MATCH('المعلومات '!$G56,التفاصيل!$M:$M,0)),IFERROR(J56*I56,\"\"))","v":""},""]
[null,null,null,null,null,null,null,null,null,"","",{"$f":"IF(OR($E57=\"كابينات\",$E57=\"بلاي وود \"),INDEX(التفاصيل!$P:$P,MATCH('المعلومات '!$G57,التفاصيل!$M:$M,0)),IFERROR(J57*I57,\"\"))","v":""},""]
[null,null,null,null,null,null,null,null,null,"","",{"$f":"IF(OR($E58=\"كابينات\",$E58=\"بلاي وود \"),INDEX(التفاصيل!$P:$P,MATCH('المعلومات '!$G58,التفاصيل!$M:$M,0)),IFERROR(J58*I58,\"\"))","v":""},""]
[null,null,null,null,null,null,null,null,null,"","",{"$f":"IF(OR($E59=\"كابينات\",$E59=\"بلاي وود \"),INDEX(التفاصيل!$P:$P,MATCH('المعلومات '!$G59,التفاصيل!$M:$M,0)),IFERROR(J59*I59,\"\"))","v":""},""]
[null,null,null,null,null,null,null,null,null,"","",{"$f":"IF(OR($E60=\"كابينات\",$E60=\"بلاي وود \"),INDEX(التفاصيل!$P:$P,MATCH('المعلومات '!$G60,التفاصيل!$M:$M,0)),IFERROR(J60*I60,\"\"))","v":""},""]
[null,null,null,null,null,null,null,null,null,"","",{"$f":"IF(OR($E61=\"كابينات\",$E61=\"بلاي وود \"),INDEX(التفاصيل!$P:$P,MATCH('المعلومات '!$G61,التفاصيل!$M:$M,0)),IFERROR(J61*I61,\"\"))","v":""},""]
[null,null,null,null,null,null,null,null,null,"","",{"$f":"IF(OR($E62=\"كابينات\",$E62=\"بلاي وود \"),INDEX(التفاصيل!$P:$P,MATCH('المعلومات '!$G62,التفاصيل!$M:$M,0)),IFERROR(J62*I62,\"\"))","v":""},""]
[null,null,null,null,null,null,null,null,null,"","",{"$f":"IF(OR($E63=\"كابينات\",$E63=\"بلاي وود \"),INDEX(التفاصيل!$P:$P,MATCH('المعلومات '!$G63,التفاصيل!$M:$M,0)),IFERROR(J63*I63,\"\"))","v":""},""]
[null,null,null,null,null,null,null,null,null,"","",{"$f":"IF(OR($E64=\"كابينات\",$E64=\"بلاي وود \"),INDEX(التفاصيل!$P:$P,MATCH('المعلومات '!$G64,التفاصيل!$M:$M,0)),IFERROR(J64*I64,\"\"))","v":""},""]
[null,null,null,null,null,null,null,null,null,"","",{"$f":"IF(OR($E65=\"كابينات\",$E65=\"بلاي وود \"),INDEX(التفاصيل!$P:$P,MATCH('المعلومات '!$G65,التفاصيل!$M:$M,0)),IFERROR(J65*I65,\"\"))","v":""},""]
[null,null,null,null,null,null,null,null,null,{"$f":"IF(E66=\"\",\"\",VLOOKUP(E:E,$N$2:$O$12,2,0))","v":""},{"$f":"IF(E66=\"\",\"\",VLOOKUP(E:E,$P$2:$Q$12,2,0))","v":""},{"$f":"IF(OR($E66=\"كابينات\",$E66=\"بلاي وود \"),INDEX(التفاصيل!$P:$P,MATCH('المعلومات '!$G66,التفاصيل!$M:$M,0)),IFERROR(J66*I66,\"\"))","v":""},""]
[null,null,null,null,null,null,null,null,null,"","",{"$f":"IF(OR($E67=\"كابينات\",$E67=\"بلاي وود \"),INDEX(التفاصيل!$P:$P,MATCH('المعلومات '!$G67,التفاصيل!$M:$M,0)),IFERROR(J67*I67,\"\"))","v":""},""]
[null,null,null,null,null,null,null,null,null,"","",{"$f":"IF(OR($E68=\"كابينات\",$E68=\"بلاي وود \"),INDEX(التفاصيل!$P:$P,MATCH('المعلومات '!$G68,التفاصيل!$M:$M,0)),IFERROR(J68*I68,\"\"))","v":""},""]
[null,null,null,null,null,null,null,null,null,"","",{"$f":"IF(OR($E69=\"كابينات\",$E69=\"بلاي وود \"),INDEX(التفاصيل!$P:$P,MATCH('المعلومات '!$G69,التفاصيل!$M:$M,0)),IFERROR(J69*I69,\"\"))","v":""},""]
[null,null,null,null,null,null,null,null,null,"","",{"$f":"IF(OR($E70=\"كابينات\",$E70=\"بلاي وود \"),INDEX(التفاصيل!$P:$P,MATCH('المعلومات '!$G70,التفاصيل!$M:$M,0)),IFERROR(J70*I70,\"\"))","v":""},""]
[null,null,null,null,null,null,null,null,null,"","",{"$f":"IF(OR($E71=\"كابينات\",$E71=\"بلاي وود \"),INDEX(التفاصيل!$P:$P,MATCH('المعلومات '!$G71,التفاصيل!$M:$M,0)),IFERROR(J71*I71,\"\"))","v":""},""]
[null,null,null,null,null,null,null,null,null,"","",{"$f":"IF(OR($E72=\"كابينات\",$E72=\"بلاي وود \"),INDEX(التفاصيل!$P:$P,MATCH('المعلومات '!$G72,التفاصيل!$M:$M,0)),IFERROR(J72*I72,\"\"))","v":""},""]
[null,null,null,null,null,null,null,null,null,"","",{"$f":"IF(OR($E73=\"كابينات\",$E73=\"بلاي وود \"),INDEX(التفاصيل!$P:$P,MATCH('المعلومات '!$G73,التفاصيل!$M:$M,0)),IFERROR(J73*I73,\"\"))","v":""},""]
[null,null,null,null,null,null,null,null,null,"","",{"$f":"IF(OR($E74=\"كابينات\",$E74=\"بلاي وود \"),INDEX(التفاصيل!$P:$P,MATCH('المعلومات '!$G74,التفاصيل!$M:$M,0)),IFERROR(J74*I74,\"\"))","v":""},""]
[null,null,null,null,null,null,null,null,null,"","",{"$f":"IF(OR($E75=\"كابينات\",$E75=\"بلاي وود \"),INDEX(التفاصيل!$P:$P,MATCH('المعلومات '!$G75,التفاصيل!$M:$M,0)),IFERROR(J75*I75,\"\"))","v":""},""]
[null,null,null,null,null,null,null,null,null,"","",{"$f":"IF(OR($E76=\"كابينات\",$E76=\"بلاي وود \"),INDEX(التفاصيل!$P:$P,MATCH('المعلومات '!$G76,التفاصيل!$M:$M,0)),IFERROR(J76*I76,\"\"))","v":""},""]
[null,null,null,null,null,null,null,null,null,"","",{"$f":"IF(OR($E77=\"كابينات\",$E77=\"بلاي وود \"),INDEX(التفاصيل!$P:$P,MATCH('المعلومات '!$G77,التفاصيل!$M:$M,0)),IFERROR(J77*I77,\"\"))","v":""},""]
[null,null,null,null,null,null,null,null,null,"","",{"$f":"IF(OR($E78=\"كابينات\",$E78=\"بلاي وود \"),INDEX(التفاصيل!$P:$P,MATCH('المعلومات '!$G78,التفاصيل!$M:$M,0)),IFERROR(J78*I78,\"\"))","v":""},""]
[null,null,null,null,null,null,null,null,null,"","",{"$f":"IF(OR($E79=\"كابينات\",$E79=\"بلاي وود \"),INDEX(التفاصيل!$P:$P,MATCH('المعلومات '!$G79,التفاصيل!$M:$M,0)),IFERROR(J79*I79,\"\"))","v":""},""]
[null,null,null,null,null,null,null,null,null,"","",{"$f":"IF(OR($E80=\"كابينات\",$E80=\"بلاي وود \"),INDEX(التفاصيل!$P:$P,MATCH('المعلومات '!$G80,التفاصيل!$M:$M,0)),IFERROR(J80*I80,\"\"))","v":""},""]
[null,null,null,null,null,null,null,null,null,"","",{"$f":"IF(OR($E81=\"كابينات\",$E81=\"بلاي وود \"),INDEX(التفاصيل!$P:$P,MATCH('المعلومات '!$G81,التفاصيل!$M:$M,0)),IFERROR(J81*I81,\"\"))","v":""},""]
[null,null,null,null,null,null,null,null,null,"","",{"$f":"IF(OR($E82=\"كابينات\",$E82=\"بلاي وود \"),INDEX(التفاصيل!$P:$P,MATCH('المعلومات '!$G82,التفاصيل!$M:$M,0)),IFERROR(J82*I82,\"\"))","v":""},{"$f":"IFERROR(H82-L82-(K82*L82),\"\")","v":""}]
[null,null,null,null,null,null,null,null,null,"","",{"$f":"IF(OR($E83=\"كابينات\",$E83=\"بلاي وود \"),INDEX(التفاصيل!$P:$P,MATCH('المعلومات '!$G83,التفاصيل!$M:$M,0)),IFERROR(J83*I83,\"\"))","v":""},""]
[null,null,null,null,null,null,null,null,null,"","",{"$f":"IF(OR($E84=\"كابينات\",$E84=\"بلاي وود \"),INDEX(التفاصيل!$P:$P,MATCH('المعلومات '!$G84,التفاصيل!$M:$M,0)),IFERROR(J84*I84,\"\"))","v":""},""]
[null,null,null,null,null,null,null,null,null,"","",{"$f":"IF(OR($E85=\"كابينات\",$E85=\"بلاي وود \"),INDEX(التفاصيل!$P:$P,MATCH('المعلومات '!$G85,التفاصيل!$M:$M,0)),IFERROR(J85*I85,\"\"))","v":""},""]
[null,null,null,null,null,null,null,null,null,"","",{"$f":"IF(OR($E86=\"كابينات\",$E86=\"بلاي وود \"),INDEX(التفاصيل!$P:$P,MATCH('المعلومات '!$G86,التفاصيل!$M:$M,0)),IFERROR(J86*I86,\"\"))","v":""},""]
[null,null,null,null,null,null,null,null,null,"","",{"$f":"IF(OR($E87=\"كابينات\",$E87=\"بلاي وود \"),INDEX(التفاصيل!$P:$P,MATCH('المعلومات '!$G87,التفاصيل!$M:$M,0)),IFERROR(J87*I87,\"\"))","v":""},""]
[null,null,null,null,null,null,null,null,null,"","",{"$f":"IF(OR($E88=\"كابينات\",$E88=\"بلاي وود \"),INDEX(التفاصيل!$P:$P,MATCH('المعلومات '!$G88,التفاصيل!$M:$M,0)),IFERROR(J88*I88,\"\"))","v":""},""]
[null,null,null,null,null,null,null,null,null,"","",{"$f":"IF(OR($E89=\"كابينات\",$E89=\"بلاي وود \"),INDEX(التفاصيل!$P:$P,MATCH('المعلومات '!$G89,التفاصيل!$M:$M,0)),IFERROR(J89*I89,\"\"))","v":""},""]
[null,null,null,null,null,null,null,null,null,"","",{"$f":"IF(OR($E90=\"كابينات\",$E90=\"بلاي وود \"),INDEX(التفاصيل!$P:$P,MATCH('المعلومات '!$G90,التفاصيل!$M:$M,0)),IFERROR(J90*I90,\"\"))","v":""},""]
[null,null,null,null,null,null,null,null,null,"","",{"$f":"IF(OR($E91=\"كابينات\",$E91=\"بلاي وود \"),INDEX(التفاصيل!$P:$P,MATCH('المعلومات '!$G91,التفاصيل!$M:$M,0)),IFERROR(J91*I91,\"\"))","v":""},""]
[null,null,null,null,null,null,null,null,null,"","",{"$f":"IF(OR($E92=\"كابينات\",$E92=\"بلاي وود \"),INDEX(التفاصيل!$P:$P,MATCH('المعلومات '!$G92,التفاصيل!$M:$M,0)),IFERROR(J92*I92,\"\"))","v":""},""]
[null,null,null,null,null,null,null,null,null,"","",{"$f":"IF(OR($E93=\"كابينات\",$E93=\"بلاي وود \"),INDEX(التفاصيل!$P:$P,MATCH('المعلومات '!$G93,التفاصيل!$M:$M,0)),IFERROR(J93*I93,\"\"))","v":""},""]
[null,null,null,null,null,null,null,null,null,"","",{"$f":"IF(OR($E94=\"كابينات\",$E94=\"بلاي وود \"),INDEX(التفاصيل!$P:$P,MATCH('المعلومات '!$G94,التفاصيل!$M:$M,0)),IFERROR(J94*I94,\"\"))","v":""},""]
[null,null,null,null,null,null,null,null,null,"","",{"$f":"IF(OR($E95=\"كابينات\",$E95=\"بلاي وود \"),INDEX(التفاصيل!$P:$P,MATCH('المعلومات '!$G95,التفاصيل!$M:$M,0)),IFERROR(J95*I95,\"\"))","v":""},""]
[null,null,null,null,null,null,null,null,null,"","",{"$f":"IF(OR($E96=\"كابينات\",$E96=\"بلاي وود \"),INDEX(التفاصيل!$P:$P,MATCH('المعلومات '!$G96,التفاصيل!$M:$M,0)),IFERROR(J96*I96,\"\"))","v":""},""]
[null,null,null,null,null,null,null,null,null,"","",{"$f":"IF(OR($E97=\"كابينات\",$E97=\"بلاي وود \"),INDEX(التفاصيل!$P:$P,MATCH('المعلومات '!$G97,التفاصيل!$M:$M,0)),IFERROR(J97*I97,\"\"))","v":""},""]
[null,null,null,null,null,null,null,null,null,"","",{"$f":"IF(OR($E98=\"كابينات\",$E98=\"بلاي وود \"),INDEX(التفاصيل!$P:$P,MATCH('المعلومات '!$G98,التفاصيل!$M:$M,0)),IFERROR(J98*I98,\"\"))","v":""},""]
[null,null,null,null,null,null,null,null,null,"","",{"$f":"IF(OR($E99=\"كابينات\",$E99=\"بلاي وود \"),INDEX(التفاصيل!$P:$P,MATCH('المعلومات '!$G99,التفاصيل!$M:$M,0)),IFERROR(J99*I99,\"\"))","v":""},""]
[null,null,null,null,null,null,null,null,null,"","",{"$f":"IF(OR($E100=\"كابينات\",$E100=\"بلاي وود \"),INDEX(التفاصيل!$P:$P,MATCH('المعلومات '!$G100,التفاصيل!$M:$M,0)),IFERROR(J100*I100,\"\"))","v":""},""]
[null,null,null,null,null,null,null,null,null,"","",{"$f":"IF(OR($E101=\"كابينات\",$E101=\"بلاي وود \"),INDEX(التفاصيل!$P:$P,MATCH('المعلومات '!$G101,التفاصيل!$M:$M,0)),IFERROR(J101*I101,\"\"))","v":""},""]
[null,null,null,null,null,null,null,null,null,"","",{"$f":"IF(OR($E102=\"كابينات\",$E102=\"بلاي وود \"),INDEX(التفاصيل!$P:$P,MATCH('المعلومات '!$G102,التفاصيل!$M:$M,0)),IFERROR(J102*I102,\"\"))","v":""},""]
[null,null,null,null,null,null,null,null,null,"","",{"$f":"IF(OR($E103=\"كابينات\",$E103=\"بلاي وود \"),INDEX(التفاصيل!$P:$P,MATCH('المعلومات '!$G103,التفاصيل!$M:$M,0)),IFERROR(J103*I103,\"\"))","v":""},""]
[null,null,null,null,null,null,null,null,null,"","",{"$f":"IF(OR($E104=\"كابينات\",$E104=\"بلاي وود \"),INDEX(التفاصيل!$P:$P,MATCH('المعلومات '!$G104,التفاصيل!$M:$M,0)),IFERROR(J104*I104,\"\"))","v":""},""]
[null,null,null,null,null,null,null,null,null,"","",{"$f":"IF(OR($E105=\"كابينات\",$E105=\"بلاي وود \"),INDEX(التفاصيل!$P:$P,MATCH('المعلومات '!$G105,التفاصيل!$M:$M,0)),IFERROR(J105*I105,\"\"))","v":""},""]
[null,null,null,null,null,null,null,null,null,"","",{"$f":"IF(OR($E106=\"كابينات\",$E106=\"بلاي وود \"),INDEX(التفاصيل!$P:$P,MATCH('المعلومات '!$G106,التفاصيل!$M:$M,0)),IFERROR(J106*I106,\"\"))","v":""},""]
[null,null,null,null,null,null,null,null,null,"","",{"$f":"IF(OR($E107=\"كابينات\",$E107=\"بلاي وود \"),INDEX(التفاصيل!$P:$P,MATCH('المعلومات '!$G107,التفاصيل!$M:$M,0)),IFERROR(J107*I107,\"\"))","v":""},""]
[null,null,null,null,null,null,null,null,null,"","",{"$f":"IF(OR($E108=\"كابينات\",$E108=\"بلاي وود \"),INDEX(التفاصيل!$P:$P,MATCH('المعلومات '!$G108,التفاصيل!$M:$M,0)),IFERROR(J108*I108,\"\"))","v":""},""]
[null,null,null,null,null,null,null,null,null,"","",{"$f":"IF(OR($E109=\"كابينات\",$E109=\"بلاي وود \"),INDEX(التفاصيل!$P:$P,MATCH('المعلومات '!$G109,التفاصيل!$M:$M,0)),IFERROR(J109*I109,\"\"))","v":""},""]
[null,null,null,null,null,null,null,null,null,"","",{"$f":"IF(OR($E110=\"كابينات\",$E110=\"بلاي وود \"),INDEX(التفاصيل!$P:$P,MATCH('المعلومات '!$G110,التفاصيل!$M:$M,0)),IFERROR(J110*I110,\"\"))","v":""},""]
[null,null,null,null,null,null,null,null,null,"","",{"$f":"IF(OR($E111=\"كابينات\",$E111=\"بلاي وود \"),INDEX(التفاصيل!$P:$P,MATCH('المعلومات '!$G111,التفاصيل!$M:$M,0)),IFERROR(J111*I111,\"\"))","v":""},""]
[null,null,null,null,null,null,null,null,null,"","",{"$f":"IF(OR($E112=\"كابينات\",$E112=\"بلاي وود \"),INDEX(التفاصيل!$P:$P,MATCH('المعلومات '!$G112,التفاصيل!$M:$M,0)),IFERROR(J112*I112,\"\"))","v":""},""]
[null,null,null,null,null,null,null,null,null,"","",{"$f":"IF(OR($E113=\"كابينات\",$E113=\"بلاي وود \"),INDEX(التفاصيل!$P:$P,MATCH('المعلومات '!$G113,التفاصيل!$M:$M,0)),IFERROR(J113*I113,\"\"))","v":""},""]
[null,null,null,null,null,null,null,null,null,"","",{"$f":"IF(OR($E114=\"كابينات\",$E114=\"بلاي وود \"),INDEX(التفاصيل!$P:$P,MATCH('المعلومات '!$G114,التفاصيل!$M:$M,0)),IFERROR(J114*I114,\"\"))","v":""},""]
[null,null,null,null,null,null,null,null,null,"","",{"$f":"IF(OR($E115=\"كابينات\",$E115=\"بلاي وود \"),INDEX(التفاصيل!$P:$P,MATCH('المعلومات '!$G115,التفاصيل!$M:$M,0)),IFERROR(J115*I115,\"\"))","v":""},""]
[null,null,null,null,null,null,null,null,null,"","",{"$f":"IF(OR($E116=\"كابينات\",$E116=\"بلاي وود \"),INDEX(التفاصيل!$P:$P,MATCH('المعلومات '!$G116,التفاصيل!$M:$M,0)),IFERROR(J116*I116,\"\"))","v":""},""]
[null,null,null,null,null,null,null,null,null,"","",{"$f":"IF(OR($E117=\"كابينات\",$E117=\"بلاي وود \"),INDEX(التفاصيل!$P:$P,MATCH('المعلومات '!$G117,التفاصيل!$M:$M,0)),IFERROR(J117*I117,\"\"))","v":""},""]
[null,null,null,null,null,null,null,null,null,"","",{"$f":"IF(OR($E118=\"كابينات\",$E118=\"بلاي وود \"),INDEX(التفاصيل!$P:$P,MATCH('المعلومات '!$G118,التفاصيل!$M:$M,0)),IFERROR(J118*I118,\"\"))","v":""},""]
[null,null,null,null,null,null,null,null,null,"","",{"$f":"IF(OR($E119=\"كابينات\",$E119=\"بلاي وود \"),INDEX(التفاصيل!$P:$P,MATCH('المعلومات '!$G119,التفاصيل!$M:$M,0)),IFERROR(J119*I119,\"\"))","v":""},""]
[null,null,null,null,null,null,null,null,null,"","",{"$f":"IF(OR($E120=\"كابينات\",$E120=\"بلاي وود \"),INDEX(التفاصيل!$P:$P,MATCH('المعلومات '!$G120,التفاصيل!$M:$M,0)),IFERROR(J120*I120,\"\"))","v":""},""]
[null,null,null,null,null,null,null,null,null,"","",{"$f":"IF(OR($E121=\"كابينات\",$E121=\"بلاي وود \"),INDEX(التفاصيل!$P:$P,MATCH('المعلومات '!$G121,التفاصيل!$M:$M,0)),IFERROR(J121*I121,\"\"))","v":""},""]
[null,null,null,null,null,null,null,null,null,"","",{"$f":"IF(OR($E122=\"كابينات\",$E122=\"بلاي وود \"),INDEX(التفاصيل!$P:$P,MATCH('المعلومات '!$G122,التفاصيل!$M:$M,0)),IFERROR(J122*I122,\"\"))","v":""},""]
[null,null,null,null,null,null,null,null,null,"","",{"$f":"IF(OR($E123=\"كابينات\",$E123=\"بلاي وود \"),INDEX(التفاصيل!$P:$P,MATCH('المعلومات '!$G123,التفاصيل!$M:$M,0)),IFERROR(J123*I123,\"\"))","v":""},""]
[null,null,null,null,null,null,null,null,null,"","",{"$f":"IF(OR($E124=\"كابينات\",$E124=\"بلاي وود \"),INDEX(التفاصيل!$P:$P,MATCH('المعلومات '!$G124,التفاصيل!$M:$M,0)),IFERROR(J124*I124,\"\"))","v":""},""]
[null,null,null,null,null,null,null,null,null,"","",{"$f":"IF(OR($E125=\"كابينات\",$E125=\"بلاي وود \"),INDEX(التفاصيل!$P:$P,MATCH('المعلومات '!$G125,التفاصيل!$M:$M,0)),IFERROR(J125*I125,\"\"))","v":""},""]
[null,null,null,null,null,null,null,null,null,"","",{"$f":"IF(OR($E126=\"كابينات\",$E126=\"بلاي وود \"),INDEX(التفاصيل!$P:$P,MATCH('المعلومات '!$G126,التفاصيل!$M:$M,0)),IFERROR(J126*I126,\"\"))","v":""},""]
[null,null,null,null,null,null,null,null,null,"","",{"$f":"IF(OR($E127=\"كابينات\",$E127=\"بلاي وود \"),INDEX(التفاصيل!$P:$P,MATCH('المعلومات '!$G127,التفاصيل!$M:$M,0)),IFERROR(J127*I127,\"\"))","v":""},""]
[null,null,null,null,null,null,null,null,null,"","",{"$f":"IF(OR($E128=\"كابينات\",$E128=\"بلاي وود \"),INDEX(التفاصيل!$P:$P,MATCH('المعلومات '!$G128,التفاصيل!$M:$M,0)),IFERROR(J128*I128,\"\"))","v":""},""]
[null,null,null,null,null,null,null,null,null,"","",{"$f":"IF(OR($E129=\"كابينات\",$E129=\"بلاي وود \"),INDEX(التفاصيل!$P:$P,MATCH('المعلومات '!$G129,التفاصيل!$M:$M,0)),IFERROR(J129*I129,\"\"))","v":""},""]
[null,null,null,null,null,null,null,null,null,{"$f":"IF(E130=\"\",\"\",VLOOKUP(E:E,$N$2:$O$12,2,0))","v":""},{"$f":"IF(E130=\"\",\"\",VLOOKUP(E:E,$P$2:$Q$12,2,0))","v":""},{"$f":"IF(OR($E130=\"كابينات\",$E130=\"بلاي وود \"),INDEX(التفاصيل!$P:$P,MATCH('المعلومات '!$G130,التفاصيل!$M:$M,0)),IFERROR(J130*I130,\"\"))","v":""},""]
[null,null,null,null,null,null,null,null,null,"","",{"$f":"IF(OR($E131=\"كابينات\",$E131=\"بلاي وود \"),INDEX(التفاصيل!$P:$P,MATCH('المعلومات '!$G131,التفاصيل!$M:$M,0)),IFERROR(J131*I131,\"\"))","v":""},""]
[null,null,null,null,null,null,null,null,null,"","",{"$f":"IF(OR($E132=\"كابينات\",$E132=\"بلاي وود \"),INDEX(التفاصيل!$P:$P,MATCH('المعلومات '!$G132,التفاصيل!$M:$M,0)),IFERROR(J132*I132,\"\"))","v":""},""]
[null,null,null,null,null,null,null,null,null,"","",{"$f":"IF(OR($E133=\"كابينات\",$E133=\"بلاي وود \"),INDEX(التفاصيل!$P:$P,MATCH('المعلومات '!$G133,التفاصيل!$M:$M,0)),IFERROR(J133*I133,\"\"))","v":""},""]
[null,null,null,null,null,null,null,null,null,"","",{"$f":"IF(OR($E134=\"كابينات\",$E134=\"بلاي وود \"),INDEX(التفاصيل!$P:$P,MATCH('المعلومات '!$G134,التفاصيل!$M:$M,0)),IFERROR(J134*I134,\"\"))","v":""},""]
[null,null,null,null,null,null,null,null,null,"","",{"$f":"IF(OR($E135=\"كابينات\",$E135=\"بلاي وود \"),INDEX(التفاصيل!$P:$P,MATCH('المعلومات '!$G135,التفاصيل!$M:$M,0)),IFERROR(J135*I135,\"\"))","v":""},""]
[null,null,null,null,null,null,null,null,null,"","",{"$f":"IF(OR($E136=\"كابينات\",$E136=\"بلاي وود \"),INDEX(التفاصيل!$P:$P,MATCH('المعلومات '!$G136,التفاصيل!$M:$M,0)),IFERROR(J136*I136,\"\"))","v":""},""]
[null,null,null,null,null,null,null,null,null,"","",{"$f":"IF(OR($E137=\"كابينات\",$E137=\"بلاي وود \"),INDEX(التفاصيل!$P:$P,MATCH('المعلومات '!$G137,التفاصيل!$M:$M,0)),IFERROR(J137*I137,\"\"))","v":""},""]
[null,null,null,null,null,null,null,null,null,"","",{"$f":"IF(OR($E138=\"كابينات\",$E138=\"بلاي وود \"),INDEX(التفاصيل!$P:$P,MATCH('المعلومات '!$G138,التفاصيل!$M:$M,0)),IFERROR(J138*I138,\"\"))","v":""},""]
[null,null,null,null,null,null,null,null,null,"","",{"$f":"IF(OR($E139=\"كابينات\",$E139=\"بلاي وود \"),INDEX(التفاصيل!$P:$P,MATCH('المعلومات '!$G139,التفاصيل!$M:$M,0)),IFERROR(J139*I139,\"\"))","v":""},""]
[null,null,null,null,null,null,null,null,null,"","",{"$f":"IF(OR($E140=\"كابينات\",$E140=\"بلاي وود \"),INDEX(التفاصيل!$P:$P,MATCH('المعلومات '!$G140,التفاصيل!$M:$M,0)),IFERROR(J140*I140,\"\"))","v":""},""]
[null,null,null,null,null,null,null,null,null,"","",{"$f":"IF(OR($E141=\"كابينات\",$E141=\"بلاي وود \"),INDEX(التفاصيل!$P:$P,MATCH('المعلومات '!$G141,التفاصيل!$M:$M,0)),IFERROR(J141*I141,\"\"))","v":""},""]
[null,null,null,null,null,null,null,null,null,"","",{"$f":"IF(OR($E142=\"كابينات\",$E142=\"بلاي وود \"),INDEX(التفاصيل!$P:$P,MATCH('المعلومات '!$G142,التفاصيل!$M:$M,0)),IFERROR(J142*I142,\"\"))","v":""},""]
[null,null,null,null,null,null,null,null,null,"","",{"$f":"IF(OR($E143=\"كابينات\",$E143=\"بلاي وود \"),INDEX(التفاصيل!$P:$P,MATCH('المعلومات '!$G143,التفاصيل!$M:$M,0)),IFERROR(J143*I143,\"\"))","v":""},""]
[null,null,null,null,null,null,null,null,null,"","",{"$f":"IF(OR($E144=\"كابينات\",$E144=\"بلاي وود \"),INDEX(التفاصيل!$P:$P,MATCH('المعلومات '!$G144,التفاصيل!$M:$M,0)),IFERROR(J144*I144,\"\"))","v":""},""]
[null,null,null,null,null,null,null,null,null,"","",{"$f":"IF(OR($E145=\"كابينات\",$E145=\"بلاي وود \"),INDEX(التفاصيل!$P:$P,MATCH('المعلومات '!$G145,التفاصيل!$M:$M,0)),IFERROR(J145*I145,\"\"))","v":""},""]
[null,null,null,null,null,null,null,null,null,"","",{"$f":"IF(OR($E146=\"كابينات\",$E146=\"بلاي وود \"),INDEX(التفاصيل!$P:$P,MATCH('المعلومات '!$G146,التفاصيل!$M:$M,0)),IFERROR(J146*I146,\"\"))","v":""},{"$f":"IFERROR(H146-L146-(K146*L146),\"\")","v":""}]
[null,null,null,null,null,null,null,null,null,"","",{"$f":"IF(OR($E147=\"كابينات\",$E147=\"بلاي وود \"),INDEX(التفاصيل!$P:$P,MATCH('المعلومات '!$G147,التفاصيل!$M:$M,0)),IFERROR(J147*I147,\"\"))","v":""},""]
[null,null,null,null,null,null,null,null,null,"","",{"$f":"IF(OR($E148=\"كابينات\",$E148=\"بلاي وود \"),INDEX(التفاصيل!$P:$P,MATCH('المعلومات '!$G148,التفاصيل!$M:$M,0)),IFERROR(J148*I148,\"\"))","v":""},""]
[null,null,null,null,null,null,null,null,null,"","",{"$f":"IF(OR($E149=\"كابينات\",$E149=\"بلاي وود \"),INDEX(التفاصيل!$P:$P,MATCH('المعلومات '!$G149,التفاصيل!$M:$M,0)),IFERROR(J149*I149,\"\"))","v":""},""]
[null,null,null,null,null,null,null,null,null,"","",{"$f":"IF(OR($E150=\"كابينات\",$E150=\"بلاي وود \"),INDEX(التفاصيل!$P:$P,MATCH('المعلومات '!$G150,التفاصيل!$M:$M,0)),IFERROR(J150*I150,\"\"))","v":""},""]
[null,null,null,null,null,null,null,null,null,"","",{"$f":"IF(OR($E151=\"كابينات\",$E151=\"بلاي وود \"),INDEX(التفاصيل!$P:$P,MATCH('المعلومات '!$G151,التفاصيل!$M:$M,0)),IFERROR(J151*I151,\"\"))","v":""},""]
[null,null,null,null,null,null,null,null,null,"","",{"$f":"IF(OR($E152=\"كابينات\",$E152=\"بلاي وود \"),INDEX(التفاصيل!$P:$P,MATCH('المعلومات '!$G152,التفاصيل!$M:$M,0)),IFERROR(J152*I152,\"\"))","v":""},""]
[null,null,null,null,null,null,null,null,null,"","",{"$f":"IF(OR($E153=\"كابينات\",$E153=\"بلاي وود \"),INDEX(التفاصيل!$P:$P,MATCH('المعلومات '!$G153,التفاصيل!$M:$M,0)),IFERROR(J153*I153,\"\"))","v":""},""]
[null,null,null,null,null,null,null,null,null,"","",{"$f":"IF(OR($E154=\"كابينات\",$E154=\"بلاي وود \"),INDEX(التفاصيل!$P:$P,MATCH('المعلومات '!$G154,التفاصيل!$M:$M,0)),IFERROR(J154*I154,\"\"))","v":""},""]
[null,null,null,null,null,null,null,null,null,"","",{"$f":"IF(OR($E155=\"كابينات\",$E155=\"بلاي وود \"),INDEX(التفاصيل!$P:$P,MATCH('المعلومات '!$G155,التفاصيل!$M:$M,0)),IFERROR(J155*I155,\"\"))","v":""},""]
[null,null,null,null,null,null,null,null,null,"","",{"$f":"IF(OR($E156=\"كابينات\",$E156=\"بلاي وود \"),INDEX(التفاصيل!$P:$P,MATCH('المعلومات '!$G156,التفاصيل!$M:$M,0)),IFERROR(J156*I156,\"\"))","v":""},""]
[null,null,null,null,null,null,null,null,null,"","",{"$f":"IF(OR($E157=\"كابينات\",$E157=\"بلاي وود \"),INDEX(التفاصيل!$P:$P,MATCH('المعلومات '!$G157,التفاصيل!$M:$M,0)),IFERROR(J157*I157,\"\"))","v":""},""]
[null,null,null,null,null,null,null,null,null,"","",{"$f":"IF(OR($E158=\"كابينات\",$E158=\"بلاي وود \"),INDEX(التفاصيل!$P:$P,MATCH('المعلومات '!$G158,التفاصيل!$M:$M,0)),IFERROR(J158*I158,\"\"))","v":""},""]
[null,null,null,null,null,null,null,null,null,"","",{"$f":"IF(OR($E159=\"كابينات\",$E159=\"بلاي وود \"),INDEX(التفاصيل!$P:$P,MATCH('المعلومات '!$G159,التفاصيل!$M:$M,0)),IFERROR(J159*I159,\"\"))","v":""},""]
[null,null,null,null,null,null,null,null,null,"","",{"$f":"IF(OR($E160=\"كابينات\",$E160=\"بلاي وود \"),INDEX(التفاصيل!$P:$P,MATCH('المعلومات '!$G160,التفاصيل!$M:$M,0)),IFERROR(J160*I160,\"\"))","v":""},""]
[null,null,null,null,null,null,null,null,null,"","",{"$f":"IF(OR($E161=\"كابينات\",$E161=\"بلاي وود \"),INDEX(التفاصيل!$P:$P,MATCH('المعلومات '!$G161,التفاصيل!$M:$M,0)),IFERROR(J161*I161,\"\"))","v":""},""]
[null,null,null,null,null,null,null,null,null,"","",{"$f":"IF(OR($E162=\"كابينات\",$E162=\"بلاي وود \"),INDEX(التفاصيل!$P:$P,MATCH('المعلومات '!$G162,التفاصيل!$M:$M,0)),IFERROR(J162*I162,\"\"))","v":""},""]
[null,null,null,null,null,null,null,null,null,"","",{"$f":"IF(OR($E163=\"كابينات\",$E163=\"بلاي وود \"),INDEX(التفاصيل!$P:$P,MATCH('المعلومات '!$G163,التفاصيل!$M:$M,0)),IFERROR(J163*I163,\"\"))","v":""},""]
[null,null,null,null,null,null,null,null,null,"","",{"$f":"IF(OR($E164=\"كابينات\",$E164=\"بلاي وود \"),INDEX(التفاصيل!$P:$P,MATCH('المعلومات '!$G164,التفاصيل!$M:$M,0)),IFERROR(J164*I164,\"\"))","v":""},""]
[null,null,null,null,null,null,null,null,null,"","",{"$f":"IF(OR($E165=\"كابينات\",$E165=\"بلاي وود \"),INDEX(التفاصيل!$P:$P,MATCH('المعلومات '!$G165,التفاصيل!$M:$M,0)),IFERROR(J165*I165,\"\"))","v":""},""]
[null,null,null,null,null,null,null,null,null,"","",{"$f":"IF(OR($E166=\"كابينات\",$E166=\"بلاي وود \"),INDEX(التفاصيل!$P:$P,MATCH('المعلومات '!$G166,التفاصيل!$M:$M,0)),IFERROR(J166*I166,\"\"))","v":""},""]
[null,null,null,null,null,null,null,null,null,"","",{"$f":"IF(OR($E167=\"كابينات\",$E167=\"بلاي وود \"),INDEX(التفاصيل!$P:$P,MATCH('المعلومات '!$G167,التفاصيل!$M:$M,0)),IFERROR(J167*I167,\"\"))","v":""},""]
[null,null,null,null,null,null,null,null,null,"","",{"$f":"IF(OR($E168=\"كابينات\",$E168=\"بلاي وود \"),INDEX(التفاصيل!$P:$P,MATCH('المعلومات '!$G168,التفاصيل!$M:$M,0)),IFERROR(J168*I168,\"\"))","v":""},""]
[null,null,null,null,null,null,null,null,null,"","",{"$f":"IF(OR($E169=\"كابينات\",$E169=\"بلاي وود \"),INDEX(التفاصيل!$P:$P,MATCH('المعلومات '!$G169,التفاصيل!$M:$M,0)),IFERROR(J169*I169,\"\"))","v":""},""]
[null,null,null,null,null,null,null,null,null,"","",{"$f":"IF(OR($E170=\"كابينات\",$E170=\"بلاي وود \"),INDEX(التفاصيل!$P:$P,MATCH('المعلومات '!$G170,التفاصيل!$M:$M,0)),IFERROR(J170*I170,\"\"))","v":""},""]
[null,null,null,null,null,null,null,null,null,"","",{"$f":"IF(OR($E171=\"كابينات\",$E171=\"بلاي وود \"),INDEX(التفاصيل!$P:$P,MATCH('المعلومات '!$G171,التفاصيل!$M:$M,0)),IFERROR(J171*I171,\"\"))","v":""},""]
[null,null,null,null,null,null,null,null,null,"","",{"$f":"IF(OR($E172=\"كابينات\",$E172=\"بلاي وود \"),INDEX(التفاصيل!$P:$P,MATCH('المعلومات '!$G172,التفاصيل!$M:$M,0)),IFERROR(J172*I172,\"\"))","v":""},""]
[null,null,null,null,null,null,null,null,null,"","",{"$f":"IF(OR($E173=\"كابينات\",$E173=\"بلاي وود \"),INDEX(التفاصيل!$P:$P,MATCH('المعلومات '!$G173,التفاصيل!$M:$M,0)),IFERROR(J173*I173,\"\"))","v":""},""]
[null,null,null,null,null,null,null,null,null,"","",{"$f":"IF(OR($E174=\"كابينات\",$E174=\"بلاي وود \"),INDEX(التفاصيل!$P:$P,MATCH('المعلومات '!$G174,التفاصيل!$M:$M,0)),IFERROR(J174*I174,\"\"))","v":""},""]
[null,null,null,null,null,null,null,null,null,"","",{"$f":"IF(OR($E175=\"كابينات\",$E175=\"بلاي وود \"),INDEX(التفاصيل!$P:$P,MATCH('المعلومات '!$G175,التفاصيل!$M:$M,0)),IFERROR(J175*I175,\"\"))","v":""},""]
[null,null,null,null,null,null,null,null,null,"","",{"$f":"IF(OR($E176=\"كابينات\",$E176=\"بلاي وود \"),INDEX(التفاصيل!$P:$P,MATCH('المعلومات '!$G176,التفاصيل!$M:$M,0)),IFERROR(J176*I176,\"\"))","v":""},""]
[null,null,null,null,null,null,null,null,null,"","",{"$f":"IF(OR($E177=\"كابينات\",$E177=\"بلاي وود \"),INDEX(التفاصيل!$P:$P,MATCH('المعلومات '!$G177,التفاصيل!$M:$M,0)),IFERROR(J177*I177,\"\"))","v":""},""]
[null,null,null,null,null,null,null,null,null,"","",{"$f":"IF(OR($E178=\"كابينات\",$E178=\"بلاي وود \"),INDEX(التفاصيل!$P:$P,MATCH('المعلومات '!$G178,التفاصيل!$M:$M,0)),IFERROR(J178*I178,\"\"))","v":""},""]
[null,null,null,null,null,null,null,null,null,"","",{"$f":"IF(OR($E179=\"كابينات\",$E179=\"بلاي وود \"),INDEX(التفاصيل!$P:$P,MATCH('المعلومات '!$G179,التفاصيل!$M:$M,0)),IFERROR(J179*I179,\"\"))","v":""},""]
[null,null,null,null,null,null,null,null,null,"","",{"$f":"IF(OR($E180=\"كابينات\",$E180=\"بلاي وود \"),INDEX(التفاصيل!$P:$P,MATCH('المعلومات '!$G180,التفاصيل!$M:$M,0)),IFERROR(J180*I180,\"\"))","v":""},""]
[null,null,null,null,null,null,null,null,null,"","",{"$f":"IF(OR($E181=\"كابينات\",$E181=\"بلاي وود \"),INDEX(التفاصيل!$P:$P,MATCH('المعلومات '!$G181,التفاصيل!$M:$M,0)),IFERROR(J181*I181,\"\"))","v":""},""]
[null,null,null,null,null,null,null,null,null,"","",{"$f":"IF(OR($E182=\"كابينات\",$E182=\"بلاي وود \"),INDEX(التفاصيل!$P:$P,MATCH('المعلومات '!$G182,التفاصيل!$M:$M,0)),IFERROR(J182*I182,\"\"))","v":""},""]
[null,null,null,null,null,null,null,null,null,"","",{"$f":"IF(OR($E183=\"كابينات\",$E183=\"بلاي وود \"),INDEX(التفاصيل!$P:$P,MATCH('المعلومات '!$G183,التفاصيل!$M:$M,0)),IFERROR(J183*I183,\"\"))","v":""},""]
[null,null,null,null,null,null,null,null,null,"","",{"$f":"IF(OR($E184=\"كابينات\",$E184=\"بلاي وود \"),INDEX(التفاصيل!$P:$P,MATCH('المعلومات '!$G184,التفاصيل!$M:$M,0)),IFERROR(J184*I184,\"\"))","v":""},""]
[null,null,null,null,null,null,null,null,null,"","",{"$f":"IF(OR($E185=\"كابينات\",$E185=\"بلاي وود \"),INDEX(التفاصيل!$P:$P,MATCH('المعلومات '!$G185,التفاصيل!$M:$M,0)),IFERROR(J185*I185,\"\"))","v":""},""]
[null,null,null,null,null,null,null,null,null,"","",{"$f":"IF(OR($E186=\"كابينات\",$E186=\"بلاي وود \"),INDEX(التفاصيل!$P:$P,MATCH('المعلومات '!$G186,التفاصيل!$M:$M,0)),IFERROR(J186*I186,\"\"))","v":""},""]
[null,null,null,null,null,null,null,null,null,"","",{"$f":"IF(OR($E187=\"كابينات\",$E187=\"بلاي وود \"),INDEX(التفاصيل!$P:$P,MATCH('المعلومات '!$G187,التفاصيل!$M:$M,0)),IFERROR(J187*I187,\"\"))","v":""},""]
[null,null,null,null,null,null,null,null,null,"","",{"$f":"IF(OR($E188=\"كابينات\",$E188=\"بلاي وود \"),INDEX(التفاصيل!$P:$P,MATCH('المعلومات '!$G188,التفاصيل!$M:$M,0)),IFERROR(J188*I188,\"\"))","v":""},""]
[null,null,null,null,null,null,null,null,null,"","",{"$f":"IF(OR($E189=\"كابينات\",$E189=\"بلاي وود \"),INDEX(التفاصيل!$P:$P,MATCH('المعلومات '!$G189,التفاصيل!$M:$M,0)),IFERROR(J189*I189,\"\"))","v":""},""]
[null,null,null,null,null,null,null,null,null,"","",{"$f":"IF(OR($E190=\"كابينات\",$E190=\"بلاي وود \"),INDEX(التفاصيل!$P:$P,MATCH('المعلومات '!$G190,التفاصيل!$M:$M,0)),IFERROR(J190*I190,\"\"))","v":""},""]
[null,null,null,null,null,null,null,null,null,"","",{"$f":"IF(OR($E191=\"كابينات\",$E191=\"بلاي وود \"),INDEX(التفاصيل!$P:$P,MATCH('المعلومات '!$G191,التفاصيل!$M:$M,0)),IFERROR(J191*I191,\"\"))","v":""},""]
[null,null,null,null,null,null,null,null,null,"","",{"$f":"IF(OR($E192=\"كابينات\",$E192=\"بلاي وود \"),INDEX(التفاصيل!$P:$P,MATCH('المعلومات '!$G192,التفاصيل!$M:$M,0)),IFERROR(J192*I192,\"\"))","v":""},""]
[null,null,null,null,null,null,null,null,null,"","",{"$f":"IF(OR($E193=\"كابينات\",$E193=\"بلاي وود \"),INDEX(التفاصيل!$P:$P,MATCH('المعلومات '!$G193,التفاصيل!$M:$M,0)),IFERROR(J193*I193,\"\"))","v":""},""]
[null,null,null,null,null,null,null,null,null,{"$f":"IF(E194=\"\",\"\",VLOOKUP(E:E,$N$2:$O$12,2,0))","v":""},{"$f":"IF(E194=\"\",\"\",VLOOKUP(E:E,$P$2:$Q$12,2,0))","v":""},{"$f":"IF(OR($E194=\"كابينات\",$E194=\"بلاي وود \"),INDEX(التفاصيل!$P:$P,MATCH('المعلومات '!$G194,التفاصيل!$M:$M,0)),IFERROR(J194*I194,\"\"))","v":""},""]
[null,null,null,null,null,null,null,null,null,"","",{"$f":"IF(OR($E195=\"كابينات\",$E195=\"بلاي وود \"),INDEX(التفاصيل!$P:$P,MATCH('المعلومات '!$G195,التفاصيل!$M:$M,0)),IFERROR(J195*I195,\"\"))","v":""},""]
[null,null,null,null,null,null,null,null,null,"","",{"$f":"IF(OR($E196=\"كابينات\",$E196=\"بلاي وود \"),INDEX(التفاصيل!$P:$P,MATCH('المعلومات '!$G196,التفاصيل!$M:$M,0)),IFERROR(J196*I196,\"\"))","v":""},""]
[null,null,null,null,null,null,null,null,null,"","",{"$f":"IF(OR($E197=\"كابينات\",$E197=\"بلاي وود \"),INDEX(التفاصيل!$P:$P,MATCH('المعلومات '!$G197,التفاصيل!$M:$M,0)),IFERROR(J197*I197,\"\"))","v":""},""]
[null,null,null,null,null,null,null,null,null,"","",{"$f":"IF(OR($E198=\"كابينات\",$E198=\"بلاي وود \"),INDEX(التفاصيل!$P:$P,MATCH('المعلومات '!$G198,التفاصيل!$M:$M,0)),IFERROR(J198*I198,\"\"))","v":""},""]
[null,null,null,null,null,null,null,null,null,"","",{"$f":"IF(OR($E199=\"كابينات\",$E199=\"بلاي وود \"),INDEX(التفاصيل!$P:$P,MATCH('المعلومات '!$G199,التفاصيل!$M:$M,0)),IFERROR(J199*I199,\"\"))","v":""},""]
[null,null,null,null,null,null,null,null,null,"","",{"$f":"IF(OR($E200=\"كابينات\",$E200=\"بلاي وود \"),INDEX(التفاصيل!$P:$P,MATCH('المعلومات '!$G200,التفاصيل!$M:$M,0)),IFERROR(J200*I200,\"\"))","v":""},""]
[null,null,null,null,null,null,null,null,null,"","",{"$f":"IF(OR($E201=\"كابينات\",$E201=\"بلاي وود \"),INDEX(التفاصيل!$P:$P,MATCH('المعلومات '!$G201,التفاصيل!$M:$M,0)),IFERROR(J201*I201,\"\"))","v":""},""]
[null,null,null,null,null,null,null,null,null,"","",{"$f":"IF(OR($E202=\"كابينات\",$E202=\"بلاي وود \"),INDEX(التفاصيل!$P:$P,MATCH('المعلومات '!$G202,التفاصيل!$M:$M,0)),IFERROR(J202*I202,\"\"))","v":""},""]
[null,null,null,null,null,null,null,null,null,"","",{"$f":"IF(OR($E203=\"كابينات\",$E203=\"بلاي وود \"),INDEX(التفاصيل!$P:$P,MATCH('المعلومات '!$G203,التفاصيل!$M:$M,0)),IFERROR(J203*I203,\"\"))","v":""},""]
[null,null,null,null,null,null,null,null,null,"","",{"$f":"IF(OR($E204=\"كابينات\",$E204=\"بلاي وود \"),INDEX(التفاصيل!$P:$P,MATCH('المعلومات '!$G204,التفاصيل!$M:$M,0)),IFERROR(J204*I204,\"\"))","v":""},""]
[null,null,null,null,null,null,null,null,null,"","",{"$f":"IF(OR($E205=\"كابينات\",$E205=\"بلاي وود \"),INDEX(التفاصيل!$P:$P,MATCH('المعلومات '!$G205,التفاصيل!$M:$M,0)),IFERROR(J205*I205,\"\"))","v":""},""]
[null,null,null,null,null,null,null,null,null,"","",{"$f":"IF(OR($E206=\"كابينات\",$E206=\"بلاي وود \"),INDEX(التفاصيل!$P:$P,MATCH('المعلومات '!$G206,التفاصيل!$M:$M,0)),IFERROR(J206*I206,\"\"))","v":""},""]
[null,null,null,null,null,null,null,null,null,"","",{"$f":"IF(OR($E207=\"كابينات\",$E207=\"بلاي وود \"),INDEX(التفاصيل!$P:$P,MATCH('المعلومات '!$G207,التفاصيل!$M:$M,0)),IFERROR(J207*I207,\"\"))","v":""},""]
[null,null,null,null,null,null,null,null,null,"","",{"$f":"IF(OR($E208=\"كابينات\",$E208=\"بلاي وود \"),INDEX(التفاصيل!$P:$P,MATCH('المعلومات '!$G208,التفاصيل!$M:$M,0)),IFERROR(J208*I208,\"\"))","v":""},""]
[null,null,null,null,null,null,null,null,null,"","",{"$f":"IF(OR($E209=\"كابينات\",$E209=\"بلاي وود \"),INDEX(التفاصيل!$P:$P,MATCH('المعلومات '!$G209,التفاصيل!$M:$M,0)),IFERROR(J209*I209,\"\"))","v":""},""]
[null,null,null,null,null,null,null,null,null,"","",{"$f":"IF(OR($E210=\"كابينات\",$E210=\"بلاي وود \"),INDEX(التفاصيل!$P:$P,MATCH('المعلومات '!$G210,التفاصيل!$M:$M,0)),IFERROR(J210*I210,\"\"))","v":""},{"$f":"IFERROR(H210-L210-(K210*L210),\"\")","v":""}]
[null,null,null,null,null,null,null,null,null,"","",{"$f":"IF(OR($E211=\"كابينات\",$E211=\"بلاي وود \"),INDEX(التفاصيل!$P:$P,MATCH('المعلومات '!$G211,التفاصيل!$M:$M,0)),IFERROR(J211*I211,\"\"))","v":""},""]
[null,null,null,null,null,null,null,null,null,"","",{"$f":"IF(OR($E212=\"كابينات\",$E212=\"بلاي وود \"),INDEX(التفاصيل!$P:$P,MATCH('المعلومات '!$G212,التفاصيل!$M:$M,0)),IFERROR(J212*I212,\"\"))","v":""},""]
[null,null,null,null,null,null,null,null,null,"","",{"$f":"IF(OR($E213=\"كابينات\",$E213=\"بلاي وود \"),INDEX(التفاصيل!$P:$P,MATCH('المعلومات '!$G213,التفاصيل!$M:$M,0)),IFERROR(J213*I213,\"\"))","v":""},""]
[null,null,null,null,null,null,null,null,null,"","",{"$f":"IF(OR($E214=\"كابينات\",$E214=\"بلاي وود \"),INDEX(التفاصيل!$P:$P,MATCH('المعلومات '!$G214,التفاصيل!$M:$M,0)),IFERROR(J214*I214,\"\"))","v":""},""]
[null,null,null,null,null,null,null,null,null,"","",{"$f":"IF(OR($E215=\"كابينات\",$E215=\"بلاي وود \"),INDEX(التفاصيل!$P:$P,MATCH('المعلومات '!$G215,التفاصيل!$M:$M,0)),IFERROR(J215*I215,\"\"))","v":""},""]
[null,null,null,null,null,null,null,null,null,"","",{"$f":"IF(OR($E216=\"كابينات\",$E216=\"بلاي وود \"),INDEX(التفاصيل!$P:$P,MATCH('المعلومات '!$G216,التفاصيل!$M:$M,0)),IFERROR(J216*I216,\"\"))","v":""},""]
[null,null,null,null,null,null,null,null,null,"","",{"$f":"IF(OR($E217=\"كابينات\",$E217=\"بلاي وود \"),INDEX(التفاصيل!$P:$P,MATCH('المعلومات '!$G217,التفاصيل!$M:$M,0)),IFERROR(J217*I217,\"\"))","v":""},""]
[null,null,null,null,null,null,null,null,null,"","",{"$f":"IF(OR($E218=\"كابينات\",$E218=\"بلاي وود \"),INDEX(التفاصيل!$P:$P,MATCH('المعلومات '!$G218,التفاصيل!$M:$M,0)),IFERROR(J218*I218,\"\"))","v":""},""]
[null,null,null,null,null,null,null,null,null,"","",{"$f":"IF(OR($E219=\"كابينات\",$E219=\"بلاي وود \"),INDEX(التفاصيل!$P:$P,MATCH('المعلومات '!$G219,التفاصيل!$M:$M,0)),IFERROR(J219*I219,\"\"))","v":""},""]
[null,null,null,null,null,null,null,null,null,"","",{"$f":"IF(OR($E220=\"كابينات\",$E220=\"بلاي وود \"),INDEX(التفاصيل!$P:$P,MATCH('المعلومات '!$G220,التفاصيل!$M:$M,0)),IFERROR(J220*I220,\"\"))","v":""},""]
[null,null,null,null,null,null,null,null,null,"","",{"$f":"IF(OR($E221=\"كابينات\",$E221=\"بلاي وود \"),INDEX(التفاصيل!$P:$P,MATCH('المعلومات '!$G221,التفاصيل!$M:$M,0)),IFERROR(J221*I221,\"\"))","v":""},""]
[null,null,null,null,null,null,null,null,null,"","",{"$f":"IF(OR($E222=\"كابينات\",$E222=\"بلاي وود \"),INDEX(التفاصيل!$P:$P,MATCH('المعلومات '!$G222,التفاصيل!$M:$M,0)),IFERROR(J222*I222,\"\"))","v":""},""]
[null,null,null,null,null,null,null,null,null,"","",{"$f":"IF(OR($E223=\"كابينات\",$E223=\"بلاي وود \"),INDEX(التفاصيل!$P:$P,MATCH('المعلومات '!$G223,التفاصيل!$M:$M,0)),IFERROR(J223*I223,\"\"))","v":""},""]
[null,null,null,null,null,null,null,null,null,"","",{"$f":"IF(OR($E224=\"كابينات\",$E224=\"بلاي وود \"),INDEX(التفاصيل!$P:$P,MATCH('المعلومات '!$G224,التفاصيل!$M:$M,0)),IFERROR(J224*I224,\"\"))","v":""},""]
[null,null,null,null,null,null,null,null,null,"","",{"$f":"IF(OR($E225=\"كابينات\",$E225=\"بلاي وود \"),INDEX(التفاصيل!$P:$P,MATCH('المعلومات '!$G225,التفاصيل!$M:$M,0)),IFERROR(J225*I225,\"\"))","v":""},""]
[null,null,null,null,null,null,null,null,null,"","",{"$f":"IF(OR($E226=\"كابينات\",$E226=\"بلاي وود \"),INDEX(التفاصيل!$P:$P,MATCH('المعلومات '!$G226,التفاصيل!$M:$M,0)),IFERROR(J226*I226,\"\"))","v":""},""]
[null,null,null,null,null,null,null,null,null,"","",{"$f":"IF(OR($E227=\"كابينات\",$E227=\"بلاي وود \"),INDEX(التفاصيل!$P:$P,MATCH('المعلومات '!$G227,التفاصيل!$M:$M,0)),IFERROR(J227*I227,\"\"))","v":""},""]
[null,null,null,null,null,null,null,null,null,"","",{"$f":"IF(OR($E228=\"كابينات\",$E228=\"بلاي وود \"),INDEX(التفاصيل!$P:$P,MATCH('المعلومات '!$G228,التفاصيل!$M:$M,0)),IFERROR(J228*I228,\"\"))","v":""},""]
[null,null,null,null,null,null,null,null,null,"","",{"$f":"IF(OR($E229=\"كابينات\",$E229=\"بلاي وود \"),INDEX(التفاصيل!$P:$P,MATCH('المعلومات '!$G229,التفاصيل!$M:$M,0)),IFERROR(J229*I229,\"\"))","v":""},""]
[null,null,null,null,null,null,null,null,null,"","",{"$f":"IF(OR($E230=\"كابينات\",$E230=\"بلاي وود \"),INDEX(التفاصيل!$P:$P,MATCH('المعلومات '!$G230,التفاصيل!$M:$M,0)),IFERROR(J230*I230,\"\"))","v":""},""]
[null,null,null,null,null,null,null,null,null,"","",{"$f":"IF(OR($E231=\"كابينات\",$E231=\"بلاي وود \"),INDEX(التفاصيل!$P:$P,MATCH('المعلومات '!$G231,التفاصيل!$M:$M,0)),IFERROR(J231*I231,\"\"))","v":""},""]
[null,null,null,null,null,null,null,null,null,"","",{"$f":"IF(OR($E232=\"كابينات\",$E232=\"بلاي وود \"),INDEX(التفاصيل!$P:$P,MATCH('المعلومات '!$G232,التفاصيل!$M:$M,0)),IFERROR(J232*I232,\"\"))","v":""},""]
[null,null,null,null,null,null,null,null,null,"","",{"$f":"IF(OR($E233=\"كابينات\",$E233=\"بلاي وود \"),INDEX(التفاصيل!$P:$P,MATCH('المعلومات '!$G233,التفاصيل!$M:$M,0)),IFERROR(J233*I233,\"\"))","v":""},""]
[null,null,null,null,null,null,null,null,null,"","",{"$f":"IF(OR($E234=\"كابينات\",$E234=\"بلاي وود \"),INDEX(التفاصيل!$P:$P,MATCH('المعلومات '!$G234,التفاصيل!$M:$M,0)),IFERROR(J234*I234,\"\"))","v":""},""]
[null,null,null,null,null,null,null,null,null,"","",{"$f":"IF(OR($E235=\"كابينات\",$E235=\"بلاي وود \"),INDEX(التفاصيل!$P:$P,MATCH('المعلومات '!$G235,التفاصيل!$M:$M,0)),IFERROR(J235*I235,\"\"))","v":""},""]
[null,null,null,null,null,null,null,null,null,"","",{"$f":"IF(OR($E236=\"كابينات\",$E236=\"بلاي وود \"),INDEX(التفاصيل!$P:$P,MATCH('المعلومات '!$G236,التفاصيل!$M:$M,0)),IFERROR(J236*I236,\"\"))","v":""},""]
[null,null,null,null,null,null,null,null,null,"","",{"$f":"IF(OR($E237=\"كابينات\",$E237=\"بلاي وود \"),INDEX(التفاصيل!$P:$P,MATCH('المعلومات '!$G237,التفاصيل!$M:$M,0)),IFERROR(J237*I237,\"\"))","v":""},""]
[null,null,null,null,null,null,null,null,null,"","",{"$f":"IF(OR($E238=\"كابينات\",$E238=\"بلاي وود \"),INDEX(التفاصيل!$P:$P,MATCH('المعلومات '!$G238,التفاصيل!$M:$M,0)),IFERROR(J238*I238,\"\"))","v":""},""]
[null,null,null,null,null,null,null,null,null,"","",{"$f":"IF(OR($E239=\"كابينات\",$E239=\"بلاي وود \"),INDEX(التفاصيل!$P:$P,MATCH('المعلومات '!$G239,التفاصيل!$M:$M,0)),IFERROR(J239*I239,\"\"))","v":""},""]
[null,null,null,null,null,null,null,null,null,"","",{"$f":"IF(OR($E240=\"كابينات\",$E240=\"بلاي وود \"),INDEX(التفاصيل!$P:$P,MATCH('المعلومات '!$G240,التفاصيل!$M:$M,0)),IFERROR(J240*I240,\"\"))","v":""},""]
[null,null,null,null,null,null,null,null,null,"","",{"$f":"IF(OR($E241=\"كابينات\",$E241=\"بلاي وود \"),INDEX(التفاصيل!$P:$P,MATCH('المعلومات '!$G241,التفاصيل!$M:$M,0)),IFERROR(J241*I241,\"\"))","v":""},""]
[null,null,null,null,null,null,null,null,null,"","",{"$f":"IF(OR($E242=\"كابينات\",$E242=\"بلاي وود \"),INDEX(التفاصيل!$P:$P,MATCH('المعلومات '!$G242,التفاصيل!$M:$M,0)),IFERROR(J242*I242,\"\"))","v":""},""]
[null,null,null,null,null,null,null,null,null,"","",{"$f":"IF(OR($E243=\"كابينات\",$E243=\"بلاي وود \"),INDEX(التفاصيل!$P:$P,MATCH('المعلومات '!$G243,التفاصيل!$M:$M,0)),IFERROR(J243*I243,\"\"))","v":""},""]
[null,null,null,null,null,null,null,null,null,"","",{"$f":"IF(OR($E244=\"كابينات\",$E244=\"بلاي وود \"),INDEX(التفاصيل!$P:$P,MATCH('المعلومات '!$G244,التفاصيل!$M:$M,0)),IFERROR(J244*I244,\"\"))","v":""},""]
[null,null,null,null,null,null,null,null,null,"","",{"$f":"IF(OR($E245=\"كابينات\",$E245=\"بلاي وود \"),INDEX(التفاصيل!$P:$P,MATCH('المعلومات '!$G245,التفاصيل!$M:$M,0)),IFERROR(J245*I245,\"\"))","v":""},""]
[null,null,null,null,null,null,null,null,null,"","",{"$f":"IF(OR($E246=\"كابينات\",$E246=\"بلاي وود \"),INDEX(التفاصيل!$P:$P,MATCH('المعلومات '!$G246,التفاصيل!$M:$M,0)),IFERROR(J246*I246,\"\"))","v":""},""]
[null,null,null,null,null,null,null,null,null,"","",{"$f":"IF(OR($E247=\"كابينات\",$E247=\"بلاي وود \"),INDEX(التفاصيل!$P:$P,MATCH('المعلومات '!$G247,التفاصيل!$M:$M,0)),IFERROR(J247*I247,\"\"))","v":""},""]
[null,null,null,null,null,null,null,null,null,"","",{"$f":"IF(OR($E248=\"كابينات\",$E248=\"بلاي وود \"),INDEX(التفاصيل!$P:$P,MATCH('المعلومات '!$G248,التفاصيل!$M:$M,0)),IFERROR(J248*I248,\"\"))","v":""},""]
[null,null,null,null,null,null,null,null,null,"","",{"$f":"IF(OR($E249=\"كابينات\",$E249=\"بلاي وود \"),INDEX(التفاصيل!$P:$P,MATCH('المعلومات '!$G249,التفاصيل!$M:$M,0)),IFERROR(J249*I249,\"\"))","v":""},""]
[null,null,null,null,null,null,null,null,null,"","",{"$f":"IF(OR($E250=\"كابينات\",$E250=\"بلاي وود \"),INDEX(التفاصيل!$P:$P,MATCH('المعلومات '!$G250,التفاصيل!$M:$M,0)),IFERROR(J250*I250,\"\"))","v":""},""]
[null,null,null,null,null,null,null,null,null,"","",{"$f":"IF(OR($E251=\"كابينات\",$E251=\"بلاي وود \"),INDEX(التفاصيل!$P:$P,MATCH('المعلومات '!$G251,التفاصيل!$M:$M,0)),IFERROR(J251*I251,\"\"))","v":""},""]
[null,null,null,null,null,null,null,null,null,"","",{"$f":"IF(OR($E252=\"كابينات\",$E252=\"بلاي وود \"),INDEX(التفاصيل!$P:$P,MATCH('المعلومات '!$G252,التفاصيل!$M:$M,0)),IFERROR(J252*I252,\"\"))","v":""},""]
[null,null,null,null,null,null,null,null,null,"","",{"$f":"IF(OR($E253=\"كابينات\",$E253=\"بلاي وود \"),INDEX(التفاصيل!$P:$P,MATCH('المعلومات '!$G253,التفاصيل!$M:$M,0)),IFERROR(J253*I253,\"\"))","v":""},""]
[null,null,null,null,null,null,null,null,null,"","",{"$f":"IF(OR($E254=\"كابينات\",$E254=\"بلاي وود \"),INDEX(التفاصيل!$P:$P,MATCH('المعلومات '!$G254,التفاصيل!$M:$M,0)),IFERROR(J254*I254,\"\"))","v":""},""]
[null,null,null,null,null,null,null,null,null,"","",{"$f":"IF(OR($E255=\"كابينات\",$E255=\"بلاي وود \"),INDEX(التفاصيل!$P:$P,MATCH('المعلومات '!$G255,التفاصيل!$M:$M,0)),IFERROR(J255*I255,\"\"))","v":""},""]
[null,null,null,null,null,null,null,null,null,"","",{"$f":"IF(OR($E256=\"كابينات\",$E256=\"بلاي وود \"),INDEX(التفاصيل!$P:$P,MATCH('المعلومات '!$G256,التفاصيل!$M:$M,0)),IFERROR(J256*I256,\"\"))","v":""},""]
[null,null,null,null,null,null,null,null,null,"","",{"$f":"IF(OR($E257=\"كابينات\",$E257=\"بلاي وود \"),INDEX(التفاصيل!$P:$P,MATCH('المعلومات '!$G257,التفاصيل!$M:$M,0)),IFERROR(J257*I257,\"\"))","v":""},""]
[null,null,null,null,null,null,null,null,null,{"$f":"IF(E258=\"\",\"\",VLOOKUP(E:E,$N$2:$O$12,2,0))","v":""},{"$f":"IF(E258=\"\",\"\",VLOOKUP(E:E,$P$2:$Q$12,2,0))","v":""},{"$f":"IF(OR($E258=\"كابينات\",$E258=\"بلاي وود \"),INDEX(التفاصيل!$P:$P,MATCH('المعلومات '!$G258,التفاصيل!$M:$M,0)),IFERROR(J258*I258,\"\"))","v":""},""]
[null,null,null,null,null,null,null,null,null,"","",{"$f":"IF(OR($E259=\"كابينات\",$E259=\"بلاي وود \"),INDEX(التفاصيل!$P:$P,MATCH('المعلومات '!$G259,التفاصيل!$M:$M,0)),IFERROR(J259*I259,\"\"))","v":""},""]
[null,null,null,null,null,null,null,null,null,"","",{"$f":"IF(OR($E260=\"كابينات\",$E260=\"بلاي وود \"),INDEX(التفاصيل!$P:$P,MATCH('المعلومات '!$G260,التفاصيل!$M:$M,0)),IFERROR(J260*I260,\"\"))","v":""},""]
[null,null,null,null,null,null,null,null,null,"","",{"$f":"IF(OR($E261=\"كابينات\",$E261=\"بلاي وود \"),INDEX(التفاصيل!$P:$P,MATCH('المعلومات '!$G261,التفاصيل!$M:$M,0)),IFERROR(J261*I261,\"\"))","v":""},""]
[null,null,null,null,null,null,null,null,null,"","",{"$f":"IF(OR($E262=\"كابينات\",$E262=\"بلاي وود \"),INDEX(التفاصيل!$P:$P,MATCH('المعلومات '!$G262,التفاصيل!$M:$M,0)),IFERROR(J262*I262,\"\"))","v":""},""]
[null,null,null,null,null,null,null,null,null,"","",{"$f":"IF(OR($E263=\"كابينات\",$E263=\"بلاي وود \"),INDEX(التفاصيل!$P:$P,MATCH('المعلومات '!$G263,التفاصيل!$M:$M,0)),IFERROR(J263*I263,\"\"))","v":""},""]
[null,null,null,null,null,null,null,null,null,"","",{"$f":"IF(OR($E264=\"كابينات\",$E264=\"بلاي وود \"),INDEX(التفاصيل!$P:$P,MATCH('المعلومات '!$G264,التفاصيل!$M:$M,0)),IFERROR(J264*I264,\"\"))","v":""},""]
[null,null,null,null,null,null,null,null,null,"","",{"$f":"IF(OR($E265=\"كابينات\",$E265=\"بلاي وود \"),INDEX(التفاصيل!$P:$P,MATCH('المعلومات '!$G265,التفاصيل!$M:$M,0)),IFERROR(J265*I265,\"\"))","v":""},""]
[null,null,null,null,null,null,null,null,null,"","",{"$f":"IF(OR($E266=\"كابينات\",$E266=\"بلاي وود \"),INDEX(التفاصيل!$P:$P,MATCH('المعلومات '!$G266,التفاصيل!$M:$M,0)),IFERROR(J266*I266,\"\"))","v":""},""]
[null,null,null,null,null,null,null,null,null,"","",{"$f":"IF(OR($E267=\"كابينات\",$E267=\"بلاي وود \"),INDEX(التفاصيل!$P:$P,MATCH('المعلومات '!$G267,التفاصيل!$M:$M,0)),IFERROR(J267*I267,\"\"))","v":""},""]
[null,null,null,null,null,null,null,null,null,"","",{"$f":"IF(OR($E268=\"كابينات\",$E268=\"بلاي وود \"),INDEX(التفاصيل!$P:$P,MATCH('المعلومات '!$G268,التفاصيل!$M:$M,0)),IFERROR(J268*I268,\"\"))","v":""},""]
[null,null,null,null,null,null,null,null,null,"","",{"$f":"IF(OR($E269=\"كابينات\",$E269=\"بلاي وود \"),INDEX(التفاصيل!$P:$P,MATCH('المعلومات '!$G269,التفاصيل!$M:$M,0)),IFERROR(J269*I269,\"\"))","v":""},""]
[null,null,null,null,null,null,null,null,null,"","",{"$f":"IF(OR($E270=\"كابينات\",$E270=\"بلاي وود \"),INDEX(التفاصيل!$P:$P,MATCH('المعلومات '!$G270,التفاصيل!$M:$M,0)),IFERROR(J270*I270,\"\"))","v":""},""]
[null,null,null,null,null,null,null,null,null,"","",{"$f":"IF(OR($E271=\"كابينات\",$E271=\"بلاي وود \"),INDEX(التفاصيل!$P:$P,MATCH('المعلومات '!$G271,التفاصيل!$M:$M,0)),IFERROR(J271*I271,\"\"))","v":""},""]
[null,null,null,null,null,null,null,null,null,"","",{"$f":"IF(OR($E272=\"كابينات\",$E272=\"بلاي وود \"),INDEX(التفاصيل!$P:$P,MATCH('المعلومات '!$G272,التفاصيل!$M:$M,0)),IFERROR(J272*I272,\"\"))","v":""},""]
[null,null,null,null,null,null,null,null,null,"","",{"$f":"IF(OR($E273=\"كابينات\",$E273=\"بلاي وود \"),INDEX(التفاصيل!$P:$P,MATCH('المعلومات '!$G273,التفاصيل!$M:$M,0)),IFERROR(J273*I273,\"\"))","v":""},""]
[null,null,null,null,null,null,null,null,null,"","",{"$f":"IF(OR($E274=\"كابينات\",$E274=\"بلاي وود \"),INDEX(التفاصيل!$P:$P,MATCH('المعلومات '!$G274,التفاصيل!$M:$M,0)),IFERROR(J274*I274,\"\"))","v":""},{"$f":"IFERROR(H274-L274-(K274*L274),\"\")","v":""}]
[null,null,null,null,null,null,null,null,null,"","",{"$f":"IF(OR($E275=\"كابينات\",$E275=\"بلاي وود \"),INDEX(التفاصيل!$P:$P,MATCH('المعلومات '!$G275,التفاصيل!$M:$M,0)),IFERROR(J275*I275,\"\"))","v":""},""]
[null,null,null,null,null,null,null,null,null,"","",{"$f":"IF(OR($E276=\"كابينات\",$E276=\"بلاي وود \"),INDEX(التفاصيل!$P:$P,MATCH('المعلومات '!$G276,التفاصيل!$M:$M,0)),IFERROR(J276*I276,\"\"))","v":""},""]
[null,null,null,null,null,null,null,null,null,"","",{"$f":"IF(OR($E277=\"كابينات\",$E277=\"بلاي وود \"),INDEX(التفاصيل!$P:$P,MATCH('المعلومات '!$G277,التفاصيل!$M:$M,0)),IFERROR(J277*I277,\"\"))","v":""},""]
[null,null,null,null,null,null,null,null,null,"","",{"$f":"IF(OR($E278=\"كابينات\",$E278=\"بلاي وود \"),INDEX(التفاصيل!$P:$P,MATCH('المعلومات '!$G278,التفاصيل!$M:$M,0)),IFERROR(J278*I278,\"\"))","v":""},""]
[null,null,null,null,null,null,null,null,null,"","",{"$f":"IF(OR($E279=\"كابينات\",$E279=\"بلاي وود \"),INDEX(التفاصيل!$P:$P,MATCH('المعلومات '!$G279,التفاصيل!$M:$M,0)),IFERROR(J279*I279,\"\"))","v":""},""]
[null,null,null,null,null,null,null,null,null,"","",{"$f":"IF(OR($E280=\"كابينات\",$E280=\"بلاي وود \"),INDEX(التفاصيل!$P:$P,MATCH('المعلومات '!$G280,التفاصيل!$M:$M,0)),IFERROR(J280*I280,\"\"))","v":""},""]
[null,null,null,null,null,null,null,null,null,"","",{"$f":"IF(OR($E281=\"كابينات\",$E281=\"بلاي وود \"),INDEX(التفاصيل!$P:$P,MATCH('المعلومات '!$G281,التفاصيل!$M:$M,0)),IFERROR(J281*I281,\"\"))","v":""},""]
[null,null,null,null,null,null,null,null,null,"","",{"$f":"IF(OR($E282=\"كابينات\",$E282=\"بلاي وود \"),INDEX(التفاصيل!$P:$P,MATCH('المعلومات '!$G282,التفاصيل!$M:$M,0)),IFERROR(J282*I282,\"\"))","v":""},""]
[null,null,null,null,null,null,null,null,null,"","",{"$f":"IF(OR($E283=\"كابينات\",$E283=\"بلاي وود \"),INDEX(التفاصيل!$P:$P,MATCH('المعلومات '!$G283,التفاصيل!$M:$M,0)),IFERROR(J283*I283,\"\"))","v":""},""]
[null,null,null,null,null,null,null,null,null,"","",{"$f":"IF(OR($E284=\"كابينات\",$E284=\"بلاي وود \"),INDEX(التفاصيل!$P:$P,MATCH('المعلومات '!$G284,التفاصيل!$M:$M,0)),IFERROR(J284*I284,\"\"))","v":""},""]
[null,null,null,null,null,null,null,null,null,"","",{"$f":"IF(OR($E285=\"كابينات\",$E285=\"بلاي وود \"),INDEX(التفاصيل!$P:$P,MATCH('المعلومات '!$G285,التفاصيل!$M:$M,0)),IFERROR(J285*I285,\"\"))","v":""},""]
[null,null,null,null,null,null,null,null,null,"","",{"$f":"IF(OR($E286=\"كابينات\",$E286=\"بلاي وود \"),INDEX(التفاصيل!$P:$P,MATCH('المعلومات '!$G286,التفاصيل!$M:$M,0)),IFERROR(J286*I286,\"\"))","v":""},""]
[null,null,null,null,null,null,null,null,null,"","",{"$f":"IF(OR($E287=\"كابينات\",$E287=\"بلاي وود \"),INDEX(التفاصيل!$P:$P,MATCH('المعلومات '!$G287,التفاصيل!$M:$M,0)),IFERROR(J287*I287,\"\"))","v":""},""]
[null,null,null,null,null,null,null,null,null,"","",{"$f":"IF(OR($E288=\"كابينات\",$E288=\"بلاي وود \"),INDEX(التفاصيل!$P:$P,MATCH('المعلومات '!$G288,التفاصيل!$M:$M,0)),IFERROR(J288*I288,\"\"))","v":""},""]
[null,null,null,null,null,null,null,null,null,"","",{"$f":"IF(OR($E289=\"كابينات\",$E289=\"بلاي وود \"),INDEX(التفاصيل!$P:$P,MATCH('المعلومات '!$G289,التفاصيل!$M:$M,0)),IFERROR(J289*I289,\"\"))","v":""},""]
[null,null,null,null,null,null,null,null,null,"","",{"$f":"IF(OR($E290=\"كابينات\",$E290=\"بلاي وود \"),INDEX(التفاصيل!$P:$P,MATCH('المعلومات '!$G290,التفاصيل!$M:$M,0)),IFERROR(J290*I290,\"\"))","v":""},""]
[null,null,null,null,null,null,null,null,null,"","",{"$f":"IF(OR($E291=\"كابينات\",$E291=\"بلاي وود \"),INDEX(التفاصيل!$P:$P,MATCH('المعلومات '!$G291,التفاصيل!$M:$M,0)),IFERROR(J291*I291,\"\"))","v":""},""]
[null,null,null,null,null,null,null,null,null,"","",{"$f":"IF(OR($E292=\"كابينات\",$E292=\"بلاي وود \"),INDEX(التفاصيل!$P:$P,MATCH('المعلومات '!$G292,التفاصيل!$M:$M,0)),IFERROR(J292*I292,\"\"))","v":""},""]
[null,null,null,null,null,null,null,null,null,"","",{"$f":"IF(OR($E293=\"كابينات\",$E293=\"بلاي وود \"),INDEX(التفاصيل!$P:$P,MATCH('المعلومات '!$G293,التفاصيل!$M:$M,0)),IFERROR(J293*I293,\"\"))","v":""},""]
[null,null,null,null,null,null,null,null,null,"","",{"$f":"IF(OR($E294=\"كابينات\",$E294=\"بلاي وود \"),INDEX(التفاصيل!$P:$P,MATCH('المعلومات '!$G294,التفاصيل!$M:$M,0)),IFERROR(J294*I294,\"\"))","v":""},""]
[null,null,null,null,null,null,null,null,null,"","",{"$f":"IF(OR($E295=\"كابينات\",$E295=\"بلاي وود \"),INDEX(التفاصيل!$P:$P,MATCH('المعلومات '!$G295,التفاصيل!$M:$M,0)),IFERROR(J295*I295,\"\"))","v":""},""]
[null,null,null,null,null,null,null,null,null,"","",{"$f":"IF(OR($E296=\"كابينات\",$E296=\"بلاي وود \"),INDEX(التفاصيل!$P:$P,MATCH('المعلومات '!$G296,التفاصيل!$M:$M,0)),IFERROR(J296*I296,\"\"))","v":""},""]
[null,null,null,null,null,null,null,null,null,"","",{"$f":"IF(OR($E297=\"كابينات\",$E297=\"بلاي وود \"),INDEX(التفاصيل!$P:$P,MATCH('المعلومات '!$G297,التفاصيل!$M:$M,0)),IFERROR(J297*I297,\"\"))","v":""},""]
[null,null,null,null,null,null,null,null,null,"","",{"$f":"IF(OR($E298=\"كابينات\",$E298=\"بلاي وود \"),INDEX(التفاصيل!$P:$P,MATCH('المعلومات '!$G298,التفاصيل!$M:$M,0)),IFERROR(J298*I298,\"\"))","v":""},""]
[null,null,null,null,null,null,null,null,null,"","",{"$f":"IF(OR($E299=\"كابينات\",$E299=\"بلاي وود \"),INDEX(التفاصيل!$P:$P,MATCH('المعلومات '!$G299,التفاصيل!$M:$M,0)),IFERROR(J299*I299,\"\"))","v":""},""]
[null,null,null,null,null,null,null,null,null,"","",{"$f":"IF(OR($E300=\"كابينات\",$E300=\"بلاي وود \"),INDEX(التفاصيل!$P:$P,MATCH('المعلومات '!$G300,التفاصيل!$M:$M,0)),IFERROR(J300*I300,\"\"))","v":""},""]
[null,null,null,null,null,null,null,null,null,"","",{"$f":"IF(OR($E301=\"كابينات\",$E301=\"بلاي وود \"),INDEX(التفاصيل!$P:$P,MATCH('المعلومات '!$G301,التفاصيل!$M:$M,0)),IFERROR(J301*I301,\"\"))","v":""},""]
[null,null,null,null,null,null,null,null,null,"","",{"$f":"IF(OR($E302=\"كابينات\",$E302=\"بلاي وود \"),INDEX(التفاصيل!$P:$P,MATCH('المعلومات '!$G302,التفاصيل!$M:$M,0)),IFERROR(J302*I302,\"\"))","v":""},""]
[null,null,null,null,null,null,null,null,null,"","",{"$f":"IF(OR($E303=\"كابينات\",$E303=\"بلاي وود \"),INDEX(التفاصيل!$P:$P,MATCH('المعلومات '!$G303,التفاصيل!$M:$M,0)),IFERROR(J303*I303,\"\"))","v":""},""]
[null,null,null,null,null,null,null,null,null,"","",{"$f":"IF(OR($E304=\"كابينات\",$E304=\"بلاي وود \"),INDEX(التفاصيل!$P:$P,MATCH('المعلومات '!$G304,التفاصيل!$M:$M,0)),IFERROR(J304*I304,\"\"))","v":""},""]
[null,null,null,null,null,null,null,null,null,"","",{"$f":"IF(OR($E305=\"كابينات\",$E305=\"بلاي وود \"),INDEX(التفاصيل!$P:$P,MATCH('المعلومات '!$G305,التفاصيل!$M:$M,0)),IFERROR(J305*I305,\"\"))","v":""},""]
[null,null,null,null,null,null,null,null,null,"","",{"$f":"IF(OR($E306=\"كابينات\",$E306=\"بلاي وود \"),INDEX(التفاصيل!$P:$P,MATCH('المعلومات '!$G306,التفاصيل!$M:$M,0)),IFERROR(J306*I306,\"\"))","v":""},""]
[null,null,null,null,null,null,null,null,null,"","",{"$f":"IF(OR($E307=\"كابينات\",$E307=\"بلاي وود \"),INDEX(التفاصيل!$P:$P,MATCH('المعلومات '!$G307,التفاصيل!$M:$M,0)),IFERROR(J307*I307,\"\"))","v":""},""]
[null,null,null,null,null,null,null,null,null,"","",{"$f":"IF(OR($E308=\"كابينات\",$E308=\"بلاي وود \"),INDEX(التفاصيل!$P:$P,MATCH('المعلومات '!$G308,التفاصيل!$M:$M,0)),IFERROR(J308*I308,\"\"))","v":""},""]
[null,null,null,null,null,null,null,null,null,"","",{"$f":"IF(OR($E309=\"كابينات\",$E309=\"بلاي وود \"),INDEX(التفاصيل!$P:$P,MATCH('المعلومات '!$G309,التفاصيل!$M:$M,0)),IFERROR(J309*I309,\"\"))","v":""},""]
[null,null,null,null,null,null,null,null,null,"","",{"$f":"IF(OR($E310=\"كابينات\",$E310=\"بلاي وود \"),INDEX(التفاصيل!$P:$P,MATCH('المعلومات '!$G310,التفاصيل!$M:$M,0)),IFERROR(J310*I310,\"\"))","v":""},""]
[null,null,null,null,null,null,null,null,null,"","",{"$f":"IF(OR($E311=\"كابينات\",$E311=\"بلاي وود \"),INDEX(التفاصيل!$P:$P,MATCH('المعلومات '!$G311,التفاصيل!$M:$M,0)),IFERROR(J311*I311,\"\"))","v":""},""]
[null,null,null,null,null,null,null,null,null,"","",{"$f":"IF(OR($E312=\"كابينات\",$E312=\"بلاي وود \"),INDEX(التفاصيل!$P:$P,MATCH('المعلومات '!$G312,التفاصيل!$M:$M,0)),IFERROR(J312*I312,\"\"))","v":""},""]
[null,null,null,null,null,null,null,null,null,"","",{"$f":"IF(OR($E313=\"كابينات\",$E313=\"بلاي وود \"),INDEX(التفاصيل!$P:$P,MATCH('المعلومات '!$G313,التفاصيل!$M:$M,0)),IFERROR(J313*I313,\"\"))","v":""},""]
[null,null,null,null,null,null,null,null,null,"","",{"$f":"IF(OR($E314=\"كابينات\",$E314=\"بلاي وود \"),INDEX(التفاصيل!$P:$P,MATCH('المعلومات '!$G314,التفاصيل!$M:$M,0)),IFERROR(J314*I314,\"\"))","v":""},""]
[null,null,null,null,null,null,null,null,null,"","",{"$f":"IF(OR($E315=\"كابينات\",$E315=\"بلاي وود \"),INDEX(التفاصيل!$P:$P,MATCH('المعلومات '!$G315,التفاصيل!$M:$M,0)),IFERROR(J315*I315,\"\"))","v":""},""]
[null,null,null,null,null,null,null,null,null,"","",{"$f":"IF(OR($E316=\"كابينات\",$E316=\"بلاي وود \"),INDEX(التفاصيل!$P:$P,MATCH('المعلومات '!$G316,التفاصيل!$M:$M,0)),IFERROR(J316*I316,\"\"))","v":""},""]
[null,null,null,null,null,null,null,null,null,"","",{"$f":"IF(OR($E317=\"كابينات\",$E317=\"بلاي وود \"),INDEX(التفاصيل!$P:$P,MATCH('المعلومات '!$G317,التفاصيل!$M:$M,0)),IFERROR(J317*I317,\"\"))","v":""},""]
[null,null,null,null,null,null,null,null,null,"","",{"$f":"IF(OR($E318=\"كابينات\",$E318=\"بلاي وود \"),INDEX(التفاصيل!$P:$P,MATCH('المعلومات '!$G318,التفاصيل!$M:$M,0)),IFERROR(J318*I318,\"\"))","v":""},""]
[null,null,null,null,null,null,null,null,null,"","",{"$f":"IF(OR($E319=\"كابينات\",$E319=\"بلاي وود \"),INDEX(التفاصيل!$P:$P,MATCH('المعلومات '!$G319,التفاصيل!$M:$M,0)),IFERROR(J319*I319,\"\"))","v":""},""]
[null,null,null,null,null,null,null,null,null,"","",{"$f":"IF(OR($E320=\"كابينات\",$E320=\"بلاي وود \"),INDEX(التفاصيل!$P:$P,MATCH('المعلومات '!$G320,التفاصيل!$M:$M,0)),IFERROR(J320*I320,\"\"))","v":""},""]
[null,null,null,null,null,null,null,null,null,"","",{"$f":"IF(OR($E321=\"كابينات\",$E321=\"بلاي وود \"),INDEX(التفاصيل!$P:$P,MATCH('المعلومات '!$G321,التفاصيل!$M:$M,0)),IFERROR(J321*I321,\"\"))","v":""},""]
[null,null,null,null,null,null,null,null,null,{"$f":"IF(E322=\"\",\"\",VLOOKUP(E:E,$N$2:$O$12,2,0))","v":""},{"$f":"IF(E322=\"\",\"\",VLOOKUP(E:E,$P$2:$Q$12,2,0))","v":""},{"$f":"IF(OR($E322=\"كابينات\",$E322=\"بلاي وود \"),INDEX(التفاصيل!$P:$P,MATCH('المعلومات '!$G322,التفاصيل!$M:$M,0)),IFERROR(J322*I322,\"\"))","v":""},""]
[null,null,null,null,null,null,null,null,null,"","",{"$f":"IF(OR($E323=\"كابينات\",$E323=\"بلاي وود \"),INDEX(التفاصيل!$P:$P,MATCH('المعلومات '!$G323,التفاصيل!$M:$M,0)),IFERROR(J323*I323,\"\"))","v":""},""]
[null,null,null,null,null,null,null,null,null,"","",{"$f":"IF(OR($E324=\"كابينات\",$E324=\"بلاي وود \"),INDEX(التفاصيل!$P:$P,MATCH('المعلومات '!$G324,التفاصيل!$M:$M,0)),IFERROR(J324*I324,\"\"))","v":""},""]
[null,null,null,null,null,null,null,null,null,"","",{"$f":"IF(OR($E325=\"كابينات\",$E325=\"بلاي وود \"),INDEX(التفاصيل!$P:$P,MATCH('المعلومات '!$G325,التفاصيل!$M:$M,0)),IFERROR(J325*I325,\"\"))","v":""},""]
[null,null,null,null,null,null,null,null,null,"","",{"$f":"IF(OR($E326=\"كابينات\",$E326=\"بلاي وود \"),INDEX(التفاصيل!$P:$P,MATCH('المعلومات '!$G326,التفاصيل!$M:$M,0)),IFERROR(J326*I326,\"\"))","v":""},""]
[null,null,null,null,null,null,null,null,null,"","",{"$f":"IF(OR($E327=\"كابينات\",$E327=\"بلاي وود \"),INDEX(التفاصيل!$P:$P,MATCH('المعلومات '!$G327,التفاصيل!$M:$M,0)),IFERROR(J327*I327,\"\"))","v":""},""]
[null,null,null,null,null,null,null,null,null,"","",{"$f":"IF(OR($E328=\"كابينات\",$E328=\"بلاي وود \"),INDEX(التفاصيل!$P:$P,MATCH('المعلومات '!$G328,التفاصيل!$M:$M,0)),IFERROR(J328*I328,\"\"))","v":""},""]
[null,null,null,null,null,null,null,null,null,"","",{"$f":"IF(OR($E329=\"كابينات\",$E329=\"بلاي وود \"),INDEX(التفاصيل!$P:$P,MATCH('المعلومات '!$G329,التفاصيل!$M:$M,0)),IFERROR(J329*I329,\"\"))","v":""},""]
[null,null,null,null,null,null,null,null,null,"","",{"$f":"IF(OR($E330=\"كابينات\",$E330=\"بلاي وود \"),INDEX(التفاصيل!$P:$P,MATCH('المعلومات '!$G330,التفاصيل!$M:$M,0)),IFERROR(J330*I330,\"\"))","v":""},""]
[null,null,null,null,null,null,null,null,null,"","",{"$f":"IF(OR($E331=\"كابينات\",$E331=\"بلاي وود \"),INDEX(التفاصيل!$P:$P,MATCH('المعلومات '!$G331,التفاصيل!$M:$M,0)),IFERROR(J331*I331,\"\"))","v":""},""]
[null,null,null,null,null,null,null,null,null,"","",{"$f":"IF(OR($E332=\"كابينات\",$E332=\"بلاي وود \"),INDEX(التفاصيل!$P:$P,MATCH('المعلومات '!$G332,التفاصيل!$M:$M,0)),IFERROR(J332*I332,\"\"))","v":""},""]
[null,null,null,null,null,null,null,null,null,"","",{"$f":"IF(OR($E333=\"كابينات\",$E333=\"بلاي وود \"),INDEX(التفاصيل!$P:$P,MATCH('المعلومات '!$G333,التفاصيل!$M:$M,0)),IFERROR(J333*I333,\"\"))","v":""},""]
[null,null,null,null,null,null,null,null,null,"","",{"$f":"IF(OR($E334=\"كابينات\",$E334=\"بلاي وود \"),INDEX(التفاصيل!$P:$P,MATCH('المعلومات '!$G334,التفاصيل!$M:$M,0)),IFERROR(J334*I334,\"\"))","v":""},""]
[null,null,null,null,null,null,null,null,null,"","",{"$f":"IF(OR($E335=\"كابينات\",$E335=\"بلاي وود \"),INDEX(التفاصيل!$P:$P,MATCH('المعلومات '!$G335,التفاصيل!$M:$M,0)),IFERROR(J335*I335,\"\"))","v":""},""]
[null,null,null,null,null,null,null,null,null,"","",{"$f":"IF(OR($E336=\"كابينات\",$E336=\"بلاي وود \"),INDEX(التفاصيل!$P:$P,MATCH('المعلومات '!$G336,التفاصيل!$M:$M,0)),IFERROR(J336*I336,\"\"))","v":""},""]
[null,null,null,null,null,null,null,null,null,"","",{"$f":"IF(OR($E337=\"كابينات\",$E337=\"بلاي وود \"),INDEX(التفاصيل!$P:$P,MATCH('المعلومات '!$G337,التفاصيل!$M:$M,0)),IFERROR(J337*I337,\"\"))","v":""},""]
[null,null,null,null,null,null,null,null,null,"","",{"$f":"IF(OR($E338=\"كابينات\",$E338=\"بلاي وود \"),INDEX(التفاصيل!$P:$P,MATCH('المعلومات '!$G338,التفاصيل!$M:$M,0)),IFERROR(J338*I338,\"\"))","v":""},{"$f":"IFERROR(H338-L338-(K338*L338),\"\")","v":""}]
[null,null,null,null,null,null,null,null,null,"","",{"$f":"IF(OR($E339=\"كابينات\",$E339=\"بلاي وود \"),INDEX(التفاصيل!$P:$P,MATCH('المعلومات '!$G339,التفاصيل!$M:$M,0)),IFERROR(J339*I339,\"\"))","v":""},""]
[null,null,null,null,null,null,null,null,null,"","",{"$f":"IF(OR($E340=\"كابينات\",$E340=\"بلاي وود \"),INDEX(التفاصيل!$P:$P,MATCH('المعلومات '!$G340,التفاصيل!$M:$M,0)),IFERROR(J340*I340,\"\"))","v":""},""]
[null,null,null,null,null,null,null,null,null,"","",{"$f":"IF(OR($E341=\"كابينات\",$E341=\"بلاي وود \"),INDEX(التفاصيل!$P:$P,MATCH('المعلومات '!$G341,التفاصيل!$M:$M,0)),IFERROR(J341*I341,\"\"))","v":""},""]
[null,null,null,null,null,null,null,null,null,"","",{"$f":"IF(OR($E342=\"كابينات\",$E342=\"بلاي وود \"),INDEX(التفاصيل!$P:$P,MATCH('المعلومات '!$G342,التفاصيل!$M:$M,0)),IFERROR(J342*I342,\"\"))","v":""},""]
[null,null,null,null,null,null,null,null,null,"","",{"$f":"IF(OR($E343=\"كابينات\",$E343=\"بلاي وود \"),INDEX(التفاصيل!$P:$P,MATCH('المعلومات '!$G343,التفاصيل!$M:$M,0)),IFERROR(J343*I343,\"\"))","v":""},""]
[null,null,null,null,null,null,null,null,null,"","",{"$f":"IF(OR($E344=\"كابينات\",$E344=\"بلاي وود \"),INDEX(التفاصيل!$P:$P,MATCH('المعلومات '!$G344,التفاصيل!$M:$M,0)),IFERROR(J344*I344,\"\"))","v":""},""]
[null,null,null,null,null,null,null,null,null,"","",{"$f":"IF(OR($E345=\"كابينات\",$E345=\"بلاي وود \"),INDEX(التفاصيل!$P:$P,MATCH('المعلومات '!$G345,التفاصيل!$M:$M,0)),IFERROR(J345*I345,\"\"))","v":""},""]
[null,null,null,null,null,null,null,null,null,"","",{"$f":"IF(OR($E346=\"كابينات\",$E346=\"بلاي وود \"),INDEX(التفاصيل!$P:$P,MATCH('المعلومات '!$G346,التفاصيل!$M:$M,0)),IFERROR(J346*I346,\"\"))","v":""},""]
[null,null,null,null,null,null,null,null,null,"","",{"$f":"IF(OR($E347=\"كابينات\",$E347=\"بلاي وود \"),INDEX(التفاصيل!$P:$P,MATCH('المعلومات '!$G347,التفاصيل!$M:$M,0)),IFERROR(J347*I347,\"\"))","v":""},""]
[null,null,null,null,null,null,null,null,null,"","",{"$f":"IF(OR($E348=\"كابينات\",$E348=\"بلاي وود \"),INDEX(التفاصيل!$P:$P,MATCH('المعلومات '!$G348,التفاصيل!$M:$M,0)),IFERROR(J348*I348,\"\"))","v":""},""]
[null,null,null,null,null,null,null,null,null,"","",{"$f":"IF(OR($E349=\"كابينات\",$E349=\"بلاي وود \"),INDEX(التفاصيل!$P:$P,MATCH('المعلومات '!$G349,التفاصيل!$M:$M,0)),IFERROR(J349*I349,\"\"))","v":""},""]
[null,null,null,null,null,null,null,null,null,"","",{"$f":"IF(OR($E350=\"كابينات\",$E350=\"بلاي وود \"),INDEX(التفاصيل!$P:$P,MATCH('المعلومات '!$G350,التفاصيل!$M:$M,0)),IFERROR(J350*I350,\"\"))","v":""},""]
[null,null,null,null,null,null,null,null,null,"","",{"$f":"IF(OR($E351=\"كابينات\",$E351=\"بلاي وود \"),INDEX(التفاصيل!$P:$P,MATCH('المعلومات '!$G351,التفاصيل!$M:$M,0)),IFERROR(J351*I351,\"\"))","v":""},""]
[null,null,null,null,null,null,null,null,null,"","",{"$f":"IF(OR($E352=\"كابينات\",$E352=\"بلاي وود \"),INDEX(التفاصيل!$P:$P,MATCH('المعلومات '!$G352,التفاصيل!$M:$M,0)),IFERROR(J352*I352,\"\"))","v":""},""]
[null,null,null,null,null,null,null,null,null,"","",{"$f":"IF(OR($E353=\"كابينات\",$E353=\"بلاي وود \"),INDEX(التفاصيل!$P:$P,MATCH('المعلومات '!$G353,التفاصيل!$M:$M,0)),IFERROR(J353*I353,\"\"))","v":""},""]
[null,null,null,null,null,null,null,null,null,"","",{"$f":"IF(OR($E354=\"كابينات\",$E354=\"بلاي وود \"),INDEX(التفاصيل!$P:$P,MATCH('المعلومات '!$G354,التفاصيل!$M:$M,0)),IFERROR(J354*I354,\"\"))","v":""},""]
[null,null,null,null,null,null,null,null,null,"","",{"$f":"IF(OR($E355=\"كابينات\",$E355=\"بلاي وود \"),INDEX(التفاصيل!$P:$P,MATCH('المعلومات '!$G355,التفاصيل!$M:$M,0)),IFERROR(J355*I355,\"\"))","v":""},""]
[null,null,null,null,null,null,null,null,null,"","",{"$f":"IF(OR($E356=\"كابينات\",$E356=\"بلاي وود \"),INDEX(التفاصيل!$P:$P,MATCH('المعلومات '!$G356,التفاصيل!$M:$M,0)),IFERROR(J356*I356,\"\"))","v":""},""]
[null,null,null,null,null,null,null,null,null,"","",{"$f":"IF(OR($E357=\"كابينات\",$E357=\"بلاي وود \"),INDEX(التفاصيل!$P:$P,MATCH('المعلومات '!$G357,التفاصيل!$M:$M,0)),IFERROR(J357*I357,\"\"))","v":""},""]
[null,null,null,null,null,null,null,null,null,"","",{"$f":"IF(OR($E358=\"كابينات\",$E358=\"بلاي وود \"),INDEX(التفاصيل!$P:$P,MATCH('المعلومات '!$G358,التفاصيل!$M:$M,0)),IFERROR(J358*I358,\"\"))","v":""},""]
[null,null,null,null,null,null,null,null,null,"","",{"$f":"IF(OR($E359=\"كابينات\",$E359=\"بلاي وود \"),INDEX(التفاصيل!$P:$P,MATCH('المعلومات '!$G359,التفاصيل!$M:$M,0)),IFERROR(J359*I359,\"\"))","v":""},""]
[null,null,null,null,null,null,null,null,null,"","",{"$f":"IF(OR($E360=\"كابينات\",$E360=\"بلاي وود \"),INDEX(التفاصيل!$P:$P,MATCH('المعلومات '!$G360,التفاصيل!$M:$M,0)),IFERROR(J360*I360,\"\"))","v":""},""]
[null,null,null,null,null,null,null,null,null,"","",{"$f":"IF(OR($E361=\"كابينات\",$E361=\"بلاي وود \"),INDEX(التفاصيل!$P:$P,MATCH('المعلومات '!$G361,التفاصيل!$M:$M,0)),IFERROR(J361*I361,\"\"))","v":""},""]
[null,null,null,null,null,null,null,null,null,"","",{"$f":"IF(OR($E362=\"كابينات\",$E362=\"بلاي وود \"),INDEX(التفاصيل!$P:$P,MATCH('المعلومات '!$G362,التفاصيل!$M:$M,0)),IFERROR(J362*I362,\"\"))","v":""},""]
[null,null,null,null,null,null,null,null,null,"","",{"$f":"IF(OR($E363=\"كابينات\",$E363=\"بلاي وود \"),INDEX(التفاصيل!$P:$P,MATCH('المعلومات '!$G363,التفاصيل!$M:$M,0)),IFERROR(J363*I363,\"\"))","v":""},""]
[null,null,null,null,null,null,null,null,null,"","",{"$f":"IF(OR($E364=\"كابينات\",$E364=\"بلاي وود \"),INDEX(التفاصيل!$P:$P,MATCH('المعلومات '!$G364,التفاصيل!$M:$M,0)),IFERROR(J364*I364,\"\"))","v":""},""]
[null,null,null,null,null,null,null,null,null,"","",{"$f":"IF(OR($E365=\"كابينات\",$E365=\"بلاي وود \"),INDEX(التفاصيل!$P:$P,MATCH('المعلومات '!$G365,التفاصيل!$M:$M,0)),IFERROR(J365*I365,\"\"))","v":""},""]
[null,null,null,null,null,null,null,null,null,"","",{"$f":"IF(OR($E366=\"كابينات\",$E366=\"بلاي وود \"),INDEX(التفاصيل!$P:$P,MATCH('المعلومات '!$G366,التفاصيل!$M:$M,0)),IFERROR(J366*I366,\"\"))","v":""},""]
[null,null,null,null,null,null,null,null,null,"","",{"$f":"IF(OR($E367=\"كابينات\",$E367=\"بلاي وود \"),INDEX(التفاصيل!$P:$P,MATCH('المعلومات '!$G367,التفاصيل!$M:$M,0)),IFERROR(J367*I367,\"\"))","v":""},""]
[null,null,null,null,null,null,null,null,null,"","",{"$f":"IF(OR($E368=\"كابينات\",$E368=\"بلاي وود \"),INDEX(التفاصيل!$P:$P,MATCH('المعلومات '!$G368,التفاصيل!$M:$M,0)),IFERROR(J368*I368,\"\"))","v":""},""]
[null,null,null,null,null,null,null,null,null,"","",{"$f":"IF(OR($E369=\"كابينات\",$E369=\"بلاي وود \"),INDEX(التفاصيل!$P:$P,MATCH('المعلومات '!$G369,التفاصيل!$M:$M,0)),IFERROR(J369*I369,\"\"))","v":""},""]
[null,null,null,null,null,null,null,null,null,"","",{"$f":"IF(OR($E370=\"كابينات\",$E370=\"بلاي وود \"),INDEX(التفاصيل!$P:$P,MATCH('المعلومات '!$G370,التفاصيل!$M:$M,0)),IFERROR(J370*I370,\"\"))","v":""},""]
[null,null,null,null,null,null,null,null,null,"","",{"$f":"IF(OR($E371=\"كابينات\",$E371=\"بلاي وود \"),INDEX(التفاصيل!$P:$P,MATCH('المعلومات '!$G371,التفاصيل!$M:$M,0)),IFERROR(J371*I371,\"\"))","v":""},""]
[null,null,null,null,null,null,null,null,null,"","",{"$f":"IF(OR($E372=\"كابينات\",$E372=\"بلاي وود \"),INDEX(التفاصيل!$P:$P,MATCH('المعلومات '!$G372,التفاصيل!$M:$M,0)),IFERROR(J372*I372,\"\"))","v":""},""]
[null,null,null,null,null,null,null,null,null,"","",{"$f":"IF(OR($E373=\"كابينات\",$E373=\"بلاي وود \"),INDEX(التفاصيل!$P:$P,MATCH('المعلومات '!$G373,التفاصيل!$M:$M,0)),IFERROR(J373*I373,\"\"))","v":""},""]
[null,null,null,null,null,null,null,null,null,"","",{"$f":"IF(OR($E374=\"كابينات\",$E374=\"بلاي وود \"),INDEX(التفاصيل!$P:$P,MATCH('المعلومات '!$G374,التفاصيل!$M:$M,0)),IFERROR(J374*I374,\"\"))","v":""},""]
[null,null,null,null,null,null,null,null,null,"","",{"$f":"IF(OR($E375=\"كابينات\",$E375=\"بلاي وود \"),INDEX(التفاصيل!$P:$P,MATCH('المعلومات '!$G375,التفاصيل!$M:$M,0)),IFERROR(J375*I375,\"\"))","v":""},""]
[null,null,null,null,null,null,null,null,null,"","",{"$f":"IF(OR($E376=\"كابينات\",$E376=\"بلاي وود \"),INDEX(التفاصيل!$P:$P,MATCH('المعلومات '!$G376,التفاصيل!$M:$M,0)),IFERROR(J376*I376,\"\"))","v":""},""]
[null,null,null,null,null,null,null,null,null,"","",{"$f":"IF(OR($E377=\"كابينات\",$E377=\"بلاي وود \"),INDEX(التفاصيل!$P:$P,MATCH('المعلومات '!$G377,التفاصيل!$M:$M,0)),IFERROR(J377*I377,\"\"))","v":""},""]
[null,null,null,null,null,null,null,null,null,"","",{"$f":"IF(OR($E378=\"كابينات\",$E378=\"بلاي وود \"),INDEX(التفاصيل!$P:$P,MATCH('المعلومات '!$G378,التفاصيل!$M:$M,0)),IFERROR(J378*I378,\"\"))","v":""},""]
[null,null,null,null,null,null,null,null,null,"","",{"$f":"IF(OR($E379=\"كابينات\",$E379=\"بلاي وود \"),INDEX(التفاصيل!$P:$P,MATCH('المعلومات '!$G379,التفاصيل!$M:$M,0)),IFERROR(J379*I379,\"\"))","v":""},""]
[null,null,null,null,null,null,null,null,null,"","",{"$f":"IF(OR($E380=\"كابينات\",$E380=\"بلاي وود \"),INDEX(التفاصيل!$P:$P,MATCH('المعلومات '!$G380,التفاصيل!$M:$M,0)),IFERROR(J380*I380,\"\"))","v":""},""]
[null,null,null,null,null,null,null,null,null,"","",{"$f":"IF(OR($E381=\"كابينات\",$E381=\"بلاي وود \"),INDEX(التفاصيل!$P:$P,MATCH('المعلومات '!$G381,التفاصيل!$M:$M,0)),IFERROR(J381*I381,\"\"))","v":""},""]
[null,null,null,null,null,null,null,null,null,"","",{"$f":"IF(OR($E382=\"كابينات\",$E382=\"بلاي وود \"),INDEX(التفاصيل!$P:$P,MATCH('المعلومات '!$G382,التفاصيل!$M:$M,0)),IFERROR(J382*I382,\"\"))","v":""},""]
[null,null,null,null,null,null,null,null,null,"","",{"$f":"IF(OR($E383=\"كابينات\",$E383=\"بلاي وود \"),INDEX(التفاصيل!$P:$P,MATCH('المعلومات '!$G383,التفاصيل!$M:$M,0)),IFERROR(J383*I383,\"\"))","v":""},""]
[null,null,null,null,null,null,null,null,null,"","",{"$f":"IF(OR($E384=\"كابينات\",$E384=\"بلاي وود \"),INDEX(التفاصيل!$P:$P,MATCH('المعلومات '!$G384,التفاصيل!$M:$M,0)),IFERROR(J384*I384,\"\"))","v":""},""]
[null,null,null,null,null,null,null,null,null,"","",{"$f":"IF(OR($E385=\"كابينات\",$E385=\"بلاي وود \"),INDEX(التفاصيل!$P:$P,MATCH('المعلومات '!$G385,التفاصيل!$M:$M,0)),IFERROR(J385*I385,\"\"))","v":""},""]
[null,null,null,null,null,null,null,null,null,{"$f":"IF(E386=\"\",\"\",VLOOKUP(E:E,$N$2:$O$12,2,0))","v":""},{"$f":"IF(E386=\"\",\"\",VLOOKUP(E:E,$P$2:$Q$12,2,0))","v":""},{"$f":"IF(OR($E386=\"كابينات\",$E386=\"بلاي وود \"),INDEX(التفاصيل!$P:$P,MATCH('المعلومات '!$G386,التفاصيل!$M:$M,0)),IFERROR(J386*I386,\"\"))","v":""},""]
[null,null,null,null,null,null,null,null,null,"","",{"$f":"IF(OR($E387=\"كابينات\",$E387=\"بلاي وود \"),INDEX(التفاصيل!$P:$P,MATCH('المعلومات '!$G387,التفاصيل!$M:$M,0)),IFERROR(J387*I387,\"\"))","v":""},""]
[null,null,null,null,null,null,null,null,null,"","",{"$f":"IF(OR($E388=\"كابينات\",$E388=\"بلاي وود \"),INDEX(التفاصيل!$P:$P,MATCH('المعلومات '!$G388,التفاصيل!$M:$M,0)),IFERROR(J388*I388,\"\"))","v":""},""]
[null,null,null,null,null,null,null,null,null,"","",{"$f":"IF(OR($E389=\"كابينات\",$E389=\"بلاي وود \"),INDEX(التفاصيل!$P:$P,MATCH('المعلومات '!$G389,التفاصيل!$M:$M,0)),IFERROR(J389*I389,\"\"))","v":""},""]
[null,null,null,null,null,null,null,null,null,"","",{"$f":"IF(OR($E390=\"كابينات\",$E390=\"بلاي وود \"),INDEX(التفاصيل!$P:$P,MATCH('المعلومات '!$G390,التفاصيل!$M:$M,0)),IFERROR(J390*I390,\"\"))","v":""},""]
[null,null,null,null,null,null,null,null,null,"","",{"$f":"IF(OR($E391=\"كابينات\",$E391=\"بلاي وود \"),INDEX(التفاصيل!$P:$P,MATCH('المعلومات '!$G391,التفاصيل!$M:$M,0)),IFERROR(J391*I391,\"\"))","v":""},""]
[null,null,null,null,null,null,null,null,null,"","",{"$f":"IF(OR($E392=\"كابينات\",$E392=\"بلاي وود \"),INDEX(التفاصيل!$P:$P,MATCH('المعلومات '!$G392,التفاصيل!$M:$M,0)),IFERROR(J392*I392,\"\"))","v":""},""]
[null,null,null,null,null,null,null,null,null,"","",{"$f":"IF(OR($E393=\"كابينات\",$E393=\"بلاي وود \"),INDEX(التفاصيل!$P:$P,MATCH('المعلومات '!$G393,التفاصيل!$M:$M,0)),IFERROR(J393*I393,\"\"))","v":""},""]
[null,null,null,null,null,null,null,null,null,"","",{"$f":"IF(OR($E394=\"كابينات\",$E394=\"بلاي وود \"),INDEX(التفاصيل!$P:$P,MATCH('المعلومات '!$G394,التفاصيل!$M:$M,0)),IFERROR(J394*I394,\"\"))","v":""},""]
[null,null,null,null,null,null,null,null,null,"","",{"$f":"IF(OR($E395=\"كابينات\",$E395=\"بلاي وود \"),INDEX(التفاصيل!$P:$P,MATCH('المعلومات '!$G395,التفاصيل!$M:$M,0)),IFERROR(J395*I395,\"\"))","v":""},""]
[null,null,null,null,null,null,null,null,null,"","",{"$f":"IF(OR($E396=\"كابينات\",$E396=\"بلاي وود \"),INDEX(التفاصيل!$P:$P,MATCH('المعلومات '!$G396,التفاصيل!$M:$M,0)),IFERROR(J396*I396,\"\"))","v":""},""]
[null,null,null,null,null,null,null,null,null,"","",{"$f":"IF(OR($E397=\"كابينات\",$E397=\"بلاي وود \"),INDEX(التفاصيل!$P:$P,MATCH('المعلومات '!$G397,التفاصيل!$M:$M,0)),IFERROR(J397*I397,\"\"))","v":""},""]
[null,null,null,null,null,null,null,null,null,"","",{"$f":"IF(OR($E398=\"كابينات\",$E398=\"بلاي وود \"),INDEX(التفاصيل!$P:$P,MATCH('المعلومات '!$G398,التفاصيل!$M:$M,0)),IFERROR(J398*I398,\"\"))","v":""},""]
[null,null,null,null,null,null,null,null,null,"","",{"$f":"IF(OR($E399=\"كابينات\",$E399=\"بلاي وود \"),INDEX(التفاصيل!$P:$P,MATCH('المعلومات '!$G399,التفاصيل!$M:$M,0)),IFERROR(J399*I399,\"\"))","v":""},""]
[null,null,null,null,null,null,null,null,null,"","",{"$f":"IF(OR($E400=\"كابينات\",$E400=\"بلاي وود \"),INDEX(التفاصيل!$P:$P,MATCH('المعلومات '!$G400,التفاصيل!$M:$M,0)),IFERROR(J400*I400,\"\"))","v":""},""]
[null,null,null,null,null,null,null,null,null,"","",{"$f":"IF(OR($E401=\"كابينات\",$E401=\"بلاي وود \"),INDEX(التفاصيل!$P:$P,MATCH('المعلومات '!$G401,التفاصيل!$M:$M,0)),IFERROR(J401*I401,\"\"))","v":""},""]
[null,null,null,null,null,null,null,null,null,"","",{"$f":"IF(OR($E402=\"كابينات\",$E402=\"بلاي وود \"),INDEX(التفاصيل!$P:$P,MATCH('المعلومات '!$G402,التفاصيل!$M:$M,0)),IFERROR(J402*I402,\"\"))","v":""},{"$f":"IFERROR(H402-L402-(K402*L402),\"\")","v":""}]
[null,null,null,null,null,null,null,null,null,"","",{"$f":"IF(OR($E403=\"كابينات\",$E403=\"بلاي وود \"),INDEX(التفاصيل!$P:$P,MATCH('المعلومات '!$G403,التفاصيل!$M:$M,0)),IFERROR(J403*I403,\"\"))","v":""},""]
[null,null,null,null,null,null,null,null,null,"","",{"$f":"IF(OR($E404=\"كابينات\",$E404=\"بلاي وود \"),INDEX(التفاصيل!$P:$P,MATCH('المعلومات '!$G404,التفاصيل!$M:$M,0)),IFERROR(J404*I404,\"\"))","v":""},""]
[null,null,null,null,null,null,null,null,null,"","",{"$f":"IF(OR($E405=\"كابينات\",$E405=\"بلاي وود \"),INDEX(التفاصيل!$P:$P,MATCH('المعلومات '!$G405,التفاصيل!$M:$M,0)),IFERROR(J405*I405,\"\"))","v":""},""]
[null,null,null,null,null,null,null,null,null,"","",{"$f":"IF(OR($E406=\"كابينات\",$E406=\"بلاي وود \"),INDEX(التفاصيل!$P:$P,MATCH('المعلومات '!$G406,التفاصيل!$M:$M,0)),IFERROR(J406*I406,\"\"))","v":""},""]
[null,null,null,null,null,null,null,null,null,"","",{"$f":"IF(OR($E407=\"كابينات\",$E407=\"بلاي وود \"),INDEX(التفاصيل!$P:$P,MATCH('المعلومات '!$G407,التفاصيل!$M:$M,0)),IFERROR(J407*I407,\"\"))","v":""},""]
[null,null,null,null,null,null,null,null,null,"","",{"$f":"IF(OR($E408=\"كابينات\",$E408=\"بلاي وود \"),INDEX(التفاصيل!$P:$P,MATCH('المعلومات '!$G408,التفاصيل!$M:$M,0)),IFERROR(J408*I408,\"\"))","v":""},""]
[null,null,null,null,null,null,null,null,null,"","",{"$f":"IF(OR($E409=\"كابينات\",$E409=\"بلاي وود \"),INDEX(التفاصيل!$P:$P,MATCH('المعلومات '!$G409,التفاصيل!$M:$M,0)),IFERROR(J409*I409,\"\"))","v":""},""]
[null,null,null,null,null,null,null,null,null,"","",{"$f":"IF(OR($E410=\"كابينات\",$E410=\"بلاي وود \"),INDEX(التفاصيل!$P:$P,MATCH('المعلومات '!$G410,التفاصيل!$M:$M,0)),IFERROR(J410*I410,\"\"))","v":""},""]
[null,null,null,null,null,null,null,null,null,"","",{"$f":"IF(OR($E411=\"كابينات\",$E411=\"بلاي وود \"),INDEX(التفاصيل!$P:$P,MATCH('المعلومات '!$G411,التفاصيل!$M:$M,0)),IFERROR(J411*I411,\"\"))","v":""},""]
[null,null,null,null,null,null,null,null,null,"","",{"$f":"IF(OR($E412=\"كابينات\",$E412=\"بلاي وود \"),INDEX(التفاصيل!$P:$P,MATCH('المعلومات '!$G412,التفاصيل!$M:$M,0)),IFERROR(J412*I412,\"\"))","v":""},""]
[null,null,null,null,null,null,null,null,null,"","",{"$f":"IF(OR($E413=\"كابينات\",$E413=\"بلاي وود \"),INDEX(التفاصيل!$P:$P,MATCH('المعلومات '!$G413,التفاصيل!$M:$M,0)),IFERROR(J413*I413,\"\"))","v":""},""]
[null,null,null,null,null,null,null,null,null,"","",{"$f":"IF(OR($E414=\"كابينات\",$E414=\"بلاي وود \"),INDEX(التفاصيل!$P:$P,MATCH('المعلومات '!$G414,التفاصيل!$M:$M,0)),IFERROR(J414*I414,\"\"))","v":""},""]
[null,null,null,null,null,null,null,null,null,"","",{"$f":"IF(OR($E415=\"كابينات\",$E415=\"بلاي وود \"),INDEX(التفاصيل!$P:$P,MATCH('المعلومات '!$G415,التفاصيل!$M:$M,0)),IFERROR(J415*I415,\"\"))","v":""},""]
[null,null,null,null,null,null,null,null,null,"","",{"$f":"IF(OR($E416=\"كابينات\",$E416=\"بلاي وود \"),INDEX(التفاصيل!$P:$P,MATCH('المعلومات '!$G416,التفاصيل!$M:$M,0)),IFERROR(J416*I416,\"\"))","v":""},""]
[null,null,null,null,null,null,null,null,null,"","",{"$f":"IF(OR($E417=\"كابينات\",$E417=\"بلاي وود \"),INDEX(التفاصيل!$P:$P,MATCH('المعلومات '!$G417,التفاصيل!$M:$M,0)),IFERROR(J417*I417,\"\"))","v":""},""]
[null,null,null,null,null,null,null,null,null,"","",{"$f":"IF(OR($E418=\"كابينات\",$E418=\"بلاي وود \"),INDEX(التفاصيل!$P:$P,MATCH('المعلومات '!$G418,التفاصيل!$M:$M,0)),IFERROR(J418*I418,\"\"))","v":""},""]
[null,null,null,null,null,null,null,null,null,"","",{"$f":"IF(OR($E419=\"كابينات\",$E419=\"بلاي وود \"),INDEX(التفاصيل!$P:$P,MATCH('المعلومات '!$G419,التفاصيل!$M:$M,0)),IFERROR(J419*I419,\"\"))","v":""},""]
[null,null,null,null,null,null,null,null,null,"","",{"$f":"IF(OR($E420=\"كابينات\",$E420=\"بلاي وود \"),INDEX(التفاصيل!$P:$P,MATCH('المعلومات '!$G420,التفاصيل!$M:$M,0)),IFERROR(J420*I420,\"\"))","v":""},""]
[null,null,null,null,null,null,null,null,null,"","",{"$f":"IF(OR($E421=\"كابينات\",$E421=\"بلاي وود \"),INDEX(التفاصيل!$P:$P,MATCH('المعلومات '!$G421,التفاصيل!$M:$M,0)),IFERROR(J421*I421,\"\"))","v":""},""]
[null,null,null,null,null,null,null,null,null,"","",{"$f":"IF(OR($E422=\"كابينات\",$E422=\"بلاي وود \"),INDEX(التفاصيل!$P:$P,MATCH('المعلومات '!$G422,التفاصيل!$M:$M,0)),IFERROR(J422*I422,\"\"))","v":""},""]
[null,null,null,null,null,null,null,null,null,"","",{"$f":"IF(OR($E423=\"كابينات\",$E423=\"بلاي وود \"),INDEX(التفاصيل!$P:$P,MATCH('المعلومات '!$G423,التفاصيل!$M:$M,0)),IFERROR(J423*I423,\"\"))","v":""},""]
[null,null,null,null,null,null,null,null,null,"","",{"$f":"IF(OR($E424=\"كابينات\",$E424=\"بلاي وود \"),INDEX(التفاصيل!$P:$P,MATCH('المعلومات '!$G424,التفاصيل!$M:$M,0)),IFERROR(J424*I424,\"\"))","v":""},""]
[null,null,null,null,null,null,null,null,null,"","",{"$f":"IF(OR($E425=\"كابينات\",$E425=\"بلاي وود \"),INDEX(التفاصيل!$P:$P,MATCH('المعلومات '!$G425,التفاصيل!$M:$M,0)),IFERROR(J425*I425,\"\"))","v":""},""]
[null,null,null,null,null,null,null,null,null,"","",{"$f":"IF(OR($E426=\"كابينات\",$E426=\"بلاي وود \"),INDEX(التفاصيل!$P:$P,MATCH('المعلومات '!$G426,التفاصيل!$M:$M,0)),IFERROR(J426*I426,\"\"))","v":""},""]
[null,null,null,null,null,null,null,null,null,"","",{"$f":"IF(OR($E427=\"كابينات\",$E427=\"بلاي وود \"),INDEX(التفاصيل!$P:$P,MATCH('المعلومات '!$G427,التفاصيل!$M:$M,0)),IFERROR(J427*I427,\"\"))","v":""},""]
[null,null,null,null,null,null,null,null,null,"","",{"$f":"IF(OR($E428=\"كابينات\",$E428=\"بلاي وود \"),INDEX(التفاصيل!$P:$P,MATCH('المعلومات '!$G428,التفاصيل!$M:$M,0)),IFERROR(J428*I428,\"\"))","v":""},""]
[null,null,null,null,null,null,null,null,null,"","",{"$f":"IF(OR($E429=\"كابينات\",$E429=\"بلاي وود \"),INDEX(التفاصيل!$P:$P,MATCH('المعلومات '!$G429,التفاصيل!$M:$M,0)),IFERROR(J429*I429,\"\"))","v":""},""]
[null,null,null,null,null,null,null,null,null,"","",{"$f":"IF(OR($E430=\"كابينات\",$E430=\"بلاي وود \"),INDEX(التفاصيل!$P:$P,MATCH('المعلومات '!$G430,التفاصيل!$M:$M,0)),IFERROR(J430*I430,\"\"))","v":""},""]
[null,null,null,null,null,null,null,null,null,"","",{"$f":"IF(OR($E431=\"كابينات\",$E431=\"بلاي وود \"),INDEX(التفاصيل!$P:$P,MATCH('المعلومات '!$G431,التفاصيل!$M:$M,0)),IFERROR(J431*I431,\"\"))","v":""},""]
[null,null,null,null,null,null,null,null,null,"","",{"$f":"IF(OR($E432=\"كابينات\",$E432=\"بلاي وود \"),INDEX(التفاصيل!$P:$P,MATCH('المعلومات '!$G432,التفاصيل!$M:$M,0)),IFERROR(J432*I432,\"\"))","v":""},""]
[null,null,null,null,null,null,null,null,null,"","",{"$f":"IF(OR($E433=\"كابينات\",$E433=\"بلاي وود \"),INDEX(التفاصيل!$P:$P,MATCH('المعلومات '!$G433,التفاصيل!$M:$M,0)),IFERROR(J433*I433,\"\"))","v":""},""]
[null,null,null,null,null,null,null,null,null,"","",{"$f":"IF(OR($E434=\"كابينات\",$E434=\"بلاي وود \"),INDEX(التفاصيل!$P:$P,MATCH('المعلومات '!$G434,التفاصيل!$M:$M,0)),IFERROR(J434*I434,\"\"))","v":""},""]
[null,null,null,null,null,null,null,null,null,"","",{"$f":"IF(OR($E435=\"كابينات\",$E435=\"بلاي وود \"),INDEX(التفاصيل!$P:$P,MATCH('المعلومات '!$G435,التفاصيل!$M:$M,0)),IFERROR(J435*I435,\"\"))","v":""},""]
[null,null,null,null,null,null,null,null,null,"","",{"$f":"IF(OR($E436=\"كابينات\",$E436=\"بلاي وود \"),INDEX(التفاصيل!$P:$P,MATCH('المعلومات '!$G436,التفاصيل!$M:$M,0)),IFERROR(J436*I436,\"\"))","v":""},""]
[null,null,null,null,null,null,null,null,null,"","",{"$f":"IF(OR($E437=\"كابينات\",$E437=\"بلاي وود \"),INDEX(التفاصيل!$P:$P,MATCH('المعلومات '!$G437,التفاصيل!$M:$M,0)),IFERROR(J437*I437,\"\"))","v":""},""]
[null,null,null,null,null,null,null,null,null,"","",{"$f":"IF(OR($E438=\"كابينات\",$E438=\"بلاي وود \"),INDEX(التفاصيل!$P:$P,MATCH('المعلومات '!$G438,التفاصيل!$M:$M,0)),IFERROR(J438*I438,\"\"))","v":""},""]
[null,null,null,null,null,null,null,null,null,"","",{"$f":"IF(OR($E439=\"كابينات\",$E439=\"بلاي وود \"),INDEX(التفاصيل!$P:$P,MATCH('المعلومات '!$G439,التفاصيل!$M:$M,0)),IFERROR(J439*I439,\"\"))","v":""},""]
[null,null,null,null,null,null,null,null,null,"","",{"$f":"IF(OR($E440=\"كابينات\",$E440=\"بلاي وود \"),INDEX(التفاصيل!$P:$P,MATCH('المعلومات '!$G440,التفاصيل!$M:$M,0)),IFERROR(J440*I440,\"\"))","v":""},""]
[null,null,null,null,null,null,null,null,null,"","",{"$f":"IF(OR($E441=\"كابينات\",$E441=\"بلاي وود \"),INDEX(التفاصيل!$P:$P,MATCH('المعلومات '!$G441,التفاصيل!$M:$M,0)),IFERROR(J441*I441,\"\"))","v":""},""]
[null,null,null,null,null,null,null,null,null,"","",{"$f":"IF(OR($E442=\"كابينات\",$E442=\"بلاي وود \"),INDEX(التفاصيل!$P:$P,MATCH('المعلومات '!$G442,التفاصيل!$M:$M,0)),IFERROR(J442*I442,\"\"))","v":""},""]
[null,null,null,null,null,null,null,null,null,"","",{"$f":"IF(OR($E443=\"كابينات\",$E443=\"بلاي وود \"),INDEX(التفاصيل!$P:$P,MATCH('المعلومات '!$G443,التفاصيل!$M:$M,0)),IFERROR(J443*I443,\"\"))","v":""},""]
[null,null,null,null,null,null,null,null,null,"","",{"$f":"IF(OR($E444=\"كابينات\",$E444=\"بلاي وود \"),INDEX(التفاصيل!$P:$P,MATCH('المعلومات '!$G444,التفاصيل!$M:$M,0)),IFERROR(J444*I444,\"\"))","v":""},""]
[null,null,null,null,null,null,null,null,null,"","",{"$f":"IF(OR($E445=\"كابينات\",$E445=\"بلاي وود \"),INDEX(التفاصيل!$P:$P,MATCH('المعلومات '!$G445,التفاصيل!$M:$M,0)),IFERROR(J445*I445,\"\"))","v":""},""]
[null,null,null,null,null,null,null,null,null,"","",{"$f":"IF(OR($E446=\"كابينات\",$E446=\"بلاي وود \"),INDEX(التفاصيل!$P:$P,MATCH('المعلومات '!$G446,التفاصيل!$M:$M,0)),IFERROR(J446*I446,\"\"))","v":""},""]
[null,null,null,null,null,null,null,null,null,"","",{"$f":"IF(OR($E447=\"كابينات\",$E447=\"بلاي وود \"),INDEX(التفاصيل!$P:$P,MATCH('المعلومات '!$G447,التفاصيل!$M:$M,0)),IFERROR(J447*I447,\"\"))","v":""},""]
[null,null,null,null,null,null,null,null,null,"","",{"$f":"IF(OR($E448=\"كابينات\",$E448=\"بلاي وود \"),INDEX(التفاصيل!$P:$P,MATCH('المعلومات '!$G448,التفاصيل!$M:$M,0)),IFERROR(J448*I448,\"\"))","v":""},""]
[null,null,null,null,null,null,null,null,null,"","",{"$f":"IF(OR($E449=\"كابينات\",$E449=\"بلاي وود \"),INDEX(التفاصيل!$P:$P,MATCH('المعلومات '!$G449,التفاصيل!$M:$M,0)),IFERROR(J449*I449,\"\"))","v":""},""]
[null,null,null,null,null,null,null,null,null,{"$f":"IF(E450=\"\",\"\",VLOOKUP(E:E,$N$2:$O$12,2,0))","v":""},{"$f":"IF(E450=\"\",\"\",VLOOKUP(E:E,$P$2:$Q$12,2,0))","v":""},{"$f":"IF(OR($E450=\"كابينات\",$E450=\"بلاي وود \"),INDEX(التفاصيل!$P:$P,MATCH('المعلومات '!$G450,التفاصيل!$M:$M,0)),IFERROR(J450*I450,\"\"))","v":""},""]
[null,null,null,null,null,null,null,null,null,"","",{"$f":"IF($E451=\"كابينات\",INDEX(التفاصيل!$P:$P,MATCH('المعلومات '!$G451,التفاصيل!$M:$M,0)),IFERROR(J451*I451,\"\"))","v":""},""]
[null,null,null,null,null,null,null,null,null,"","",{"$f":"IF($E452=\"كابينات\",INDEX(التفاصيل!$P:$P,MATCH('المعلومات '!$G452,التفاصيل!$M:$M,0)),IFERROR(J452*I452,\"\"))","v":""},""]
[null,null,null,null,null,null,null,null,null,"","",{"$f":"IF($E453=\"كابينات\",INDEX(التفاصيل!$P:$P,MATCH('المعلومات '!$G453,التفاصيل!$M:$M,0)),IFERROR(J453*I453,\"\"))","v":""},""]
[null,null,null,null,null,null,null,null,null,"","",{"$f":"IF($E454=\"كابينات\",INDEX(التفاصيل!$P:$P,MATCH('المعلومات '!$G454,التفاصيل!$M:$M,0)),IFERROR(J454*I454,\"\"))","v":""},""]
[null,null,null,null,null,null,null,null,null,"","",{"$f":"IF($E455=\"كابينات\",INDEX(التفاصيل!$P:$P,MATCH('المعلومات '!$G455,التفاصيل!$M:$M,0)),IFERROR(J455*I455,\"\"))","v":""},""]
[null,null,null,null,null,null,null,null,null,"","",{"$f":"IF($E456=\"كابينات\",INDEX(التفاصيل!$P:$P,MATCH('المعلومات '!$G456,التفاصيل!$M:$M,0)),IFERROR(J456*I456,\"\"))","v":""},""]
[null,null,null,null,null,null,null,null,null,"","",{"$f":"IF($E457=\"كابينات\",INDEX(التفاصيل!$P:$P,MATCH('المعلومات '!$G457,التفاصيل!$M:$M,0)),IFERROR(J457*I457,\"\"))","v":""},""]
[null,null,null,null,null,null,null,null,null,"","",{"$f":"IF($E458=\"كابينات\",INDEX(التفاصيل!$P:$P,MATCH('المعلومات '!$G458,التفاصيل!$M:$M,0)),IFERROR(J458*I458,\"\"))","v":""},""]
[null,null,null,null,null,null,null,null,null,"","",{"$f":"IF($E459=\"كابينات\",INDEX(التفاصيل!$P:$P,MATCH('المعلومات '!$G459,التفاصيل!$M:$M,0)),IFERROR(J459*I459,\"\"))","v":""},""]
[null,null,null,null,null,null,null,null,null,"","",{"$f":"IF($E460=\"كابينات\",INDEX(التفاصيل!$P:$P,MATCH('المعلومات '!$G460,التفاصيل!$M:$M,0)),IFERROR(J460*I460,\"\"))","v":""},""]
[null,null,null,null,null,null,null,null,null,"","",{"$f":"IF($E461=\"كابينات\",INDEX(التفاصيل!$P:$P,MATCH('المعلومات '!$G461,التفاصيل!$M:$M,0)),IFERROR(J461*I461,\"\"))","v":""},""]
[null,null,null,null,null,null,null,null,null,"","",{"$f":"IF($E462=\"كابينات\",INDEX(التفاصيل!$P:$P,MATCH('المعلومات '!$G462,التفاصيل!$M:$M,0)),IFERROR(J462*I462,\"\"))","v":""},""]
[null,null,null,null,null,null,null,null,null,"","",{"$f":"IF($E463=\"كابينات\",INDEX(التفاصيل!$P:$P,MATCH('المعلومات '!$G463,التفاصيل!$M:$M,0)),IFERROR(J463*I463,\"\"))","v":""},""]
[null,null,null,null,null,null,null,null,null,"","",{"$f":"IF($E464=\"كابينات\",INDEX(التفاصيل!$P:$P,MATCH('المعلومات '!$G464,التفاصيل!$M:$M,0)),IFERROR(J464*I464,\"\"))","v":""},""]
[null,null,null,null,null,null,null,null,null,"","",{"$f":"IF($E465=\"كابينات\",INDEX(التفاصيل!$P:$P,MATCH('المعلومات '!$G465,التفاصيل!$M:$M,0)),IFERROR(J465*I465,\"\"))","v":""},""]
[null,null,null,null,null,null,null,null,null,"","",{"$f":"IF($E466=\"كابينات\",INDEX(التفاصيل!$P:$P,MATCH('المعلومات '!$G466,التفاصيل!$M:$M,0)),IFERROR(J466*I466,\"\"))","v":""},{"$f":"IFERROR(H466-L466-(K466*L466),\"\")","v":""}]
[null,null,null,null,null,null,null,null,null,"","",{"$f":"IF($E467=\"كابينات\",INDEX(التفاصيل!$P:$P,MATCH('المعلومات '!$G467,التفاصيل!$M:$M,0)),IFERROR(J467*I467,\"\"))","v":""},""]
[null,null,null,null,null,null,null,null,null,"","",{"$f":"IF($E468=\"كابينات\",INDEX(التفاصيل!$P:$P,MATCH('المعلومات '!$G468,التفاصيل!$M:$M,0)),IFERROR(J468*I468,\"\"))","v":""},""]
[null,null,null,null,null,null,null,null,null,"","",{"$f":"IF($E469=\"كابينات\",INDEX(التفاصيل!$P:$P,MATCH('المعلومات '!$G469,التفاصيل!$M:$M,0)),IFERROR(J469*I469,\"\"))","v":""},""]
[null,null,null,null,null,null,null,null,null,"","",{"$f":"IF($E470=\"كابينات\",INDEX(التفاصيل!$P:$P,MATCH('المعلومات '!$G470,التفاصيل!$M:$M,0)),IFERROR(J470*I470,\"\"))","v":""},""]
[null,null,null,null,null,null,null,null,null,"","",{"$f":"IF($E471=\"كابينات\",INDEX(التفاصيل!$P:$P,MATCH('المعلومات '!$G471,التفاصيل!$M:$M,0)),IFERROR(J471*I471,\"\"))","v":""},""]
[null,null,null,null,null,null,null,null,null,"","",{"$f":"IF($E472=\"كابينات\",INDEX(التفاصيل!$P:$P,MATCH('المعلومات '!$G472,التفاصيل!$M:$M,0)),IFERROR(J472*I472,\"\"))","v":""},""]
[null,null,null,null,null,null,null,null,null,"","",{"$f":"IF($E473=\"كابينات\",INDEX(التفاصيل!$P:$P,MATCH('المعلومات '!$G473,التفاصيل!$M:$M,0)),IFERROR(J473*I473,\"\"))","v":""},""]
[null,null,null,null,null,null,null,null,null,"","",{"$f":"IF($E474=\"كابينات\",INDEX(التفاصيل!$P:$P,MATCH('المعلومات '!$G474,التفاصيل!$M:$M,0)),IFERROR(J474*I474,\"\"))","v":""},""]
[null,null,null,null,null,null,null,null,null,"","",{"$f":"IF($E475=\"كابينات\",INDEX(التفاصيل!$P:$P,MATCH('المعلومات '!$G475,التفاصيل!$M:$M,0)),IFERROR(J475*I475,\"\"))","v":""},""]
[null,null,null,null,null,null,null,null,null,"","",{"$f":"IF($E476=\"كابينات\",INDEX(التفاصيل!$P:$P,MATCH('المعلومات '!$G476,التفاصيل!$M:$M,0)),IFERROR(J476*I476,\"\"))","v":""},""]
[null,null,null,null,null,null,null,null,null,"","",{"$f":"IF($E477=\"كابينات\",INDEX(التفاصيل!$P:$P,MATCH('المعلومات '!$G477,التفاصيل!$M:$M,0)),IFERROR(J477*I477,\"\"))","v":""},""]
[null,null,null,null,null,null,null,null,null,"","",{"$f":"IF($E478=\"كابينات\",INDEX(التفاصيل!$P:$P,MATCH('المعلومات '!$G478,التفاصيل!$M:$M,0)),IFERROR(J478*I478,\"\"))","v":""},""]
[null,null,null,null,null,null,null,null,null,"","",{"$f":"IF($E479=\"كابينات\",INDEX(التفاصيل!$P:$P,MATCH('المعلومات '!$G479,التفاصيل!$M:$M,0)),IFERROR(J479*I479,\"\"))","v":""},""]
[null,null,null,null,null,null,null,null,null,"","",{"$f":"IF($E480=\"كابينات\",INDEX(التفاصيل!$P:$P,MATCH('المعلومات '!$G480,التفاصيل!$M:$M,0)),IFERROR(J480*I480,\"\"))","v":""},""]
[null,null,null,null,null,null,null,null,null,"","",{"$f":"IF($E481=\"كابينات\",INDEX(التفاصيل!$P:$P,MATCH('المعلومات '!$G481,التفاصيل!$M:$M,0)),IFERROR(J481*I481,\"\"))","v":""},""]
[null,null,null,null,null,null,null,null,null,"","",{"$f":"IF($E482=\"كابينات\",INDEX(التفاصيل!$P:$P,MATCH('المعلومات '!$G482,التفاصيل!$M:$M,0)),IFERROR(J482*I482,\"\"))","v":""},""]
[null,null,null,null,null,null,null,null,null,"","",{"$f":"IF($E483=\"كابينات\",INDEX(التفاصيل!$P:$P,MATCH('المعلومات '!$G483,التفاصيل!$M:$M,0)),IFERROR(J483*I483,\"\"))","v":""},""]
[null,null,null,null,null,null,null,null,null,"","",{"$f":"IF($E484=\"كابينات\",INDEX(التفاصيل!$P:$P,MATCH('المعلومات '!$G484,التفاصيل!$M:$M,0)),IFERROR(J484*I484,\"\"))","v":""},""]
[null,null,null,null,null,null,null,null,null,"","",{"$f":"IF($E485=\"كابينات\",INDEX(التفاصيل!$P:$P,MATCH('المعلومات '!$G485,التفاصيل!$M:$M,0)),IFERROR(J485*I485,\"\"))","v":""},""]
[null,null,null,null,null,null,null,null,null,"","",{"$f":"IF($E486=\"كابينات\",INDEX(التفاصيل!$P:$P,MATCH('المعلومات '!$G486,التفاصيل!$M:$M,0)),IFERROR(J486*I486,\"\"))","v":""},""]
[null,null,null,null,null,null,null,null,null,"","",{"$f":"IF($E487=\"كابينات\",INDEX(التفاصيل!$P:$P,MATCH('المعلومات '!$G487,التفاصيل!$M:$M,0)),IFERROR(J487*I487,\"\"))","v":""},""]
[null,null,null,null,null,null,null,null,null,"","",{"$f":"IF($E488=\"كابينات\",INDEX(التفاصيل!$P:$P,MATCH('المعلومات '!$G488,التفاصيل!$M:$M,0)),IFERROR(J488*I488,\"\"))","v":""},""]
[null,null,null,null,null,null,null,null,null,"","",{"$f":"IF($E489=\"كابينات\",INDEX(التفاصيل!$P:$P,MATCH('المعلومات '!$G489,التفاصيل!$M:$M,0)),IFERROR(J489*I489,\"\"))","v":""},""]
[null,null,null,null,null,null,null,null,null,"","",{"$f":"IF($E490=\"كابينات\",INDEX(التفاصيل!$P:$P,MATCH('المعلومات '!$G490,التفاصيل!$M:$M,0)),IFERROR(J490*I490,\"\"))","v":""},""]
[null,null,null,null,null,null,null,null,null,"","",{"$f":"IF($E491=\"كابينات\",INDEX(التفاصيل!$P:$P,MATCH('المعلومات '!$G491,التفاصيل!$M:$M,0)),IFERROR(J491*I491,\"\"))","v":""},""]
[null,null,null,null,null,null,null,null,null,"","",{"$f":"IF($E492=\"كابينات\",INDEX(التفاصيل!$P:$P,MATCH('المعلومات '!$G492,التفاصيل!$M:$M,0)),IFERROR(J492*I492,\"\"))","v":""},""]
[null,null,null,null,null,null,null,null,null,"","",{"$f":"IF($E493=\"كابينات\",INDEX(التفاصيل!$P:$P,MATCH('المعلومات '!$G493,التفاصيل!$M:$M,0)),IFERROR(J493*I493,\"\"))","v":""},""]
[null,null,null,null,null,null,null,null,null,"","",{"$f":"IF($E494=\"كابينات\",INDEX(التفاصيل!$P:$P,MATCH('المعلومات '!$G494,التفاصيل!$M:$M,0)),IFERROR(J494*I494,\"\"))","v":""},""]
[null,null,null,null,null,null,null,null,null,"","",{"$f":"IF($E495=\"كابينات\",INDEX(التفاصيل!$P:$P,MATCH('المعلومات '!$G495,التفاصيل!$M:$M,0)),IFERROR(J495*I495,\"\"))","v":""},""]
[null,null,null,null,null,null,null,null,null,"","",{"$f":"IF($E496=\"كابينات\",INDEX(التفاصيل!$P:$P,MATCH('المعلومات '!$G496,التفاصيل!$M:$M,0)),IFERROR(J496*I496,\"\"))","v":""},""]
[null,null,null,null,null,null,null,null,null,"","",{"$f":"IF($E497=\"كابينات\",INDEX(التفاصيل!$P:$P,MATCH('المعلومات '!$G497,التفاصيل!$M:$M,0)),IFERROR(J497*I497,\"\"))","v":""},""]
[null,null,null,null,null,null,null,null,null,"","",{"$f":"IF($E498=\"كابينات\",INDEX(التفاصيل!$P:$P,MATCH('المعلومات '!$G498,التفاصيل!$M:$M,0)),IFERROR(J498*I498,\"\"))","v":""},""]
[null,null,null,null,null,null,null,null,null,"","",{"$f":"IF($E499=\"كابينات\",INDEX(التفاصيل!$P:$P,MATCH('المعلومات '!$G499,التفاصيل!$M:$M,0)),IFERROR(J499*I499,\"\"))","v":""},""]
[null,null,null,null,null,null,null,null,null,"","",{"$f":"IF($E500=\"كابينات\",INDEX(التفاصيل!$P:$P,MATCH('المعلومات '!$G500,التفاصيل!$M:$M,0)),IFERROR(J500*I500,\"\"))","v":""},""]
[null,null,null,null,null,null,null,null,null,"","",{"$f":"IF($E501=\"كابينات\",INDEX(التفاصيل!$P:$P,MATCH('المعلومات '!$G501,التفاصيل!$M:$M,0)),IFERROR(J501*I501,\"\"))","v":""},""]
[null,null,null,null,null,null,null,null,null,"","",{"$f":"IF($E502=\"كابينات\",INDEX(التفاصيل!$P:$P,MATCH('المعلومات '!$G502,التفاصيل!$M:$M,0)),IFERROR(J502*I502,\"\"))","v":""},""]
[null,null,null,null,null,null,null,null,null,"","",{"$f":"IF($E503=\"كابينات\",INDEX(التفاصيل!$P:$P,MATCH('المعلومات '!$G503,التفاصيل!$M:$M,0)),IFERROR(J503*I503,\"\"))","v":""},""]
[null,null,null,null,null,null,null,null,null,"","",{"$f":"IF($E504=\"كابينات\",INDEX(التفاصيل!$P:$P,MATCH('المعلومات '!$G504,التفاصيل!$M:$M,0)),IFERROR(J504*I504,\"\"))","v":""},""]
[null,null,null,null,null,null,null,null,null,"","",{"$f":"IF($E505=\"كابينات\",INDEX(التفاصيل!$P:$P,MATCH('المعلومات '!$G505,التفاصيل!$M:$M,0)),IFERROR(J505*I505,\"\"))","v":""},""]
[null,null,null,null,null,null,null,null,null,"","",{"$f":"IF($E506=\"كابينات\",INDEX(التفاصيل!$P:$P,MATCH('المعلومات '!$G506,التفاصيل!$M:$M,0)),IFERROR(J506*I506,\"\"))","v":""},""]
[null,null,null,null,null,null,null,null,null,"","",{"$f":"IF($E507=\"كابينات\",INDEX(التفاصيل!$P:$P,MATCH('المعلومات '!$G507,التفاصيل!$M:$M,0)),IFERROR(J507*I507,\"\"))","v":""},""]
[null,null,null,null,null,null,null,null,null,"","",{"$f":"IF($E508=\"كابينات\",INDEX(التفاصيل!$P:$P,MATCH('المعلومات '!$G508,التفاصيل!$M:$M,0)),IFERROR(J508*I508,\"\"))","v":""},""]
[null,null,null,null,null,null,null,null,null,"","",{"$f":"IF($E509=\"كابينات\",INDEX(التفاصيل!$P:$P,MATCH('المعلومات '!$G509,التفاصيل!$M:$M,0)),IFERROR(J509*I509,\"\"))","v":""},""]
[null,null,null,null,null,null,null,null,null,"","",{"$f":"IF($E510=\"كابينات\",INDEX(التفاصيل!$P:$P,MATCH('المعلومات '!$G510,التفاصيل!$M:$M,0)),IFERROR(J510*I510,\"\"))","v":""},""]
[null,null,null,null,null,null,null,null,null,"","",{"$f":"IF($E511=\"كابينات\",INDEX(التفاصيل!$P:$P,MATCH('المعلومات '!$G511,التفاصيل!$M:$M,0)),IFERROR(J511*I511,\"\"))","v":""},""]
[null,null,null,null,null,null,null,null,null,"","",{"$f":"IF($E512=\"كابينات\",INDEX(التفاصيل!$P:$P,MATCH('المعلومات '!$G512,التفاصيل!$M:$M,0)),IFERROR(J512*I512,\"\"))","v":""},""]
[null,null,null,null,null,null,null,null,null,"","",{"$f":"IF($E513=\"كابينات\",INDEX(التفاصيل!$P:$P,MATCH('المعلومات '!$G513,التفاصيل!$M:$M,0)),IFERROR(J513*I513,\"\"))","v":""},""]
[null,null,null,null,null,null,null,null,null,{"$f":"IF(E514=\"\",\"\",VLOOKUP(E:E,$N$2:$O$12,2,0))","v":""},{"$f":"IF(E514=\"\",\"\",VLOOKUP(E:E,$P$2:$Q$12,2,0))","v":""},{"$f":"IF($E514=\"كابينات\",INDEX(التفاصيل!$P:$P,MATCH('المعلومات '!$G514,التفاصيل!$M:$M,0)),IFERROR(J514*I514,\"\"))","v":""},""]
[null,null,null,null,null,null,null,null,null,"","",{"$f":"IF($E515=\"كابينات\",INDEX(التفاصيل!$P:$P,MATCH('المعلومات '!$G515,التفاصيل!$M:$M,0)),IFERROR(J515*I515,\"\"))","v":""},""]
[null,null,null,null,null,null,null,null,null,"","",{"$f":"IF($E516=\"كابينات\",INDEX(التفاصيل!$P:$P,MATCH('المعلومات '!$G516,التفاصيل!$M:$M,0)),IFERROR(J516*I516,\"\"))","v":""},""]
[null,null,null,null,null,null,null,null,null,"","",{"$f":"IF($E517=\"كابينات\",INDEX(التفاصيل!$P:$P,MATCH('المعلومات '!$G517,التفاصيل!$M:$M,0)),IFERROR(J517*I517,\"\"))","v":""},""]
[null,null,null,null,null,null,null,null,null,"","",{"$f":"IF($E518=\"كابينات\",INDEX(التفاصيل!$P:$P,MATCH('المعلومات '!$G518,التفاصيل!$M:$M,0)),IFERROR(J518*I518,\"\"))","v":""},""]
[null,null,null,null,null,null,null,null,null,"","",{"$f":"IF($E519=\"كابينات\",INDEX(التفاصيل!$P:$P,MATCH('المعلومات '!$G519,التفاصيل!$M:$M,0)),IFERROR(J519*I519,\"\"))","v":""},""]
[null,null,null,null,null,null,null,null,null,"","",{"$f":"IF($E520=\"كابينات\",INDEX(التفاصيل!$P:$P,MATCH('المعلومات '!$G520,التفاصيل!$M:$M,0)),IFERROR(J520*I520,\"\"))","v":""},""]
[null,null,null,null,null,null,null,null,null,"","",{"$f":"IF($E521=\"كابينات\",INDEX(التفاصيل!$P:$P,MATCH('المعلومات '!$G521,التفاصيل!$M:$M,0)),IFERROR(J521*I521,\"\"))","v":""},""]
[null,null,null,null,null,null,null,null,null,"","",{"$f":"IF($E522=\"كابينات\",INDEX(التفاصيل!$P:$P,MATCH('المعلومات '!$G522,التفاصيل!$M:$M,0)),IFERROR(J522*I522,\"\"))","v":""},""]
[null,null,null,null,null,null,null,null,null,"","",{"$f":"IF($E523=\"كابينات\",INDEX(التفاصيل!$P:$P,MATCH('المعلومات '!$G523,التفاصيل!$M:$M,0)),IFERROR(J523*I523,\"\"))","v":""},""]
[null,null,null,null,null,null,null,null,null,"","",{"$f":"IF($E524=\"كابينات\",INDEX(التفاصيل!$P:$P,MATCH('المعلومات '!$G524,التفاصيل!$M:$M,0)),IFERROR(J524*I524,\"\"))","v":""},""]
[null,null,null,null,null,null,null,null,null,"","",{"$f":"IF($E525=\"كابينات\",INDEX(التفاصيل!$P:$P,MATCH('المعلومات '!$G525,التفاصيل!$M:$M,0)),IFERROR(J525*I525,\"\"))","v":""},""]
[null,null,null,null,null,null,null,null,null,"","",{"$f":"IF($E526=\"كابينات\",INDEX(التفاصيل!$P:$P,MATCH('المعلومات '!$G526,التفاصيل!$M:$M,0)),IFERROR(J526*I526,\"\"))","v":""},""]
[null,null,null,null,null,null,null,null,null,"","",{"$f":"IF($E527=\"كابينات\",INDEX(التفاصيل!$P:$P,MATCH('المعلومات '!$G527,التفاصيل!$M:$M,0)),IFERROR(J527*I527,\"\"))","v":""},""]
[null,null,null,null,null,null,null,null,null,"","",{"$f":"IF($E528=\"كابينات\",INDEX(التفاصيل!$P:$P,MATCH('المعلومات '!$G528,التفاصيل!$M:$M,0)),IFERROR(J528*I528,\"\"))","v":""},""]
[null,null,null,null,null,null,null,null,null,"","",{"$f":"IF($E529=\"كابينات\",INDEX(التفاصيل!$P:$P,MATCH('المعلومات '!$G529,التفاصيل!$M:$M,0)),IFERROR(J529*I529,\"\"))","v":""},""]
[null,null,null,null,null,null,null,null,null,"","",{"$f":"IF($E530=\"كابينات\",INDEX(التفاصيل!$P:$P,MATCH('المعلومات '!$G530,التفاصيل!$M:$M,0)),IFERROR(J530*I530,\"\"))","v":""},{"$f":"IFERROR(H530-L530-(K530*L530),\"\")","v":""}]
[null,null,null,null,null,null,null,null,null,"","",{"$f":"IF($E531=\"كابينات\",INDEX(التفاصيل!$P:$P,MATCH('المعلومات '!$G531,التفاصيل!$M:$M,0)),IFERROR(J531*I531,\"\"))","v":""},""]
[null,null,null,null,null,null,null,null,null,"","",{"$f":"IF($E532=\"كابينات\",INDEX(التفاصيل!$P:$P,MATCH('المعلومات '!$G532,التفاصيل!$M:$M,0)),IFERROR(J532*I532,\"\"))","v":""},""]
[null,null,null,null,null,null,null,null,null,"","",{"$f":"IF($E533=\"كابينات\",INDEX(التفاصيل!$P:$P,MATCH('المعلومات '!$G533,التفاصيل!$M:$M,0)),IFERROR(J533*I533,\"\"))","v":""},""]
[null,null,null,null,null,null,null,null,null,"","",{"$f":"IF($E534=\"كابينات\",INDEX(التفاصيل!$P:$P,MATCH('المعلومات '!$G534,التفاصيل!$M:$M,0)),IFERROR(J534*I534,\"\"))","v":""},""]
[null,null,null,null,null,null,null,null,null,"","",{"$f":"IF($E535=\"كابينات\",INDEX(التفاصيل!$P:$P,MATCH('المعلومات '!$G535,التفاصيل!$M:$M,0)),IFERROR(J535*I535,\"\"))","v":""},""]
[null,null,null,null,null,null,null,null,null,"","",{"$f":"IF($E536=\"كابينات\",INDEX(التفاصيل!$P:$P,MATCH('المعلومات '!$G536,التفاصيل!$M:$M,0)),IFERROR(J536*I536,\"\"))","v":""},""]
[null,null,null,null,null,null,null,null,null,"","",{"$f":"IF($E537=\"كابينات\",INDEX(التفاصيل!$P:$P,MATCH('المعلومات '!$G537,التفاصيل!$M:$M,0)),IFERROR(J537*I537,\"\"))","v":""},""]
[null,null,null,null,null,null,null,null,null,"","",{"$f":"IF($E538=\"كابينات\",INDEX(التفاصيل!$P:$P,MATCH('المعلومات '!$G538,التفاصيل!$M:$M,0)),IFERROR(J538*I538,\"\"))","v":""},""]
[null,null,null,null,null,null,null,null,null,"","",{"$f":"IF($E539=\"كابينات\",INDEX(التفاصيل!$P:$P,MATCH('المعلومات '!$G539,التفاصيل!$M:$M,0)),IFERROR(J539*I539,\"\"))","v":""},""]
[null,null,null,null,null,null,null,null,null,"","",{"$f":"IF($E540=\"كابينات\",INDEX(التفاصيل!$P:$P,MATCH('المعلومات '!$G540,التفاصيل!$M:$M,0)),IFERROR(J540*I540,\"\"))","v":""},""]
[null,null,null,null,null,null,null,null,null,"","",{"$f":"IF($E541=\"كابينات\",INDEX(التفاصيل!$P:$P,MATCH('المعلومات '!$G541,التفاصيل!$M:$M,0)),IFERROR(J541*I541,\"\"))","v":""},""]
[null,null,null,null,null,null,null,null,null,"","",{"$f":"IF($E542=\"كابينات\",INDEX(التفاصيل!$P:$P,MATCH('المعلومات '!$G542,التفاصيل!$M:$M,0)),IFERROR(J542*I542,\"\"))","v":""},""]
[null,null,null,null,null,null,null,null,null,"","",{"$f":"IF($E543=\"كابينات\",INDEX(التفاصيل!$P:$P,MATCH('المعلومات '!$G543,التفاصيل!$M:$M,0)),IFERROR(J543*I543,\"\"))","v":""},""]
[null,null,null,null,null,null,null,null,null,"","",{"$f":"IF($E544=\"كابينات\",INDEX(التفاصيل!$P:$P,MATCH('المعلومات '!$G544,التفاصيل!$M:$M,0)),IFERROR(J544*I544,\"\"))","v":""},""]
[null,null,null,null,null,null,null,null,null,"","",{"$f":"IF($E545=\"كابينات\",INDEX(التفاصيل!$P:$P,MATCH('المعلومات '!$G545,التفاصيل!$M:$M,0)),IFERROR(J545*I545,\"\"))","v":""},""]
[null,null,null,null,null,null,null,null,null,"","",{"$f":"IF($E546=\"كابينات\",INDEX(التفاصيل!$P:$P,MATCH('المعلومات '!$G546,التفاصيل!$M:$M,0)),IFERROR(J546*I546,\"\"))","v":""},""]
[null,null,null,null,null,null,null,null,null,"","",{"$f":"IF($E547=\"كابينات\",INDEX(التفاصيل!$P:$P,MATCH('المعلومات '!$G547,التفاصيل!$M:$M,0)),IFERROR(J547*I547,\"\"))","v":""},""]
[null,null,null,null,null,null,null,null,null,"","",{"$f":"IF($E548=\"كابينات\",INDEX(التفاصيل!$P:$P,MATCH('المعلومات '!$G548,التفاصيل!$M:$M,0)),IFERROR(J548*I548,\"\"))","v":""},""]
[null,null,null,null,null,null,null,null,null,"","",{"$f":"IF($E549=\"كابينات\",INDEX(التفاصيل!$P:$P,MATCH('المعلومات '!$G549,التفاصيل!$M:$M,0)),IFERROR(J549*I549,\"\"))","v":""},""]
[null,null,null,null,null,null,null,null,null,"","",{"$f":"IF($E550=\"كابينات\",INDEX(التفاصيل!$P:$P,MATCH('المعلومات '!$G550,التفاصيل!$M:$M,0)),IFERROR(J550*I550,\"\"))","v":""},""]
[null,null,null,null,null,null,null,null,null,"","",{"$f":"IF($E551=\"كابينات\",INDEX(التفاصيل!$P:$P,MATCH('المعلومات '!$G551,التفاصيل!$M:$M,0)),IFERROR(J551*I551,\"\"))","v":""},""]
[null,null,null,null,null,null,null,null,null,"","",{"$f":"IF($E552=\"كابينات\",INDEX(التفاصيل!$P:$P,MATCH('المعلومات '!$G552,التفاصيل!$M:$M,0)),IFERROR(J552*I552,\"\"))","v":""},""]
[null,null,null,null,null,null,null,null,null,"","",{"$f":"IF($E553=\"كابينات\",INDEX(التفاصيل!$P:$P,MATCH('المعلومات '!$G553,التفاصيل!$M:$M,0)),IFERROR(J553*I553,\"\"))","v":""},""]
[null,null,null,null,null,null,null,null,null,"","",{"$f":"IF($E554=\"كابينات\",INDEX(التفاصيل!$P:$P,MATCH('المعلومات '!$G554,التفاصيل!$M:$M,0)),IFERROR(J554*I554,\"\"))","v":""},""]
[null,null,null,null,null,null,null,null,null,"","",{"$f":"IF($E555=\"كابينات\",INDEX(التفاصيل!$P:$P,MATCH('المعلومات '!$G555,التفاصيل!$M:$M,0)),IFERROR(J555*I555,\"\"))","v":""},""]
[null,null,null,null,null,null,null,null,null,"","",{"$f":"IF($E556=\"كابينات\",INDEX(التفاصيل!$P:$P,MATCH('المعلومات '!$G556,التفاصيل!$M:$M,0)),IFERROR(J556*I556,\"\"))","v":""},""]
[null,null,null,null,null,null,null,null,null,"","",{"$f":"IF($E557=\"كابينات\",INDEX(التفاصيل!$P:$P,MATCH('المعلومات '!$G557,التفاصيل!$M:$M,0)),IFERROR(J557*I557,\"\"))","v":""},""]
[null,null,null,null,null,null,null,null,null,"","",{"$f":"IF($E558=\"كابينات\",INDEX(التفاصيل!$P:$P,MATCH('المعلومات '!$G558,التفاصيل!$M:$M,0)),IFERROR(J558*I558,\"\"))","v":""},""]
[null,null,null,null,null,null,null,null,null,"","",{"$f":"IF($E559=\"كابينات\",INDEX(التفاصيل!$P:$P,MATCH('المعلومات '!$G559,التفاصيل!$M:$M,0)),IFERROR(J559*I559,\"\"))","v":""},""]
[null,null,null,null,null,null,null,null,null,"","",{"$f":"IF($E560=\"كابينات\",INDEX(التفاصيل!$P:$P,MATCH('المعلومات '!$G560,التفاصيل!$M:$M,0)),IFERROR(J560*I560,\"\"))","v":""},""]
[null,null,null,null,null,null,null,null,null,"","",{"$f":"IF($E561=\"كابينات\",INDEX(التفاصيل!$P:$P,MATCH('المعلومات '!$G561,التفاصيل!$M:$M,0)),IFERROR(J561*I561,\"\"))","v":""},""]
[null,null,null,null,null,null,null,null,null,"","",{"$f":"IF($E562=\"كابينات\",INDEX(التفاصيل!$P:$P,MATCH('المعلومات '!$G562,التفاصيل!$M:$M,0)),IFERROR(J562*I562,\"\"))","v":""},""]
[null,null,null,null,null,null,null,null,null,"","",{"$f":"IF($E563=\"كابينات\",INDEX(التفاصيل!$P:$P,MATCH('المعلومات '!$G563,التفاصيل!$M:$M,0)),IFERROR(J563*I563,\"\"))","v":""},""]
[null,null,null,null,null,null,null,null,null,"","",{"$f":"IF($E564=\"كابينات\",INDEX(التفاصيل!$P:$P,MATCH('المعلومات '!$G564,التفاصيل!$M:$M,0)),IFERROR(J564*I564,\"\"))","v":""},""]
[null,null,null,null,null,null,null,null,null,"","",{"$f":"IF($E565=\"كابينات\",INDEX(التفاصيل!$P:$P,MATCH('المعلومات '!$G565,التفاصيل!$M:$M,0)),IFERROR(J565*I565,\"\"))","v":""},""]
[null,null,null,null,null,null,null,null,null,"","",{"$f":"IF($E566=\"كابينات\",INDEX(التفاصيل!$P:$P,MATCH('المعلومات '!$G566,التفاصيل!$M:$M,0)),IFERROR(J566*I566,\"\"))","v":""},""]
[null,null,null,null,null,null,null,null,null,"","",{"$f":"IF($E567=\"كابينات\",INDEX(التفاصيل!$P:$P,MATCH('المعلومات '!$G567,التفاصيل!$M:$M,0)),IFERROR(J567*I567,\"\"))","v":""},""]
[null,null,null,null,null,null,null,null,null,"","",{"$f":"IF($E568=\"كابينات\",INDEX(التفاصيل!$P:$P,MATCH('المعلومات '!$G568,التفاصيل!$M:$M,0)),IFERROR(J568*I568,\"\"))","v":""},""]
[null,null,null,null,null,null,null,null,null,"","",{"$f":"IF($E569=\"كابينات\",INDEX(التفاصيل!$P:$P,MATCH('المعلومات '!$G569,التفاصيل!$M:$M,0)),IFERROR(J569*I569,\"\"))","v":""},""]
[null,null,null,null,null,null,null,null,null,"","",{"$f":"IF($E570=\"كابينات\",INDEX(التفاصيل!$P:$P,MATCH('المعلومات '!$G570,التفاصيل!$M:$M,0)),IFERROR(J570*I570,\"\"))","v":""},""]
[null,null,null,null,null,null,null,null,null,"","",{"$f":"IF($E571=\"كابينات\",INDEX(التفاصيل!$P:$P,MATCH('المعلومات '!$G571,التفاصيل!$M:$M,0)),IFERROR(J571*I571,\"\"))","v":""},""]
[null,null,null,null,null,null,null,null,null,"","",{"$f":"IF($E572=\"كابينات\",INDEX(التفاصيل!$P:$P,MATCH('المعلومات '!$G572,التفاصيل!$M:$M,0)),IFERROR(J572*I572,\"\"))","v":""},""]
[null,null,null,null,null,null,null,null,null,"","",{"$f":"IF($E573=\"كابينات\",INDEX(التفاصيل!$P:$P,MATCH('المعلومات '!$G573,التفاصيل!$M:$M,0)),IFERROR(J573*I573,\"\"))","v":""},""]
[null,null,null,null,null,null,null,null,null,"","",{"$f":"IF($E574=\"كابينات\",INDEX(التفاصيل!$P:$P,MATCH('المعلومات '!$G574,التفاصيل!$M:$M,0)),IFERROR(J574*I574,\"\"))","v":""},""]
[null,null,null,null,null,null,null,null,null,"","",{"$f":"IF($E575=\"كابينات\",INDEX(التفاصيل!$P:$P,MATCH('المعلومات '!$G575,التفاصيل!$M:$M,0)),IFERROR(J575*I575,\"\"))","v":""},""]
[null,null,null,null,null,null,null,null,null,"","",{"$f":"IF($E576=\"كابينات\",INDEX(التفاصيل!$P:$P,MATCH('المعلومات '!$G576,التفاصيل!$M:$M,0)),IFERROR(J576*I576,\"\"))","v":""},""]
[null,null,null,null,null,null,null,null,null,"","",{"$f":"IF($E577=\"كابينات\",INDEX(التفاصيل!$P:$P,MATCH('المعلومات '!$G577,التفاصيل!$M:$M,0)),IFERROR(J577*I577,\"\"))","v":""},""]
[null,null,null,null,null,null,null,null,null,{"$f":"IF(E578=\"\",\"\",VLOOKUP(E:E,$N$2:$O$12,2,0))","v":""},{"$f":"IF(E578=\"\",\"\",VLOOKUP(E:E,$P$2:$Q$12,2,0))","v":""},{"$f":"IF($E578=\"كابينات\",INDEX(التفاصيل!$P:$P,MATCH('المعلومات '!$G578,التفاصيل!$M:$M,0)),IFERROR(J578*I578,\"\"))","v":""},""]
[null,null,null,null,null,null,null,null,null,"","",{"$f":"IF($E579=\"كابينات\",INDEX(التفاصيل!$P:$P,MATCH('المعلومات '!$G579,التفاصيل!$M:$M,0)),IFERROR(J579*I579,\"\"))","v":""},""]
[null,null,null,null,null,null,null,null,null,"","",{"$f":"IF($E580=\"كابينات\",INDEX(التفاصيل!$P:$P,MATCH('المعلومات '!$G580,التفاصيل!$M:$M,0)),IFERROR(J580*I580,\"\"))","v":""},""]
[null,null,null,null,null,null,null,null,null,"","",{"$f":"IF($E581=\"كابينات\",INDEX(التفاصيل!$P:$P,MATCH('المعلومات '!$G581,التفاصيل!$M:$M,0)),IFERROR(J581*I581,\"\"))","v":""},""]
[null,null,null,null,null,null,null,null,null,"","",{"$f":"IF($E582=\"كابينات\",INDEX(التفاصيل!$P:$P,MATCH('المعلومات '!$G582,التفاصيل!$M:$M,0)),IFERROR(J582*I582,\"\"))","v":""},""]
[null,null,null,null,null,null,null,null,null,"","",{"$f":"IF($E583=\"كابينات\",INDEX(التفاصيل!$P:$P,MATCH('المعلومات '!$G583,التفاصيل!$M:$M,0)),IFERROR(J583*I583,\"\"))","v":""},""]
[null,null,null,null,null,null,null,null,null,"","",{"$f":"IF($E584=\"كابينات\",INDEX(التفاصيل!$P:$P,MATCH('المعلومات '!$G584,التفاصيل!$M:$M,0)),IFERROR(J584*I584,\"\"))","v":""},""]
[null,null,null,null,null,null,null,null,null,"","",{"$f":"IF($E585=\"كابينات\",INDEX(التفاصيل!$P:$P,MATCH('المعلومات '!$G585,التفاصيل!$M:$M,0)),IFERROR(J585*I585,\"\"))","v":""},""]
[null,null,null,null,null,null,null,null,null,"","",{"$f":"IF($E586=\"كابينات\",INDEX(التفاصيل!$P:$P,MATCH('المعلومات '!$G586,التفاصيل!$M:$M,0)),IFERROR(J586*I586,\"\"))","v":""},""]
[null,null,null,null,null,null,null,null,null,"","",{"$f":"IF($E587=\"كابينات\",INDEX(التفاصيل!$P:$P,MATCH('المعلومات '!$G587,التفاصيل!$M:$M,0)),IFERROR(J587*I587,\"\"))","v":""},""]
[null,null,null,null,null,null,null,null,null,"","",{"$f":"IF($E588=\"كابينات\",INDEX(التفاصيل!$P:$P,MATCH('المعلومات '!$G588,التفاصيل!$M:$M,0)),IFERROR(J588*I588,\"\"))","v":""},""]
[null,null,null,null,null,null,null,null,null,"","",{"$f":"IF($E589=\"كابينات\",INDEX(التفاصيل!$P:$P,MATCH('المعلومات '!$G589,التفاصيل!$M:$M,0)),IFERROR(J589*I589,\"\"))","v":""},""]
[null,null,null,null,null,null,null,null,null,"","",{"$f":"IF($E590=\"كابينات\",INDEX(التفاصيل!$P:$P,MATCH('المعلومات '!$G590,التفاصيل!$M:$M,0)),IFERROR(J590*I590,\"\"))","v":""},""]
[null,null,null,null,null,null,null,null,null,"","",{"$f":"IF($E591=\"كابينات\",INDEX(التفاصيل!$P:$P,MATCH('المعلومات '!$G591,التفاصيل!$M:$M,0)),IFERROR(J591*I591,\"\"))","v":""},""]
[null,null,null,null,null,null,null,null,null,"","",{"$f":"IF($E592=\"كابينات\",INDEX(التفاصيل!$P:$P,MATCH('المعلومات '!$G592,التفاصيل!$M:$M,0)),IFERROR(J592*I592,\"\"))","v":""},""]
[null,null,null,null,null,null,null,null,null,"","",{"$f":"IF($E593=\"كابينات\",INDEX(التفاصيل!$P:$P,MATCH('المعلومات '!$G593,التفاصيل!$M:$M,0)),IFERROR(J593*I593,\"\"))","v":""},""]
[null,null,null,null,null,null,null,null,null,"","",{"$f":"IF($E594=\"كابينات\",INDEX(التفاصيل!$P:$P,MATCH('المعلومات '!$G594,التفاصيل!$M:$M,0)),IFERROR(J594*I594,\"\"))","v":""},{"$f":"IFERROR(H594-L594-(K594*L594),\"\")","v":""}]
[null,null,null,null,null,null,null,null,null,"","",{"$f":"IF($E595=\"كابينات\",INDEX(التفاصيل!$P:$P,MATCH('المعلومات '!$G595,التفاصيل!$M:$M,0)),IFERROR(J595*I595,\"\"))","v":""},""]
[null,null,null,null,null,null,null,null,null,"","",{"$f":"IF($E596=\"كابينات\",INDEX(التفاصيل!$P:$P,MATCH('المعلومات '!$G596,التفاصيل!$M:$M,0)),IFERROR(J596*I596,\"\"))","v":""},""]
[null,null,null,null,null,null,null,null,null,"","",{"$f":"IF($E597=\"كابينات\",INDEX(التفاصيل!$P:$P,MATCH('المعلومات '!$G597,التفاصيل!$M:$M,0)),IFERROR(J597*I597,\"\"))","v":""},""]
[null,null,null,null,null,null,null,null,null,"","",{"$f":"IF($E598=\"كابينات\",INDEX(التفاصيل!$P:$P,MATCH('المعلومات '!$G598,التفاصيل!$M:$M,0)),IFERROR(J598*I598,\"\"))","v":""},""]
[null,null,null,null,null,null,null,null,null,"","",{"$f":"IF($E599=\"كابينات\",INDEX(التفاصيل!$P:$P,MATCH('المعلومات '!$G599,التفاصيل!$M:$M,0)),IFERROR(J599*I599,\"\"))","v":""},""]
[null,null,null,null,null,null,null,null,null,"","",{"$f":"IF($E600=\"كابينات\",INDEX(التفاصيل!$P:$P,MATCH('المعلومات '!$G600,التفاصيل!$M:$M,0)),IFERROR(J600*I600,\"\"))","v":""},""]
[null,null,null,null,null,null,null,null,null,"","",{"$f":"IF($E601=\"كابينات\",INDEX(التفاصيل!$P:$P,MATCH('المعلومات '!$G601,التفاصيل!$M:$M,0)),IFERROR(J601*I601,\"\"))","v":""},""]
[null,null,null,null,null,null,null,null,null,"","",{"$f":"IF($E602=\"كابينات\",INDEX(التفاصيل!$P:$P,MATCH('المعلومات '!$G602,التفاصيل!$M:$M,0)),IFERROR(J602*I602,\"\"))","v":""},""]
[null,null,null,null,null,null,null,null,null,"","",{"$f":"IF($E603=\"كابينات\",INDEX(التفاصيل!$P:$P,MATCH('المعلومات '!$G603,التفاصيل!$M:$M,0)),IFERROR(J603*I603,\"\"))","v":""},""]
[null,null,null,null,null,null,null,null,null,"","",{"$f":"IF($E604=\"كابينات\",INDEX(التفاصيل!$P:$P,MATCH('المعلومات '!$G604,التفاصيل!$M:$M,0)),IFERROR(J604*I604,\"\"))","v":""},""]
[null,null,null,null,null,null,null,null,null,"","",{"$f":"IF($E605=\"كابينات\",INDEX(التفاصيل!$P:$P,MATCH('المعلومات '!$G605,التفاصيل!$M:$M,0)),IFERROR(J605*I605,\"\"))","v":""},""]
[null,null,null,null,null,null,null,null,null,"","",{"$f":"IF($E606=\"كابينات\",INDEX(التفاصيل!$P:$P,MATCH('المعلومات '!$G606,التفاصيل!$M:$M,0)),IFERROR(J606*I606,\"\"))","v":""},""]
[null,null,null,null,null,null,null,null,null,"","",{"$f":"IF($E607=\"كابينات\",INDEX(التفاصيل!$P:$P,MATCH('المعلومات '!$G607,التفاصيل!$M:$M,0)),IFERROR(J607*I607,\"\"))","v":""},""]
[null,null,null,null,null,null,null,null,null,"","",{"$f":"IF($E608=\"كابينات\",INDEX(التفاصيل!$P:$P,MATCH('المعلومات '!$G608,التفاصيل!$M:$M,0)),IFERROR(J608*I608,\"\"))","v":""},""]
[null,null,null,null,null,null,null,null,null,"","",{"$f":"IF($E609=\"كابينات\",INDEX(التفاصيل!$P:$P,MATCH('المعلومات '!$G609,التفاصيل!$M:$M,0)),IFERROR(J609*I609,\"\"))","v":""},""]
[null,null,null,null,null,null,null,null,null,"","",{"$f":"IF($E610=\"كابينات\",INDEX(التفاصيل!$P:$P,MATCH('المعلومات '!$G610,التفاصيل!$M:$M,0)),IFERROR(J610*I610,\"\"))","v":""},""]
[null,null,null,null,null,null,null,null,null,"","",{"$f":"IF($E611=\"كابينات\",INDEX(التفاصيل!$P:$P,MATCH('المعلومات '!$G611,التفاصيل!$M:$M,0)),IFERROR(J611*I611,\"\"))","v":""},""]
[null,null,null,null,null,null,null,null,null,"","",{"$f":"IF($E612=\"كابينات\",INDEX(التفاصيل!$P:$P,MATCH('المعلومات '!$G612,التفاصيل!$M:$M,0)),IFERROR(J612*I612,\"\"))","v":""},""]
[null,null,null,null,null,null,null,null,null,"","",{"$f":"IF($E613=\"كابينات\",INDEX(التفاصيل!$P:$P,MATCH('المعلومات '!$G613,التفاصيل!$M:$M,0)),IFERROR(J613*I613,\"\"))","v":""},""]
[null,null,null,null,null,null,null,null,null,"","",{"$f":"IF($E614=\"كابينات\",INDEX(التفاصيل!$P:$P,MATCH('المعلومات '!$G614,التفاصيل!$M:$M,0)),IFERROR(J614*I614,\"\"))","v":""},""]
[null,null,null,null,null,null,null,null,null,"","",{"$f":"IF($E615=\"كابينات\",INDEX(التفاصيل!$P:$P,MATCH('المعلومات '!$G615,التفاصيل!$M:$M,0)),IFERROR(J615*I615,\"\"))","v":""},""]
[null,null,null,null,null,null,null,null,null,"","",{"$f":"IF($E616=\"كابينات\",INDEX(التفاصيل!$P:$P,MATCH('المعلومات '!$G616,التفاصيل!$M:$M,0)),IFERROR(J616*I616,\"\"))","v":""},""]
[null,null,null,null,null,null,null,null,null,"","",{"$f":"IF($E617=\"كابينات\",INDEX(التفاصيل!$P:$P,MATCH('المعلومات '!$G617,التفاصيل!$M:$M,0)),IFERROR(J617*I617,\"\"))","v":""},""]
[null,null,null,null,null,null,null,null,null,"","",{"$f":"IF($E618=\"كابينات\",INDEX(التفاصيل!$P:$P,MATCH('المعلومات '!$G618,التفاصيل!$M:$M,0)),IFERROR(J618*I618,\"\"))","v":""},""]
[null,null,null,null,null,null,null,null,null,"","",{"$f":"IF($E619=\"كابينات\",INDEX(التفاصيل!$P:$P,MATCH('المعلومات '!$G619,التفاصيل!$M:$M,0)),IFERROR(J619*I619,\"\"))","v":""},""]
[null,null,null,null,null,null,null,null,null,"","",{"$f":"IF($E620=\"كابينات\",INDEX(التفاصيل!$P:$P,MATCH('المعلومات '!$G620,التفاصيل!$M:$M,0)),IFERROR(J620*I620,\"\"))","v":""},""]
[null,null,null,null,null,null,null,null,null,"","",{"$f":"IF($E621=\"كابينات\",INDEX(التفاصيل!$P:$P,MATCH('المعلومات '!$G621,التفاصيل!$M:$M,0)),IFERROR(J621*I621,\"\"))","v":""},""]
[null,null,null,null,null,null,null,null,null,"","",{"$f":"IF($E622=\"كابينات\",INDEX(التفاصيل!$P:$P,MATCH('المعلومات '!$G622,التفاصيل!$M:$M,0)),IFERROR(J622*I622,\"\"))","v":""},""]
[null,null,null,null,null,null,null,null,null,"","",{"$f":"IF($E623=\"كابينات\",INDEX(التفاصيل!$P:$P,MATCH('المعلومات '!$G623,التفاصيل!$M:$M,0)),IFERROR(J623*I623,\"\"))","v":""},""]
[null,null,null,null,null,null,null,null,null,"","",{"$f":"IF($E624=\"كابينات\",INDEX(التفاصيل!$P:$P,MATCH('المعلومات '!$G624,التفاصيل!$M:$M,0)),IFERROR(J624*I624,\"\"))","v":""},""]
[null,null,null,null,null,null,null,null,null,"","",{"$f":"IF($E625=\"كابينات\",INDEX(التفاصيل!$P:$P,MATCH('المعلومات '!$G625,التفاصيل!$M:$M,0)),IFERROR(J625*I625,\"\"))","v":""},""]
[null,null,null,null,null,null,null,null,null,"","",{"$f":"IF($E626=\"كابينات\",INDEX(التفاصيل!$P:$P,MATCH('المعلومات '!$G626,التفاصيل!$M:$M,0)),IFERROR(J626*I626,\"\"))","v":""},""]
[null,null,null,null,null,null,null,null,null,"","",{"$f":"IF($E627=\"كابينات\",INDEX(التفاصيل!$P:$P,MATCH('المعلومات '!$G627,التفاصيل!$M:$M,0)),IFERROR(J627*I627,\"\"))","v":""},""]
[null,null,null,null,null,null,null,null,null,"","",{"$f":"IF($E628=\"كابينات\",INDEX(التفاصيل!$P:$P,MATCH('المعلومات '!$G628,التفاصيل!$M:$M,0)),IFERROR(J628*I628,\"\"))","v":""},""]
[null,null,null,null,null,null,null,null,null,"","",{"$f":"IF($E629=\"كابينات\",INDEX(التفاصيل!$P:$P,MATCH('المعلومات '!$G629,التفاصيل!$M:$M,0)),IFERROR(J629*I629,\"\"))","v":""},""]
[null,null,null,null,null,null,null,null,null,"","",{"$f":"IF($E630=\"كابينات\",INDEX(التفاصيل!$P:$P,MATCH('المعلومات '!$G630,التفاصيل!$M:$M,0)),IFERROR(J630*I630,\"\"))","v":""},""]
[null,null,null,null,null,null,null,null,null,"","",{"$f":"IF($E631=\"كابينات\",INDEX(التفاصيل!$P:$P,MATCH('المعلومات '!$G631,التفاصيل!$M:$M,0)),IFERROR(J631*I631,\"\"))","v":""},""]
[null,null,null,null,null,null,null,null,null,"","",{"$f":"IF($E632=\"كابينات\",INDEX(التفاصيل!$P:$P,MATCH('المعلومات '!$G632,التفاصيل!$M:$M,0)),IFERROR(J632*I632,\"\"))","v":""},""]
[null,null,null,null,null,null,null,null,null,"","",{"$f":"IF($E633=\"كابينات\",INDEX(التفاصيل!$P:$P,MATCH('المعلومات '!$G633,التفاصيل!$M:$M,0)),IFERROR(J633*I633,\"\"))","v":""},""]
[null,null,null,null,null,null,null,null,null,"","",{"$f":"IF($E634=\"كابينات\",INDEX(التفاصيل!$P:$P,MATCH('المعلومات '!$G634,التفاصيل!$M:$M,0)),IFERROR(J634*I634,\"\"))","v":""},""]
[null,null,null,null,null,null,null,null,null,"","",{"$f":"IF($E635=\"كابينات\",INDEX(التفاصيل!$P:$P,MATCH('المعلومات '!$G635,التفاصيل!$M:$M,0)),IFERROR(J635*I635,\"\"))","v":""},""]
[null,null,null,null,null,null,null,null,null,"","",{"$f":"IF($E636=\"كابينات\",INDEX(التفاصيل!$P:$P,MATCH('المعلومات '!$G636,التفاصيل!$M:$M,0)),IFERROR(J636*I636,\"\"))","v":""},""]
[null,null,null,null,null,null,null,null,null,"","",{"$f":"IF($E637=\"كابينات\",INDEX(التفاصيل!$P:$P,MATCH('المعلومات '!$G637,التفاصيل!$M:$M,0)),IFERROR(J637*I637,\"\"))","v":""},""]
[null,null,null,null,null,null,null,null,null,"","",{"$f":"IF($E638=\"كابينات\",INDEX(التفاصيل!$P:$P,MATCH('المعلومات '!$G638,التفاصيل!$M:$M,0)),IFERROR(J638*I638,\"\"))","v":""},""]
[null,null,null,null,null,null,null,null,null,"","",{"$f":"IF($E639=\"كابينات\",INDEX(التفاصيل!$P:$P,MATCH('المعلومات '!$G639,التفاصيل!$M:$M,0)),IFERROR(J639*I639,\"\"))","v":""},""]
[null,null,null,null,null,null,null,null,null,"","",{"$f":"IF($E640=\"كابينات\",INDEX(التفاصيل!$P:$P,MATCH('المعلومات '!$G640,التفاصيل!$M:$M,0)),IFERROR(J640*I640,\"\"))","v":""},""]
[null,null,null,null,null,null,null,null,null,"","",{"$f":"IF($E641=\"كابينات\",INDEX(التفاصيل!$P:$P,MATCH('المعلومات '!$G641,التفاصيل!$M:$M,0)),IFERROR(J641*I641,\"\"))","v":""},""]
[null,null,null,null,null,null,null,null,null,{"$f":"IF(E642=\"\",\"\",VLOOKUP(E:E,$N$2:$O$12,2,0))","v":""},{"$f":"IF(E642=\"\",\"\",VLOOKUP(E:E,$P$2:$Q$12,2,0))","v":""},{"$f":"IF($E642=\"كابينات\",INDEX(التفاصيل!$P:$P,MATCH('المعلومات '!$G642,التفاصيل!$M:$M,0)),IFERROR(J642*I642,\"\"))","v":""},""]
[null,null,null,null,null,null,null,null,null,"","",{"$f":"IF($E643=\"كابينات\",INDEX(التفاصيل!$P:$P,MATCH('المعلومات '!$G643,التفاصيل!$M:$M,0)),IFERROR(J643*I643,\"\"))","v":""},""]
[null,null,null,null,null,null,null,null,null,"","",{"$f":"IF($E644=\"كابينات\",INDEX(التفاصيل!$P:$P,MATCH('المعلومات '!$G644,التفاصيل!$M:$M,0)),IFERROR(J644*I644,\"\"))","v":""},""]
[null,null,null,null,null,null,null,null,null,"","",{"$f":"IF($E645=\"كابينات\",INDEX(التفاصيل!$P:$P,MATCH('المعلومات '!$G645,التفاصيل!$M:$M,0)),IFERROR(J645*I645,\"\"))","v":""},""]
[null,null,null,null,null,null,null,null,null,"","",{"$f":"IF($E646=\"كابينات\",INDEX(التفاصيل!$P:$P,MATCH('المعلومات '!$G646,التفاصيل!$M:$M,0)),IFERROR(J646*I646,\"\"))","v":""},""]
[null,null,null,null,null,null,null,null,null,"","",{"$f":"IF($E647=\"كابينات\",INDEX(التفاصيل!$P:$P,MATCH('المعلومات '!$G647,التفاصيل!$M:$M,0)),IFERROR(J647*I647,\"\"))","v":""},""]
[null,null,null,null,null,null,null,null,null,"","",{"$f":"IF($E648=\"كابينات\",INDEX(التفاصيل!$P:$P,MATCH('المعلومات '!$G648,التفاصيل!$M:$M,0)),IFERROR(J648*I648,\"\"))","v":""},""]
[null,null,null,null,null,null,null,null,null,"","",{"$f":"IF($E649=\"كابينات\",INDEX(التفاصيل!$P:$P,MATCH('المعلومات '!$G649,التفاصيل!$M:$M,0)),IFERROR(J649*I649,\"\"))","v":""},""]
[null,null,null,null,null,null,null,null,null,"","",{"$f":"IF($E650=\"كابينات\",INDEX(التفاصيل!$P:$P,MATCH('المعلومات '!$G650,التفاصيل!$M:$M,0)),IFERROR(J650*I650,\"\"))","v":""},""]
[null,null,null,null,null,null,null,null,null,"","",{"$f":"IF($E651=\"كابينات\",INDEX(التفاصيل!$P:$P,MATCH('المعلومات '!$G651,التفاصيل!$M:$M,0)),IFERROR(J651*I651,\"\"))","v":""},""]
[null,null,null,null,null,null,null,null,null,"","",{"$f":"IF($E652=\"كابينات\",INDEX(التفاصيل!$P:$P,MATCH('المعلومات '!$G652,التفاصيل!$M:$M,0)),IFERROR(J652*I652,\"\"))","v":""},""]
[null,null,null,null,null,null,null,null,null,"","",{"$f":"IF($E653=\"كابينات\",INDEX(التفاصيل!$P:$P,MATCH('المعلومات '!$G653,التفاصيل!$M:$M,0)),IFERROR(J653*I653,\"\"))","v":""},""]
[null,null,null,null,null,null,null,null,null,"","",{"$f":"IF($E654=\"كابينات\",INDEX(التفاصيل!$P:$P,MATCH('المعلومات '!$G654,التفاصيل!$M:$M,0)),IFERROR(J654*I654,\"\"))","v":""},""]
[null,null,null,null,null,null,null,null,null,"","",{"$f":"IF($E655=\"كابينات\",INDEX(التفاصيل!$P:$P,MATCH('المعلومات '!$G655,التفاصيل!$M:$M,0)),IFERROR(J655*I655,\"\"))","v":""},""]
[null,null,null,null,null,null,null,null,null,"","",{"$f":"IF($E656=\"كابينات\",INDEX(التفاصيل!$P:$P,MATCH('المعلومات '!$G656,التفاصيل!$M:$M,0)),IFERROR(J656*I656,\"\"))","v":""},""]
[null,null,null,null,null,null,null,null,null,"","",{"$f":"IF($E657=\"كابينات\",INDEX(التفاصيل!$P:$P,MATCH('المعلومات '!$G657,التفاصيل!$M:$M,0)),IFERROR(J657*I657,\"\"))","v":""},""]
[null,null,null,null,null,null,null,null,null,"","",{"$f":"IF($E658=\"كابينات\",INDEX(التفاصيل!$P:$P,MATCH('المعلومات '!$G658,التفاصيل!$M:$M,0)),IFERROR(J658*I658,\"\"))","v":""},{"$f":"IFERROR(H658-L658-(K658*L658),\"\")","v":""}]
[null,null,null,null,null,null,null,null,null,"","",{"$f":"IF($E659=\"كابينات\",INDEX(التفاصيل!$P:$P,MATCH('المعلومات '!$G659,التفاصيل!$M:$M,0)),IFERROR(J659*I659,\"\"))","v":""},""]
[null,null,null,null,null,null,null,null,null,"","",{"$f":"IF($E660=\"كابينات\",INDEX(التفاصيل!$P:$P,MATCH('المعلومات '!$G660,التفاصيل!$M:$M,0)),IFERROR(J660*I660,\"\"))","v":""},""]
[null,null,null,null,null,null,null,null,null,"","",{"$f":"IF($E661=\"كابينات\",INDEX(التفاصيل!$P:$P,MATCH('المعلومات '!$G661,التفاصيل!$M:$M,0)),IFERROR(J661*I661,\"\"))","v":""},""]
[null,null,null,null,null,null,null,null,null,"","",{"$f":"IF($E662=\"كابينات\",INDEX(التفاصيل!$P:$P,MATCH('المعلومات '!$G662,التفاصيل!$M:$M,0)),IFERROR(J662*I662,\"\"))","v":""},""]
[null,null,null,null,null,null,null,null,null,"","",{"$f":"IF($E663=\"كابينات\",INDEX(التفاصيل!$P:$P,MATCH('المعلومات '!$G663,التفاصيل!$M:$M,0)),IFERROR(J663*I663,\"\"))","v":""},""]
[null,null,null,null,null,null,null,null,null,"","",{"$f":"IF($E664=\"كابينات\",INDEX(التفاصيل!$P:$P,MATCH('المعلومات '!$G664,التفاصيل!$M:$M,0)),IFERROR(J664*I664,\"\"))","v":""},""]
[null,null,null,null,null,null,null,null,null,"","",{"$f":"IF($E665=\"كابينات\",INDEX(التفاصيل!$P:$P,MATCH('المعلومات '!$G665,التفاصيل!$M:$M,0)),IFERROR(J665*I665,\"\"))","v":""},""]
[null,null,null,null,null,null,null,null,null,"","",{"$f":"IF($E666=\"كابينات\",INDEX(التفاصيل!$P:$P,MATCH('المعلومات '!$G666,التفاصيل!$M:$M,0)),IFERROR(J666*I666,\"\"))","v":""},""]
[null,null,null,null,null,null,null,null,null,"","",{"$f":"IF($E667=\"كابينات\",INDEX(التفاصيل!$P:$P,MATCH('المعلومات '!$G667,التفاصيل!$M:$M,0)),IFERROR(J667*I667,\"\"))","v":""},""]
[null,null,null,null,null,null,null,null,null,"","",{"$f":"IF($E668=\"كابينات\",INDEX(التفاصيل!$P:$P,MATCH('المعلومات '!$G668,التفاصيل!$M:$M,0)),IFERROR(J668*I668,\"\"))","v":""},""]
[null,null,null,null,null,null,null,null,null,"","",{"$f":"IF($E669=\"كابينات\",INDEX(التفاصيل!$P:$P,MATCH('المعلومات '!$G669,التفاصيل!$M:$M,0)),IFERROR(J669*I669,\"\"))","v":""},""]
[null,null,null,null,null,null,null,null,null,"","",{"$f":"IF($E670=\"كابينات\",INDEX(التفاصيل!$P:$P,MATCH('المعلومات '!$G670,التفاصيل!$M:$M,0)),IFERROR(J670*I670,\"\"))","v":""},""]
[null,null,null,null,null,null,null,null,null,"","",{"$f":"IF($E671=\"كابينات\",INDEX(التفاصيل!$P:$P,MATCH('المعلومات '!$G671,التفاصيل!$M:$M,0)),IFERROR(J671*I671,\"\"))","v":""},""]
[null,null,null,null,null,null,null,null,null,"","",{"$f":"IF($E672=\"كابينات\",INDEX(التفاصيل!$P:$P,MATCH('المعلومات '!$G672,التفاصيل!$M:$M,0)),IFERROR(J672*I672,\"\"))","v":""},""]
[null,null,null,null,null,null,null,null,null,"","",{"$f":"IF($E673=\"كابينات\",INDEX(التفاصيل!$P:$P,MATCH('المعلومات '!$G673,التفاصيل!$M:$M,0)),IFERROR(J673*I673,\"\"))","v":""},""]
[null,null,null,null,null,null,null,null,null,"","",{"$f":"IF($E674=\"كابينات\",INDEX(التفاصيل!$P:$P,MATCH('المعلومات '!$G674,التفاصيل!$M:$M,0)),IFERROR(J674*I674,\"\"))","v":""},""]
[null,null,null,null,null,null,null,null,null,"","",{"$f":"IF($E675=\"كابينات\",INDEX(التفاصيل!$P:$P,MATCH('المعلومات '!$G675,التفاصيل!$M:$M,0)),IFERROR(J675*I675,\"\"))","v":""},""]
[null,null,null,null,null,null,null,null,null,"","",{"$f":"IF($E676=\"كابينات\",INDEX(التفاصيل!$P:$P,MATCH('المعلومات '!$G676,التفاصيل!$M:$M,0)),IFERROR(J676*I676,\"\"))","v":""},""]
[null,null,null,null,null,null,null,null,null,"","",{"$f":"IF($E677=\"كابينات\",INDEX(التفاصيل!$P:$P,MATCH('المعلومات '!$G677,التفاصيل!$M:$M,0)),IFERROR(J677*I677,\"\"))","v":""},""]
[null,null,null,null,null,null,null,null,null,"","",{"$f":"IF($E678=\"كابينات\",INDEX(التفاصيل!$P:$P,MATCH('المعلومات '!$G678,التفاصيل!$M:$M,0)),IFERROR(J678*I678,\"\"))","v":""},""]
[null,null,null,null,null,null,null,null,null,"","",{"$f":"IF($E679=\"كابينات\",INDEX(التفاصيل!$P:$P,MATCH('المعلومات '!$G679,التفاصيل!$M:$M,0)),IFERROR(J679*I679,\"\"))","v":""},""]
[null,null,null,null,null,null,null,null,null,"","",{"$f":"IF($E680=\"كابينات\",INDEX(التفاصيل!$P:$P,MATCH('المعلومات '!$G680,التفاصيل!$M:$M,0)),IFERROR(J680*I680,\"\"))","v":""},""]
[null,null,null,null,null,null,null,null,null,"","",{"$f":"IF($E681=\"كابينات\",INDEX(التفاصيل!$P:$P,MATCH('المعلومات '!$G681,التفاصيل!$M:$M,0)),IFERROR(J681*I681,\"\"))","v":""},""]
[null,null,null,null,null,null,null,null,null,"","",{"$f":"IF($E682=\"كابينات\",INDEX(التفاصيل!$P:$P,MATCH('المعلومات '!$G682,التفاصيل!$M:$M,0)),IFERROR(J682*I682,\"\"))","v":""},""]
[null,null,null,null,null,null,null,null,null,"","",{"$f":"IF($E683=\"كابينات\",INDEX(التفاصيل!$P:$P,MATCH('المعلومات '!$G683,التفاصيل!$M:$M,0)),IFERROR(J683*I683,\"\"))","v":""},""]
[null,null,null,null,null,null,null,null,null,"","",{"$f":"IF($E684=\"كابينات\",INDEX(التفاصيل!$P:$P,MATCH('المعلومات '!$G684,التفاصيل!$M:$M,0)),IFERROR(J684*I684,\"\"))","v":""},""]
[null,null,null,null,null,null,null,null,null,"","",{"$f":"IF($E685=\"كابينات\",INDEX(التفاصيل!$P:$P,MATCH('المعلومات '!$G685,التفاصيل!$M:$M,0)),IFERROR(J685*I685,\"\"))","v":""},""]
[null,null,null,null,null,null,null,null,null,"","",{"$f":"IF($E686=\"كابينات\",INDEX(التفاصيل!$P:$P,MATCH('المعلومات '!$G686,التفاصيل!$M:$M,0)),IFERROR(J686*I686,\"\"))","v":""},""]
[null,null,null,null,null,null,null,null,null,"","",{"$f":"IF($E687=\"كابينات\",INDEX(التفاصيل!$P:$P,MATCH('المعلومات '!$G687,التفاصيل!$M:$M,0)),IFERROR(J687*I687,\"\"))","v":""},""]
[null,null,null,null,null,null,null,null,null,"","",{"$f":"IF($E688=\"كابينات\",INDEX(التفاصيل!$P:$P,MATCH('المعلومات '!$G688,التفاصيل!$M:$M,0)),IFERROR(J688*I688,\"\"))","v":""},""]
[null,null,null,null,null,null,null,null,null,"","",{"$f":"IF($E689=\"كابينات\",INDEX(التفاصيل!$P:$P,MATCH('المعلومات '!$G689,التفاصيل!$M:$M,0)),IFERROR(J689*I689,\"\"))","v":""},""]
[null,null,null,null,null,null,null,null,null,"","",{"$f":"IF($E690=\"كابينات\",INDEX(التفاصيل!$P:$P,MATCH('المعلومات '!$G690,التفاصيل!$M:$M,0)),IFERROR(J690*I690,\"\"))","v":""},""]
[null,null,null,null,null,null,null,null,null,"","",{"$f":"IF($E691=\"كابينات\",INDEX(التفاصيل!$P:$P,MATCH('المعلومات '!$G691,التفاصيل!$M:$M,0)),IFERROR(J691*I691,\"\"))","v":""},""]
[null,null,null,null,null,null,null,null,null,"","",{"$f":"IF($E692=\"كابينات\",INDEX(التفاصيل!$P:$P,MATCH('المعلومات '!$G692,التفاصيل!$M:$M,0)),IFERROR(J692*I692,\"\"))","v":""},""]
[null,null,null,null,null,null,null,null,null,"","",{"$f":"IF($E693=\"كابينات\",INDEX(التفاصيل!$P:$P,MATCH('المعلومات '!$G693,التفاصيل!$M:$M,0)),IFERROR(J693*I693,\"\"))","v":""},""]
[null,null,null,null,null,null,null,null,null,"","",{"$f":"IF($E694=\"كابينات\",INDEX(التفاصيل!$P:$P,MATCH('المعلومات '!$G694,التفاصيل!$M:$M,0)),IFERROR(J694*I694,\"\"))","v":""},""]
[null,null,null,null,null,null,null,null,null,"","",{"$f":"IF($E695=\"كابينات\",INDEX(التفاصيل!$P:$P,MATCH('المعلومات '!$G695,التفاصيل!$M:$M,0)),IFERROR(J695*I695,\"\"))","v":""},""]
[null,null,null,null,null,null,null,null,null,"","",{"$f":"IF($E696=\"كابينات\",INDEX(التفاصيل!$P:$P,MATCH('المعلومات '!$G696,التفاصيل!$M:$M,0)),IFERROR(J696*I696,\"\"))","v":""},""]
[null,null,null,null,null,null,null,null,null,"","",{"$f":"IF($E697=\"كابينات\",INDEX(التفاصيل!$P:$P,MATCH('المعلومات '!$G697,التفاصيل!$M:$M,0)),IFERROR(J697*I697,\"\"))","v":""},""]
[null,null,null,null,null,null,null,null,null,"","",{"$f":"IF($E698=\"كابينات\",INDEX(التفاصيل!$P:$P,MATCH('المعلومات '!$G698,التفاصيل!$M:$M,0)),IFERROR(J698*I698,\"\"))","v":""},""]
[null,null,null,null,null,null,null,null,null,"","",{"$f":"IF($E699=\"كابينات\",INDEX(التفاصيل!$P:$P,MATCH('المعلومات '!$G699,التفاصيل!$M:$M,0)),IFERROR(J699*I699,\"\"))","v":""},""]
[null,null,null,null,null,null,null,null,null,"","",{"$f":"IF($E700=\"كابينات\",INDEX(التفاصيل!$P:$P,MATCH('المعلومات '!$G700,التفاصيل!$M:$M,0)),IFERROR(J700*I700,\"\"))","v":""},""]
[null,null,null,null,null,null,null,null,null,"","",{"$f":"IF($E701=\"كابينات\",INDEX(التفاصيل!$P:$P,MATCH('المعلومات '!$G701,التفاصيل!$M:$M,0)),IFERROR(J701*I701,\"\"))","v":""},""]
[null,null,null,null,null,null,null,null,null,"","",{"$f":"IF($E702=\"كابينات\",INDEX(التفاصيل!$P:$P,MATCH('المعلومات '!$G702,التفاصيل!$M:$M,0)),IFERROR(J702*I702,\"\"))","v":""},""]
[null,null,null,null,null,null,null,null,null,"","",{"$f":"IF($E703=\"كابينات\",INDEX(التفاصيل!$P:$P,MATCH('المعلومات '!$G703,التفاصيل!$M:$M,0)),IFERROR(J703*I703,\"\"))","v":""},""]
[null,null,null,null,null,null,null,null,null,"","",{"$f":"IF($E704=\"كابينات\",INDEX(التفاصيل!$P:$P,MATCH('المعلومات '!$G704,التفاصيل!$M:$M,0)),IFERROR(J704*I704,\"\"))","v":""},""]
[null,null,null,null,null,null,null,null,null,"","",{"$f":"IF($E705=\"كابينات\",INDEX(التفاصيل!$P:$P,MATCH('المعلومات '!$G705,التفاصيل!$M:$M,0)),IFERROR(J705*I705,\"\"))","v":""},""]
[null,null,null,null,null,null,null,null,null,{"$f":"IF(E706=\"\",\"\",VLOOKUP(E:E,$N$2:$O$12,2,0))","v":""},{"$f":"IF(E706=\"\",\"\",VLOOKUP(E:E,$P$2:$Q$12,2,0))","v":""},{"$f":"IF($E706=\"كابينات\",INDEX(التفاصيل!$P:$P,MATCH('المعلومات '!$G706,التفاصيل!$M:$M,0)),IFERROR(J706*I706,\"\"))","v":""},""]
[null,null,null,null,null,null,null,null,null,"","",{"$f":"IF($E707=\"كابينات\",INDEX(التفاصيل!$P:$P,MATCH('المعلومات '!$G707,التفاصيل!$M:$M,0)),IFERROR(J707*I707,\"\"))","v":""},""]
[null,null,null,null,null,null,null,null,null,"","",{"$f":"IF($E708=\"كابينات\",INDEX(التفاصيل!$P:$P,MATCH('المعلومات '!$G708,التفاصيل!$M:$M,0)),IFERROR(J708*I708,\"\"))","v":""},""]
[null,null,null,null,null,null,null,null,null,"","",{"$f":"IF($E709=\"كابينات\",INDEX(التفاصيل!$P:$P,MATCH('المعلومات '!$G709,التفاصيل!$M:$M,0)),IFERROR(J709*I709,\"\"))","v":""},""]
[null,null,null,null,null,null,null,null,null,"","",{"$f":"IF($E710=\"كابينات\",INDEX(التفاصيل!$P:$P,MATCH('المعلومات '!$G710,التفاصيل!$M:$M,0)),IFERROR(J710*I710,\"\"))","v":""},""]
[null,null,null,null,null,null,null,null,null,"","",{"$f":"IF($E711=\"كابينات\",INDEX(التفاصيل!$P:$P,MATCH('المعلومات '!$G711,التفاصيل!$M:$M,0)),IFERROR(J711*I711,\"\"))","v":""},""]
[null,null,null,null,null,null,null,null,null,"","",{"$f":"IF($E712=\"كابينات\",INDEX(التفاصيل!$P:$P,MATCH('المعلومات '!$G712,التفاصيل!$M:$M,0)),IFERROR(J712*I712,\"\"))","v":""},""]
[null,null,null,null,null,null,null,null,null,"","",{"$f":"IF($E713=\"كابينات\",INDEX(التفاصيل!$P:$P,MATCH('المعلومات '!$G713,التفاصيل!$M:$M,0)),IFERROR(J713*I713,\"\"))","v":""},""]
[null,null,null,null,null,null,null,null,null,"","",{"$f":"IF($E714=\"كابينات\",INDEX(التفاصيل!$P:$P,MATCH('المعلومات '!$G714,التفاصيل!$M:$M,0)),IFERROR(J714*I714,\"\"))","v":""},""]
[null,null,null,null,null,null,null,null,null,"","",{"$f":"IF($E715=\"كابينات\",INDEX(التفاصيل!$P:$P,MATCH('المعلومات '!$G715,التفاصيل!$M:$M,0)),IFERROR(J715*I715,\"\"))","v":""},""]
[null,null,null,null,null,null,null,null,null,"","",{"$f":"IF($E716=\"كابينات\",INDEX(التفاصيل!$P:$P,MATCH('المعلومات '!$G716,التفاصيل!$M:$M,0)),IFERROR(J716*I716,\"\"))","v":""},""]
[null,null,null,null,null,null,null,null,null,"","",{"$f":"IF($E717=\"كابينات\",INDEX(التفاصيل!$P:$P,MATCH('المعلومات '!$G717,التفاصيل!$M:$M,0)),IFERROR(J717*I717,\"\"))","v":""},""]
[null,null,null,null,null,null,null,null,null,"","",{"$f":"IF($E718=\"كابينات\",INDEX(التفاصيل!$P:$P,MATCH('المعلومات '!$G718,التفاصيل!$M:$M,0)),IFERROR(J718*I718,\"\"))","v":""},""]
[null,null,null,null,null,null,null,null,null,"","",{"$f":"IF($E719=\"كابينات\",INDEX(التفاصيل!$P:$P,MATCH('المعلومات '!$G719,التفاصيل!$M:$M,0)),IFERROR(J719*I719,\"\"))","v":""},""]
[null,null,null,null,null,null,null,null,null,"","",{"$f":"IF($E720=\"كابينات\",INDEX(التفاصيل!$P:$P,MATCH('المعلومات '!$G720,التفاصيل!$M:$M,0)),IFERROR(J720*I720,\"\"))","v":""},""]
[null,null,null,null,null,null,null,null,null,"","",{"$f":"IF($E721=\"كابينات\",INDEX(التفاصيل!$P:$P,MATCH('المعلومات '!$G721,التفاصيل!$M:$M,0)),IFERROR(J721*I721,\"\"))","v":""},""]
[null,null,null,null,null,null,null,null,null,"","",{"$f":"IF($E722=\"كابينات\",INDEX(التفاصيل!$P:$P,MATCH('المعلومات '!$G722,التفاصيل!$M:$M,0)),IFERROR(J722*I722,\"\"))","v":""},{"$f":"IFERROR(H722-L722-(K722*L722),\"\")","v":""}]
[null,null,null,null,null,null,null,null,null,"","",{"$f":"IF($E723=\"كابينات\",INDEX(التفاصيل!$P:$P,MATCH('المعلومات '!$G723,التفاصيل!$M:$M,0)),IFERROR(J723*I723,\"\"))","v":""},""]
[null,null,null,null,null,null,null,null,null,"","",{"$f":"IF($E724=\"كابينات\",INDEX(التفاصيل!$P:$P,MATCH('المعلومات '!$G724,التفاصيل!$M:$M,0)),IFERROR(J724*I724,\"\"))","v":""},""]
[null,null,null,null,null,null,null,null,null,"","",{"$f":"IF($E725=\"كابينات\",INDEX(التفاصيل!$P:$P,MATCH('المعلومات '!$G725,التفاصيل!$M:$M,0)),IFERROR(J725*I725,\"\"))","v":""},""]
[null,null,null,null,null,null,null,null,null,"","",{"$f":"IF($E726=\"كابينات\",INDEX(التفاصيل!$P:$P,MATCH('المعلومات '!$G726,التفاصيل!$M:$M,0)),IFERROR(J726*I726,\"\"))","v":""},""]
[null,null,null,null,null,null,null,null,null,"","",{"$f":"IF($E727=\"كابينات\",INDEX(التفاصيل!$P:$P,MATCH('المعلومات '!$G727,التفاصيل!$M:$M,0)),IFERROR(J727*I727,\"\"))","v":""},""]
[null,null,null,null,null,null,null,null,null,"","",{"$f":"IF($E728=\"كابينات\",INDEX(التفاصيل!$P:$P,MATCH('المعلومات '!$G728,التفاصيل!$M:$M,0)),IFERROR(J728*I728,\"\"))","v":""},""]
[null,null,null,null,null,null,null,null,null,"","",{"$f":"IF($E729=\"كابينات\",INDEX(التفاصيل!$P:$P,MATCH('المعلومات '!$G729,التفاصيل!$M:$M,0)),IFERROR(J729*I729,\"\"))","v":""},""]
[null,null,null,null,null,null,null,null,null,"","",{"$f":"IF($E730=\"كابينات\",INDEX(التفاصيل!$P:$P,MATCH('المعلومات '!$G730,التفاصيل!$M:$M,0)),IFERROR(J730*I730,\"\"))","v":""},""]
[null,null,null,null,null,null,null,null,null,"","",{"$f":"IF($E731=\"كابينات\",INDEX(التفاصيل!$P:$P,MATCH('المعلومات '!$G731,التفاصيل!$M:$M,0)),IFERROR(J731*I731,\"\"))","v":""},""]
[null,null,null,null,null,null,null,null,null,"","",{"$f":"IF($E732=\"كابينات\",INDEX(التفاصيل!$P:$P,MATCH('المعلومات '!$G732,التفاصيل!$M:$M,0)),IFERROR(J732*I732,\"\"))","v":""},""]
[null,null,null,null,null,null,null,null,null,"","",{"$f":"IF($E733=\"كابينات\",INDEX(التفاصيل!$P:$P,MATCH('المعلومات '!$G733,التفاصيل!$M:$M,0)),IFERROR(J733*I733,\"\"))","v":""},""]
[null,null,null,null,null,null,null,null,null,"","",{"$f":"IF($E734=\"كابينات\",INDEX(التفاصيل!$P:$P,MATCH('المعلومات '!$G734,التفاصيل!$M:$M,0)),IFERROR(J734*I734,\"\"))","v":""},""]
[null,null,null,null,null,null,null,null,null,"","",{"$f":"IF($E735=\"كابينات\",INDEX(التفاصيل!$P:$P,MATCH('المعلومات '!$G735,التفاصيل!$M:$M,0)),IFERROR(J735*I735,\"\"))","v":""},""]
[null,null,null,null,null,null,null,null,null,"","",{"$f":"IF($E736=\"كابينات\",INDEX(التفاصيل!$P:$P,MATCH('المعلومات '!$G736,التفاصيل!$M:$M,0)),IFERROR(J736*I736,\"\"))","v":""},""]
[null,null,null,null,null,null,null,null,null,"","",{"$f":"IF($E737=\"كابينات\",INDEX(التفاصيل!$P:$P,MATCH('المعلومات '!$G737,التفاصيل!$M:$M,0)),IFERROR(J737*I737,\"\"))","v":""},""]
[null,null,null,null,null,null,null,null,null,"","",{"$f":"IF($E738=\"كابينات\",INDEX(التفاصيل!$P:$P,MATCH('المعلومات '!$G738,التفاصيل!$M:$M,0)),IFERROR(J738*I738,\"\"))","v":""},""]
[null,null,null,null,null,null,null,null,null,"","",{"$f":"IF($E739=\"كابينات\",INDEX(التفاصيل!$P:$P,MATCH('المعلومات '!$G739,التفاصيل!$M:$M,0)),IFERROR(J739*I739,\"\"))","v":""},""]
[null,null,null,null,null,null,null,null,null,"","",{"$f":"IF($E740=\"كابينات\",INDEX(التفاصيل!$P:$P,MATCH('المعلومات '!$G740,التفاصيل!$M:$M,0)),IFERROR(J740*I740,\"\"))","v":""},""]
[null,null,null,null,null,null,null,null,null,"","",{"$f":"IF($E741=\"كابينات\",INDEX(التفاصيل!$P:$P,MATCH('المعلومات '!$G741,التفاصيل!$M:$M,0)),IFERROR(J741*I741,\"\"))","v":""},""]
[null,null,null,null,null,null,null,null,null,"","",{"$f":"IF($E742=\"كابينات\",INDEX(التفاصيل!$P:$P,MATCH('المعلومات '!$G742,التفاصيل!$M:$M,0)),IFERROR(J742*I742,\"\"))","v":""},""]
[null,null,null,null,null,null,null,null,null,"","",{"$f":"IF($E743=\"كابينات\",INDEX(التفاصيل!$P:$P,MATCH('المعلومات '!$G743,التفاصيل!$M:$M,0)),IFERROR(J743*I743,\"\"))","v":""},""]
[null,null,null,null,null,null,null,null,null,"","",{"$f":"IF($E744=\"كابينات\",INDEX(التفاصيل!$P:$P,MATCH('المعلومات '!$G744,التفاصيل!$M:$M,0)),IFERROR(J744*I744,\"\"))","v":""},""]
[null,null,null,null,null,null,null,null,null,"","",{"$f":"IF($E745=\"كابينات\",INDEX(التفاصيل!$P:$P,MATCH('المعلومات '!$G745,التفاصيل!$M:$M,0)),IFERROR(J745*I745,\"\"))","v":""},""]
[null,null,null,null,null,null,null,null,null,"","",{"$f":"IF($E746=\"كابينات\",INDEX(التفاصيل!$P:$P,MATCH('المعلومات '!$G746,التفاصيل!$M:$M,0)),IFERROR(J746*I746,\"\"))","v":""},""]
[null,null,null,null,null,null,null,null,null,"","",{"$f":"IF($E747=\"كابينات\",INDEX(التفاصيل!$P:$P,MATCH('المعلومات '!$G747,التفاصيل!$M:$M,0)),IFERROR(J747*I747,\"\"))","v":""},""]
[null,null,null,null,null,null,null,null,null,"","",{"$f":"IF($E748=\"كابينات\",INDEX(التفاصيل!$P:$P,MATCH('المعلومات '!$G748,التفاصيل!$M:$M,0)),IFERROR(J748*I748,\"\"))","v":""},""]
[null,null,null,null,null,null,null,null,null,"","",{"$f":"IF($E749=\"كابينات\",INDEX(التفاصيل!$P:$P,MATCH('المعلومات '!$G749,التفاصيل!$M:$M,0)),IFERROR(J749*I749,\"\"))","v":""},""]
[null,null,null,null,null,null,null,null,null,"","",{"$f":"IF($E750=\"كابينات\",INDEX(التفاصيل!$P:$P,MATCH('المعلومات '!$G750,التفاصيل!$M:$M,0)),IFERROR(J750*I750,\"\"))","v":""},""]
[null,null,null,null,null,null,null,null,null,"","",{"$f":"IF($E751=\"كابينات\",INDEX(التفاصيل!$P:$P,MATCH('المعلومات '!$G751,التفاصيل!$M:$M,0)),IFERROR(J751*I751,\"\"))","v":""},""]
[null,null,null,null,null,null,null,null,null,"","",{"$f":"IF($E752=\"كابينات\",INDEX(التفاصيل!$P:$P,MATCH('المعلومات '!$G752,التفاصيل!$M:$M,0)),IFERROR(J752*I752,\"\"))","v":""},""]
[null,null,null,null,null,null,null,null,null,"","",{"$f":"IF($E753=\"كابينات\",INDEX(التفاصيل!$P:$P,MATCH('المعلومات '!$G753,التفاصيل!$M:$M,0)),IFERROR(J753*I753,\"\"))","v":""},""]
[null,null,null,null,null,null,null,null,null,"","",{"$f":"IF($E754=\"كابينات\",INDEX(التفاصيل!$P:$P,MATCH('المعلومات '!$G754,التفاصيل!$M:$M,0)),IFERROR(J754*I754,\"\"))","v":""},""]
[null,null,null,null,null,null,null,null,null,"","",{"$f":"IF($E755=\"كابينات\",INDEX(التفاصيل!$P:$P,MATCH('المعلومات '!$G755,التفاصيل!$M:$M,0)),IFERROR(J755*I755,\"\"))","v":""},""]
[null,null,null,null,null,null,null,null,null,"","",{"$f":"IF($E756=\"كابينات\",INDEX(التفاصيل!$P:$P,MATCH('المعلومات '!$G756,التفاصيل!$M:$M,0)),IFERROR(J756*I756,\"\"))","v":""},""]
[null,null,null,null,null,null,null,null,null,"","",{"$f":"IF($E757=\"كابينات\",INDEX(التفاصيل!$P:$P,MATCH('المعلومات '!$G757,التفاصيل!$M:$M,0)),IFERROR(J757*I757,\"\"))","v":""},""]
[null,null,null,null,null,null,null,null,null,"","",{"$f":"IF($E758=\"كابينات\",INDEX(التفاصيل!$P:$P,MATCH('المعلومات '!$G758,التفاصيل!$M:$M,0)),IFERROR(J758*I758,\"\"))","v":""},""]
[null,null,null,null,null,null,null,null,null,"","",{"$f":"IF($E759=\"كابينات\",INDEX(التفاصيل!$P:$P,MATCH('المعلومات '!$G759,التفاصيل!$M:$M,0)),IFERROR(J759*I759,\"\"))","v":""},""]
[null,null,null,null,null,null,null,null,null,"","",{"$f":"IF($E760=\"كابينات\",INDEX(التفاصيل!$P:$P,MATCH('المعلومات '!$G760,التفاصيل!$M:$M,0)),IFERROR(J760*I760,\"\"))","v":""},""]
[null,null,null,null,null,null,null,null,null,"","",{"$f":"IF($E761=\"كابينات\",INDEX(التفاصيل!$P:$P,MATCH('المعلومات '!$G761,التفاصيل!$M:$M,0)),IFERROR(J761*I761,\"\"))","v":""},""]
[null,null,null,null,null,null,null,null,null,"","",{"$f":"IF($E762=\"كابينات\",INDEX(التفاصيل!$P:$P,MATCH('المعلومات '!$G762,التفاصيل!$M:$M,0)),IFERROR(J762*I762,\"\"))","v":""},""]
[null,null,null,null,null,null,null,null,null,"","",{"$f":"IF($E763=\"كابينات\",INDEX(التفاصيل!$P:$P,MATCH('المعلومات '!$G763,التفاصيل!$M:$M,0)),IFERROR(J763*I763,\"\"))","v":""},""]
[null,null,null,null,null,null,null,null,null,"","",{"$f":"IF($E764=\"كابينات\",INDEX(التفاصيل!$P:$P,MATCH('المعلومات '!$G764,التفاصيل!$M:$M,0)),IFERROR(J764*I764,\"\"))","v":""},""]
[null,null,null,null,null,null,null,null,null,"","",{"$f":"IF($E765=\"كابينات\",INDEX(التفاصيل!$P:$P,MATCH('المعلومات '!$G765,التفاصيل!$M:$M,0)),IFERROR(J765*I765,\"\"))","v":""},""]
[null,null,null,null,null,null,null,null,null,"","",{"$f":"IF($E766=\"كابينات\",INDEX(التفاصيل!$P:$P,MATCH('المعلومات '!$G766,التفاصيل!$M:$M,0)),IFERROR(J766*I766,\"\"))","v":""},""]
[null,null,null,null,null,null,null,null,null,"","",{"$f":"IF($E767=\"كابينات\",INDEX(التفاصيل!$P:$P,MATCH('المعلومات '!$G767,التفاصيل!$M:$M,0)),IFERROR(J767*I767,\"\"))","v":""},""]
[null,null,null,null,null,null,null,null,null,"","",{"$f":"IF($E768=\"كابينات\",INDEX(التفاصيل!$P:$P,MATCH('المعلومات '!$G768,التفاصيل!$M:$M,0)),IFERROR(J768*I768,\"\"))","v":""},""]
[null,null,null,null,null,null,null,null,null,"","",{"$f":"IF($E769=\"كابينات\",INDEX(التفاصيل!$P:$P,MATCH('المعلومات '!$G769,التفاصيل!$M:$M,0)),IFERROR(J769*I769,\"\"))","v":""},""]
[null,null,null,null,null,null,null,null,null,{"$f":"IF(E770=\"\",\"\",VLOOKUP(E:E,$N$2:$O$12,2,0))","v":""},{"$f":"IF(E770=\"\",\"\",VLOOKUP(E:E,$P$2:$Q$12,2,0))","v":""},{"$f":"IF($E770=\"كابينات\",INDEX(التفاصيل!$P:$P,MATCH('المعلومات '!$G770,التفاصيل!$M:$M,0)),IFERROR(J770*I770,\"\"))","v":""},""]
[null,null,null,null,null,null,null,null,null,"","",{"$f":"IF($E771=\"كابينات\",INDEX(التفاصيل!$P:$P,MATCH('المعلومات '!$G771,التفاصيل!$M:$M,0)),IFERROR(J771*I771,\"\"))","v":""},""]
[null,null,null,null,null,null,null,null,null,"","",{"$f":"IF($E772=\"كابينات\",INDEX(التفاصيل!$P:$P,MATCH('المعلومات '!$G772,التفاصيل!$M:$M,0)),IFERROR(J772*I772,\"\"))","v":""},""]
[null,null,null,null,null,null,null,null,null,"","",{"$f":"IF($E773=\"كابينات\",INDEX(التفاصيل!$P:$P,MATCH('المعلومات '!$G773,التفاصيل!$M:$M,0)),IFERROR(J773*I773,\"\"))","v":""},""]
[null,null,null,null,null,null,null,null,null,"","",{"$f":"IF($E774=\"كابينات\",INDEX(التفاصيل!$P:$P,MATCH('المعلومات '!$G774,التفاصيل!$M:$M,0)),IFERROR(J774*I774,\"\"))","v":""},""]
[null,null,null,null,null,null,null,null,null,"","",{"$f":"IF($E775=\"كابينات\",INDEX(التفاصيل!$P:$P,MATCH('المعلومات '!$G775,التفاصيل!$M:$M,0)),IFERROR(J775*I775,\"\"))","v":""},""]
[null,null,null,null,null,null,null,null,null,"","",{"$f":"IF($E776=\"كابينات\",INDEX(التفاصيل!$P:$P,MATCH('المعلومات '!$G776,التفاصيل!$M:$M,0)),IFERROR(J776*I776,\"\"))","v":""},""]
[null,null,null,null,null,null,null,null,null,"","",{"$f":"IF($E777=\"كابينات\",INDEX(التفاصيل!$P:$P,MATCH('المعلومات '!$G777,التفاصيل!$M:$M,0)),IFERROR(J777*I777,\"\"))","v":""},""]
[null,null,null,null,null,null,null,null,null,"","",{"$f":"IF($E778=\"كابينات\",INDEX(التفاصيل!$P:$P,MATCH('المعلومات '!$G778,التفاصيل!$M:$M,0)),IFERROR(J778*I778,\"\"))","v":""},""]
[null,null,null,null,null,null,null,null,null,"","",{"$f":"IF($E779=\"كابينات\",INDEX(التفاصيل!$P:$P,MATCH('المعلومات '!$G779,التفاصيل!$M:$M,0)),IFERROR(J779*I779,\"\"))","v":""},""]
[null,null,null,null,null,null,null,null,null,"","",{"$f":"IF($E780=\"كابينات\",INDEX(التفاصيل!$P:$P,MATCH('المعلومات '!$G780,التفاصيل!$M:$M,0)),IFERROR(J780*I780,\"\"))","v":""},""]
[null,null,null,null,null,null,null,null,null,"","",{"$f":"IF($E781=\"كابينات\",INDEX(التفاصيل!$P:$P,MATCH('المعلومات '!$G781,التفاصيل!$M:$M,0)),IFERROR(J781*I781,\"\"))","v":""},""]
[null,null,null,null,null,null,null,null,null,"","",{"$f":"IF($E782=\"كابينات\",INDEX(التفاصيل!$P:$P,MATCH('المعلومات '!$G782,التفاصيل!$M:$M,0)),IFERROR(J782*I782,\"\"))","v":""},""]
[null,null,null,null,null,null,null,null,null,"","",{"$f":"IF($E783=\"كابينات\",INDEX(التفاصيل!$P:$P,MATCH('المعلومات '!$G783,التفاصيل!$M:$M,0)),IFERROR(J783*I783,\"\"))","v":""},""]
[null,null,null,null,null,null,null,null,null,"","",{"$f":"IF($E784=\"كابينات\",INDEX(التفاصيل!$P:$P,MATCH('المعلومات '!$G784,التفاصيل!$M:$M,0)),IFERROR(J784*I784,\"\"))","v":""},""]
[null,null,null,null,null,null,null,null,null,"","",{"$f":"IF($E785=\"كابينات\",INDEX(التفاصيل!$P:$P,MATCH('المعلومات '!$G785,التفاصيل!$M:$M,0)),IFERROR(J785*I785,\"\"))","v":""},""]
[null,null,null,null,null,null,null,null,null,"","",{"$f":"IF($E786=\"كابينات\",INDEX(التفاصيل!$P:$P,MATCH('المعلومات '!$G786,التفاصيل!$M:$M,0)),IFERROR(J786*I786,\"\"))","v":""},{"$f":"IFERROR(H786-L786-(K786*L786),\"\")","v":""}]
[null,null,null,null,null,null,null,null,null,"","",{"$f":"IF($E787=\"كابينات\",INDEX(التفاصيل!$P:$P,MATCH('المعلومات '!$G787,التفاصيل!$M:$M,0)),IFERROR(J787*I787,\"\"))","v":""},""]
[null,null,null,null,null,null,null,null,null,"","",{"$f":"IF($E788=\"كابينات\",INDEX(التفاصيل!$P:$P,MATCH('المعلومات '!$G788,التفاصيل!$M:$M,0)),IFERROR(J788*I788,\"\"))","v":""},""]
[null,null,null,null,null,null,null,null,null,"","",{"$f":"IF($E789=\"كابينات\",INDEX(التفاصيل!$P:$P,MATCH('المعلومات '!$G789,التفاصيل!$M:$M,0)),IFERROR(J789*I789,\"\"))","v":""},""]
[null,null,null,null,null,null,null,null,null,"","",{"$f":"IF($E790=\"كابينات\",INDEX(التفاصيل!$P:$P,MATCH('المعلومات '!$G790,التفاصيل!$M:$M,0)),IFERROR(J790*I790,\"\"))","v":""},""]
[null,null,null,null,null,null,null,null,null,"","",{"$f":"IF($E791=\"كابينات\",INDEX(التفاصيل!$P:$P,MATCH('المعلومات '!$G791,التفاصيل!$M:$M,0)),IFERROR(J791*I791,\"\"))","v":""},""]
[null,null,null,null,null,null,null,null,null,"","",{"$f":"IF($E792=\"كابينات\",INDEX(التفاصيل!$P:$P,MATCH('المعلومات '!$G792,التفاصيل!$M:$M,0)),IFERROR(J792*I792,\"\"))","v":""},""]
[null,null,null,null,null,null,null,null,null,"","",{"$f":"IF($E793=\"كابينات\",INDEX(التفاصيل!$P:$P,MATCH('المعلومات '!$G793,التفاصيل!$M:$M,0)),IFERROR(J793*I793,\"\"))","v":""},""]
[null,null,null,null,null,null,null,null,null,"","",{"$f":"IF($E794=\"كابينات\",INDEX(التفاصيل!$P:$P,MATCH('المعلومات '!$G794,التفاصيل!$M:$M,0)),IFERROR(J794*I794,\"\"))","v":""},""]
[null,null,null,null,null,null,null,null,null,"","",{"$f":"IF($E795=\"كابينات\",INDEX(التفاصيل!$P:$P,MATCH('المعلومات '!$G795,التفاصيل!$M:$M,0)),IFERROR(J795*I795,\"\"))","v":""},""]
[null,null,null,null,null,null,null,null,null,"","",{"$f":"IF($E796=\"كابينات\",INDEX(التفاصيل!$P:$P,MATCH('المعلومات '!$G796,التفاصيل!$M:$M,0)),IFERROR(J796*I796,\"\"))","v":""},""]
[null,null,null,null,null,null,null,null,null,"","",{"$f":"IF($E797=\"كابينات\",INDEX(التفاصيل!$P:$P,MATCH('المعلومات '!$G797,التفاصيل!$M:$M,0)),IFERROR(J797*I797,\"\"))","v":""},""]
[null,null,null,null,null,null,null,null,null,"","",{"$f":"IF($E798=\"كابينات\",INDEX(التفاصيل!$P:$P,MATCH('المعلومات '!$G798,التفاصيل!$M:$M,0)),IFERROR(J798*I798,\"\"))","v":""},""]
[null,null,null,null,null,null,null,null,null,"","",{"$f":"IF($E799=\"كابينات\",INDEX(التفاصيل!$P:$P,MATCH('المعلومات '!$G799,التفاصيل!$M:$M,0)),IFERROR(J799*I799,\"\"))","v":""},""]
[null,null,null,null,null,null,null,null,null,"","",{"$f":"IF($E800=\"كابينات\",INDEX(التفاصيل!$P:$P,MATCH('المعلومات '!$G800,التفاصيل!$M:$M,0)),IFERROR(J800*I800,\"\"))","v":""},""]
[null,null,null,null,null,null,null,null,null,"","",{"$f":"IF($E801=\"كابينات\",INDEX(التفاصيل!$P:$P,MATCH('المعلومات '!$G801,التفاصيل!$M:$M,0)),IFERROR(J801*I801,\"\"))","v":""},""]
[null,null,null,null,null,null,null,null,null,"","",{"$f":"IF($E802=\"كابينات\",INDEX(التفاصيل!$P:$P,MATCH('المعلومات '!$G802,التفاصيل!$M:$M,0)),IFERROR(J802*I802,\"\"))","v":""},""]
[null,null,null,null,null,null,null,null,null,"","",{"$f":"IF($E803=\"كابينات\",INDEX(التفاصيل!$P:$P,MATCH('المعلومات '!$G803,التفاصيل!$M:$M,0)),IFERROR(J803*I803,\"\"))","v":""},""]
[null,null,null,null,null,null,null,null,null,"","",{"$f":"IF($E804=\"كابينات\",INDEX(التفاصيل!$P:$P,MATCH('المعلومات '!$G804,التفاصيل!$M:$M,0)),IFERROR(J804*I804,\"\"))","v":""},""]
[null,null,null,null,null,null,null,null,null,"","",{"$f":"IF($E805=\"كابينات\",INDEX(التفاصيل!$P:$P,MATCH('المعلومات '!$G805,التفاصيل!$M:$M,0)),IFERROR(J805*I805,\"\"))","v":""},""]
[null,null,null,null,null,null,null,null,null,"","",{"$f":"IF($E806=\"كابينات\",INDEX(التفاصيل!$P:$P,MATCH('المعلومات '!$G806,التفاصيل!$M:$M,0)),IFERROR(J806*I806,\"\"))","v":""},""]
[null,null,null,null,null,null,null,null,null,"","",{"$f":"IF($E807=\"كابينات\",INDEX(التفاصيل!$P:$P,MATCH('المعلومات '!$G807,التفاصيل!$M:$M,0)),IFERROR(J807*I807,\"\"))","v":""},""]
[null,null,null,null,null,null,null,null,null,"","",{"$f":"IF($E808=\"كابينات\",INDEX(التفاصيل!$P:$P,MATCH('المعلومات '!$G808,التفاصيل!$M:$M,0)),IFERROR(J808*I808,\"\"))","v":""},""]
[null,null,null,null,null,null,null,null,null,"","",{"$f":"IF($E809=\"كابينات\",INDEX(التفاصيل!$P:$P,MATCH('المعلومات '!$G809,التفاصيل!$M:$M,0)),IFERROR(J809*I809,\"\"))","v":""},""]
[null,null,null,null,null,null,null,null,null,"","",{"$f":"IF($E810=\"كابينات\",INDEX(التفاصيل!$P:$P,MATCH('المعلومات '!$G810,التفاصيل!$M:$M,0)),IFERROR(J810*I810,\"\"))","v":""},""]
[null,null,null,null,null,null,null,null,null,"","",{"$f":"IF($E811=\"كابينات\",INDEX(التفاصيل!$P:$P,MATCH('المعلومات '!$G811,التفاصيل!$M:$M,0)),IFERROR(J811*I811,\"\"))","v":""},""]
[null,null,null,null,null,null,null,null,null,"","",{"$f":"IF($E812=\"كابينات\",INDEX(التفاصيل!$P:$P,MATCH('المعلومات '!$G812,التفاصيل!$M:$M,0)),IFERROR(J812*I812,\"\"))","v":""},""]
[null,null,null,null,null,null,null,null,null,"","",{"$f":"IF($E813=\"كابينات\",INDEX(التفاصيل!$P:$P,MATCH('المعلومات '!$G813,التفاصيل!$M:$M,0)),IFERROR(J813*I813,\"\"))","v":""},""]
[null,null,null,null,null,null,null,null,null,"","",{"$f":"IF($E814=\"كابينات\",INDEX(التفاصيل!$P:$P,MATCH('المعلومات '!$G814,التفاصيل!$M:$M,0)),IFERROR(J814*I814,\"\"))","v":""},""]
[null,null,null,null,null,null,null,null,null,"","",{"$f":"IF($E815=\"كابينات\",INDEX(التفاصيل!$P:$P,MATCH('المعلومات '!$G815,التفاصيل!$M:$M,0)),IFERROR(J815*I815,\"\"))","v":""},""]
[null,null,null,null,null,null,null,null,null,"","",{"$f":"IF($E816=\"كابينات\",INDEX(التفاصيل!$P:$P,MATCH('المعلومات '!$G816,التفاصيل!$M:$M,0)),IFERROR(J816*I816,\"\"))","v":""},""]
[null,null,null,null,null,null,null,null,null,"","",{"$f":"IF($E817=\"كابينات\",INDEX(التفاصيل!$P:$P,MATCH('المعلومات '!$G817,التفاصيل!$M:$M,0)),IFERROR(J817*I817,\"\"))","v":""},""]
[null,null,null,null,null,null,null,null,null,"","",{"$f":"IF($E818=\"كابينات\",INDEX(التفاصيل!$P:$P,MATCH('المعلومات '!$G818,التفاصيل!$M:$M,0)),IFERROR(J818*I818,\"\"))","v":""},""]
[null,null,null,null,null,null,null,null,null,"","",{"$f":"IF($E819=\"كابينات\",INDEX(التفاصيل!$P:$P,MATCH('المعلومات '!$G819,التفاصيل!$M:$M,0)),IFERROR(J819*I819,\"\"))","v":""},""]
[null,null,null,null,null,null,null,null,null,"","",{"$f":"IF($E820=\"كابينات\",INDEX(التفاصيل!$P:$P,MATCH('المعلومات '!$G820,التفاصيل!$M:$M,0)),IFERROR(J820*I820,\"\"))","v":""},""]
[null,null,null,null,null,null,null,null,null,"","",{"$f":"IF($E821=\"كابينات\",INDEX(التفاصيل!$P:$P,MATCH('المعلومات '!$G821,التفاصيل!$M:$M,0)),IFERROR(J821*I821,\"\"))","v":""},""]
[null,null,null,null,null,null,null,null,null,"","",{"$f":"IF($E822=\"كابينات\",INDEX(التفاصيل!$P:$P,MATCH('المعلومات '!$G822,التفاصيل!$M:$M,0)),IFERROR(J822*I822,\"\"))","v":""},""]
[null,null,null,null,null,null,null,null,null,"","",{"$f":"IF($E823=\"كابينات\",INDEX(التفاصيل!$P:$P,MATCH('المعلومات '!$G823,التفاصيل!$M:$M,0)),IFERROR(J823*I823,\"\"))","v":""},""]
[null,null,null,null,null,null,null,null,null,"","",{"$f":"IF($E824=\"كابينات\",INDEX(التفاصيل!$P:$P,MATCH('المعلومات '!$G824,التفاصيل!$M:$M,0)),IFERROR(J824*I824,\"\"))","v":""},""]
[null,null,null,null,null,null,null,null,null,"","",{"$f":"IF($E825=\"كابينات\",INDEX(التفاصيل!$P:$P,MATCH('المعلومات '!$G825,التفاصيل!$M:$M,0)),IFERROR(J825*I825,\"\"))","v":""},""]
[null,null,null,null,null,null,null,null,null,"","",{"$f":"IF($E826=\"كابينات\",INDEX(التفاصيل!$P:$P,MATCH('المعلومات '!$G826,التفاصيل!$M:$M,0)),IFERROR(J826*I826,\"\"))","v":""},""]
[null,null,null,null,null,null,null,null,null,"","",{"$f":"IF($E827=\"كابينات\",INDEX(التفاصيل!$P:$P,MATCH('المعلومات '!$G827,التفاصيل!$M:$M,0)),IFERROR(J827*I827,\"\"))","v":""},""]
[null,null,null,null,null,null,null,null,null,"","",{"$f":"IF($E828=\"كابينات\",INDEX(التفاصيل!$P:$P,MATCH('المعلومات '!$G828,التفاصيل!$M:$M,0)),IFERROR(J828*I828,\"\"))","v":""},""]
[null,null,null,null,null,null,null,null,null,"","",{"$f":"IF($E829=\"كابينات\",INDEX(التفاصيل!$P:$P,MATCH('المعلومات '!$G829,التفاصيل!$M:$M,0)),IFERROR(J829*I829,\"\"))","v":""},""]
[null,null,null,null,null,null,null,null,null,"","",{"$f":"IF($E830=\"كابينات\",INDEX(التفاصيل!$P:$P,MATCH('المعلومات '!$G830,التفاصيل!$M:$M,0)),IFERROR(J830*I830,\"\"))","v":""},""]
[null,null,null,null,null,null,null,null,null,"","",{"$f":"IF($E831=\"كابينات\",INDEX(التفاصيل!$P:$P,MATCH('المعلومات '!$G831,التفاصيل!$M:$M,0)),IFERROR(J831*I831,\"\"))","v":""},""]
[null,null,null,null,null,null,null,null,null,"","",{"$f":"IF($E832=\"كابينات\",INDEX(التفاصيل!$P:$P,MATCH('المعلومات '!$G832,التفاصيل!$M:$M,0)),IFERROR(J832*I832,\"\"))","v":""},""]
[null,null,null,null,null,null,null,null,null,"","",{"$f":"IF($E833=\"كابينات\",INDEX(التفاصيل!$P:$P,MATCH('المعلومات '!$G833,التفاصيل!$M:$M,0)),IFERROR(J833*I833,\"\"))","v":""},""]
[null,null,null,null,null,null,null,null,null,{"$f":"IF(E834=\"\",\"\",VLOOKUP(E:E,$N$2:$O$12,2,0))","v":""},{"$f":"IF(E834=\"\",\"\",VLOOKUP(E:E,$P$2:$Q$12,2,0))","v":""},{"$f":"IF($E834=\"كابينات\",INDEX(التفاصيل!$P:$P,MATCH('المعلومات '!$G834,التفاصيل!$M:$M,0)),IFERROR(J834*I834,\"\"))","v":""},""]
[null,null,null,null,null,null,null,null,null,"","",{"$f":"IF($E835=\"كابينات\",INDEX(التفاصيل!$P:$P,MATCH('المعلومات '!$G835,التفاصيل!$M:$M,0)),IFERROR(J835*I835,\"\"))","v":""},""]
[null,null,null,null,null,null,null,null,null,"","",{"$f":"IF($E836=\"كابينات\",INDEX(التفاصيل!$P:$P,MATCH('المعلومات '!$G836,التفاصيل!$M:$M,0)),IFERROR(J836*I836,\"\"))","v":""},""]
[null,null,null,null,null,null,null,null,null,"","",{"$f":"IF($E837=\"كابينات\",INDEX(التفاصيل!$P:$P,MATCH('المعلومات '!$G837,التفاصيل!$M:$M,0)),IFERROR(J837*I837,\"\"))","v":""},""]
[null,null,null,null,null,null,null,null,null,"","",{"$f":"IF($E838=\"كابينات\",INDEX(التفاصيل!$P:$P,MATCH('المعلومات '!$G838,التفاصيل!$M:$M,0)),IFERROR(J838*I838,\"\"))","v":""},""]
[null,null,null,null,null,null,null,null,null,"","",{"$f":"IF($E839=\"كابينات\",INDEX(التفاصيل!$P:$P,MATCH('المعلومات '!$G839,التفاصيل!$M:$M,0)),IFERROR(J839*I839,\"\"))","v":""},""]
[null,null,null,null,null,null,null,null,null,"","",{"$f":"IF($E840=\"كابينات\",INDEX(التفاصيل!$P:$P,MATCH('المعلومات '!$G840,التفاصيل!$M:$M,0)),IFERROR(J840*I840,\"\"))","v":""},""]
[null,null,null,null,null,null,null,null,null,"","",{"$f":"IF($E841=\"كابينات\",INDEX(التفاصيل!$P:$P,MATCH('المعلومات '!$G841,التفاصيل!$M:$M,0)),IFERROR(J841*I841,\"\"))","v":""},""]
[null,null,null,null,null,null,null,null,null,"","",{"$f":"IF($E842=\"كابينات\",INDEX(التفاصيل!$P:$P,MATCH('المعلومات '!$G842,التفاصيل!$M:$M,0)),IFERROR(J842*I842,\"\"))","v":""},""]
[null,null,null,null,null,null,null,null,null,"","",{"$f":"IF($E843=\"كابينات\",INDEX(التفاصيل!$P:$P,MATCH('المعلومات '!$G843,التفاصيل!$M:$M,0)),IFERROR(J843*I843,\"\"))","v":""},""]
[null,null,null,null,null,null,null,null,null,"","",{"$f":"IF($E844=\"كابينات\",INDEX(التفاصيل!$P:$P,MATCH('المعلومات '!$G844,التفاصيل!$M:$M,0)),IFERROR(J844*I844,\"\"))","v":""},""]
[null,null,null,null,null,null,null,null,null,"","",{"$f":"IF($E845=\"كابينات\",INDEX(التفاصيل!$P:$P,MATCH('المعلومات '!$G845,التفاصيل!$M:$M,0)),IFERROR(J845*I845,\"\"))","v":""},""]
[null,null,null,null,null,null,null,null,null,"","",{"$f":"IF($E846=\"كابينات\",INDEX(التفاصيل!$P:$P,MATCH('المعلومات '!$G846,التفاصيل!$M:$M,0)),IFERROR(J846*I846,\"\"))","v":""},""]
[null,null,null,null,null,null,null,null,null,"","",{"$f":"IF($E847=\"كابينات\",INDEX(التفاصيل!$P:$P,MATCH('المعلومات '!$G847,التفاصيل!$M:$M,0)),IFERROR(J847*I847,\"\"))","v":""},""]
[null,null,null,null,null,null,null,null,null,"","",{"$f":"IF($E848=\"كابينات\",INDEX(التفاصيل!$P:$P,MATCH('المعلومات '!$G848,التفاصيل!$M:$M,0)),IFERROR(J848*I848,\"\"))","v":""},""]
[null,null,null,null,null,null,null,null,null,"","",{"$f":"IF($E849=\"كابينات\",INDEX(التفاصيل!$P:$P,MATCH('المعلومات '!$G849,التفاصيل!$M:$M,0)),IFERROR(J849*I849,\"\"))","v":""},""]
[null,null,null,null,null,null,null,null,null,"","",{"$f":"IF($E850=\"كابينات\",INDEX(التفاصيل!$P:$P,MATCH('المعلومات '!$G850,التفاصيل!$M:$M,0)),IFERROR(J850*I850,\"\"))","v":""},{"$f":"IFERROR(H850-L850-(K850*L850),\"\")","v":""}]
[null,null,null,null,null,null,null,null,null,"","",{"$f":"IF($E851=\"كابينات\",INDEX(التفاصيل!$P:$P,MATCH('المعلومات '!$G851,التفاصيل!$M:$M,0)),IFERROR(J851*I851,\"\"))","v":""},""]
[null,null,null,null,null,null,null,null,null,"","",{"$f":"IF($E852=\"كابينات\",INDEX(التفاصيل!$P:$P,MATCH('المعلومات '!$G852,التفاصيل!$M:$M,0)),IFERROR(J852*I852,\"\"))","v":""},""]
[null,null,null,null,null,null,null,null,null,"","",{"$f":"IF($E853=\"كابينات\",INDEX(التفاصيل!$P:$P,MATCH('المعلومات '!$G853,التفاصيل!$M:$M,0)),IFERROR(J853*I853,\"\"))","v":""},""]
[null,null,null,null,null,null,null,null,null,"","",{"$f":"IF($E854=\"كابينات\",INDEX(التفاصيل!$P:$P,MATCH('المعلومات '!$G854,التفاصيل!$M:$M,0)),IFERROR(J854*I854,\"\"))","v":""},""]
[null,null,null,null,null,null,null,null,null,"","",{"$f":"IF($E855=\"كابينات\",INDEX(التفاصيل!$P:$P,MATCH('المعلومات '!$G855,التفاصيل!$M:$M,0)),IFERROR(J855*I855,\"\"))","v":""},""]
[null,null,null,null,null,null,null,null,null,"","",{"$f":"IF($E856=\"كابينات\",INDEX(التفاصيل!$P:$P,MATCH('المعلومات '!$G856,التفاصيل!$M:$M,0)),IFERROR(J856*I856,\"\"))","v":""},""]
[null,null,null,null,null,null,null,null,null,"","",{"$f":"IF($E857=\"كابينات\",INDEX(التفاصيل!$P:$P,MATCH('المعلومات '!$G857,التفاصيل!$M:$M,0)),IFERROR(J857*I857,\"\"))","v":""},""]
[null,null,null,null,null,null,null,null,null,"","",{"$f":"IF($E858=\"كابينات\",INDEX(التفاصيل!$P:$P,MATCH('المعلومات '!$G858,التفاصيل!$M:$M,0)),IFERROR(J858*I858,\"\"))","v":""},""]
[null,null,null,null,null,null,null,null,null,"","",{"$f":"IF($E859=\"كابينات\",INDEX(التفاصيل!$P:$P,MATCH('المعلومات '!$G859,التفاصيل!$M:$M,0)),IFERROR(J859*I859,\"\"))","v":""},""]
[null,null,null,null,null,null,null,null,null,"","",{"$f":"IF($E860=\"كابينات\",INDEX(التفاصيل!$P:$P,MATCH('المعلومات '!$G860,التفاصيل!$M:$M,0)),IFERROR(J860*I860,\"\"))","v":""},""]
[null,null,null,null,null,null,null,null,null,"","",{"$f":"IF($E861=\"كابينات\",INDEX(التفاصيل!$P:$P,MATCH('المعلومات '!$G861,التفاصيل!$M:$M,0)),IFERROR(J861*I861,\"\"))","v":""},""]
[null,null,null,null,null,null,null,null,null,"","",{"$f":"IF($E862=\"كابينات\",INDEX(التفاصيل!$P:$P,MATCH('المعلومات '!$G862,التفاصيل!$M:$M,0)),IFERROR(J862*I862,\"\"))","v":""},""]
[null,null,null,null,null,null,null,null,null,"","",{"$f":"IF($E863=\"كابينات\",INDEX(التفاصيل!$P:$P,MATCH('المعلومات '!$G863,التفاصيل!$M:$M,0)),IFERROR(J863*I863,\"\"))","v":""},""]
[null,null,null,null,null,null,null,null,null,"","",{"$f":"IF($E864=\"كابينات\",INDEX(التفاصيل!$P:$P,MATCH('المعلومات '!$G864,التفاصيل!$M:$M,0)),IFERROR(J864*I864,\"\"))","v":""},""]
[null,null,null,null,null,null,null,null,null,"","",{"$f":"IF($E865=\"كابينات\",INDEX(التفاصيل!$P:$P,MATCH('المعلومات '!$G865,التفاصيل!$M:$M,0)),IFERROR(J865*I865,\"\"))","v":""},""]
[null,null,null,null,null,null,null,null,null,"","",{"$f":"IF($E866=\"كابينات\",INDEX(التفاصيل!$P:$P,MATCH('المعلومات '!$G866,التفاصيل!$M:$M,0)),IFERROR(J866*I866,\"\"))","v":""},""]
[null,null,null,null,null,null,null,null,null,"","",{"$f":"IF($E867=\"كابينات\",INDEX(التفاصيل!$P:$P,MATCH('المعلومات '!$G867,التفاصيل!$M:$M,0)),IFERROR(J867*I867,\"\"))","v":""},""]
[null,null,null,null,null,null,null,null,null,"","",{"$f":"IF($E868=\"كابينات\",INDEX(التفاصيل!$P:$P,MATCH('المعلومات '!$G868,التفاصيل!$M:$M,0)),IFERROR(J868*I868,\"\"))","v":""},""]
[null,null,null,null,null,null,null,null,null,"","",{"$f":"IF($E869=\"كابينات\",INDEX(التفاصيل!$P:$P,MATCH('المعلومات '!$G869,التفاصيل!$M:$M,0)),IFERROR(J869*I869,\"\"))","v":""},""]
[null,null,null,null,null,null,null,null,null,"","",{"$f":"IF($E870=\"كابينات\",INDEX(التفاصيل!$P:$P,MATCH('المعلومات '!$G870,التفاصيل!$M:$M,0)),IFERROR(J870*I870,\"\"))","v":""},""]
[null,null,null,null,null,null,null,null,null,"","",{"$f":"IF($E871=\"كابينات\",INDEX(التفاصيل!$P:$P,MATCH('المعلومات '!$G871,التفاصيل!$M:$M,0)),IFERROR(J871*I871,\"\"))","v":""},""]
[null,null,null,null,null,null,null,null,null,"","",{"$f":"IF($E872=\"كابينات\",INDEX(التفاصيل!$P:$P,MATCH('المعلومات '!$G872,التفاصيل!$M:$M,0)),IFERROR(J872*I872,\"\"))","v":""},""]
[null,null,null,null,null,null,null,null,null,"","",{"$f":"IF($E873=\"كابينات\",INDEX(التفاصيل!$P:$P,MATCH('المعلومات '!$G873,التفاصيل!$M:$M,0)),IFERROR(J873*I873,\"\"))","v":""},""]
[null,null,null,null,null,null,null,null,null,"","",{"$f":"IF($E874=\"كابينات\",INDEX(التفاصيل!$P:$P,MATCH('المعلومات '!$G874,التفاصيل!$M:$M,0)),IFERROR(J874*I874,\"\"))","v":""},""]
[null,null,null,null,null,null,null,null,null,"","",{"$f":"IF($E875=\"كابينات\",INDEX(التفاصيل!$P:$P,MATCH('المعلومات '!$G875,التفاصيل!$M:$M,0)),IFERROR(J875*I875,\"\"))","v":""},""]
[null,null,null,null,null,null,null,null,null,"","",{"$f":"IF($E876=\"كابينات\",INDEX(التفاصيل!$P:$P,MATCH('المعلومات '!$G876,التفاصيل!$M:$M,0)),IFERROR(J876*I876,\"\"))","v":""},""]
[null,null,null,null,null,null,null,null,null,"","",{"$f":"IF($E877=\"كابينات\",INDEX(التفاصيل!$P:$P,MATCH('المعلومات '!$G877,التفاصيل!$M:$M,0)),IFERROR(J877*I877,\"\"))","v":""},""]
[null,null,null,null,null,null,null,null,null,"","",{"$f":"IF($E878=\"كابينات\",INDEX(التفاصيل!$P:$P,MATCH('المعلومات '!$G878,التفاصيل!$M:$M,0)),IFERROR(J878*I878,\"\"))","v":""},""]
[null,null,null,null,null,null,null,null,null,"","",{"$f":"IF($E879=\"كابينات\",INDEX(التفاصيل!$P:$P,MATCH('المعلومات '!$G879,التفاصيل!$M:$M,0)),IFERROR(J879*I879,\"\"))","v":""},""]
[null,null,null,null,null,null,null,null,null,"","",{"$f":"IF($E880=\"كابينات\",INDEX(التفاصيل!$P:$P,MATCH('المعلومات '!$G880,التفاصيل!$M:$M,0)),IFERROR(J880*I880,\"\"))","v":""},""]
[null,null,null,null,null,null,null,null,null,"","",{"$f":"IF($E881=\"كابينات\",INDEX(التفاصيل!$P:$P,MATCH('المعلومات '!$G881,التفاصيل!$M:$M,0)),IFERROR(J881*I881,\"\"))","v":""},""]
[null,null,null,null,null,null,null,null,null,"","",{"$f":"IF($E882=\"كابينات\",INDEX(التفاصيل!$P:$P,MATCH('المعلومات '!$G882,التفاصيل!$M:$M,0)),IFERROR(J882*I882,\"\"))","v":""},""]
[null,null,null,null,null,null,null,null,null,"","",{"$f":"IF($E883=\"كابينات\",INDEX(التفاصيل!$P:$P,MATCH('المعلومات '!$G883,التفاصيل!$M:$M,0)),IFERROR(J883*I883,\"\"))","v":""},""]
[null,null,null,null,null,null,null,null,null,"","",{"$f":"IF($E884=\"كابينات\",INDEX(التفاصيل!$P:$P,MATCH('المعلومات '!$G884,التفاصيل!$M:$M,0)),IFERROR(J884*I884,\"\"))","v":""},""]
[null,null,null,null,null,null,null,null,null,"","",{"$f":"IF($E885=\"كابينات\",INDEX(التفاصيل!$P:$P,MATCH('المعلومات '!$G885,التفاصيل!$M:$M,0)),IFERROR(J885*I885,\"\"))","v":""},""]
[null,null,null,null,null,null,null,null,null,"","",{"$f":"IF($E886=\"كابينات\",INDEX(التفاصيل!$P:$P,MATCH('المعلومات '!$G886,التفاصيل!$M:$M,0)),IFERROR(J886*I886,\"\"))","v":""},""]
[null,null,null,null,null,null,null,null,null,"","",{"$f":"IF($E887=\"كابينات\",INDEX(التفاصيل!$P:$P,MATCH('المعلومات '!$G887,التفاصيل!$M:$M,0)),IFERROR(J887*I887,\"\"))","v":""},""]
[null,null,null,null,null,null,null,null,null,"","",{"$f":"IF($E888=\"كابينات\",INDEX(التفاصيل!$P:$P,MATCH('المعلومات '!$G888,التفاصيل!$M:$M,0)),IFERROR(J888*I888,\"\"))","v":""},""]
[null,null,null,null,null,null,null,null,null,"","",{"$f":"IF($E889=\"كابينات\",INDEX(التفاصيل!$P:$P,MATCH('المعلومات '!$G889,التفاصيل!$M:$M,0)),IFERROR(J889*I889,\"\"))","v":""},""]
[null,null,null,null,null,null,null,null,null,"","",{"$f":"IF($E890=\"كابينات\",INDEX(التفاصيل!$P:$P,MATCH('المعلومات '!$G890,التفاصيل!$M:$M,0)),IFERROR(J890*I890,\"\"))","v":""},""]
[null,null,null,null,null,null,null,null,null,"","",{"$f":"IF($E891=\"كابينات\",INDEX(التفاصيل!$P:$P,MATCH('المعلومات '!$G891,التفاصيل!$M:$M,0)),IFERROR(J891*I891,\"\"))","v":""},""]
[null,null,null,null,null,null,null,null,null,"","",{"$f":"IF($E892=\"كابينات\",INDEX(التفاصيل!$P:$P,MATCH('المعلومات '!$G892,التفاصيل!$M:$M,0)),IFERROR(J892*I892,\"\"))","v":""},""]
[null,null,null,null,null,null,null,null,null,"","",{"$f":"IF($E893=\"كابينات\",INDEX(التفاصيل!$P:$P,MATCH('المعلومات '!$G893,التفاصيل!$M:$M,0)),IFERROR(J893*I893,\"\"))","v":""},""]
[null,null,null,null,null,null,null,null,null,"","",{"$f":"IF($E894=\"كابينات\",INDEX(التفاصيل!$P:$P,MATCH('المعلومات '!$G894,التفاصيل!$M:$M,0)),IFERROR(J894*I894,\"\"))","v":""},""]
[null,null,null,null,null,null,null,null,null,"","",{"$f":"IF($E895=\"كابينات\",INDEX(التفاصيل!$P:$P,MATCH('المعلومات '!$G895,التفاصيل!$M:$M,0)),IFERROR(J895*I895,\"\"))","v":""},""]
[null,null,null,null,null,null,null,null,null,"","",{"$f":"IF($E896=\"كابينات\",INDEX(التفاصيل!$P:$P,MATCH('المعلومات '!$G896,التفاصيل!$M:$M,0)),IFERROR(J896*I896,\"\"))","v":""},""]
[null,null,null,null,null,null,null,null,null,"","",{"$f":"IF($E897=\"كابينات\",INDEX(التفاصيل!$P:$P,MATCH('المعلومات '!$G897,التفاصيل!$M:$M,0)),IFERROR(J897*I897,\"\"))","v":""},""]
[null,null,null,null,null,null,null,null,null,{"$f":"IF(E898=\"\",\"\",VLOOKUP(E:E,$N$2:$O$12,2,0))","v":""},{"$f":"IF(E898=\"\",\"\",VLOOKUP(E:E,$P$2:$Q$12,2,0))","v":""},{"$f":"IF($E898=\"كابينات\",INDEX(التفاصيل!$P:$P,MATCH('المعلومات '!$G898,التفاصيل!$M:$M,0)),IFERROR(J898*I898,\"\"))","v":""},""]
[null,null,null,null,null,null,null,null,null,"","",{"$f":"IF($E899=\"كابينات\",INDEX(التفاصيل!$P:$P,MATCH('المعلومات '!$G899,التفاصيل!$M:$M,0)),IFERROR(J899*I899,\"\"))","v":""},""]
[null,null,null,null,null,null,null,null,null,"","",{"$f":"IF($E900=\"كابينات\",INDEX(التفاصيل!$P:$P,MATCH('المعلومات '!$G900,التفاصيل!$M:$M,0)),IFERROR(J900*I900,\"\"))","v":""},""]
[null,null,null,null,null,null,null,null,null,"","",{"$f":"IF($E901=\"كابينات\",INDEX(التفاصيل!$P:$P,MATCH('المعلومات '!$G901,التفاصيل!$M:$M,0)),IFERROR(J901*I901,\"\"))","v":""},""]
[null,null,null,null,null,null,null,null,null,"","",{"$f":"IF($E902=\"كابينات\",INDEX(التفاصيل!$P:$P,MATCH('المعلومات '!$G902,التفاصيل!$M:$M,0)),IFERROR(J902*I902,\"\"))","v":""},""]
[null,null,null,null,null,null,null,null,null,"","",{"$f":"IF($E903=\"كابينات\",INDEX(التفاصيل!$P:$P,MATCH('المعلومات '!$G903,التفاصيل!$M:$M,0)),IFERROR(J903*I903,\"\"))","v":""},""]
[null,null,null,null,null,null,null,null,null,"","",{"$f":"IF($E904=\"كابينات\",INDEX(التفاصيل!$P:$P,MATCH('المعلومات '!$G904,التفاصيل!$M:$M,0)),IFERROR(J904*I904,\"\"))","v":""},""]
[null,null,null,null,null,null,null,null,null,"","",{"$f":"IF($E905=\"كابينات\",INDEX(التفاصيل!$P:$P,MATCH('المعلومات '!$G905,التفاصيل!$M:$M,0)),IFERROR(J905*I905,\"\"))","v":""},""]
[null,null,null,null,null,null,null,null,null,"","",{"$f":"IF($E906=\"كابينات\",INDEX(التفاصيل!$P:$P,MATCH('المعلومات '!$G906,التفاصيل!$M:$M,0)),IFERROR(J906*I906,\"\"))","v":""},""]
[null,null,null,null,null,null,null,null,null,"","",{"$f":"IF($E907=\"كابينات\",INDEX(التفاصيل!$P:$P,MATCH('المعلومات '!$G907,التفاصيل!$M:$M,0)),IFERROR(J907*I907,\"\"))","v":""},""]
[null,null,null,null,null,null,null,null,null,"","",{"$f":"IF($E908=\"كابينات\",INDEX(التفاصيل!$P:$P,MATCH('المعلومات '!$G908,التفاصيل!$M:$M,0)),IFERROR(J908*I908,\"\"))","v":""},""]
[null,null,null,null,null,null,null,null,null,"","",{"$f":"IF($E909=\"كابينات\",INDEX(التفاصيل!$P:$P,MATCH('المعلومات '!$G909,التفاصيل!$M:$M,0)),IFERROR(J909*I909,\"\"))","v":""},""]
[null,null,null,null,null,null,null,null,null,"","",{"$f":"IF($E910=\"كابينات\",INDEX(التفاصيل!$P:$P,MATCH('المعلومات '!$G910,التفاصيل!$M:$M,0)),IFERROR(J910*I910,\"\"))","v":""},""]
[null,null,null,null,null,null,null,null,null,"","",{"$f":"IF($E911=\"كابينات\",INDEX(التفاصيل!$P:$P,MATCH('المعلومات '!$G911,التفاصيل!$M:$M,0)),IFERROR(J911*I911,\"\"))","v":""},""]
[null,null,null,null,null,null,null,null,null,"","",{"$f":"IF($E912=\"كابينات\",INDEX(التفاصيل!$P:$P,MATCH('المعلومات '!$G912,التفاصيل!$M:$M,0)),IFERROR(J912*I912,\"\"))","v":""},""]
[null,null,null,null,null,null,null,null,null,"","",{"$f":"IF($E913=\"كابينات\",INDEX(التفاصيل!$P:$P,MATCH('المعلومات '!$G913,التفاصيل!$M:$M,0)),IFERROR(J913*I913,\"\"))","v":""},""]
[null,null,null,null,null,null,null,null,null,"","",{"$f":"IF($E914=\"كابينات\",INDEX(التفاصيل!$P:$P,MATCH('المعلومات '!$G914,التفاصيل!$M:$M,0)),IFERROR(J914*I914,\"\"))","v":""},{"$f":"IFERROR(H914-L914-(K914*L914),\"\")","v":""}]
[null,null,null,null,null,null,null,null,null,"","",{"$f":"IF($E915=\"كابينات\",INDEX(التفاصيل!$P:$P,MATCH('المعلومات '!$G915,التفاصيل!$M:$M,0)),IFERROR(J915*I915,\"\"))","v":""},""]
[null,null,null,null,null,null,null,null,null,"","",{"$f":"IF($E916=\"كابينات\",INDEX(التفاصيل!$P:$P,MATCH('المعلومات '!$G916,التفاصيل!$M:$M,0)),IFERROR(J916*I916,\"\"))","v":""},""]
[null,null,null,null,null,null,null,null,null,"","",{"$f":"IF($E917=\"كابينات\",INDEX(التفاصيل!$P:$P,MATCH('المعلومات '!$G917,التفاصيل!$M:$M,0)),IFERROR(J917*I917,\"\"))","v":""},""]
[null,null,null,null,null,null,null,null,null,"","",{"$f":"IF($E918=\"كابينات\",INDEX(التفاصيل!$P:$P,MATCH('المعلومات '!$G918,التفاصيل!$M:$M,0)),IFERROR(J918*I918,\"\"))","v":""},""]
[null,null,null,null,null,null,null,null,null,"","",{"$f":"IF($E919=\"كابينات\",INDEX(التفاصيل!$P:$P,MATCH('المعلومات '!$G919,التفاصيل!$M:$M,0)),IFERROR(J919*I919,\"\"))","v":""},""]
[null,null,null,null,null,null,null,null,null,"","",{"$f":"IF($E920=\"كابينات\",INDEX(التفاصيل!$P:$P,MATCH('المعلومات '!$G920,التفاصيل!$M:$M,0)),IFERROR(J920*I920,\"\"))","v":""},""]
[null,null,null,null,null,null,null,null,null,"","",{"$f":"IF($E921=\"كابينات\",INDEX(التفاصيل!$P:$P,MATCH('المعلومات '!$G921,التفاصيل!$M:$M,0)),IFERROR(J921*I921,\"\"))","v":""},""]
[null,null,null,null,null,null,null,null,null,"","",{"$f":"IF($E922=\"كابينات\",INDEX(التفاصيل!$P:$P,MATCH('المعلومات '!$G922,التفاصيل!$M:$M,0)),IFERROR(J922*I922,\"\"))","v":""},""]
[null,null,null,null,null,null,null,null,null,"","",{"$f":"IF($E923=\"كابينات\",INDEX(التفاصيل!$P:$P,MATCH('المعلومات '!$G923,التفاصيل!$M:$M,0)),IFERROR(J923*I923,\"\"))","v":""},""]
[null,null,null,null,null,null,null,null,null,"","",{"$f":"IF($E924=\"كابينات\",INDEX(التفاصيل!$P:$P,MATCH('المعلومات '!$G924,التفاصيل!$M:$M,0)),IFERROR(J924*I924,\"\"))","v":""},""]
[null,null,null,null,null,null,null,null,null,"","",{"$f":"IF($E925=\"كابينات\",INDEX(التفاصيل!$P:$P,MATCH('المعلومات '!$G925,التفاصيل!$M:$M,0)),IFERROR(J925*I925,\"\"))","v":""},""]
[null,null,null,null,null,null,null,null,null,"","",{"$f":"IF($E926=\"كابينات\",INDEX(التفاصيل!$P:$P,MATCH('المعلومات '!$G926,التفاصيل!$M:$M,0)),IFERROR(J926*I926,\"\"))","v":""},""]
[null,null,null,null,null,null,null,null,null,"","",{"$f":"IF($E927=\"كابينات\",INDEX(التفاصيل!$P:$P,MATCH('المعلومات '!$G927,التفاصيل!$M:$M,0)),IFERROR(J927*I927,\"\"))","v":""},""]
[null,null,null,null,null,null,null,null,null,"","",{"$f":"IF($E928=\"كابينات\",INDEX(التفاصيل!$P:$P,MATCH('المعلومات '!$G928,التفاصيل!$M:$M,0)),IFERROR(J928*I928,\"\"))","v":""},""]
[null,null,null,null,null,null,null,null,null,"","",{"$f":"IF($E929=\"كابينات\",INDEX(التفاصيل!$P:$P,MATCH('المعلومات '!$G929,التفاصيل!$M:$M,0)),IFERROR(J929*I929,\"\"))","v":""},""]
[null,null,null,null,null,null,null,null,null,"","",{"$f":"IF($E930=\"كابينات\",INDEX(التفاصيل!$P:$P,MATCH('المعلومات '!$G930,التفاصيل!$M:$M,0)),IFERROR(J930*I930,\"\"))","v":""},""]
[null,null,null,null,null,null,null,null,null,"","",{"$f":"IF($E931=\"كابينات\",INDEX(التفاصيل!$P:$P,MATCH('المعلومات '!$G931,التفاصيل!$M:$M,0)),IFERROR(J931*I931,\"\"))","v":""},""]
[null,null,null,null,null,null,null,null,null,"","",{"$f":"IF($E932=\"كابينات\",INDEX(التفاصيل!$P:$P,MATCH('المعلومات '!$G932,التفاصيل!$M:$M,0)),IFERROR(J932*I932,\"\"))","v":""},""]
[null,null,null,null,null,null,null,null,null,"","",{"$f":"IF($E933=\"كابينات\",INDEX(التفاصيل!$P:$P,MATCH('المعلومات '!$G933,التفاصيل!$M:$M,0)),IFERROR(J933*I933,\"\"))","v":""},""]
[null,null,null,null,null,null,null,null,null,"","",{"$f":"IF($E934=\"كابينات\",INDEX(التفاصيل!$P:$P,MATCH('المعلومات '!$G934,التفاصيل!$M:$M,0)),IFERROR(J934*I934,\"\"))","v":""},""]
[null,null,null,null,null,null,null,null,null,"","",{"$f":"IF($E935=\"كابينات\",INDEX(التفاصيل!$P:$P,MATCH('المعلومات '!$G935,التفاصيل!$M:$M,0)),IFERROR(J935*I935,\"\"))","v":""},""]
[null,null,null,null,null,null,null,null,null,"","",{"$f":"IF($E936=\"كابينات\",INDEX(التفاصيل!$P:$P,MATCH('المعلومات '!$G936,التفاصيل!$M:$M,0)),IFERROR(J936*I936,\"\"))","v":""},""]
[null,null,null,null,null,null,null,null,null,"","",{"$f":"IF($E937=\"كابينات\",INDEX(التفاصيل!$P:$P,MATCH('المعلومات '!$G937,التفاصيل!$M:$M,0)),IFERROR(J937*I937,\"\"))","v":""},""]
[null,null,null,null,null,null,null,null,null,"","",{"$f":"IF($E938=\"كابينات\",INDEX(التفاصيل!$P:$P,MATCH('المعلومات '!$G938,التفاصيل!$M:$M,0)),IFERROR(J938*I938,\"\"))","v":""},""]
[null,null,null,null,null,null,null,null,null,"","",{"$f":"IF($E939=\"كابينات\",INDEX(التفاصيل!$P:$P,MATCH('المعلومات '!$G939,التفاصيل!$M:$M,0)),IFERROR(J939*I939,\"\"))","v":""},""]
[null,null,null,null,null,null,null,null,null,"","",{"$f":"IF($E940=\"كابينات\",INDEX(التفاصيل!$P:$P,MATCH('المعلومات '!$G940,التفاصيل!$M:$M,0)),IFERROR(J940*I940,\"\"))","v":""},""]
[null,null,null,null,null,null,null,null,null,"","",{"$f":"IF($E941=\"كابينات\",INDEX(التفاصيل!$P:$P,MATCH('المعلومات '!$G941,التفاصيل!$M:$M,0)),IFERROR(J941*I941,\"\"))","v":""},""]
[null,null,null,null,null,null,null,null,null,"","",{"$f":"IF($E942=\"كابينات\",INDEX(التفاصيل!$P:$P,MATCH('المعلومات '!$G942,التفاصيل!$M:$M,0)),IFERROR(J942*I942,\"\"))","v":""},""]
[null,null,null,null,null,null,null,null,null,"","",{"$f":"IF($E943=\"كابينات\",INDEX(التفاصيل!$P:$P,MATCH('المعلومات '!$G943,التفاصيل!$M:$M,0)),IFERROR(J943*I943,\"\"))","v":""},""]
[null,null,null,null,null,null,null,null,null,"","",{"$f":"IF($E944=\"كابينات\",INDEX(التفاصيل!$P:$P,MATCH('المعلومات '!$G944,التفاصيل!$M:$M,0)),IFERROR(J944*I944,\"\"))","v":""},""]
[null,null,null,null,null,null,null,null,null,"","",{"$f":"IF($E945=\"كابينات\",INDEX(التفاصيل!$P:$P,MATCH('المعلومات '!$G945,التفاصيل!$M:$M,0)),IFERROR(J945*I945,\"\"))","v":""},""]
[null,null,null,null,null,null,null,null,null,"","",{"$f":"IF($E946=\"كابينات\",INDEX(التفاصيل!$P:$P,MATCH('المعلومات '!$G946,التفاصيل!$M:$M,0)),IFERROR(J946*I946,\"\"))","v":""},""]
[null,null,null,null,null,null,null,null,null,"","",{"$f":"IF($E947=\"كابينات\",INDEX(التفاصيل!$P:$P,MATCH('المعلومات '!$G947,التفاصيل!$M:$M,0)),IFERROR(J947*I947,\"\"))","v":""},""]
[null,null,null,null,null,null,null,null,null,"","",{"$f":"IF($E948=\"كابينات\",INDEX(التفاصيل!$P:$P,MATCH('المعلومات '!$G948,التفاصيل!$M:$M,0)),IFERROR(J948*I948,\"\"))","v":""},""]
[null,null,null,null,null,null,null,null,null,"","",{"$f":"IF($E949=\"كابينات\",INDEX(التفاصيل!$P:$P,MATCH('المعلومات '!$G949,التفاصيل!$M:$M,0)),IFERROR(J949*I949,\"\"))","v":""},""]
[null,null,null,null,null,null,null,null,null,"","",{"$f":"IF($E950=\"كابينات\",INDEX(التفاصيل!$P:$P,MATCH('المعلومات '!$G950,التفاصيل!$M:$M,0)),IFERROR(J950*I950,\"\"))","v":""},""]
[null,null,null,null,null,null,null,null,null,"","",{"$f":"IF($E951=\"كابينات\",INDEX(التفاصيل!$P:$P,MATCH('المعلومات '!$G951,التفاصيل!$M:$M,0)),IFERROR(J951*I951,\"\"))","v":""},""]
[null,null,null,null,null,null,null,null,null,"","",{"$f":"IF($E952=\"كابينات\",INDEX(التفاصيل!$P:$P,MATCH('المعلومات '!$G952,التفاصيل!$M:$M,0)),IFERROR(J952*I952,\"\"))","v":""},""]
[null,null,null,null,null,null,null,null,null,"","",{"$f":"IF($E953=\"كابينات\",INDEX(التفاصيل!$P:$P,MATCH('المعلومات '!$G953,التفاصيل!$M:$M,0)),IFERROR(J953*I953,\"\"))","v":""},""]
[null,null,null,null,null,null,null,null,null,"","",{"$f":"IF($E954=\"كابينات\",INDEX(التفاصيل!$P:$P,MATCH('المعلومات '!$G954,التفاصيل!$M:$M,0)),IFERROR(J954*I954,\"\"))","v":""},""]
[null,null,null,null,null,null,null,null,null,"","",{"$f":"IF($E955=\"كابينات\",INDEX(التفاصيل!$P:$P,MATCH('المعلومات '!$G955,التفاصيل!$M:$M,0)),IFERROR(J955*I955,\"\"))","v":""},""]
[null,null,null,null,null,null,null,null,null,"","",{"$f":"IF($E956=\"كابينات\",INDEX(التفاصيل!$P:$P,MATCH('المعلومات '!$G956,التفاصيل!$M:$M,0)),IFERROR(J956*I956,\"\"))","v":""},""]
[null,null,null,null,null,null,null,null,null,"","",{"$f":"IF($E957=\"كابينات\",INDEX(التفاصيل!$P:$P,MATCH('المعلومات '!$G957,التفاصيل!$M:$M,0)),IFERROR(J957*I957,\"\"))","v":""},""]
[null,null,null,null,null,null,null,null,null,"","",{"$f":"IF($E958=\"كابينات\",INDEX(التفاصيل!$P:$P,MATCH('المعلومات '!$G958,التفاصيل!$M:$M,0)),IFERROR(J958*I958,\"\"))","v":""},""]
[null,null,null,null,null,null,null,null,null,"","",{"$f":"IF($E959=\"كابينات\",INDEX(التفاصيل!$P:$P,MATCH('المعلومات '!$G959,التفاصيل!$M:$M,0)),IFERROR(J959*I959,\"\"))","v":""},""]
[null,null,null,null,null,null,null,null,null,"","",{"$f":"IF($E960=\"كابينات\",INDEX(التفاصيل!$P:$P,MATCH('المعلومات '!$G960,التفاصيل!$M:$M,0)),IFERROR(J960*I960,\"\"))","v":""},""]
[null,null,null,null,null,null,null,null,null,"","",{"$f":"IF($E961=\"كابينات\",INDEX(التفاصيل!$P:$P,MATCH('المعلومات '!$G961,التفاصيل!$M:$M,0)),IFERROR(J961*I961,\"\"))","v":""},""]
[null,null,null,null,null,null,null,null,null,{"$f":"IF(E962=\"\",\"\",VLOOKUP(E:E,$N$2:$O$12,2,0))","v":""},{"$f":"IF(E962=\"\",\"\",VLOOKUP(E:E,$P$2:$Q$12,2,0))","v":""},{"$f":"IF($E962=\"كابينات\",INDEX(التفاصيل!$P:$P,MATCH('المعلومات '!$G962,التفاصيل!$M:$M,0)),IFERROR(J962*I962,\"\"))","v":""},""]
[null,null,null,null,null,null,null,null,null,"","",{"$f":"IF($E963=\"كابينات\",INDEX(التفاصيل!$P:$P,MATCH('المعلومات '!$G963,التفاصيل!$M:$M,0)),IFERROR(J963*I963,\"\"))","v":""},""]
[null,null,null,null,null,null,null,null,null,"","",{"$f":"IF($E964=\"كابينات\",INDEX(التفاصيل!$P:$P,MATCH('المعلومات '!$G964,التفاصيل!$M:$M,0)),IFERROR(J964*I964,\"\"))","v":""},""]
[null,null,null,null,null,null,null,null,null,"","",{"$f":"IF($E965=\"كابينات\",INDEX(التفاصيل!$P:$P,MATCH('المعلومات '!$G965,التفاصيل!$M:$M,0)),IFERROR(J965*I965,\"\"))","v":""},""]
[null,null,null,null,null,null,null,null,null,"","",{"$f":"IF($E966=\"كابينات\",INDEX(التفاصيل!$P:$P,MATCH('المعلومات '!$G966,التفاصيل!$M:$M,0)),IFERROR(J966*I966,\"\"))","v":""},""]
[null,null,null,null,null,null,null,null,null,"","",{"$f":"IF($E967=\"كابينات\",INDEX(التفاصيل!$P:$P,MATCH('المعلومات '!$G967,التفاصيل!$M:$M,0)),IFERROR(J967*I967,\"\"))","v":""},""]
[null,null,null,null,null,null,null,null,null,"","",{"$f":"IF($E968=\"كابينات\",INDEX(التفاصيل!$P:$P,MATCH('المعلومات '!$G968,التفاصيل!$M:$M,0)),IFERROR(J968*I968,\"\"))","v":""},""]
[null,null,null,null,null,null,null,null,null,"","",{"$f":"IF($E969=\"كابينات\",INDEX(التفاصيل!$P:$P,MATCH('المعلومات '!$G969,التفاصيل!$M:$M,0)),IFERROR(J969*I969,\"\"))","v":""},""]
[null,null,null,null,null,null,null,null,null,"","",{"$f":"IF($E970=\"كابينات\",INDEX(التفاصيل!$P:$P,MATCH('المعلومات '!$G970,التفاصيل!$M:$M,0)),IFERROR(J970*I970,\"\"))","v":""},""]
[null,null,null,null,null,null,null,null,null,"","",{"$f":"IF($E971=\"كابينات\",INDEX(التفاصيل!$P:$P,MATCH('المعلومات '!$G971,التفاصيل!$M:$M,0)),IFERROR(J971*I971,\"\"))","v":""},""]
[null,null,null,null,null,null,null,null,null,"","",{"$f":"IF($E972=\"كابينات\",INDEX(التفاصيل!$P:$P,MATCH('المعلومات '!$G972,التفاصيل!$M:$M,0)),IFERROR(J972*I972,\"\"))","v":""},""]
[null,null,null,null,null,null,null,null,null,"","",{"$f":"IF($E973=\"كابينات\",INDEX(التفاصيل!$P:$P,MATCH('المعلومات '!$G973,التفاصيل!$M:$M,0)),IFERROR(J973*I973,\"\"))","v":""},""]
[null,null,null,null,null,null,null,null,null,"","",{"$f":"IF($E974=\"كابينات\",INDEX(التفاصيل!$P:$P,MATCH('المعلومات '!$G974,التفاصيل!$M:$M,0)),IFERROR(J974*I974,\"\"))","v":""},""]
[null,null,null,null,null,null,null,null,null,"","",{"$f":"IF($E975=\"كابينات\",INDEX(التفاصيل!$P:$P,MATCH('المعلومات '!$G975,التفاصيل!$M:$M,0)),IFERROR(J975*I975,\"\"))","v":""},""]
[null,null,null,null,null,null,null,null,null,"","",{"$f":"IF($E976=\"كابينات\",INDEX(التفاصيل!$P:$P,MATCH('المعلومات '!$G976,التفاصيل!$M:$M,0)),IFERROR(J976*I976,\"\"))","v":""},""]
[null,null,null,null,null,null,null,null,null,"","",{"$f":"IF($E977=\"كابينات\",INDEX(التفاصيل!$P:$P,MATCH('المعلومات '!$G977,التفاصيل!$M:$M,0)),IFERROR(J977*I977,\"\"))","v":""},""]
[null,null,null,null,null,null,null,null,null,"","",{"$f":"IF($E978=\"كابينات\",INDEX(التفاصيل!$P:$P,MATCH('المعلومات '!$G978,التفاصيل!$M:$M,0)),IFERROR(J978*I978,\"\"))","v":""},{"$f":"IFERROR(H978-L978-(K978*L978),\"\")","v":""}]
[null,null,null,null,null,null,null,null,null,"","",{"$f":"IF($E979=\"كابينات\",INDEX(التفاصيل!$P:$P,MATCH('المعلومات '!$G979,التفاصيل!$M:$M,0)),IFERROR(J979*I979,\"\"))","v":""},""]
[null,null,null,null,null,null,null,null,null,"","",{"$f":"IF($E980=\"كابينات\",INDEX(التفاصيل!$P:$P,MATCH('المعلومات '!$G980,التفاصيل!$M:$M,0)),IFERROR(J980*I980,\"\"))","v":""},""]
[null,null,null,null,null,null,null,null,null,"","",{"$f":"IF($E981=\"كابينات\",INDEX(التفاصيل!$P:$P,MATCH('المعلومات '!$G981,التفاصيل!$M:$M,0)),IFERROR(J981*I981,\"\"))","v":""},""]
[null,null,null,null,null,null,null,null,null,"","",{"$f":"IF($E982=\"كابينات\",INDEX(التفاصيل!$P:$P,MATCH('المعلومات '!$G982,التفاصيل!$M:$M,0)),IFERROR(J982*I982,\"\"))","v":""},""]
[null,null,null,null,null,null,null,null,null,"","",{"$f":"IF($E983=\"كابينات\",INDEX(التفاصيل!$P:$P,MATCH('المعلومات '!$G983,التفاصيل!$M:$M,0)),IFERROR(J983*I983,\"\"))","v":""},""]
[null,null,null,null,null,null,null,null,null,"","",{"$f":"IF($E984=\"كابينات\",INDEX(التفاصيل!$P:$P,MATCH('المعلومات '!$G984,التفاصيل!$M:$M,0)),IFERROR(J984*I984,\"\"))","v":""},""]
[null,null,null,null,null,null,null,null,null,"","",{"$f":"IF($E985=\"كابينات\",INDEX(التفاصيل!$P:$P,MATCH('المعلومات '!$G985,التفاصيل!$M:$M,0)),IFERROR(J985*I985,\"\"))","v":""},""]
[null,null,null,null,null,null,null,null,null,"","",{"$f":"IF($E986=\"كابينات\",INDEX(التفاصيل!$P:$P,MATCH('المعلومات '!$G986,التفاصيل!$M:$M,0)),IFERROR(J986*I986,\"\"))","v":""},""]
[null,null,null,null,null,null,null,null,null,"","",{"$f":"IF($E987=\"كابينات\",INDEX(التفاصيل!$P:$P,MATCH('المعلومات '!$G987,التفاصيل!$M:$M,0)),IFERROR(J987*I987,\"\"))","v":""},""]
[null,null,null,null,null,null,null,null,null,"","",{"$f":"IF($E988=\"كابينات\",INDEX(التفاصيل!$P:$P,MATCH('المعلومات '!$G988,التفاصيل!$M:$M,0)),IFERROR(J988*I988,\"\"))","v":""},""]
[null,null,null,null,null,null,null,null,null,"","",{"$f":"IF($E989=\"كابينات\",INDEX(التفاصيل!$P:$P,MATCH('المعلومات '!$G989,التفاصيل!$M:$M,0)),IFERROR(J989*I989,\"\"))","v":""},""]
[null,null,null,null,null,null,null,null,null,"","",{"$f":"IF($E990=\"كابينات\",INDEX(التفاصيل!$P:$P,MATCH('المعلومات '!$G990,التفاصيل!$M:$M,0)),IFERROR(J990*I990,\"\"))","v":""},""]
[null,null,null,null,null,null,null,null,null,"","",{"$f":"IF($E991=\"كابينات\",INDEX(التفاصيل!$P:$P,MATCH('المعلومات '!$G991,التفاصيل!$M:$M,0)),IFERROR(J991*I991,\"\"))","v":""},""]
[null,null,null,null,null,null,null,null,null,"","",{"$f":"IF($E992=\"كابينات\",INDEX(التفاصيل!$P:$P,MATCH('المعلومات '!$G992,التفاصيل!$M:$M,0)),IFERROR(J992*I992,\"\"))","v":""},""]
[null,null,null,null,null,null,null,null,null,"","",{"$f":"IF($E993=\"كابينات\",INDEX(التفاصيل!$P:$P,MATCH('المعلومات '!$G993,التفاصيل!$M:$M,0)),IFERROR(J993*I993,\"\"))","v":""},""]
[null,null,null,null,null,null,null,null,null,"","",{"$f":"IF($E994=\"كابينات\",INDEX(التفاصيل!$P:$P,MATCH('المعلومات '!$G994,التفاصيل!$M:$M,0)),IFERROR(J994*I994,\"\"))","v":""},""]
[null,null,null,null,null,null,null,null,null,"","",{"$f":"IF($E995=\"كابينات\",INDEX(التفاصيل!$P:$P,MATCH('المعلومات '!$G995,التفاصيل!$M:$M,0)),IFERROR(J995*I995,\"\"))","v":""},""]
[null,null,null,null,null,null,null,null,null,"","",{"$f":"IF($E996=\"كابينات\",INDEX(التفاصيل!$P:$P,MATCH('المعلومات '!$G996,التفاصيل!$M:$M,0)),IFERROR(J996*I996,\"\"))","v":""},""]
[null,null,null,null,null,null,null,null,null,"","",{"$f":"IF($E997=\"كابينات\",INDEX(التفاصيل!$P:$P,MATCH('المعلومات '!$G997,التفاصيل!$M:$M,0)),IFERROR(J997*I997,\"\"))","v":""},""]
[null,null,null,null,null,null,null,null,null,"","",{"$f":"IF($E998=\"كابينات\",INDEX(التفاصيل!$P:$P,MATCH('المعلومات '!$G998,التفاصيل!$M:$M,0)),IFERROR(J998*I998,\"\"))","v":""},""]
[null,null,null,null,null,null,null,null,null,"","",{"$f":"IF($E999=\"كابينات\",INDEX(التفاصيل!$P:$P,MATCH('المعلومات '!$G999,التفاصيل!$M:$M,0)),IFERROR(J999*I999,\"\"))","v":""},""]
[null,null,null,null,null,null,null,null,null,"","",{"$f":"IF($E1000=\"كابينات\",INDEX(التفاصيل!$P:$P,MATCH('المعلومات '!$G1000,التفاصيل!$M:$M,0)),IFERROR(J1000*I1000,\"\"))","v":""},""]
[null,null,null,null,null,null,null,null,null,"","",{"$f":"IF($E1001=\"كابينات\",INDEX(التفاصيل!$P:$P,MATCH('المعلومات '!$G1001,التفاصيل!$M:$M,0)),IFERROR(J1001*I1001,\"\"))","v":""},""]
[null,null,null,null,null,null,null,null,null,"","",{"$f":"IF($E1002=\"كابينات\",INDEX(التفاصيل!$P:$P,MATCH('المعلومات '!$G1002,التفاصيل!$M:$M,0)),IFERROR(J1002*I1002,\"\"))","v":""},""]
[null,null,null,null,null,null,null,null,null,"","",{"$f":"IF($E1003=\"كابينات\",INDEX(التفاصيل!$P:$P,MATCH('المعلومات '!$G1003,التفاصيل!$M:$M,0)),IFERROR(J1003*I1003,\"\"))","v":""},""]
[null,null,null,null,null,null,null,null,null,"","",{"$f":"IF($E1004=\"كابينات\",INDEX(التفاصيل!$P:$P,MATCH('المعلومات '!$G1004,التفاصيل!$M:$M,0)),IFERROR(J1004*I1004,\"\"))","v":""},""]
[null,null,null,null,null,null,null,null,null,"","",{"$f":"IF($E1005=\"كابينات\",INDEX(التفاصيل!$P:$P,MATCH('المعلومات '!$G1005,التفاصيل!$M:$M,0)),IFERROR(J1005*I1005,\"\"))","v":""},""]
[null,null,null,null,null,null,null,null,null,"","",{"$f":"IF($E1006=\"كابينات\",INDEX(التفاصيل!$P:$P,MATCH('المعلومات '!$G1006,التفاصيل!$M:$M,0)),IFERROR(J1006*I1006,\"\"))","v":""},""]
[null,null,null,null,null,null,null,null,null,"","",{"$f":"IF($E1007=\"كابينات\",INDEX(التفاصيل!$P:$P,MATCH('المعلومات '!$G1007,التفاصيل!$M:$M,0)),IFERROR(J1007*I1007,\"\"))","v":""},""]
[null,null,null,null,null,null,null,null,null,"","",{"$f":"IF($E1008=\"كابينات\",INDEX(التفاصيل!$P:$P,MATCH('المعلومات '!$G1008,التفاصيل!$M:$M,0)),IFERROR(J1008*I1008,\"\"))","v":""},""]
[null,null,null,null,null,null,null,null,null,"","",{"$f":"IF($E1009=\"كابينات\",INDEX(التفاصيل!$P:$P,MATCH('المعلومات '!$G1009,التفاصيل!$M:$M,0)),IFERROR(J1009*I1009,\"\"))","v":""},""]
[null,null,null,null,null,null,null,null,null,"","",{"$f":"IF($E1010=\"كابينات\",INDEX(التفاصيل!$P:$P,MATCH('المعلومات '!$G1010,التفاصيل!$M:$M,0)),IFERROR(J1010*I1010,\"\"))","v":""},""]
[null,null,null,null,null,null,null,null,null,"","",{"$f":"IF($E1011=\"كابينات\",INDEX(التفاصيل!$P:$P,MATCH('المعلومات '!$G1011,التفاصيل!$M:$M,0)),IFERROR(J1011*I1011,\"\"))","v":""},""]
[null,null,null,null,null,null,null,null,null,"","",{"$f":"IF($E1012=\"كابينات\",INDEX(التفاصيل!$P:$P,MATCH('المعلومات '!$G1012,التفاصيل!$M:$M,0)),IFERROR(J1012*I1012,\"\"))","v":""},""]
[null,null,null,null,null,null,null,null,null,"","",{"$f":"IF($E1013=\"كابينات\",INDEX(التفاصيل!$P:$P,MATCH('المعلومات '!$G1013,التفاصيل!$M:$M,0)),IFERROR(J1013*I1013,\"\"))","v":""},""]
[null,null,null,null,null,null,null,null,null,"","",{"$f":"IF($E1014=\"كابينات\",INDEX(التفاصيل!$P:$P,MATCH('المعلومات '!$G1014,التفاصيل!$M:$M,0)),IFERROR(J1014*I1014,\"\"))","v":""},""]
[null,null,null,null,null,null,null,null,null,"","",{"$f":"IF($E1015=\"كابينات\",INDEX(التفاصيل!$P:$P,MATCH('المعلومات '!$G1015,التفاصيل!$M:$M,0)),IFERROR(J1015*I1015,\"\"))","v":""},""]
[null,null,null,null,null,null,null,null,null,"","",{"$f":"IF($E1016=\"كابينات\",INDEX(التفاصيل!$P:$P,MATCH('المعلومات '!$G1016,التفاصيل!$M:$M,0)),IFERROR(J1016*I1016,\"\"))","v":""},""]
[null,null,null,null,null,null,null,null,null,"","",{"$f":"IF($E1017=\"كابينات\",INDEX(التفاصيل!$P:$P,MATCH('المعلومات '!$G1017,التفاصيل!$M:$M,0)),IFERROR(J1017*I1017,\"\"))","v":""},""]
[null,null,null,null,null,null,null,null,null,"","",{"$f":"IF($E1018=\"كابينات\",INDEX(التفاصيل!$P:$P,MATCH('المعلومات '!$G1018,التفاصيل!$M:$M,0)),IFERROR(J1018*I1018,\"\"))","v":""},""]
[null,null,null,null,null,null,null,null,null,"","",{"$f":"IF($E1019=\"كابينات\",INDEX(التفاصيل!$P:$P,MATCH('المعلومات '!$G1019,التفاصيل!$M:$M,0)),IFERROR(J1019*I1019,\"\"))","v":""},""]
[null,null,null,null,null,null,null,null,null,"","",{"$f":"IF($E1020=\"كابينات\",INDEX(التفاصيل!$P:$P,MATCH('المعلومات '!$G1020,التفاصيل!$M:$M,0)),IFERROR(J1020*I1020,\"\"))","v":""},""]
[null,null,null,null,null,null,null,null,null,"","",{"$f":"IF($E1021=\"كابينات\",INDEX(التفاصيل!$P:$P,MATCH('المعلومات '!$G1021,التفاصيل!$M:$M,0)),IFERROR(J1021*I1021,\"\"))","v":""},""]
[null,null,null,null,null,null,null,null,null,"","",{"$f":"IF($E1022=\"كابينات\",INDEX(التفاصيل!$P:$P,MATCH('المعلومات '!$G1022,التفاصيل!$M:$M,0)),IFERROR(J1022*I1022,\"\"))","v":""},""]
[null,null,null,null,null,null,null,null,null,"","",{"$f":"IF($E1023=\"كابينات\",INDEX(التفاصيل!$P:$P,MATCH('المعلومات '!$G1023,التفاصيل!$M:$M,0)),IFERROR(J1023*I1023,\"\"))","v":""},""]
[null,null,null,null,null,null,null,null,null,"","",{"$f":"IF($E1024=\"كابينات\",INDEX(التفاصيل!$P:$P,MATCH('المعلومات '!$G1024,التفاصيل!$M:$M,0)),IFERROR(J1024*I1024,\"\"))","v":""},""]
[null,null,null,null,null,null,null,null,null,"","",{"$f":"IF($E1025=\"كابينات\",INDEX(التفاصيل!$P:$P,MATCH('المعلومات '!$G1025,التفاصيل!$M:$M,0)),IFERROR(J1025*I1025,\"\"))","v":""},""]
[null,null,null,null,null,null,null,null,null,{"$f":"IF(E1026=\"\",\"\",VLOOKUP(E:E,$N$2:$O$12,2,0))","v":""},{"$f":"IF(E1026=\"\",\"\",VLOOKUP(E:E,$P$2:$Q$12,2,0))","v":""},{"$f":"IF($E1026=\"كابينات\",INDEX(التفاصيل!$P:$P,MATCH('المعلومات '!$G1026,التفاصيل!$M:$M,0)),IFERROR(J1026*I1026,\"\"))","v":""},""]
[null,null,null,null,null,null,null,null,null,"","",{"$f":"IF($E1027=\"كابينات\",INDEX(التفاصيل!$P:$P,MATCH('المعلومات '!$G1027,التفاصيل!$M:$M,0)),IFERROR(J1027*I1027,\"\"))","v":""},""]
[null,null,null,null,null,null,null,null,null,"","",{"$f":"IF($E1028=\"كابينات\",INDEX(التفاصيل!$P:$P,MATCH('المعلومات '!$G1028,التفاصيل!$M:$M,0)),IFERROR(J1028*I1028,\"\"))","v":""},""]
[null,null,null,null,null,null,null,null,null,"","",{"$f":"IF($E1029=\"كابينات\",INDEX(التفاصيل!$P:$P,MATCH('المعلومات '!$G1029,التفاصيل!$M:$M,0)),IFERROR(J1029*I1029,\"\"))","v":""},""]
[null,null,null,null,null,null,null,null,null,"","",{"$f":"IF($E1030=\"كابينات\",INDEX(التفاصيل!$P:$P,MATCH('المعلومات '!$G1030,التفاصيل!$M:$M,0)),IFERROR(J1030*I1030,\"\"))","v":""},""]
[null,null,null,null,null,null,null,null,null,"","",{"$f":"IF($E1031=\"كابينات\",INDEX(التفاصيل!$P:$P,MATCH('المعلومات '!$G1031,التفاصيل!$M:$M,0)),IFERROR(J1031*I1031,\"\"))","v":""},""]
[null,null,null,null,null,null,null,null,null,"","",{"$f":"IF($E1032=\"كابينات\",INDEX(التفاصيل!$P:$P,MATCH('المعلومات '!$G1032,التفاصيل!$M:$M,0)),IFERROR(J1032*I1032,\"\"))","v":""},""]
[null,null,null,null,null,null,null,null,null,"","",{"$f":"IF($E1033=\"كابينات\",INDEX(التفاصيل!$P:$P,MATCH('المعلومات '!$G1033,التفاصيل!$M:$M,0)),IFERROR(J1033*I1033,\"\"))","v":""},""]
[null,null,null,null,null,null,null,null,null,"","",{"$f":"IF($E1034=\"كابينات\",INDEX(التفاصيل!$P:$P,MATCH('المعلومات '!$G1034,التفاصيل!$M:$M,0)),IFERROR(J1034*I1034,\"\"))","v":""},""]
[null,null,null,null,null,null,null,null,null,"","",{"$f":"IF($E1035=\"كابينات\",INDEX(التفاصيل!$P:$P,MATCH('المعلومات '!$G1035,التفاصيل!$M:$M,0)),IFERROR(J1035*I1035,\"\"))","v":""},""]
[null,null,null,null,null,null,null,null,null,"","",{"$f":"IF($E1036=\"كابينات\",INDEX(التفاصيل!$P:$P,MATCH('المعلومات '!$G1036,التفاصيل!$M:$M,0)),IFERROR(J1036*I1036,\"\"))","v":""},""]
[null,null,null,null,null,null,null,null,null,"","",{"$f":"IF($E1037=\"كابينات\",INDEX(التفاصيل!$P:$P,MATCH('المعلومات '!$G1037,التفاصيل!$M:$M,0)),IFERROR(J1037*I1037,\"\"))","v":""},""]
[null,null,null,null,null,null,null,null,null,"","",{"$f":"IF($E1038=\"كابينات\",INDEX(التفاصيل!$P:$P,MATCH('المعلومات '!$G1038,التفاصيل!$M:$M,0)),IFERROR(J1038*I1038,\"\"))","v":""},""]
[null,null,null,null,null,null,null,null,null,"","",{"$f":"IF($E1039=\"كابينات\",INDEX(التفاصيل!$P:$P,MATCH('المعلومات '!$G1039,التفاصيل!$M:$M,0)),IFERROR(J1039*I1039,\"\"))","v":""},""]
[null,null,null,null,null,null,null,null,null,"","",{"$f":"IF($E1040=\"كابينات\",INDEX(التفاصيل!$P:$P,MATCH('المعلومات '!$G1040,التفاصيل!$M:$M,0)),IFERROR(J1040*I1040,\"\"))","v":""},""]
[null,null,null,null,null,null,null,null,null,"","",{"$f":"IF($E1041=\"كابينات\",INDEX(التفاصيل!$P:$P,MATCH('المعلومات '!$G1041,التفاصيل!$M:$M,0)),IFERROR(J1041*I1041,\"\"))","v":""},""]
[null,null,null,null,null,null,null,null,null,"","",{"$f":"IF($E1042=\"كابينات\",INDEX(التفاصيل!$P:$P,MATCH('المعلومات '!$G1042,التفاصيل!$M:$M,0)),IFERROR(J1042*I1042,\"\"))","v":""},{"$f":"IFERROR(H1042-L1042-(K1042*L1042),\"\")","v":""}]
[null,null,null,null,null,null,null,null,null,"","",{"$f":"IF($E1043=\"كابينات\",INDEX(التفاصيل!$P:$P,MATCH('المعلومات '!$G1043,التفاصيل!$M:$M,0)),IFERROR(J1043*I1043,\"\"))","v":""},""]
[null,null,null,null,null,null,null,null,null,"","",{"$f":"IF($E1044=\"كابينات\",INDEX(التفاصيل!$P:$P,MATCH('المعلومات '!$G1044,التفاصيل!$M:$M,0)),IFERROR(J1044*I1044,\"\"))","v":""},""]
[null,null,null,null,null,null,null,null,null,"","",{"$f":"IF($E1045=\"كابينات\",INDEX(التفاصيل!$P:$P,MATCH('المعلومات '!$G1045,التفاصيل!$M:$M,0)),IFERROR(J1045*I1045,\"\"))","v":""},""]
[null,null,null,null,null,null,null,null,null,"","",{"$f":"IF($E1046=\"كابينات\",INDEX(التفاصيل!$P:$P,MATCH('المعلومات '!$G1046,التفاصيل!$M:$M,0)),IFERROR(J1046*I1046,\"\"))","v":""},""]
[null,null,null,null,null,null,null,null,null,"","",{"$f":"IF($E1047=\"كابينات\",INDEX(التفاصيل!$P:$P,MATCH('المعلومات '!$G1047,التفاصيل!$M:$M,0)),IFERROR(J1047*I1047,\"\"))","v":""},""]
[null,null,null,null,null,null,null,null,null,"","",{"$f":"IF($E1048=\"كابينات\",INDEX(التفاصيل!$P:$P,MATCH('المعلومات '!$G1048,التفاصيل!$M:$M,0)),IFERROR(J1048*I1048,\"\"))","v":""},""]
[null,null,null,null,null,null,null,null,null,"","",{"$f":"IF($E1049=\"كابينات\",INDEX(التفاصيل!$P:$P,MATCH('المعلومات '!$G1049,التفاصيل!$M:$M,0)),IFERROR(J1049*I1049,\"\"))","v":""},""]
[null,null,null,null,null,null,null,null,null,"","",{"$f":"IF($E1050=\"كابينات\",INDEX(التفاصيل!$P:$P,MATCH('المعلومات '!$G1050,التفاصيل!$M:$M,0)),IFERROR(J1050*I1050,\"\"))","v":""},""]
[null,null,null,null,null,null,null,null,null,"","",{"$f":"IF($E1051=\"كابينات\",INDEX(التفاصيل!$P:$P,MATCH('المعلومات '!$G1051,التفاصيل!$M:$M,0)),IFERROR(J1051*I1051,\"\"))","v":""},""]
[null,null,null,null,null,null,null,null,null,"","",{"$f":"IF($E1052=\"كابينات\",INDEX(التفاصيل!$P:$P,MATCH('المعلومات '!$G1052,التفاصيل!$M:$M,0)),IFERROR(J1052*I1052,\"\"))","v":""},""]
[null,null,null,null,null,null,null,null,null,"","",{"$f":"IF($E1053=\"كابينات\",INDEX(التفاصيل!$P:$P,MATCH('المعلومات '!$G1053,التفاصيل!$M:$M,0)),IFERROR(J1053*I1053,\"\"))","v":""},""]
[null,null,null,null,null,null,null,null,null,"","",{"$f":"IF($E1054=\"كابينات\",INDEX(التفاصيل!$P:$P,MATCH('المعلومات '!$G1054,التفاصيل!$M:$M,0)),IFERROR(J1054*I1054,\"\"))","v":""},""]
[null,null,null,null,null,null,null,null,null,"","",{"$f":"IF($E1055=\"كابينات\",INDEX(التفاصيل!$P:$P,MATCH('المعلومات '!$G1055,التفاصيل!$M:$M,0)),IFERROR(J1055*I1055,\"\"))","v":""},""]
[null,null,null,null,null,null,null,null,null,"","",{"$f":"IF($E1056=\"كابينات\",INDEX(التفاصيل!$P:$P,MATCH('المعلومات '!$G1056,التفاصيل!$M:$M,0)),IFERROR(J1056*I1056,\"\"))","v":""},""]
[null,null,null,null,null,null,null,null,null,"","",{"$f":"IF($E1057=\"كابينات\",INDEX(التفاصيل!$P:$P,MATCH('المعلومات '!$G1057,التفاصيل!$M:$M,0)),IFERROR(J1057*I1057,\"\"))","v":""},""]
[null,null,null,null,null,null,null,null,null,"","",{"$f":"IF($E1058=\"كابينات\",INDEX(التفاصيل!$P:$P,MATCH('المعلومات '!$G1058,التفاصيل!$M:$M,0)),IFERROR(J1058*I1058,\"\"))","v":""},""]
[null,null,null,null,null,null,null,null,null,"","",{"$f":"IF($E1059=\"كابينات\",INDEX(التفاصيل!$P:$P,MATCH('المعلومات '!$G1059,التفاصيل!$M:$M,0)),IFERROR(J1059*I1059,\"\"))","v":""},""]
[null,null,null,null,null,null,null,null,null,"","",{"$f":"IF($E1060=\"كابينات\",INDEX(التفاصيل!$P:$P,MATCH('المعلومات '!$G1060,التفاصيل!$M:$M,0)),IFERROR(J1060*I1060,\"\"))","v":""},""]
[null,null,null,null,null,null,null,null,null,"","",{"$f":"IF($E1061=\"كابينات\",INDEX(التفاصيل!$P:$P,MATCH('المعلومات '!$G1061,التفاصيل!$M:$M,0)),IFERROR(J1061*I1061,\"\"))","v":""},""]
[null,null,null,null,null,null,null,null,null,"","",{"$f":"IF($E1062=\"كابينات\",INDEX(التفاصيل!$P:$P,MATCH('المعلومات '!$G1062,التفاصيل!$M:$M,0)),IFERROR(J1062*I1062,\"\"))","v":""},""]
[null,null,null,null,null,null,null,null,null,"","",{"$f":"IF($E1063=\"كابينات\",INDEX(التفاصيل!$P:$P,MATCH('المعلومات '!$G1063,التفاصيل!$M:$M,0)),IFERROR(J1063*I1063,\"\"))","v":""},""]
[null,null,null,null,null,null,null,null,null,"","",{"$f":"IF($E1064=\"كابينات\",INDEX(التفاصيل!$P:$P,MATCH('المعلومات '!$G1064,التفاصيل!$M:$M,0)),IFERROR(J1064*I1064,\"\"))","v":""},""]
[null,null,null,null,null,null,null,null,null,"","",{"$f":"IF($E1065=\"كابينات\",INDEX(التفاصيل!$P:$P,MATCH('المعلومات '!$G1065,التفاصيل!$M:$M,0)),IFERROR(J1065*I1065,\"\"))","v":""},""]
[null,null,null,null,null,null,null,null,null,"","",{"$f":"IF($E1066=\"كابينات\",INDEX(التفاصيل!$P:$P,MATCH('المعلومات '!$G1066,التفاصيل!$M:$M,0)),IFERROR(J1066*I1066,\"\"))","v":""},""]
[null,null,null,null,null,null,null,null,null,"","",{"$f":"IF($E1067=\"كابينات\",INDEX(التفاصيل!$P:$P,MATCH('المعلومات '!$G1067,التفاصيل!$M:$M,0)),IFERROR(J1067*I1067,\"\"))","v":""},""]
[null,null,null,null,null,null,null,null,null,"","",{"$f":"IF($E1068=\"كابينات\",INDEX(التفاصيل!$P:$P,MATCH('المعلومات '!$G1068,التفاصيل!$M:$M,0)),IFERROR(J1068*I1068,\"\"))","v":""},""]
[null,null,null,null,null,null,null,null,null,"","",{"$f":"IF($E1069=\"كابينات\",INDEX(التفاصيل!$P:$P,MATCH('المعلومات '!$G1069,التفاصيل!$M:$M,0)),IFERROR(J1069*I1069,\"\"))","v":""},""]
[null,null,null,null,null,null,null,null,null,"","",{"$f":"IF($E1070=\"كابينات\",INDEX(التفاصيل!$P:$P,MATCH('المعلومات '!$G1070,التفاصيل!$M:$M,0)),IFERROR(J1070*I1070,\"\"))","v":""},""]
[null,null,null,null,null,null,null,null,null,"","",{"$f":"IF($E1071=\"كابينات\",INDEX(التفاصيل!$P:$P,MATCH('المعلومات '!$G1071,التفاصيل!$M:$M,0)),IFERROR(J1071*I1071,\"\"))","v":""},""]
[null,null,null,null,null,null,null,null,null,"","",{"$f":"IF($E1072=\"كابينات\",INDEX(التفاصيل!$P:$P,MATCH('المعلومات '!$G1072,التفاصيل!$M:$M,0)),IFERROR(J1072*I1072,\"\"))","v":""},""]
[null,null,null,null,null,null,null,null,null,"","",{"$f":"IF($E1073=\"كابينات\",INDEX(التفاصيل!$P:$P,MATCH('المعلومات '!$G1073,التفاصيل!$M:$M,0)),IFERROR(J1073*I1073,\"\"))","v":""},""]
[null,null,null,null,null,null,null,null,null,"","",{"$f":"IF($E1074=\"كابينات\",INDEX(التفاصيل!$P:$P,MATCH('المعلومات '!$G1074,التفاصيل!$M:$M,0)),IFERROR(J1074*I1074,\"\"))","v":""},""]
[null,null,null,null,null,null,null,null,null,"","",{"$f":"IF($E1075=\"كابينات\",INDEX(التفاصيل!$P:$P,MATCH('المعلومات '!$G1075,التفاصيل!$M:$M,0)),IFERROR(J1075*I1075,\"\"))","v":""},""]
[null,null,null,null,null,null,null,null,null,"","",{"$f":"IF($E1076=\"كابينات\",INDEX(التفاصيل!$P:$P,MATCH('المعلومات '!$G1076,التفاصيل!$M:$M,0)),IFERROR(J1076*I1076,\"\"))","v":""},""]
[null,null,null,null,null,null,null,null,null,"","",{"$f":"IF($E1077=\"كابينات\",INDEX(التفاصيل!$P:$P,MATCH('المعلومات '!$G1077,التفاصيل!$M:$M,0)),IFERROR(J1077*I1077,\"\"))","v":""},""]
[null,null,null,null,null,null,null,null,null,"","",{"$f":"IF($E1078=\"كابينات\",INDEX(التفاصيل!$P:$P,MATCH('المعلومات '!$G1078,التفاصيل!$M:$M,0)),IFERROR(J1078*I1078,\"\"))","v":""},""]
[null,null,null,null,null,null,null,null,null,"","",{"$f":"IF($E1079=\"كابينات\",INDEX(التفاصيل!$P:$P,MATCH('المعلومات '!$G1079,التفاصيل!$M:$M,0)),IFERROR(J1079*I1079,\"\"))","v":""},""]
[null,null,null,null,null,null,null,null,null,"","",{"$f":"IF($E1080=\"كابينات\",INDEX(التفاصيل!$P:$P,MATCH('المعلومات '!$G1080,التفاصيل!$M:$M,0)),IFERROR(J1080*I1080,\"\"))","v":""},""]
[null,null,null,null,null,null,null,null,null,"","",{"$f":"IF($E1081=\"كابينات\",INDEX(التفاصيل!$P:$P,MATCH('المعلومات '!$G1081,التفاصيل!$M:$M,0)),IFERROR(J1081*I1081,\"\"))","v":""},""]
[null,null,null,null,null,null,null,null,null,"","",{"$f":"IF($E1082=\"كابينات\",INDEX(التفاصيل!$P:$P,MATCH('المعلومات '!$G1082,التفاصيل!$M:$M,0)),IFERROR(J1082*I1082,\"\"))","v":""},""]
[null,null,null,null,null,null,null,null,null,"","",{"$f":"IF($E1083=\"كابينات\",INDEX(التفاصيل!$P:$P,MATCH('المعلومات '!$G1083,التفاصيل!$M:$M,0)),IFERROR(J1083*I1083,\"\"))","v":""},""]
[null,null,null,null,null,null,null,null,null,"","",{"$f":"IF($E1084=\"كابينات\",INDEX(التفاصيل!$P:$P,MATCH('المعلومات '!$G1084,التفاصيل!$M:$M,0)),IFERROR(J1084*I1084,\"\"))","v":""},""]
[null,null,null,null,null,null,null,null,null,"","",{"$f":"IF($E1085=\"كابينات\",INDEX(التفاصيل!$P:$P,MATCH('المعلومات '!$G1085,التفاصيل!$M:$M,0)),IFERROR(J1085*I1085,\"\"))","v":""},""]
[null,null,null,null,null,null,null,null,null,"","",{"$f":"IF($E1086=\"كابينات\",INDEX(التفاصيل!$P:$P,MATCH('المعلومات '!$G1086,التفاصيل!$M:$M,0)),IFERROR(J1086*I1086,\"\"))","v":""},""]
[null,null,null,null,null,null,null,null,null,"","",{"$f":"IF($E1087=\"كابينات\",INDEX(التفاصيل!$P:$P,MATCH('المعلومات '!$G1087,التفاصيل!$M:$M,0)),IFERROR(J1087*I1087,\"\"))","v":""},""]
[null,null,null,null,null,null,null,null,null,"","",{"$f":"IF($E1088=\"كابينات\",INDEX(التفاصيل!$P:$P,MATCH('المعلومات '!$G1088,التفاصيل!$M:$M,0)),IFERROR(J1088*I1088,\"\"))","v":""},""]
[null,null,null,null,null,null,null,null,null,"","",{"$f":"IF($E1089=\"كابينات\",INDEX(التفاصيل!$P:$P,MATCH('المعلومات '!$G1089,التفاصيل!$M:$M,0)),IFERROR(J1089*I1089,\"\"))","v":""},""]
[null,null,null,null,null,null,null,null,null,{"$f":"IF(E1090=\"\",\"\",VLOOKUP(E:E,$N$2:$O$12,2,0))","v":""},{"$f":"IF(E1090=\"\",\"\",VLOOKUP(E:E,$P$2:$Q$12,2,0))","v":""},{"$f":"IF($E1090=\"كابينات\",INDEX(التفاصيل!$P:$P,MATCH('المعلومات '!$G1090,التفاصيل!$M:$M,0)),IFERROR(J1090*I1090,\"\"))","v":""},""]
[null,null,null,null,null,null,null,null,null,"","",{"$f":"IF($E1091=\"كابينات\",INDEX(التفاصيل!$P:$P,MATCH('المعلومات '!$G1091,التفاصيل!$M:$M,0)),IFERROR(J1091*I1091,\"\"))","v":""},""]
[null,null,null,null,null,null,null,null,null,"","",{"$f":"IF($E1092=\"كابينات\",INDEX(التفاصيل!$P:$P,MATCH('المعلومات '!$G1092,التفاصيل!$M:$M,0)),IFERROR(J1092*I1092,\"\"))","v":""},""]
[null,null,null,null,null,null,null,null,null,"","",{"$f":"IF($E1093=\"كابينات\",INDEX(التفاصيل!$P:$P,MATCH('المعلومات '!$G1093,التفاصيل!$M:$M,0)),IFERROR(J1093*I1093,\"\"))","v":""},""]
[null,null,null,null,null,null,null,null,null,"","",{"$f":"IF($E1094=\"كابينات\",INDEX(التفاصيل!$P:$P,MATCH('المعلومات '!$G1094,التفاصيل!$M:$M,0)),IFERROR(J1094*I1094,\"\"))","v":""},""]
[null,null,null,null,null,null,null,null,null,"","",{"$f":"IF($E1095=\"كابينات\",INDEX(التفاصيل!$P:$P,MATCH('المعلومات '!$G1095,التفاصيل!$M:$M,0)),IFERROR(J1095*I1095,\"\"))","v":""},""]
[null,null,null,null,null,null,null,null,null,"","",{"$f":"IF($E1096=\"كابينات\",INDEX(التفاصيل!$P:$P,MATCH('المعلومات '!$G1096,التفاصيل!$M:$M,0)),IFERROR(J1096*I1096,\"\"))","v":""},""]
[null,null,null,null,null,null,null,null,null,"","",{"$f":"IF($E1097=\"كابينات\",INDEX(التفاصيل!$P:$P,MATCH('المعلومات '!$G1097,التفاصيل!$M:$M,0)),IFERROR(J1097*I1097,\"\"))","v":""},""]
[null,null,null,null,null,null,null,null,null,"","",{"$f":"IF($E1098=\"كابينات\",INDEX(التفاصيل!$P:$P,MATCH('المعلومات '!$G1098,التفاصيل!$M:$M,0)),IFERROR(J1098*I1098,\"\"))","v":""},""]
[null,null,null,null,null,null,null,null,null,"","",{"$f":"IF($E1099=\"كابينات\",INDEX(التفاصيل!$P:$P,MATCH('المعلومات '!$G1099,التفاصيل!$M:$M,0)),IFERROR(J1099*I1099,\"\"))","v":""},""]
[null,null,null,null,null,null,null,null,null,"","",{"$f":"IF($E1100=\"كابينات\",INDEX(التفاصيل!$P:$P,MATCH('المعلومات '!$G1100,التفاصيل!$M:$M,0)),IFERROR(J1100*I1100,\"\"))","v":""},""]
[null,null,null,null,null,null,null,null,null,"","",{"$f":"IF($E1101=\"كابينات\",INDEX(التفاصيل!$P:$P,MATCH('المعلومات '!$G1101,التفاصيل!$M:$M,0)),IFERROR(J1101*I1101,\"\"))","v":""},""]
[null,null,null,null,null,null,null,null,null,"","",{"$f":"IF($E1102=\"كابينات\",INDEX(التفاصيل!$P:$P,MATCH('المعلومات '!$G1102,التفاصيل!$M:$M,0)),IFERROR(J1102*I1102,\"\"))","v":""},""]
[null,null,null,null,null,null,null,null,null,"","",{"$f":"IF($E1103=\"كابينات\",INDEX(التفاصيل!$P:$P,MATCH('المعلومات '!$G1103,التفاصيل!$M:$M,0)),IFERROR(J1103*I1103,\"\"))","v":""},""]
[null,null,null,null,null,null,null,null,null,"","",{"$f":"IF($E1104=\"كابينات\",INDEX(التفاصيل!$P:$P,MATCH('المعلومات '!$G1104,التفاصيل!$M:$M,0)),IFERROR(J1104*I1104,\"\"))","v":""},""]
[null,null,null,null,null,null,null,null,null,"","",{"$f":"IF($E1105=\"كابينات\",INDEX(التفاصيل!$P:$P,MATCH('المعلومات '!$G1105,التفاصيل!$M:$M,0)),IFERROR(J1105*I1105,\"\"))","v":""},""]
[null,null,null,null,null,null,null,null,null,"","",{"$f":"IF($E1106=\"كابينات\",INDEX(التفاصيل!$P:$P,MATCH('المعلومات '!$G1106,التفاصيل!$M:$M,0)),IFERROR(J1106*I1106,\"\"))","v":""},{"$f":"IFERROR(H1106-L1106-(K1106*L1106),\"\")","v":""}]
[null,null,null,null,null,null,null,null,null,"","",{"$f":"IF($E1107=\"كابينات\",INDEX(التفاصيل!$P:$P,MATCH('المعلومات '!$G1107,التفاصيل!$M:$M,0)),IFERROR(J1107*I1107,\"\"))","v":""},""]
[null,null,null,null,null,null,null,null,null,"","",{"$f":"IF($E1108=\"كابينات\",INDEX(التفاصيل!$P:$P,MATCH('المعلومات '!$G1108,التفاصيل!$M:$M,0)),IFERROR(J1108*I1108,\"\"))","v":""},""]
[null,null,null,null,null,null,null,null,null,"","",{"$f":"IF($E1109=\"كابينات\",INDEX(التفاصيل!$P:$P,MATCH('المعلومات '!$G1109,التفاصيل!$M:$M,0)),IFERROR(J1109*I1109,\"\"))","v":""},""]
[null,null,null,null,null,null,null,null,null,"","",{"$f":"IF($E1110=\"كابينات\",INDEX(التفاصيل!$P:$P,MATCH('المعلومات '!$G1110,التفاصيل!$M:$M,0)),IFERROR(J1110*I1110,\"\"))","v":""},""]
[null,null,null,null,null,null,null,null,null,"","",{"$f":"IF($E1111=\"كابينات\",INDEX(التفاصيل!$P:$P,MATCH('المعلومات '!$G1111,التفاصيل!$M:$M,0)),IFERROR(J1111*I1111,\"\"))","v":""},""]
[null,null,null,null,null,null,null,null,null,"","",{"$f":"IF($E1112=\"كابينات\",INDEX(التفاصيل!$P:$P,MATCH('المعلومات '!$G1112,التفاصيل!$M:$M,0)),IFERROR(J1112*I1112,\"\"))","v":""},""]
[null,null,null,null,null,null,null,null,null,"","",{"$f":"IF($E1113=\"كابينات\",INDEX(التفاصيل!$P:$P,MATCH('المعلومات '!$G1113,التفاصيل!$M:$M,0)),IFERROR(J1113*I1113,\"\"))","v":""},""]
[null,null,null,null,null,null,null,null,null,"","",{"$f":"IF($E1114=\"كابينات\",INDEX(التفاصيل!$P:$P,MATCH('المعلومات '!$G1114,التفاصيل!$M:$M,0)),IFERROR(J1114*I1114,\"\"))","v":""},""]
[null,null,null,null,null,null,null,null,null,"","",{"$f":"IF($E1115=\"كابينات\",INDEX(التفاصيل!$P:$P,MATCH('المعلومات '!$G1115,التفاصيل!$M:$M,0)),IFERROR(J1115*I1115,\"\"))","v":""},""]
[null,null,null,null,null,null,null,null,null,"","",{"$f":"IF($E1116=\"كابينات\",INDEX(التفاصيل!$P:$P,MATCH('المعلومات '!$G1116,التفاصيل!$M:$M,0)),IFERROR(J1116*I1116,\"\"))","v":""},""]
[null,null,null,null,null,null,null,null,null,"","",{"$f":"IF($E1117=\"كابينات\",INDEX(التفاصيل!$P:$P,MATCH('المعلومات '!$G1117,التفاصيل!$M:$M,0)),IFERROR(J1117*I1117,\"\"))","v":""},""]
[null,null,null,null,null,null,null,null,null,"","",{"$f":"IF($E1118=\"كابينات\",INDEX(التفاصيل!$P:$P,MATCH('المعلومات '!$G1118,التفاصيل!$M:$M,0)),IFERROR(J1118*I1118,\"\"))","v":""},""]
[null,null,null,null,null,null,null,null,null,"","",{"$f":"IF($E1119=\"كابينات\",INDEX(التفاصيل!$P:$P,MATCH('المعلومات '!$G1119,التفاصيل!$M:$M,0)),IFERROR(J1119*I1119,\"\"))","v":""},""]
[null,null,null,null,null,null,null,null,null,"","",{"$f":"IF($E1120=\"كابينات\",INDEX(التفاصيل!$P:$P,MATCH('المعلومات '!$G1120,التفاصيل!$M:$M,0)),IFERROR(J1120*I1120,\"\"))","v":""},""]
[null,null,null,null,null,null,null,null,null,"","",{"$f":"IF($E1121=\"كابينات\",INDEX(التفاصيل!$P:$P,MATCH('المعلومات '!$G1121,التفاصيل!$M:$M,0)),IFERROR(J1121*I1121,\"\"))","v":""},""]
[null,null,null,null,null,null,null,null,null,"","",{"$f":"IF($E1122=\"كابينات\",INDEX(التفاصيل!$P:$P,MATCH('المعلومات '!$G1122,التفاصيل!$M:$M,0)),IFERROR(J1122*I1122,\"\"))","v":""},""]
[null,null,null,null,null,null,null,null,null,"","",{"$f":"IF($E1123=\"كابينات\",INDEX(التفاصيل!$P:$P,MATCH('المعلومات '!$G1123,التفاصيل!$M:$M,0)),IFERROR(J1123*I1123,\"\"))","v":""},""]
[null,null,null,null,null,null,null,null,null,"","",{"$f":"IF($E1124=\"كابينات\",INDEX(التفاصيل!$P:$P,MATCH('المعلومات '!$G1124,التفاصيل!$M:$M,0)),IFERROR(J1124*I1124,\"\"))","v":""},""]
[null,null,null,null,null,null,null,null,null,"","",{"$f":"IF($E1125=\"كابينات\",INDEX(التفاصيل!$P:$P,MATCH('المعلومات '!$G1125,التفاصيل!$M:$M,0)),IFERROR(J1125*I1125,\"\"))","v":""},""]
[null,null,null,null,null,null,null,null,null,"","",{"$f":"IF($E1126=\"كابينات\",INDEX(التفاصيل!$P:$P,MATCH('المعلومات '!$G1126,التفاصيل!$M:$M,0)),IFERROR(J1126*I1126,\"\"))","v":""},""]
[null,null,null,null,null,null,null,null,null,"","",{"$f":"IF($E1127=\"كابينات\",INDEX(التفاصيل!$P:$P,MATCH('المعلومات '!$G1127,التفاصيل!$M:$M,0)),IFERROR(J1127*I1127,\"\"))","v":""},""]
[null,null,null,null,null,null,null,null,null,"","",{"$f":"IF($E1128=\"كابينات\",INDEX(التفاصيل!$P:$P,MATCH('المعلومات '!$G1128,التفاصيل!$M:$M,0)),IFERROR(J1128*I1128,\"\"))","v":""},""]
[null,null,null,null,null,null,null,null,null,"","",{"$f":"IF($E1129=\"كابينات\",INDEX(التفاصيل!$P:$P,MATCH('المعلومات '!$G1129,التفاصيل!$M:$M,0)),IFERROR(J1129*I1129,\"\"))","v":""},""]
[null,null,null,null,null,null,null,null,null,"","",{"$f":"IF($E1130=\"كابينات\",INDEX(التفاصيل!$P:$P,MATCH('المعلومات '!$G1130,التفاصيل!$M:$M,0)),IFERROR(J1130*I1130,\"\"))","v":""},""]
[null,null,null,null,null,null,null,null,null,"","",{"$f":"IF($E1131=\"كابينات\",INDEX(التفاصيل!$P:$P,MATCH('المعلومات '!$G1131,التفاصيل!$M:$M,0)),IFERROR(J1131*I1131,\"\"))","v":""},""]
[null,null,null,null,null,null,null,null,null,"","",{"$f":"IF($E1132=\"كابينات\",INDEX(التفاصيل!$P:$P,MATCH('المعلومات '!$G1132,التفاصيل!$M:$M,0)),IFERROR(J1132*I1132,\"\"))","v":""},""]
[null,null,null,null,null,null,null,null,null,"","",{"$f":"IF($E1133=\"كابينات\",INDEX(التفاصيل!$P:$P,MATCH('المعلومات '!$G1133,التفاصيل!$M:$M,0)),IFERROR(J1133*I1133,\"\"))","v":""},""]
[null,null,null,null,null,null,null,null,null,"","",{"$f":"IF($E1134=\"كابينات\",INDEX(التفاصيل!$P:$P,MATCH('المعلومات '!$G1134,التفاصيل!$M:$M,0)),IFERROR(J1134*I1134,\"\"))","v":""},""]
[null,null,null,null,null,null,null,null,null,"","",{"$f":"IF($E1135=\"كابينات\",INDEX(التفاصيل!$P:$P,MATCH('المعلومات '!$G1135,التفاصيل!$M:$M,0)),IFERROR(J1135*I1135,\"\"))","v":""},""]
[null,null,null,null,null,null,null,null,null,"","",{"$f":"IF($E1136=\"كابينات\",INDEX(التفاصيل!$P:$P,MATCH('المعلومات '!$G1136,التفاصيل!$M:$M,0)),IFERROR(J1136*I1136,\"\"))","v":""},""]
[null,null,null,null,null,null,null,null,null,"","",{"$f":"IF($E1137=\"كابينات\",INDEX(التفاصيل!$P:$P,MATCH('المعلومات '!$G1137,التفاصيل!$M:$M,0)),IFERROR(J1137*I1137,\"\"))","v":""},""]
[null,null,null,null,null,null,null,null,null,"","",{"$f":"IF($E1138=\"كابينات\",INDEX(التفاصيل!$P:$P,MATCH('المعلومات '!$G1138,التفاصيل!$M:$M,0)),IFERROR(J1138*I1138,\"\"))","v":""},""]
[null,null,null,null,null,null,null,null,null,"","",{"$f":"IF($E1139=\"كابينات\",INDEX(التفاصيل!$P:$P,MATCH('المعلومات '!$G1139,التفاصيل!$M:$M,0)),IFERROR(J1139*I1139,\"\"))","v":""},""]
[null,null,null,null,null,null,null,null,null,"","",{"$f":"IF($E1140=\"كابينات\",INDEX(التفاصيل!$P:$P,MATCH('المعلومات '!$G1140,التفاصيل!$M:$M,0)),IFERROR(J1140*I1140,\"\"))","v":""},""]
[null,null,null,null,null,null,null,null,null,"","",{"$f":"IF($E1141=\"كابينات\",INDEX(التفاصيل!$P:$P,MATCH('المعلومات '!$G1141,التفاصيل!$M:$M,0)),IFERROR(J1141*I1141,\"\"))","v":""},""]
[null,null,null,null,null,null,null,null,null,"","",{"$f":"IF($E1142=\"كابينات\",INDEX(التفاصيل!$P:$P,MATCH('المعلومات '!$G1142,التفاصيل!$M:$M,0)),IFERROR(J1142*I1142,\"\"))","v":""},""]
[null,null,null,null,null,null,null,null,null,"","",{"$f":"IF($E1143=\"كابينات\",INDEX(التفاصيل!$P:$P,MATCH('المعلومات '!$G1143,التفاصيل!$M:$M,0)),IFERROR(J1143*I1143,\"\"))","v":""},""]
[null,null,null,null,null,null,null,null,null,"","",{"$f":"IF($E1144=\"كابينات\",INDEX(التفاصيل!$P:$P,MATCH('المعلومات '!$G1144,التفاصيل!$M:$M,0)),IFERROR(J1144*I1144,\"\"))","v":""},""]
[null,null,null,null,null,null,null,null,null,"","",{"$f":"IF($E1145=\"كابينات\",INDEX(التفاصيل!$P:$P,MATCH('المعلومات '!$G1145,التفاصيل!$M:$M,0)),IFERROR(J1145*I1145,\"\"))","v":""},""]
[null,null,null,null,null,null,null,null,null,"","",{"$f":"IF($E1146=\"كابينات\",INDEX(التفاصيل!$P:$P,MATCH('المعلومات '!$G1146,التفاصيل!$M:$M,0)),IFERROR(J1146*I1146,\"\"))","v":""},""]
[null,null,null,null,null,null,null,null,null,"","",{"$f":"IF($E1147=\"كابينات\",INDEX(التفاصيل!$P:$P,MATCH('المعلومات '!$G1147,التفاصيل!$M:$M,0)),IFERROR(J1147*I1147,\"\"))","v":""},""]
[null,null,null,null,null,null,null,null,null,"","",{"$f":"IF($E1148=\"كابينات\",INDEX(التفاصيل!$P:$P,MATCH('المعلومات '!$G1148,التفاصيل!$M:$M,0)),IFERROR(J1148*I1148,\"\"))","v":""},""]
[null,null,null,null,null,null,null,null,null,"","",{"$f":"IF($E1149=\"كابينات\",INDEX(التفاصيل!$P:$P,MATCH('المعلومات '!$G1149,التفاصيل!$M:$M,0)),IFERROR(J1149*I1149,\"\"))","v":""},""]
[null,null,null,null,null,null,null,null,null,"","",{"$f":"IF($E1150=\"كابينات\",INDEX(التفاصيل!$P:$P,MATCH('المعلومات '!$G1150,التفاصيل!$M:$M,0)),IFERROR(J1150*I1150,\"\"))","v":""},""]
[null,null,null,null,null,null,null,null,null,"","",{"$f":"IF($E1151=\"كابينات\",INDEX(التفاصيل!$P:$P,MATCH('المعلومات '!$G1151,التفاصيل!$M:$M,0)),IFERROR(J1151*I1151,\"\"))","v":""},""]
[null,null,null,null,null,null,null,null,null,"","",{"$f":"IF($E1152=\"كابينات\",INDEX(التفاصيل!$P:$P,MATCH('المعلومات '!$G1152,التفاصيل!$M:$M,0)),IFERROR(J1152*I1152,\"\"))","v":""},""]
[null,null,null,null,null,null,null,null,null,"","",{"$f":"IF($E1153=\"كابينات\",INDEX(التفاصيل!$P:$P,MATCH('المعلومات '!$G1153,التفاصيل!$M:$M,0)),IFERROR(J1153*I1153,\"\"))","v":""},""]
[null,null,null,null,null,null,null,null,null,{"$f":"IF(E1154=\"\",\"\",VLOOKUP(E:E,$N$2:$O$12,2,0))","v":""},{"$f":"IF(E1154=\"\",\"\",VLOOKUP(E:E,$P$2:$Q$12,2,0))","v":""},{"$f":"IF($E1154=\"كابينات\",INDEX(التفاصيل!$P:$P,MATCH('المعلومات '!$G1154,التفاصيل!$M:$M,0)),IFERROR(J1154*I1154,\"\"))","v":""},""]
[null,null,null,null,null,null,null,null,null,"","",{"$f":"IF($E1155=\"كابينات\",INDEX(التفاصيل!$P:$P,MATCH('المعلومات '!$G1155,التفاصيل!$M:$M,0)),IFERROR(J1155*I1155,\"\"))","v":""},""]
[null,null,null,null,null,null,null,null,null,"","",{"$f":"IF($E1156=\"كابينات\",INDEX(التفاصيل!$P:$P,MATCH('المعلومات '!$G1156,التفاصيل!$M:$M,0)),IFERROR(J1156*I1156,\"\"))","v":""},""]
[null,null,null,null,null,null,null,null,null,"","",{"$f":"IF($E1157=\"كابينات\",INDEX(التفاصيل!$P:$P,MATCH('المعلومات '!$G1157,التفاصيل!$M:$M,0)),IFERROR(J1157*I1157,\"\"))","v":""},""]
[null,null,null,null,null,null,null,null,null,"","",{"$f":"IF($E1158=\"كابينات\",INDEX(التفاصيل!$P:$P,MATCH('المعلومات '!$G1158,التفاصيل!$M:$M,0)),IFERROR(J1158*I1158,\"\"))","v":""},""]
[null,null,null,null,null,null,null,null,null,"","",{"$f":"IF($E1159=\"كابينات\",INDEX(التفاصيل!$P:$P,MATCH('المعلومات '!$G1159,التفاصيل!$M:$M,0)),IFERROR(J1159*I1159,\"\"))","v":""},""]
[null,null,null,null,null,null,null,null,null,"","",{"$f":"IF($E1160=\"كابينات\",INDEX(التفاصيل!$P:$P,MATCH('المعلومات '!$G1160,التفاصيل!$M:$M,0)),IFERROR(J1160*I1160,\"\"))","v":""},""]
[null,null,null,null,null,null,null,null,null,"","",{"$f":"IF($E1161=\"كابينات\",INDEX(التفاصيل!$P:$P,MATCH('المعلومات '!$G1161,التفاصيل!$M:$M,0)),IFERROR(J1161*I1161,\"\"))","v":""},""]
[null,null,null,null,null,null,null,null,null,"","",{"$f":"IF($E1162=\"كابينات\",INDEX(التفاصيل!$P:$P,MATCH('المعلومات '!$G1162,التفاصيل!$M:$M,0)),IFERROR(J1162*I1162,\"\"))","v":""},""]
[null,null,null,null,null,null,null,null,null,"","",{"$f":"IF($E1163=\"كابينات\",INDEX(التفاصيل!$P:$P,MATCH('المعلومات '!$G1163,التفاصيل!$M:$M,0)),IFERROR(J1163*I1163,\"\"))","v":""},""]
[null,null,null,null,null,null,null,null,null,"","",{"$f":"IF($E1164=\"كابينات\",INDEX(التفاصيل!$P:$P,MATCH('المعلومات '!$G1164,التفاصيل!$M:$M,0)),IFERROR(J1164*I1164,\"\"))","v":""},""]
[null,null,null,null,null,null,null,null,null,"","",{"$f":"IF($E1165=\"كابينات\",INDEX(التفاصيل!$P:$P,MATCH('المعلومات '!$G1165,التفاصيل!$M:$M,0)),IFERROR(J1165*I1165,\"\"))","v":""},""]
[null,null,null,null,null,null,null,null,null,"","",{"$f":"IF($E1166=\"كابينات\",INDEX(التفاصيل!$P:$P,MATCH('المعلومات '!$G1166,التفاصيل!$M:$M,0)),IFERROR(J1166*I1166,\"\"))","v":""},""]
[null,null,null,null,null,null,null,null,null,"","",{"$f":"IF($E1167=\"كابينات\",INDEX(التفاصيل!$P:$P,MATCH('المعلومات '!$G1167,التفاصيل!$M:$M,0)),IFERROR(J1167*I1167,\"\"))","v":""},""]
[null,null,null,null,null,null,null,null,null,"","",{"$f":"IF($E1168=\"كابينات\",INDEX(التفاصيل!$P:$P,MATCH('المعلومات '!$G1168,التفاصيل!$M:$M,0)),IFERROR(J1168*I1168,\"\"))","v":""},""]
[null,null,null,null,null,null,null,null,null,"","",{"$f":"IF($E1169=\"كابينات\",INDEX(التفاصيل!$P:$P,MATCH('المعلومات '!$G1169,التفاصيل!$M:$M,0)),IFERROR(J1169*I1169,\"\"))","v":""},""]
[null,null,null,null,null,null,null,null,null,"","",{"$f":"IF($E1170=\"كابينات\",INDEX(التفاصيل!$P:$P,MATCH('المعلومات '!$G1170,التفاصيل!$M:$M,0)),IFERROR(J1170*I1170,\"\"))","v":""},{"$f":"IFERROR(H1170-L1170-(K1170*L1170),\"\")","v":""}]
[null,null,null,null,null,null,null,null,null,"","",{"$f":"IF($E1171=\"كابينات\",INDEX(التفاصيل!$P:$P,MATCH('المعلومات '!$G1171,التفاصيل!$M:$M,0)),IFERROR(J1171*I1171,\"\"))","v":""},""]
[null,null,null,null,null,null,null,null,null,"","",{"$f":"IF($E1172=\"كابينات\",INDEX(التفاصيل!$P:$P,MATCH('المعلومات '!$G1172,التفاصيل!$M:$M,0)),IFERROR(J1172*I1172,\"\"))","v":""},""]
[null,null,null,null,null,null,null,null,null,"","",{"$f":"IF($E1173=\"كابينات\",INDEX(التفاصيل!$P:$P,MATCH('المعلومات '!$G1173,التفاصيل!$M:$M,0)),IFERROR(J1173*I1173,\"\"))","v":""},""]
[null,null,null,null,null,null,null,null,null,"","",{"$f":"IF($E1174=\"كابينات\",INDEX(التفاصيل!$P:$P,MATCH('المعلومات '!$G1174,التفاصيل!$M:$M,0)),IFERROR(J1174*I1174,\"\"))","v":""},""]
[null,null,null,null,null,null,null,null,null,"","",{"$f":"IF($E1175=\"كابينات\",INDEX(التفاصيل!$P:$P,MATCH('المعلومات '!$G1175,التفاصيل!$M:$M,0)),IFERROR(J1175*I1175,\"\"))","v":""},""]
[null,null,null,null,null,null,null,null,null,"","",{"$f":"IF($E1176=\"كابينات\",INDEX(التفاصيل!$P:$P,MATCH('المعلومات '!$G1176,التفاصيل!$M:$M,0)),IFERROR(J1176*I1176,\"\"))","v":""},""]
[null,null,null,null,null,null,null,null,null,"","",{"$f":"IF($E1177=\"كابينات\",INDEX(التفاصيل!$P:$P,MATCH('المعلومات '!$G1177,التفاصيل!$M:$M,0)),IFERROR(J1177*I1177,\"\"))","v":""},""]
[null,null,null,null,null,null,null,null,null,"","",{"$f":"IF($E1178=\"كابينات\",INDEX(التفاصيل!$P:$P,MATCH('المعلومات '!$G1178,التفاصيل!$M:$M,0)),IFERROR(J1178*I1178,\"\"))","v":""},""]
[null,null,null,null,null,null,null,null,null,"","",{"$f":"IF($E1179=\"كابينات\",INDEX(التفاصيل!$P:$P,MATCH('المعلومات '!$G1179,التفاصيل!$M:$M,0)),IFERROR(J1179*I1179,\"\"))","v":""},""]
[null,null,null,null,null,null,null,null,null,"","",{"$f":"IF($E1180=\"كابينات\",INDEX(التفاصيل!$P:$P,MATCH('المعلومات '!$G1180,التفاصيل!$M:$M,0)),IFERROR(J1180*I1180,\"\"))","v":""},""]
[null,null,null,null,null,null,null,null,null,"","",{"$f":"IF($E1181=\"كابينات\",INDEX(التفاصيل!$P:$P,MATCH('المعلومات '!$G1181,التفاصيل!$M:$M,0)),IFERROR(J1181*I1181,\"\"))","v":""},""]
[null,null,null,null,null,null,null,null,null,"","",{"$f":"IF($E1182=\"كابينات\",INDEX(التفاصيل!$P:$P,MATCH('المعلومات '!$G1182,التفاصيل!$M:$M,0)),IFERROR(J1182*I1182,\"\"))","v":""},""]
[null,null,null,null,null,null,null,null,null,"","",{"$f":"IF($E1183=\"كابينات\",INDEX(التفاصيل!$P:$P,MATCH('المعلومات '!$G1183,التفاصيل!$M:$M,0)),IFERROR(J1183*I1183,\"\"))","v":""},""]
[null,null,null,null,null,null,null,null,null,"","",{"$f":"IF($E1184=\"كابينات\",INDEX(التفاصيل!$P:$P,MATCH('المعلومات '!$G1184,التفاصيل!$M:$M,0)),IFERROR(J1184*I1184,\"\"))","v":""},""]
[null,null,null,null,null,null,null,null,null,"","",{"$f":"IF($E1185=\"كابينات\",INDEX(التفاصيل!$P:$P,MATCH('المعلومات '!$G1185,التفاصيل!$M:$M,0)),IFERROR(J1185*I1185,\"\"))","v":""},""]
[null,null,null,null,null,null,null,null,null,"","",{"$f":"IF($E1186=\"كابينات\",INDEX(التفاصيل!$P:$P,MATCH('المعلومات '!$G1186,التفاصيل!$M:$M,0)),IFERROR(J1186*I1186,\"\"))","v":""},""]
[null,null,null,null,null,null,null,null,null,"","",{"$f":"IF($E1187=\"كابينات\",INDEX(التفاصيل!$P:$P,MATCH('المعلومات '!$G1187,التفاصيل!$M:$M,0)),IFERROR(J1187*I1187,\"\"))","v":""},""]
[null,null,null,null,null,null,null,null,null,"","",{"$f":"IF($E1188=\"كابينات\",INDEX(التفاصيل!$P:$P,MATCH('المعلومات '!$G1188,التفاصيل!$M:$M,0)),IFERROR(J1188*I1188,\"\"))","v":""},""]
[null,null,null,null,null,null,null,null,null,"","",{"$f":"IF($E1189=\"كابينات\",INDEX(التفاصيل!$P:$P,MATCH('المعلومات '!$G1189,التفاصيل!$M:$M,0)),IFERROR(J1189*I1189,\"\"))","v":""},""]
[null,null,null,null,null,null,null,null,null,"","",{"$f":"IF($E1190=\"كابينات\",INDEX(التفاصيل!$P:$P,MATCH('المعلومات '!$G1190,التفاصيل!$M:$M,0)),IFERROR(J1190*I1190,\"\"))","v":""},""]
[null,null,null,null,null,null,null,null,null,"","",{"$f":"IF($E1191=\"كابينات\",INDEX(التفاصيل!$P:$P,MATCH('المعلومات '!$G1191,التفاصيل!$M:$M,0)),IFERROR(J1191*I1191,\"\"))","v":""},""]
[null,null,null,null,null,null,null,null,null,"","",{"$f":"IF($E1192=\"كابينات\",INDEX(التفاصيل!$P:$P,MATCH('المعلومات '!$G1192,التفاصيل!$M:$M,0)),IFERROR(J1192*I1192,\"\"))","v":""},""]
[null,null,null,null,null,null,null,null,null,"","",{"$f":"IF($E1193=\"كابينات\",INDEX(التفاصيل!$P:$P,MATCH('المعلومات '!$G1193,التفاصيل!$M:$M,0)),IFERROR(J1193*I1193,\"\"))","v":""},""]
[null,null,null,null,null,null,null,null,null,"","",{"$f":"IF($E1194=\"كابينات\",INDEX(التفاصيل!$P:$P,MATCH('المعلومات '!$G1194,التفاصيل!$M:$M,0)),IFERROR(J1194*I1194,\"\"))","v":""},""]
[null,null,null,null,null,null,null,null,null,"","",{"$f":"IF($E1195=\"كابينات\",INDEX(التفاصيل!$P:$P,MATCH('المعلومات '!$G1195,التفاصيل!$M:$M,0)),IFERROR(J1195*I1195,\"\"))","v":""},""]
[null,null,null,null,null,null,null,null,null,"","",{"$f":"IF($E1196=\"كابينات\",INDEX(التفاصيل!$P:$P,MATCH('المعلومات '!$G1196,التفاصيل!$M:$M,0)),IFERROR(J1196*I1196,\"\"))","v":""},""]
[null,null,null,null,null,null,null,null,null,"","",{"$f":"IF($E1197=\"كابينات\",INDEX(التفاصيل!$P:$P,MATCH('المعلومات '!$G1197,التفاصيل!$M:$M,0)),IFERROR(J1197*I1197,\"\"))","v":""},""]
[null,null,null,null,null,null,null,null,null,"","",{"$f":"IF($E1198=\"كابينات\",INDEX(التفاصيل!$P:$P,MATCH('المعلومات '!$G1198,التفاصيل!$M:$M,0)),IFERROR(J1198*I1198,\"\"))","v":""},""]
[null,null,null,null,null,null,null,null,null,"","",{"$f":"IF($E1199=\"كابينات\",INDEX(التفاصيل!$P:$P,MATCH('المعلومات '!$G1199,التفاصيل!$M:$M,0)),IFERROR(J1199*I1199,\"\"))","v":""},""]
[null,null,null,null,null,null,null,null,null,"","",{"$f":"IF($E1200=\"كابينات\",INDEX(التفاصيل!$P:$P,MATCH('المعلومات '!$G1200,التفاصيل!$M:$M,0)),IFERROR(J1200*I1200,\"\"))","v":""},""]
[null,null,null,null,null,null,null,null,null,"","",{"$f":"IF($E1201=\"كابينات\",INDEX(التفاصيل!$P:$P,MATCH('المعلومات '!$G1201,التفاصيل!$M:$M,0)),IFERROR(J1201*I1201,\"\"))","v":""},""]
[null,null,null,null,null,null,null,null,null,"","",{"$f":"IF($E1202=\"كابينات\",INDEX(التفاصيل!$P:$P,MATCH('المعلومات '!$G1202,التفاصيل!$M:$M,0)),IFERROR(J1202*I1202,\"\"))","v":""},""]
[null,null,null,null,null,null,null,null,null,"","",{"$f":"IF($E1203=\"كابينات\",INDEX(التفاصيل!$P:$P,MATCH('المعلومات '!$G1203,التفاصيل!$M:$M,0)),IFERROR(J1203*I1203,\"\"))","v":""},""]
[null,null,null,null,null,null,null,null,null,"","",{"$f":"IF($E1204=\"كابينات\",INDEX(التفاصيل!$P:$P,MATCH('المعلومات '!$G1204,التفاصيل!$M:$M,0)),IFERROR(J1204*I1204,\"\"))","v":""},""]
[null,null,null,null,null,null,null,null,null,"","",{"$f":"IF($E1205=\"كابينات\",INDEX(التفاصيل!$P:$P,MATCH('المعلومات '!$G1205,التفاصيل!$M:$M,0)),IFERROR(J1205*I1205,\"\"))","v":""},""]
[null,null,null,null,null,null,null,null,null,"","",{"$f":"IF($E1206=\"كابينات\",INDEX(التفاصيل!$P:$P,MATCH('المعلومات '!$G1206,التفاصيل!$M:$M,0)),IFERROR(J1206*I1206,\"\"))","v":""},""]
[null,null,null,null,null,null,null,null,null,"","",{"$f":"IF($E1207=\"كابينات\",INDEX(التفاصيل!$P:$P,MATCH('المعلومات '!$G1207,التفاصيل!$M:$M,0)),IFERROR(J1207*I1207,\"\"))","v":""},""]
[null,null,null,null,null,null,null,null,null,"","",{"$f":"IF($E1208=\"كابينات\",INDEX(التفاصيل!$P:$P,MATCH('المعلومات '!$G1208,التفاصيل!$M:$M,0)),IFERROR(J1208*I1208,\"\"))","v":""},""]
[null,null,null,null,null,null,null,null,null,"","",{"$f":"IF($E1209=\"كابينات\",INDEX(التفاصيل!$P:$P,MATCH('المعلومات '!$G1209,التفاصيل!$M:$M,0)),IFERROR(J1209*I1209,\"\"))","v":""},""]
[null,null,null,null,null,null,null,null,null,"","",{"$f":"IF($E1210=\"كابينات\",INDEX(التفاصيل!$P:$P,MATCH('المعلومات '!$G1210,التفاصيل!$M:$M,0)),IFERROR(J1210*I1210,\"\"))","v":""},""]
[null,null,null,null,null,null,null,null,null,"","",{"$f":"IF($E1211=\"كابينات\",INDEX(التفاصيل!$P:$P,MATCH('المعلومات '!$G1211,التفاصيل!$M:$M,0)),IFERROR(J1211*I1211,\"\"))","v":""},""]
[null,null,null,null,null,null,null,null,null,"","",{"$f":"IF($E1212=\"كابينات\",INDEX(التفاصيل!$P:$P,MATCH('المعلومات '!$G1212,التفاصيل!$M:$M,0)),IFERROR(J1212*I1212,\"\"))","v":""},""]
[null,null,null,null,null,null,null,null,null,"","",{"$f":"IF($E1213=\"كابينات\",INDEX(التفاصيل!$P:$P,MATCH('المعلومات '!$G1213,التفاصيل!$M:$M,0)),IFERROR(J1213*I1213,\"\"))","v":""},""]
[null,null,null,null,null,null,null,null,null,"","",{"$f":"IF($E1214=\"كابينات\",INDEX(التفاصيل!$P:$P,MATCH('المعلومات '!$G1214,التفاصيل!$M:$M,0)),IFERROR(J1214*I1214,\"\"))","v":""},""]
[null,null,null,null,null,null,null,null,null,"","",{"$f":"IF($E1215=\"كابينات\",INDEX(التفاصيل!$P:$P,MATCH('المعلومات '!$G1215,التفاصيل!$M:$M,0)),IFERROR(J1215*I1215,\"\"))","v":""},""]
[null,null,null,null,null,null,null,null,null,"","",{"$f":"IF($E1216=\"كابينات\",INDEX(التفاصيل!$P:$P,MATCH('المعلومات '!$G1216,التفاصيل!$M:$M,0)),IFERROR(J1216*I1216,\"\"))","v":""},""]
[null,null,null,null,null,null,null,null,null,"","",{"$f":"IF($E1217=\"كابينات\",INDEX(التفاصيل!$P:$P,MATCH('المعلومات '!$G1217,التفاصيل!$M:$M,0)),IFERROR(J1217*I1217,\"\"))","v":""},""]
[null,null,null,null,null,null,null,null,null,{"$f":"IF(E1218=\"\",\"\",VLOOKUP(E:E,$N$2:$O$12,2,0))","v":""},{"$f":"IF(E1218=\"\",\"\",VLOOKUP(E:E,$P$2:$Q$12,2,0))","v":""},{"$f":"IF($E1218=\"كابينات\",INDEX(التفاصيل!$P:$P,MATCH('المعلومات '!$G1218,التفاصيل!$M:$M,0)),IFERROR(J1218*I1218,\"\"))","v":""},""]
[null,null,null,null,null,null,null,null,null,"","",{"$f":"IF($E1219=\"كابينات\",INDEX(التفاصيل!$P:$P,MATCH('المعلومات '!$G1219,التفاصيل!$M:$M,0)),IFERROR(J1219*I1219,\"\"))","v":""},""]
[null,null,null,null,null,null,null,null,null,"","",{"$f":"IF($E1220=\"كابينات\",INDEX(التفاصيل!$P:$P,MATCH('المعلومات '!$G1220,التفاصيل!$M:$M,0)),IFERROR(J1220*I1220,\"\"))","v":""},""]
[null,null,null,null,null,null,null,null,null,"","",{"$f":"IF($E1221=\"كابينات\",INDEX(التفاصيل!$P:$P,MATCH('المعلومات '!$G1221,التفاصيل!$M:$M,0)),IFERROR(J1221*I1221,\"\"))","v":""},""]
[null,null,null,null,null,null,null,null,null,"","",{"$f":"IF($E1222=\"كابينات\",INDEX(التفاصيل!$P:$P,MATCH('المعلومات '!$G1222,التفاصيل!$M:$M,0)),IFERROR(J1222*I1222,\"\"))","v":""},""]
[null,null,null,null,null,null,null,null,null,"","",{"$f":"IF($E1223=\"كابينات\",INDEX(التفاصيل!$P:$P,MATCH('المعلومات '!$G1223,التفاصيل!$M:$M,0)),IFERROR(J1223*I1223,\"\"))","v":""},""]
[null,null,null,null,null,null,null,null,null,"","",{"$f":"IF($E1224=\"كابينات\",INDEX(التفاصيل!$P:$P,MATCH('المعلومات '!$G1224,التفاصيل!$M:$M,0)),IFERROR(J1224*I1224,\"\"))","v":""},""]
[null,null,null,null,null,null,null,null,null,"","",{"$f":"IF($E1225=\"كابينات\",INDEX(التفاصيل!$P:$P,MATCH('المعلومات '!$G1225,التفاصيل!$M:$M,0)),IFERROR(J1225*I1225,\"\"))","v":""},""]
[null,null,null,null,null,null,null,null,null,"","",{"$f":"IF($E1226=\"كابينات\",INDEX(التفاصيل!$P:$P,MATCH('المعلومات '!$G1226,التفاصيل!$M:$M,0)),IFERROR(J1226*I1226,\"\"))","v":""},""]
[null,null,null,null,null,null,null,null,null,"","",{"$f":"IF($E1227=\"كابينات\",INDEX(التفاصيل!$P:$P,MATCH('المعلومات '!$G1227,التفاصيل!$M:$M,0)),IFERROR(J1227*I1227,\"\"))","v":""},""]
[null,null,null,null,null,null,null,null,null,"","",{"$f":"IF($E1228=\"كابينات\",INDEX(التفاصيل!$P:$P,MATCH('المعلومات '!$G1228,التفاصيل!$M:$M,0)),IFERROR(J1228*I1228,\"\"))","v":""},""]
[null,null,null,null,null,null,null,null,null,"","",{"$f":"IF($E1229=\"كابينات\",INDEX(التفاصيل!$P:$P,MATCH('المعلومات '!$G1229,التفاصيل!$M:$M,0)),IFERROR(J1229*I1229,\"\"))","v":""},""]
[null,null,null,null,null,null,null,null,null,"","",{"$f":"IF($E1230=\"كابينات\",INDEX(التفاصيل!$P:$P,MATCH('المعلومات '!$G1230,التفاصيل!$M:$M,0)),IFERROR(J1230*I1230,\"\"))","v":""},""]
[null,null,null,null,null,null,null,null,null,"","",{"$f":"IF($E1231=\"كابينات\",INDEX(التفاصيل!$P:$P,MATCH('المعلومات '!$G1231,التفاصيل!$M:$M,0)),IFERROR(J1231*I1231,\"\"))","v":""},""]
[null,null,null,null,null,null,null,null,null,"","",{"$f":"IF($E1232=\"كابينات\",INDEX(التفاصيل!$P:$P,MATCH('المعلومات '!$G1232,التفاصيل!$M:$M,0)),IFERROR(J1232*I1232,\"\"))","v":""},""]
[null,null,null,null,null,null,null,null,null,"","",{"$f":"IF($E1233=\"كابينات\",INDEX(التفاصيل!$P:$P,MATCH('المعلومات '!$G1233,التفاصيل!$M:$M,0)),IFERROR(J1233*I1233,\"\"))","v":""},""]
[null,null,null,null,null,null,null,null,null,"","",{"$f":"IF($E1234=\"كابينات\",INDEX(التفاصيل!$P:$P,MATCH('المعلومات '!$G1234,التفاصيل!$M:$M,0)),IFERROR(J1234*I1234,\"\"))","v":""},{"$f":"IFERROR(H1234-L1234-(K1234*L1234),\"\")","v":""}]
[null,null,null,null,null,null,null,null,null,"","",{"$f":"IF($E1235=\"كابينات\",INDEX(التفاصيل!$P:$P,MATCH('المعلومات '!$G1235,التفاصيل!$M:$M,0)),IFERROR(J1235*I1235,\"\"))","v":""},""]
[null,null,null,null,null,null,null,null,null,"","",{"$f":"IF($E1236=\"كابينات\",INDEX(التفاصيل!$P:$P,MATCH('المعلومات '!$G1236,التفاصيل!$M:$M,0)),IFERROR(J1236*I1236,\"\"))","v":""},""]
[null,null,null,null,null,null,null,null,null,"","",{"$f":"IF($E1237=\"كابينات\",INDEX(التفاصيل!$P:$P,MATCH('المعلومات '!$G1237,التفاصيل!$M:$M,0)),IFERROR(J1237*I1237,\"\"))","v":""},""]
[null,null,null,null,null,null,null,null,null,"","",{"$f":"IF($E1238=\"كابينات\",INDEX(التفاصيل!$P:$P,MATCH('المعلومات '!$G1238,التفاصيل!$M:$M,0)),IFERROR(J1238*I1238,\"\"))","v":""},""]
[null,null,null,null,null,null,null,null,null,"","",{"$f":"IF($E1239=\"كابينات\",INDEX(التفاصيل!$P:$P,MATCH('المعلومات '!$G1239,التفاصيل!$M:$M,0)),IFERROR(J1239*I1239,\"\"))","v":""},""]
[null,null,null,null,null,null,null,null,null,"","",{"$f":"IF($E1240=\"كابينات\",INDEX(التفاصيل!$P:$P,MATCH('المعلومات '!$G1240,التفاصيل!$M:$M,0)),IFERROR(J1240*I1240,\"\"))","v":""},""]
[null,null,null,null,null,null,null,null,null,"","",{"$f":"IF($E1241=\"كابينات\",INDEX(التفاصيل!$P:$P,MATCH('المعلومات '!$G1241,التفاصيل!$M:$M,0)),IFERROR(J1241*I1241,\"\"))","v":""},""]
[null,null,null,null,null,null,null,null,null,"","",{"$f":"IF($E1242=\"كابينات\",INDEX(التفاصيل!$P:$P,MATCH('المعلومات '!$G1242,التفاصيل!$M:$M,0)),IFERROR(J1242*I1242,\"\"))","v":""},""]
[null,null,null,null,null,null,null,null,null,"","",{"$f":"IF($E1243=\"كابينات\",INDEX(التفاصيل!$P:$P,MATCH('المعلومات '!$G1243,التفاصيل!$M:$M,0)),IFERROR(J1243*I1243,\"\"))","v":""},""]
[null,null,null,null,null,null,null,null,null,"","",{"$f":"IF($E1244=\"كابينات\",INDEX(التفاصيل!$P:$P,MATCH('المعلومات '!$G1244,التفاصيل!$M:$M,0)),IFERROR(J1244*I1244,\"\"))","v":""},""]
[null,null,null,null,null,null,null,null,null,"","",{"$f":"IF($E1245=\"كابينات\",INDEX(التفاصيل!$P:$P,MATCH('المعلومات '!$G1245,التفاصيل!$M:$M,0)),IFERROR(J1245*I1245,\"\"))","v":""},""]
[null,null,null,null,null,null,null,null,null,"","",{"$f":"IF($E1246=\"كابينات\",INDEX(التفاصيل!$P:$P,MATCH('المعلومات '!$G1246,التفاصيل!$M:$M,0)),IFERROR(J1246*I1246,\"\"))","v":""},""]
[null,null,null,null,null,null,null,null,null,"","",{"$f":"IF($E1247=\"كابينات\",INDEX(التفاصيل!$P:$P,MATCH('المعلومات '!$G1247,التفاصيل!$M:$M,0)),IFERROR(J1247*I1247,\"\"))","v":""},""]
[null,null,null,null,null,null,null,null,null,"","",{"$f":"IF($E1248=\"كابينات\",INDEX(التفاصيل!$P:$P,MATCH('المعلومات '!$G1248,التفاصيل!$M:$M,0)),IFERROR(J1248*I1248,\"\"))","v":""},""]
[null,null,null,null,null,null,null,null,null,"","",{"$f":"IF($E1249=\"كابينات\",INDEX(التفاصيل!$P:$P,MATCH('المعلومات '!$G1249,التفاصيل!$M:$M,0)),IFERROR(J1249*I1249,\"\"))","v":""},""]
[null,null,null,null,null,null,null,null,null,"","",{"$f":"IF($E1250=\"كابينات\",INDEX(التفاصيل!$P:$P,MATCH('المعلومات '!$G1250,التفاصيل!$M:$M,0)),IFERROR(J1250*I1250,\"\"))","v":""},""]
[null,null,null,null,null,null,null,null,null,"","",{"$f":"IF($E1251=\"كابينات\",INDEX(التفاصيل!$P:$P,MATCH('المعلومات '!$G1251,التفاصيل!$M:$M,0)),IFERROR(J1251*I1251,\"\"))","v":""},""]
[null,null,null,null,null,null,null,null,null,"","",{"$f":"IF($E1252=\"كابينات\",INDEX(التفاصيل!$P:$P,MATCH('المعلومات '!$G1252,التفاصيل!$M:$M,0)),IFERROR(J1252*I1252,\"\"))","v":""},""]
[null,null,null,null,null,null,null,null,null,"","",{"$f":"IF($E1253=\"كابينات\",INDEX(التفاصيل!$P:$P,MATCH('المعلومات '!$G1253,التفاصيل!$M:$M,0)),IFERROR(J1253*I1253,\"\"))","v":""},""]
[null,null,null,null,null,null,null,null,null,"","",{"$f":"IF($E1254=\"كابينات\",INDEX(التفاصيل!$P:$P,MATCH('المعلومات '!$G1254,التفاصيل!$M:$M,0)),IFERROR(J1254*I1254,\"\"))","v":""},""]
[null,null,null,null,null,null,null,null,null,"","",{"$f":"IF($E1255=\"كابينات\",INDEX(التفاصيل!$P:$P,MATCH('المعلومات '!$G1255,التفاصيل!$M:$M,0)),IFERROR(J1255*I1255,\"\"))","v":""},""]
[null,null,null,null,null,null,null,null,null,"","",{"$f":"IF($E1256=\"كابينات\",INDEX(التفاصيل!$P:$P,MATCH('المعلومات '!$G1256,التفاصيل!$M:$M,0)),IFERROR(J1256*I1256,\"\"))","v":""},""]
[null,null,null,null,null,null,null,null,null,"","",{"$f":"IF($E1257=\"كابينات\",INDEX(التفاصيل!$P:$P,MATCH('المعلومات '!$G1257,التفاصيل!$M:$M,0)),IFERROR(J1257*I1257,\"\"))","v":""},""]
[null,null,null,null,null,null,null,null,null,"","",{"$f":"IF($E1258=\"كابينات\",INDEX(التفاصيل!$P:$P,MATCH('المعلومات '!$G1258,التفاصيل!$M:$M,0)),IFERROR(J1258*I1258,\"\"))","v":""},""]
[null,null,null,null,null,null,null,null,null,"","",{"$f":"IF($E1259=\"كابينات\",INDEX(التفاصيل!$P:$P,MATCH('المعلومات '!$G1259,التفاصيل!$M:$M,0)),IFERROR(J1259*I1259,\"\"))","v":""},""]
[null,null,null,null,null,null,null,null,null,"","",{"$f":"IF($E1260=\"كابينات\",INDEX(التفاصيل!$P:$P,MATCH('المعلومات '!$G1260,التفاصيل!$M:$M,0)),IFERROR(J1260*I1260,\"\"))","v":""},""]
[null,null,null,null,null,null,null,null,null,"","",{"$f":"IF($E1261=\"كابينات\",INDEX(التفاصيل!$P:$P,MATCH('المعلومات '!$G1261,التفاصيل!$M:$M,0)),IFERROR(J1261*I1261,\"\"))","v":""},""]
[null,null,null,null,null,null,null,null,null,"","",{"$f":"IF($E1262=\"كابينات\",INDEX(التفاصيل!$P:$P,MATCH('المعلومات '!$G1262,التفاصيل!$M:$M,0)),IFERROR(J1262*I1262,\"\"))","v":""},""]
[null,null,null,null,null,null,null,null,null,"","",{"$f":"IF($E1263=\"كابينات\",INDEX(التفاصيل!$P:$P,MATCH('المعلومات '!$G1263,التفاصيل!$M:$M,0)),IFERROR(J1263*I1263,\"\"))","v":""},""]
[null,null,null,null,null,null,null,null,null,"","",{"$f":"IF($E1264=\"كابينات\",INDEX(التفاصيل!$P:$P,MATCH('المعلومات '!$G1264,التفاصيل!$M:$M,0)),IFERROR(J1264*I1264,\"\"))","v":""},""]
[null,null,null,null,null,null,null,null,null,"","",{"$f":"IF($E1265=\"كابينات\",INDEX(التفاصيل!$P:$P,MATCH('المعلومات '!$G1265,التفاصيل!$M:$M,0)),IFERROR(J1265*I1265,\"\"))","v":""},""]
[null,null,null,null,null,null,null,null,null,"","",{"$f":"IF($E1266=\"كابينات\",INDEX(التفاصيل!$P:$P,MATCH('المعلومات '!$G1266,التفاصيل!$M:$M,0)),IFERROR(J1266*I1266,\"\"))","v":""},""]
[null,null,null,null,null,null,null,null,null,"","",{"$f":"IF($E1267=\"كابينات\",INDEX(التفاصيل!$P:$P,MATCH('المعلومات '!$G1267,التفاصيل!$M:$M,0)),IFERROR(J1267*I1267,\"\"))","v":""},""]
[null,null,null,null,null,null,null,null,null,"","",{"$f":"IF($E1268=\"كابينات\",INDEX(التفاصيل!$P:$P,MATCH('المعلومات '!$G1268,التفاصيل!$M:$M,0)),IFERROR(J1268*I1268,\"\"))","v":""},""]
[null,null,null,null,null,null,null,null,null,"","",{"$f":"IF($E1269=\"كابينات\",INDEX(التفاصيل!$P:$P,MATCH('المعلومات '!$G1269,التفاصيل!$M:$M,0)),IFERROR(J1269*I1269,\"\"))","v":""},""]
[null,null,null,null,null,null,null,null,null,"","",{"$f":"IF($E1270=\"كابينات\",INDEX(التفاصيل!$P:$P,MATCH('المعلومات '!$G1270,التفاصيل!$M:$M,0)),IFERROR(J1270*I1270,\"\"))","v":""},""]
[null,null,null,null,null,null,null,null,null,"","",{"$f":"IF($E1271=\"كابينات\",INDEX(التفاصيل!$P:$P,MATCH('المعلومات '!$G1271,التفاصيل!$M:$M,0)),IFERROR(J1271*I1271,\"\"))","v":""},""]
[null,null,null,null,null,null,null,null,null,"","",{"$f":"IF($E1272=\"كابينات\",INDEX(التفاصيل!$P:$P,MATCH('المعلومات '!$G1272,التفاصيل!$M:$M,0)),IFERROR(J1272*I1272,\"\"))","v":""},""]
[null,null,null,null,null,null,null,null,null,"","",{"$f":"IF($E1273=\"كابينات\",INDEX(التفاصيل!$P:$P,MATCH('المعلومات '!$G1273,التفاصيل!$M:$M,0)),IFERROR(J1273*I1273,\"\"))","v":""},""]
[null,null,null,null,null,null,null,null,null,"","",{"$f":"IF($E1274=\"كابينات\",INDEX(التفاصيل!$P:$P,MATCH('المعلومات '!$G1274,التفاصيل!$M:$M,0)),IFERROR(J1274*I1274,\"\"))","v":""},""]
[null,null,null,null,null,null,null,null,null,"","",{"$f":"IF($E1275=\"كابينات\",INDEX(التفاصيل!$P:$P,MATCH('المعلومات '!$G1275,التفاصيل!$M:$M,0)),IFERROR(J1275*I1275,\"\"))","v":""},""]
[null,null,null,null,null,null,null,null,null,"","",{"$f":"IF($E1276=\"كابينات\",INDEX(التفاصيل!$P:$P,MATCH('المعلومات '!$G1276,التفاصيل!$M:$M,0)),IFERROR(J1276*I1276,\"\"))","v":""},""]
[null,null,null,null,null,null,null,null,null,"","",{"$f":"IF($E1277=\"كابينات\",INDEX(التفاصيل!$P:$P,MATCH('المعلومات '!$G1277,التفاصيل!$M:$M,0)),IFERROR(J1277*I1277,\"\"))","v":""},""]
[null,null,null,null,null,null,null,null,null,"","",{"$f":"IF($E1278=\"كابينات\",INDEX(التفاصيل!$P:$P,MATCH('المعلومات '!$G1278,التفاصيل!$M:$M,0)),IFERROR(J1278*I1278,\"\"))","v":""},""]
[null,null,null,null,null,null,null,null,null,"","",{"$f":"IF($E1279=\"كابينات\",INDEX(التفاصيل!$P:$P,MATCH('المعلومات '!$G1279,التفاصيل!$M:$M,0)),IFERROR(J1279*I1279,\"\"))","v":""},""]
[null,null,null,null,null,null,null,null,null,"","",{"$f":"IF($E1280=\"كابينات\",INDEX(التفاصيل!$P:$P,MATCH('المعلومات '!$G1280,التفاصيل!$M:$M,0)),IFERROR(J1280*I1280,\"\"))","v":""},""]
[null,null,null,null,null,null,null,null,null,"","",{"$f":"IF($E1281=\"كابينات\",INDEX(التفاصيل!$P:$P,MATCH('المعلومات '!$G1281,التفاصيل!$M:$M,0)),IFERROR(J1281*I1281,\"\"))","v":""},""]
[null,null,null,null,null,null,null,null,null,{"$f":"IF(E1282=\"\",\"\",VLOOKUP(E:E,$N$2:$O$12,2,0))","v":""},{"$f":"IF(E1282=\"\",\"\",VLOOKUP(E:E,$P$2:$Q$12,2,0))","v":""},{"$f":"IF($E1282=\"كابينات\",INDEX(التفاصيل!$P:$P,MATCH('المعلومات '!$G1282,التفاصيل!$M:$M,0)),IFERROR(J1282*I1282,\"\"))","v":""},""]
[null,null,null,null,null,null,null,null,null,"","",{"$f":"IF($E1283=\"كابينات\",INDEX(التفاصيل!$P:$P,MATCH('المعلومات '!$G1283,التفاصيل!$M:$M,0)),IFERROR(J1283*I1283,\"\"))","v":""},""]
[null,null,null,null,null,null,null,null,null,"","",{"$f":"IF($E1284=\"كابينات\",INDEX(التفاصيل!$P:$P,MATCH('المعلومات '!$G1284,التفاصيل!$M:$M,0)),IFERROR(J1284*I1284,\"\"))","v":""},""]
[null,null,null,null,null,null,null,null,null,"","",{"$f":"IF($E1285=\"كابينات\",INDEX(التفاصيل!$P:$P,MATCH('المعلومات '!$G1285,التفاصيل!$M:$M,0)),IFERROR(J1285*I1285,\"\"))","v":""},""]
[null,null,null,null,null,null,null,null,null,"","",{"$f":"IF($E1286=\"كابينات\",INDEX(التفاصيل!$P:$P,MATCH('المعلومات '!$G1286,التفاصيل!$M:$M,0)),IFERROR(J1286*I1286,\"\"))","v":""},""]
[null,null,null,null,null,null,null,null,null,"","",{"$f":"IF($E1287=\"كابينات\",INDEX(التفاصيل!$P:$P,MATCH('المعلومات '!$G1287,التفاصيل!$M:$M,0)),IFERROR(J1287*I1287,\"\"))","v":""},""]
[null,null,null,null,null,null,null,null,null,"","",{"$f":"IF($E1288=\"كابينات\",INDEX(التفاصيل!$P:$P,MATCH('المعلومات '!$G1288,التفاصيل!$M:$M,0)),IFERROR(J1288*I1288,\"\"))","v":""},""]
[null,null,null,null,null,null,null,null,null,"","",{"$f":"IF($E1289=\"كابينات\",INDEX(التفاصيل!$P:$P,MATCH('المعلومات '!$G1289,التفاصيل!$M:$M,0)),IFERROR(J1289*I1289,\"\"))","v":""},""]
[null,null,null,null,null,null,null,null,null,"","",{"$f":"IF($E1290=\"كابينات\",INDEX(التفاصيل!$P:$P,MATCH('المعلومات '!$G1290,التفاصيل!$M:$M,0)),IFERROR(J1290*I1290,\"\"))","v":""},""]
[null,null,null,null,null,null,null,null,null,"","",{"$f":"IF($E1291=\"كابينات\",INDEX(التفاصيل!$P:$P,MATCH('المعلومات '!$G1291,التفاصيل!$M:$M,0)),IFERROR(J1291*I1291,\"\"))","v":""},""]
[null,null,null,null,null,null,null,null,null,"","",{"$f":"IF($E1292=\"كابينات\",INDEX(التفاصيل!$P:$P,MATCH('المعلومات '!$G1292,التفاصيل!$M:$M,0)),IFERROR(J1292*I1292,\"\"))","v":""},""]
[null,null,null,null,null,null,null,null,null,"","",{"$f":"IF($E1293=\"كابينات\",INDEX(التفاصيل!$P:$P,MATCH('المعلومات '!$G1293,التفاصيل!$M:$M,0)),IFERROR(J1293*I1293,\"\"))","v":""},""]
[null,null,null,null,null,null,null,null,null,"","",{"$f":"IF($E1294=\"كابينات\",INDEX(التفاصيل!$P:$P,MATCH('المعلومات '!$G1294,التفاصيل!$M:$M,0)),IFERROR(J1294*I1294,\"\"))","v":""},""]
[null,null,null,null,null,null,null,null,null,"","",{"$f":"IF($E1295=\"كابينات\",INDEX(التفاصيل!$P:$P,MATCH('المعلومات '!$G1295,التفاصيل!$M:$M,0)),IFERROR(J1295*I1295,\"\"))","v":""},""]
[null,null,null,null,null,null,null,null,null,"","",{"$f":"IF($E1296=\"كابينات\",INDEX(التفاصيل!$P:$P,MATCH('المعلومات '!$G1296,التفاصيل!$M:$M,0)),IFERROR(J1296*I1296,\"\"))","v":""},""]
[null,null,null,null,null,null,null,null,null,"","",{"$f":"IF($E1297=\"كابينات\",INDEX(التفاصيل!$P:$P,MATCH('المعلومات '!$G1297,التفاصيل!$M:$M,0)),IFERROR(J1297*I1297,\"\"))","v":""},""]
[null,null,null,null,null,null,null,null,null,"","",{"$f":"IF($E1298=\"كابينات\",INDEX(التفاصيل!$P:$P,MATCH('المعلومات '!$G1298,التفاصيل!$M:$M,0)),IFERROR(J1298*I1298,\"\"))","v":""},{"$f":"IFERROR(H1298-L1298-(K1298*L1298),\"\")","v":""}]
[null,null,null,null,null,null,null,null,null,"","",{"$f":"IF($E1299=\"كابينات\",INDEX(التفاصيل!$P:$P,MATCH('المعلومات '!$G1299,التفاصيل!$M:$M,0)),IFERROR(J1299*I1299,\"\"))","v":""},""]
[null,null,null,null,null,null,null,null,null,"","",{"$f":"IF($E1300=\"كابينات\",INDEX(التفاصيل!$P:$P,MATCH('المعلومات '!$G1300,التفاصيل!$M:$M,0)),IFERROR(J1300*I1300,\"\"))","v":""},""]
[null,null,null,null,null,null,null,null,null,"","",{"$f":"IF($E1301=\"كابينات\",INDEX(التفاصيل!$P:$P,MATCH('المعلومات '!$G1301,التفاصيل!$M:$M,0)),IFERROR(J1301*I1301,\"\"))","v":""},""]
[null,null,null,null,null,null,null,null,null,"","",{"$f":"IF($E1302=\"كابينات\",INDEX(التفاصيل!$P:$P,MATCH('المعلومات '!$G1302,التفاصيل!$M:$M,0)),IFERROR(J1302*I1302,\"\"))","v":""},""]
[null,null,null,null,null,null,null,null,null,"","",{"$f":"IF($E1303=\"كابينات\",INDEX(التفاصيل!$P:$P,MATCH('المعلومات '!$G1303,التفاصيل!$M:$M,0)),IFERROR(J1303*I1303,\"\"))","v":""},""]
[null,null,null,null,null,null,null,null,null,"","",{"$f":"IF($E1304=\"كابينات\",INDEX(التفاصيل!$P:$P,MATCH('المعلومات '!$G1304,التفاصيل!$M:$M,0)),IFERROR(J1304*I1304,\"\"))","v":""},""]
[null,null,null,null,null,null,null,null,null,"","",{"$f":"IF($E1305=\"كابينات\",INDEX(التفاصيل!$P:$P,MATCH('المعلومات '!$G1305,التفاصيل!$M:$M,0)),IFERROR(J1305*I1305,\"\"))","v":""},""]
[null,null,null,null,null,null,null,null,null,"","",{"$f":"IF($E1306=\"كابينات\",INDEX(التفاصيل!$P:$P,MATCH('المعلومات '!$G1306,التفاصيل!$M:$M,0)),IFERROR(J1306*I1306,\"\"))","v":""},""]
[null,null,null,null,null,null,null,null,null,"","",{"$f":"IF($E1307=\"كابينات\",INDEX(التفاصيل!$P:$P,MATCH('المعلومات '!$G1307,التفاصيل!$M:$M,0)),IFERROR(J1307*I1307,\"\"))","v":""},""]
[null,null,null,null,null,null,null,null,null,"","",{"$f":"IF($E1308=\"كابينات\",INDEX(التفاصيل!$P:$P,MATCH('المعلومات '!$G1308,التفاصيل!$M:$M,0)),IFERROR(J1308*I1308,\"\"))","v":""},""]
[null,null,null,null,null,null,null,null,null,"","",{"$f":"IF($E1309=\"كابينات\",INDEX(التفاصيل!$P:$P,MATCH('المعلومات '!$G1309,التفاصيل!$M:$M,0)),IFERROR(J1309*I1309,\"\"))","v":""},""]
[null,null,null,null,null,null,null,null,null,"","",{"$f":"IF($E1310=\"كابينات\",INDEX(التفاصيل!$P:$P,MATCH('المعلومات '!$G1310,التفاصيل!$M:$M,0)),IFERROR(J1310*I1310,\"\"))","v":""},""]
[null,null,null,null,null,null,null,null,null,"","",{"$f":"IF($E1311=\"كابينات\",INDEX(التفاصيل!$P:$P,MATCH('المعلومات '!$G1311,التفاصيل!$M:$M,0)),IFERROR(J1311*I1311,\"\"))","v":""},""]
[null,null,null,null,null,null,null,null,null,"","",{"$f":"IF($E1312=\"كابينات\",INDEX(التفاصيل!$P:$P,MATCH('المعلومات '!$G1312,التفاصيل!$M:$M,0)),IFERROR(J1312*I1312,\"\"))","v":""},""]
[null,null,null,null,null,null,null,null,null,"","",{"$f":"IF($E1313=\"كابينات\",INDEX(التفاصيل!$P:$P,MATCH('المعلومات '!$G1313,التفاصيل!$M:$M,0)),IFERROR(J1313*I1313,\"\"))","v":""},""]
[null,null,null,null,null,null,null,null,null,"","",{"$f":"IF($E1314=\"كابينات\",INDEX(التفاصيل!$P:$P,MATCH('المعلومات '!$G1314,التفاصيل!$M:$M,0)),IFERROR(J1314*I1314,\"\"))","v":""},""]
[null,null,null,null,null,null,null,null,null,"","",{"$f":"IF($E1315=\"كابينات\",INDEX(التفاصيل!$P:$P,MATCH('المعلومات '!$G1315,التفاصيل!$M:$M,0)),IFERROR(J1315*I1315,\"\"))","v":""},""]
[null,null,null,null,null,null,null,null,null,"","",{"$f":"IF($E1316=\"كابينات\",INDEX(التفاصيل!$P:$P,MATCH('المعلومات '!$G1316,التفاصيل!$M:$M,0)),IFERROR(J1316*I1316,\"\"))","v":""},""]
[null,null,null,null,null,null,null,null,null,"","",{"$f":"IF($E1317=\"كابينات\",INDEX(التفاصيل!$P:$P,MATCH('المعلومات '!$G1317,التفاصيل!$M:$M,0)),IFERROR(J1317*I1317,\"\"))","v":""},""]
[null,null,null,null,null,null,null,null,null,"","",{"$f":"IF($E1318=\"كابينات\",INDEX(التفاصيل!$P:$P,MATCH('المعلومات '!$G1318,التفاصيل!$M:$M,0)),IFERROR(J1318*I1318,\"\"))","v":""},""]
[null,null,null,null,null,null,null,null,null,"","",{"$f":"IF($E1319=\"كابينات\",INDEX(التفاصيل!$P:$P,MATCH('المعلومات '!$G1319,التفاصيل!$M:$M,0)),IFERROR(J1319*I1319,\"\"))","v":""},""]
[null,null,null,null,null,null,null,null,null,"","",{"$f":"IF($E1320=\"كابينات\",INDEX(التفاصيل!$P:$P,MATCH('المعلومات '!$G1320,التفاصيل!$M:$M,0)),IFERROR(J1320*I1320,\"\"))","v":""},""]
[null,null,null,null,null,null,null,null,null,"","",{"$f":"IF($E1321=\"كابينات\",INDEX(التفاصيل!$P:$P,MATCH('المعلومات '!$G1321,التفاصيل!$M:$M,0)),IFERROR(J1321*I1321,\"\"))","v":""},""]
[null,null,null,null,null,null,null,null,null,"","",{"$f":"IF($E1322=\"كابينات\",INDEX(التفاصيل!$P:$P,MATCH('المعلومات '!$G1322,التفاصيل!$M:$M,0)),IFERROR(J1322*I1322,\"\"))","v":""},""]
[null,null,null,null,null,null,null,null,null,"","",{"$f":"IF($E1323=\"كابينات\",INDEX(التفاصيل!$P:$P,MATCH('المعلومات '!$G1323,التفاصيل!$M:$M,0)),IFERROR(J1323*I1323,\"\"))","v":""},""]
[null,null,null,null,null,null,null,null,null,"","",{"$f":"IF($E1324=\"كابينات\",INDEX(التفاصيل!$P:$P,MATCH('المعلومات '!$G1324,التفاصيل!$M:$M,0)),IFERROR(J1324*I1324,\"\"))","v":""},""]
[null,null,null,null,null,null,null,null,null,"","",{"$f":"IF($E1325=\"كابينات\",INDEX(التفاصيل!$P:$P,MATCH('المعلومات '!$G1325,التفاصيل!$M:$M,0)),IFERROR(J1325*I1325,\"\"))","v":""},""]
[null,null,null,null,null,null,null,null,null,"","",{"$f":"IF($E1326=\"كابينات\",INDEX(التفاصيل!$P:$P,MATCH('المعلومات '!$G1326,التفاصيل!$M:$M,0)),IFERROR(J1326*I1326,\"\"))","v":""},""]
[null,null,null,null,null,null,null,null,null,"","",{"$f":"IF($E1327=\"كابينات\",INDEX(التفاصيل!$P:$P,MATCH('المعلومات '!$G1327,التفاصيل!$M:$M,0)),IFERROR(J1327*I1327,\"\"))","v":""},""]
[null,null,null,null,null,null,null,null,null,"","",{"$f":"IF($E1328=\"كابينات\",INDEX(التفاصيل!$P:$P,MATCH('المعلومات '!$G1328,التفاصيل!$M:$M,0)),IFERROR(J1328*I1328,\"\"))","v":""},""]
[null,null,null,null,null,null,null,null,null,"","",{"$f":"IF($E1329=\"كابينات\",INDEX(التفاصيل!$P:$P,MATCH('المعلومات '!$G1329,التفاصيل!$M:$M,0)),IFERROR(J1329*I1329,\"\"))","v":""},""]
[null,null,null,null,null,null,null,null,null,"","",{"$f":"IF($E1330=\"كابينات\",INDEX(التفاصيل!$P:$P,MATCH('المعلومات '!$G1330,التفاصيل!$M:$M,0)),IFERROR(J1330*I1330,\"\"))","v":""},""]
[null,null,null,null,null,null,null,null,null,"","",{"$f":"IF($E1331=\"كابينات\",INDEX(التفاصيل!$P:$P,MATCH('المعلومات '!$G1331,التفاصيل!$M:$M,0)),IFERROR(J1331*I1331,\"\"))","v":""},""]
[null,null,null,null,null,null,null,null,null,"","",{"$f":"IF($E1332=\"كابينات\",INDEX(التفاصيل!$P:$P,MATCH('المعلومات '!$G1332,التفاصيل!$M:$M,0)),IFERROR(J1332*I1332,\"\"))","v":""},""]
[null,null,null,null,null,null,null,null,null,"","",{"$f":"IF($E1333=\"كابينات\",INDEX(التفاصيل!$P:$P,MATCH('المعلومات '!$G1333,التفاصيل!$M:$M,0)),IFERROR(J1333*I1333,\"\"))","v":""},""]
[null,null,null,null,null,null,null,null,null,"","",{"$f":"IF($E1334=\"كابينات\",INDEX(التفاصيل!$P:$P,MATCH('المعلومات '!$G1334,التفاصيل!$M:$M,0)),IFERROR(J1334*I1334,\"\"))","v":""},""]
[null,null,null,null,null,null,null,null,null,"","",{"$f":"IF($E1335=\"كابينات\",INDEX(التفاصيل!$P:$P,MATCH('المعلومات '!$G1335,التفاصيل!$M:$M,0)),IFERROR(J1335*I1335,\"\"))","v":""},""]
[null,null,null,null,null,null,null,null,null,"","",{"$f":"IF($E1336=\"كابينات\",INDEX(التفاصيل!$P:$P,MATCH('المعلومات '!$G1336,التفاصيل!$M:$M,0)),IFERROR(J1336*I1336,\"\"))","v":""},""]
[null,null,null,null,null,null,null,null,null,"","",{"$f":"IF($E1337=\"كابينات\",INDEX(التفاصيل!$P:$P,MATCH('المعلومات '!$G1337,التفاصيل!$M:$M,0)),IFERROR(J1337*I1337,\"\"))","v":""},""]
[null,null,null,null,null,null,null,null,null,"","",{"$f":"IF($E1338=\"كابينات\",INDEX(التفاصيل!$P:$P,MATCH('المعلومات '!$G1338,التفاصيل!$M:$M,0)),IFERROR(J1338*I1338,\"\"))","v":""},""]
[null,null,null,null,null,null,null,null,null,"","",{"$f":"IF($E1339=\"كابينات\",INDEX(التفاصيل!$P:$P,MATCH('المعلومات '!$G1339,التفاصيل!$M:$M,0)),IFERROR(J1339*I1339,\"\"))","v":""},""]
[null,null,null,null,null,null,null,null,null,"","",{"$f":"IF($E1340=\"كابينات\",INDEX(التفاصيل!$P:$P,MATCH('المعلومات '!$G1340,التفاصيل!$M:$M,0)),IFERROR(J1340*I1340,\"\"))","v":""},""]
[null,null,null,null,null,null,null,null,null,"","",{"$f":"IF($E1341=\"كابينات\",INDEX(التفاصيل!$P:$P,MATCH('المعلومات '!$G1341,التفاصيل!$M:$M,0)),IFERROR(J1341*I1341,\"\"))","v":""},""]
[null,null,null,null,null,null,null,null,null,"","",{"$f":"IF($E1342=\"كابينات\",INDEX(التفاصيل!$P:$P,MATCH('المعلومات '!$G1342,التفاصيل!$M:$M,0)),IFERROR(J1342*I1342,\"\"))","v":""},""]
[null,null,null,null,null,null,null,null,null,"","",{"$f":"IF($E1343=\"كابينات\",INDEX(التفاصيل!$P:$P,MATCH('المعلومات '!$G1343,التفاصيل!$M:$M,0)),IFERROR(J1343*I1343,\"\"))","v":""},""]
[null,null,null,null,null,null,null,null,null,"","",{"$f":"IF($E1344=\"كابينات\",INDEX(التفاصيل!$P:$P,MATCH('المعلومات '!$G1344,التفاصيل!$M:$M,0)),IFERROR(J1344*I1344,\"\"))","v":""},""]
[null,null,null,null,null,null,null,null,null,"","",{"$f":"IF($E1345=\"كابينات\",INDEX(التفاصيل!$P:$P,MATCH('المعلومات '!$G1345,التفاصيل!$M:$M,0)),IFERROR(J1345*I1345,\"\"))","v":""},""]
[null,null,null,null,null,null,null,null,null,{"$f":"IF(E1346=\"\",\"\",VLOOKUP(E:E,$N$2:$O$12,2,0))","v":""},{"$f":"IF(E1346=\"\",\"\",VLOOKUP(E:E,$P$2:$Q$12,2,0))","v":""},{"$f":"IF($E1346=\"كابينات\",INDEX(التفاصيل!$P:$P,MATCH('المعلومات '!$G1346,التفاصيل!$M:$M,0)),IFERROR(J1346*I1346,\"\"))","v":""},""]
[null,null,null,null,null,null,null,null,null,"","",{"$f":"IF($E1347=\"كابينات\",INDEX(التفاصيل!$P:$P,MATCH('المعلومات '!$G1347,التفاصيل!$M:$M,0)),IFERROR(J1347*I1347,\"\"))","v":""},""]
[null,null,null,null,null,null,null,null,null,"","",{"$f":"IF($E1348=\"كابينات\",INDEX(التفاصيل!$P:$P,MATCH('المعلومات '!$G1348,التفاصيل!$M:$M,0)),IFERROR(J1348*I1348,\"\"))","v":""},""]
[null,null,null,null,null,null,null,null,null,"","",{"$f":"IF($E1349=\"كابينات\",INDEX(التفاصيل!$P:$P,MATCH('المعلومات '!$G1349,التفاصيل!$M:$M,0)),IFERROR(J1349*I1349,\"\"))","v":""},""]
[null,null,null,null,null,null,null,null,null,"","",{"$f":"IF($E1350=\"كابينات\",INDEX(التفاصيل!$P:$P,MATCH('المعلومات '!$G1350,التفاصيل!$M:$M,0)),IFERROR(J1350*I1350,\"\"))","v":""},""]
[null,null,null,null,null,null,null,null,null,"","",{"$f":"IF($E1351=\"كابينات\",INDEX(التفاصيل!$P:$P,MATCH('المعلومات '!$G1351,التفاصيل!$M:$M,0)),IFERROR(J1351*I1351,\"\"))","v":""},""]
[null,null,null,null,null,null,null,null,null,"","",{"$f":"IF($E1352=\"كابينات\",INDEX(التفاصيل!$P:$P,MATCH('المعلومات '!$G1352,التفاصيل!$M:$M,0)),IFERROR(J1352*I1352,\"\"))","v":""},""]
[null,null,null,null,null,null,null,null,null,"","",{"$f":"IF($E1353=\"كابينات\",INDEX(التفاصيل!$P:$P,MATCH('المعلومات '!$G1353,التفاصيل!$M:$M,0)),IFERROR(J1353*I1353,\"\"))","v":""},""]
[null,null,null,null,null,null,null,null,null,"","",{"$f":"IF($E1354=\"كابينات\",INDEX(التفاصيل!$P:$P,MATCH('المعلومات '!$G1354,التفاصيل!$M:$M,0)),IFERROR(J1354*I1354,\"\"))","v":""},""]
[null,null,null,null,null,null,null,null,null,"","",{"$f":"IF($E1355=\"كابينات\",INDEX(التفاصيل!$P:$P,MATCH('المعلومات '!$G1355,التفاصيل!$M:$M,0)),IFERROR(J1355*I1355,\"\"))","v":""},""]
[null,null,null,null,null,null,null,null,null,"","",{"$f":"IF($E1356=\"كابينات\",INDEX(التفاصيل!$P:$P,MATCH('المعلومات '!$G1356,التفاصيل!$M:$M,0)),IFERROR(J1356*I1356,\"\"))","v":""},""]
[null,null,null,null,null,null,null,null,null,"","",{"$f":"IF($E1357=\"كابينات\",INDEX(التفاصيل!$P:$P,MATCH('المعلومات '!$G1357,التفاصيل!$M:$M,0)),IFERROR(J1357*I1357,\"\"))","v":""},""]
[null,null,null,null,null,null,null,null,null,"","",{"$f":"IF($E1358=\"كابينات\",INDEX(التفاصيل!$P:$P,MATCH('المعلومات '!$G1358,التفاصيل!$M:$M,0)),IFERROR(J1358*I1358,\"\"))","v":""},""]
[null,null,null,null,null,null,null,null,null,"","",{"$f":"IF($E1359=\"كابينات\",INDEX(التفاصيل!$P:$P,MATCH('المعلومات '!$G1359,التفاصيل!$M:$M,0)),IFERROR(J1359*I1359,\"\"))","v":""},""]
[null,null,null,null,null,null,null,null,null,"","",{"$f":"IF($E1360=\"كابينات\",INDEX(التفاصيل!$P:$P,MATCH('المعلومات '!$G1360,التفاصيل!$M:$M,0)),IFERROR(J1360*I1360,\"\"))","v":""},""]
[null,null,null,null,null,null,null,null,null,"","",{"$f":"IF($E1361=\"كابينات\",INDEX(التفاصيل!$P:$P,MATCH('المعلومات '!$G1361,التفاصيل!$M:$M,0)),IFERROR(J1361*I1361,\"\"))","v":""},""]
[null,null,null,null,null,null,null,null,null,"","",{"$f":"IF($E1362=\"كابينات\",INDEX(التفاصيل!$P:$P,MATCH('المعلومات '!$G1362,التفاصيل!$M:$M,0)),IFERROR(J1362*I1362,\"\"))","v":""},{"$f":"IFERROR(H1362-L1362-(K1362*L1362),\"\")","v":""}]
[null,null,null,null,null,null,null,null,null,"","",{"$f":"IF($E1363=\"كابينات\",INDEX(التفاصيل!$P:$P,MATCH('المعلومات '!$G1363,التفاصيل!$M:$M,0)),IFERROR(J1363*I1363,\"\"))","v":""},""]
[null,null,null,null,null,null,null,null,null,"","",{"$f":"IF($E1364=\"كابينات\",INDEX(التفاصيل!$P:$P,MATCH('المعلومات '!$G1364,التفاصيل!$M:$M,0)),IFERROR(J1364*I1364,\"\"))","v":""},""]
[null,null,null,null,null,null,null,null,null,"","",{"$f":"IF($E1365=\"كابينات\",INDEX(التفاصيل!$P:$P,MATCH('المعلومات '!$G1365,التفاصيل!$M:$M,0)),IFERROR(J1365*I1365,\"\"))","v":""},""]
[null,null,null,null,null,null,null,null,null,"","",{"$f":"IF($E1366=\"كابينات\",INDEX(التفاصيل!$P:$P,MATCH('المعلومات '!$G1366,التفاصيل!$M:$M,0)),IFERROR(J1366*I1366,\"\"))","v":""},""]
[null,null,null,null,null,null,null,null,null,"","",{"$f":"IF($E1367=\"كابينات\",INDEX(التفاصيل!$P:$P,MATCH('المعلومات '!$G1367,التفاصيل!$M:$M,0)),IFERROR(J1367*I1367,\"\"))","v":""},""]
[null,null,null,null,null,null,null,null,null,"","",{"$f":"IF($E1368=\"كابينات\",INDEX(التفاصيل!$P:$P,MATCH('المعلومات '!$G1368,التفاصيل!$M:$M,0)),IFERROR(J1368*I1368,\"\"))","v":""},""]
[null,null,null,null,null,null,null,null,null,"","",{"$f":"IF($E1369=\"كابينات\",INDEX(التفاصيل!$P:$P,MATCH('المعلومات '!$G1369,التفاصيل!$M:$M,0)),IFERROR(J1369*I1369,\"\"))","v":""},""]
[null,null,null,null,null,null,null,null,null,"","",{"$f":"IF($E1370=\"كابينات\",INDEX(التفاصيل!$P:$P,MATCH('المعلومات '!$G1370,التفاصيل!$M:$M,0)),IFERROR(J1370*I1370,\"\"))","v":""},""]
[null,null,null,null,null,null,null,null,null,"","",{"$f":"IF($E1371=\"كابينات\",INDEX(التفاصيل!$P:$P,MATCH('المعلومات '!$G1371,التفاصيل!$M:$M,0)),IFERROR(J1371*I1371,\"\"))","v":""},""]
[null,null,null,null,null,null,null,null,null,"","",{"$f":"IF($E1372=\"كابينات\",INDEX(التفاصيل!$P:$P,MATCH('المعلومات '!$G1372,التفاصيل!$M:$M,0)),IFERROR(J1372*I1372,\"\"))","v":""},""]
[null,null,null,null,null,null,null,null,null,"","",{"$f":"IF($E1373=\"كابينات\",INDEX(التفاصيل!$P:$P,MATCH('المعلومات '!$G1373,التفاصيل!$M:$M,0)),IFERROR(J1373*I1373,\"\"))","v":""},""]
[null,null,null,null,null,null,null,null,null,"","",{"$f":"IF($E1374=\"كابينات\",INDEX(التفاصيل!$P:$P,MATCH('المعلومات '!$G1374,التفاصيل!$M:$M,0)),IFERROR(J1374*I1374,\"\"))","v":""},""]
[null,null,null,null,null,null,null,null,null,"","",{"$f":"IF($E1375=\"كابينات\",INDEX(التفاصيل!$P:$P,MATCH('المعلومات '!$G1375,التفاصيل!$M:$M,0)),IFERROR(J1375*I1375,\"\"))","v":""},""]
[null,null,null,null,null,null,null,null,null,"","",{"$f":"IF($E1376=\"كابينات\",INDEX(التفاصيل!$P:$P,MATCH('المعلومات '!$G1376,التفاصيل!$M:$M,0)),IFERROR(J1376*I1376,\"\"))","v":""},""]
[null,null,null,null,null,null,null,null,null,"","",{"$f":"IF($E1377=\"كابينات\",INDEX(التفاصيل!$P:$P,MATCH('المعلومات '!$G1377,التفاصيل!$M:$M,0)),IFERROR(J1377*I1377,\"\"))","v":""},""]
[null,null,null,null,null,null,null,null,null,"","",{"$f":"IF($E1378=\"كابينات\",INDEX(التفاصيل!$P:$P,MATCH('المعلومات '!$G1378,التفاصيل!$M:$M,0)),IFERROR(J1378*I1378,\"\"))","v":""},""]
[null,null,null,null,null,null,null,null,null,"","",{"$f":"IF($E1379=\"كابينات\",INDEX(التفاصيل!$P:$P,MATCH('المعلومات '!$G1379,التفاصيل!$M:$M,0)),IFERROR(J1379*I1379,\"\"))","v":""},""]
[null,null,null,null,null,null,null,null,null,"","",{"$f":"IF($E1380=\"كابينات\",INDEX(التفاصيل!$P:$P,MATCH('المعلومات '!$G1380,التفاصيل!$M:$M,0)),IFERROR(J1380*I1380,\"\"))","v":""},""]
[null,null,null,null,null,null,null,null,null,"","",{"$f":"IF($E1381=\"كابينات\",INDEX(التفاصيل!$P:$P,MATCH('المعلومات '!$G1381,التفاصيل!$M:$M,0)),IFERROR(J1381*I1381,\"\"))","v":""},""]
[null,null,null,null,null,null,null,null,null,"","",{"$f":"IF($E1382=\"كابينات\",INDEX(التفاصيل!$P:$P,MATCH('المعلومات '!$G1382,التفاصيل!$M:$M,0)),IFERROR(J1382*I1382,\"\"))","v":""},""]
[null,null,null,null,null,null,null,null,null,"","",{"$f":"IF($E1383=\"كابينات\",INDEX(التفاصيل!$P:$P,MATCH('المعلومات '!$G1383,التفاصيل!$M:$M,0)),IFERROR(J1383*I1383,\"\"))","v":""},""]
[null,null,null,null,null,null,null,null,null,"","",{"$f":"IF($E1384=\"كابينات\",INDEX(التفاصيل!$P:$P,MATCH('المعلومات '!$G1384,التفاصيل!$M:$M,0)),IFERROR(J1384*I1384,\"\"))","v":""},""]
[null,null,null,null,null,null,null,null,null,"","",{"$f":"IF($E1385=\"كابينات\",INDEX(التفاصيل!$P:$P,MATCH('المعلومات '!$G1385,التفاصيل!$M:$M,0)),IFERROR(J1385*I1385,\"\"))","v":""},""]
[null,null,null,null,null,null,null,null,null,"","",{"$f":"IF($E1386=\"كابينات\",INDEX(التفاصيل!$P:$P,MATCH('المعلومات '!$G1386,التفاصيل!$M:$M,0)),IFERROR(J1386*I1386,\"\"))","v":""},""]
[null,null,null,null,null,null,null,null,null,"","",{"$f":"IF($E1387=\"كابينات\",INDEX(التفاصيل!$P:$P,MATCH('المعلومات '!$G1387,التفاصيل!$M:$M,0)),IFERROR(J1387*I1387,\"\"))","v":""},""]
[null,null,null,null,null,null,null,null,null,"","",{"$f":"IF($E1388=\"كابينات\",INDEX(التفاصيل!$P:$P,MATCH('المعلومات '!$G1388,التفاصيل!$M:$M,0)),IFERROR(J1388*I1388,\"\"))","v":""},""]
[null,null,null,null,null,null,null,null,null,"","",{"$f":"IF($E1389=\"كابينات\",INDEX(التفاصيل!$P:$P,MATCH('المعلومات '!$G1389,التفاصيل!$M:$M,0)),IFERROR(J1389*I1389,\"\"))","v":""},""]
[null,null,null,null,null,null,null,null,null,"","",{"$f":"IF($E1390=\"كابينات\",INDEX(التفاصيل!$P:$P,MATCH('المعلومات '!$G1390,التفاصيل!$M:$M,0)),IFERROR(J1390*I1390,\"\"))","v":""},""]
[null,null,null,null,null,null,null,null,null,"","",{"$f":"IF($E1391=\"كابينات\",INDEX(التفاصيل!$P:$P,MATCH('المعلومات '!$G1391,التفاصيل!$M:$M,0)),IFERROR(J1391*I1391,\"\"))","v":""},""]
[null,null,null,null,null,null,null,null,null,"","",{"$f":"IF($E1392=\"كابينات\",INDEX(التفاصيل!$P:$P,MATCH('المعلومات '!$G1392,التفاصيل!$M:$M,0)),IFERROR(J1392*I1392,\"\"))","v":""},""]
[null,null,null,null,null,null,null,null,null,"","",{"$f":"IF($E1393=\"كابينات\",INDEX(التفاصيل!$P:$P,MATCH('المعلومات '!$G1393,التفاصيل!$M:$M,0)),IFERROR(J1393*I1393,\"\"))","v":""},""]
[null,null,null,null,null,null,null,null,null,"","",{"$f":"IF($E1394=\"كابينات\",INDEX(التفاصيل!$P:$P,MATCH('المعلومات '!$G1394,التفاصيل!$M:$M,0)),IFERROR(J1394*I1394,\"\"))","v":""},""]
[null,null,null,null,null,null,null,null,null,"","",{"$f":"IF($E1395=\"كابينات\",INDEX(التفاصيل!$P:$P,MATCH('المعلومات '!$G1395,التفاصيل!$M:$M,0)),IFERROR(J1395*I1395,\"\"))","v":""},""]
[null,null,null,null,null,null,null,null,null,"","",{"$f":"IF($E1396=\"كابينات\",INDEX(التفاصيل!$P:$P,MATCH('المعلومات '!$G1396,التفاصيل!$M:$M,0)),IFERROR(J1396*I1396,\"\"))","v":""},""]
[null,null,null,null,null,null,null,null,null,"","",{"$f":"IF($E1397=\"كابينات\",INDEX(التفاصيل!$P:$P,MATCH('المعلومات '!$G1397,التفاصيل!$M:$M,0)),IFERROR(J1397*I1397,\"\"))","v":""},""]
[null,null,null,null,null,null,null,null,null,"","",{"$f":"IF($E1398=\"كابينات\",INDEX(التفاصيل!$P:$P,MATCH('المعلومات '!$G1398,التفاصيل!$M:$M,0)),IFERROR(J1398*I1398,\"\"))","v":""},""]
[null,null,null,null,null,null,null,null,null,"","",{"$f":"IF($E1399=\"كابينات\",INDEX(التفاصيل!$P:$P,MATCH('المعلومات '!$G1399,التفاصيل!$M:$M,0)),IFERROR(J1399*I1399,\"\"))","v":""},""]
[null,null,null,null,null,null,null,null,null,"","",{"$f":"IF($E1400=\"كابينات\",INDEX(التفاصيل!$P:$P,MATCH('المعلومات '!$G1400,التفاصيل!$M:$M,0)),IFERROR(J1400*I1400,\"\"))","v":""},""]
[null,null,null,null,null,null,null,null,null,"","",{"$f":"IF($E1401=\"كابينات\",INDEX(التفاصيل!$P:$P,MATCH('المعلومات '!$G1401,التفاصيل!$M:$M,0)),IFERROR(J1401*I1401,\"\"))","v":""},""]
[null,null,null,null,null,null,null,null,null,"","",{"$f":"IF($E1402=\"كابينات\",INDEX(التفاصيل!$P:$P,MATCH('المعلومات '!$G1402,التفاصيل!$M:$M,0)),IFERROR(J1402*I1402,\"\"))","v":""},""]
[null,null,null,null,null,null,null,null,null,"","",{"$f":"IF($E1403=\"كابينات\",INDEX(التفاصيل!$P:$P,MATCH('المعلومات '!$G1403,التفاصيل!$M:$M,0)),IFERROR(J1403*I1403,\"\"))","v":""},""]
[null,null,null,null,null,null,null,null,null,"","",{"$f":"IF($E1404=\"كابينات\",INDEX(التفاصيل!$P:$P,MATCH('المعلومات '!$G1404,التفاصيل!$M:$M,0)),IFERROR(J1404*I1404,\"\"))","v":""},""]
[null,null,null,null,null,null,null,null,null,"","",{"$f":"IF($E1405=\"كابينات\",INDEX(التفاصيل!$P:$P,MATCH('المعلومات '!$G1405,التفاصيل!$M:$M,0)),IFERROR(J1405*I1405,\"\"))","v":""},""]
[null,null,null,null,null,null,null,null,null,"","",{"$f":"IF($E1406=\"كابينات\",INDEX(التفاصيل!$P:$P,MATCH('المعلومات '!$G1406,التفاصيل!$M:$M,0)),IFERROR(J1406*I1406,\"\"))","v":""},""]
[null,null,null,null,null,null,null,null,null,"","",{"$f":"IF($E1407=\"كابينات\",INDEX(التفاصيل!$P:$P,MATCH('المعلومات '!$G1407,التفاصيل!$M:$M,0)),IFERROR(J1407*I1407,\"\"))","v":""},""]
[null,null,null,null,null,null,null,null,null,"","",{"$f":"IF($E1408=\"كابينات\",INDEX(التفاصيل!$P:$P,MATCH('المعلومات '!$G1408,التفاصيل!$M:$M,0)),IFERROR(J1408*I1408,\"\"))","v":""},""]
[null,null,null,null,null,null,null,null,null,"","",{"$f":"IF($E1409=\"كابينات\",INDEX(التفاصيل!$P:$P,MATCH('المعلومات '!$G1409,التفاصيل!$M:$M,0)),IFERROR(J1409*I1409,\"\"))","v":""},""]
[null,null,null,null,null,null,null,null,null,{"$f":"IF(E1410=\"\",\"\",VLOOKUP(E:E,$N$2:$O$12,2,0))","v":""},{"$f":"IF(E1410=\"\",\"\",VLOOKUP(E:E,$P$2:$Q$12,2,0))","v":""},{"$f":"IF($E1410=\"كابينات\",INDEX(التفاصيل!$P:$P,MATCH('المعلومات '!$G1410,التفاصيل!$M:$M,0)),IFERROR(J1410*I1410,\"\"))","v":""},""]
[null,null,null,null,null,null,null,null,null,"","",{"$f":"IF($E1411=\"كابينات\",INDEX(التفاصيل!$P:$P,MATCH('المعلومات '!$G1411,التفاصيل!$M:$M,0)),IFERROR(J1411*I1411,\"\"))","v":""},""]
[null,null,null,null,null,null,null,null,null,"","",{"$f":"IF($E1412=\"كابينات\",INDEX(التفاصيل!$P:$P,MATCH('المعلومات '!$G1412,التفاصيل!$M:$M,0)),IFERROR(J1412*I1412,\"\"))","v":""},""]
[null,null,null,null,null,null,null,null,null,"","",{"$f":"IF($E1413=\"كابينات\",INDEX(التفاصيل!$P:$P,MATCH('المعلومات '!$G1413,التفاصيل!$M:$M,0)),IFERROR(J1413*I1413,\"\"))","v":""},""]
[null,null,null,null,null,null,null,null,null,"","",{"$f":"IF($E1414=\"كابينات\",INDEX(التفاصيل!$P:$P,MATCH('المعلومات '!$G1414,التفاصيل!$M:$M,0)),IFERROR(J1414*I1414,\"\"))","v":""},""]
[null,null,null,null,null,null,null,null,null,"","",{"$f":"IF($E1415=\"كابينات\",INDEX(التفاصيل!$P:$P,MATCH('المعلومات '!$G1415,التفاصيل!$M:$M,0)),IFERROR(J1415*I1415,\"\"))","v":""},""]
[null,null,null,null,null,null,null,null,null,"","",{"$f":"IF($E1416=\"كابينات\",INDEX(التفاصيل!$P:$P,MATCH('المعلومات '!$G1416,التفاصيل!$M:$M,0)),IFERROR(J1416*I1416,\"\"))","v":""},""]
[null,null,null,null,null,null,null,null,null,"","",{"$f":"IF($E1417=\"كابينات\",INDEX(التفاصيل!$P:$P,MATCH('المعلومات '!$G1417,التفاصيل!$M:$M,0)),IFERROR(J1417*I1417,\"\"))","v":""},""]
[null,null,null,null,null,null,null,null,null,"","",{"$f":"IF($E1418=\"كابينات\",INDEX(التفاصيل!$P:$P,MATCH('المعلومات '!$G1418,التفاصيل!$M:$M,0)),IFERROR(J1418*I1418,\"\"))","v":""},""]
[null,null,null,null,null,null,null,null,null,"","",{"$f":"IF($E1419=\"كابينات\",INDEX(التفاصيل!$P:$P,MATCH('المعلومات '!$G1419,التفاصيل!$M:$M,0)),IFERROR(J1419*I1419,\"\"))","v":""},""]
[null,null,null,null,null,null,null,null,null,"","",{"$f":"IF($E1420=\"كابينات\",INDEX(التفاصيل!$P:$P,MATCH('المعلومات '!$G1420,التفاصيل!$M:$M,0)),IFERROR(J1420*I1420,\"\"))","v":""},""]
[null,null,null,null,null,null,null,null,null,"","",{"$f":"IF($E1421=\"كابينات\",INDEX(التفاصيل!$P:$P,MATCH('المعلومات '!$G1421,التفاصيل!$M:$M,0)),IFERROR(J1421*I1421,\"\"))","v":""},""]
[null,null,null,null,null,null,null,null,null,"","",{"$f":"IF($E1422=\"كابينات\",INDEX(التفاصيل!$P:$P,MATCH('المعلومات '!$G1422,التفاصيل!$M:$M,0)),IFERROR(J1422*I1422,\"\"))","v":""},""]
[null,null,null,null,null,null,null,null,null,"","",{"$f":"IF($E1423=\"كابينات\",INDEX(التفاصيل!$P:$P,MATCH('المعلومات '!$G1423,التفاصيل!$M:$M,0)),IFERROR(J1423*I1423,\"\"))","v":""},""]
[null,null,null,null,null,null,null,null,null,"","",{"$f":"IF($E1424=\"كابينات\",INDEX(التفاصيل!$P:$P,MATCH('المعلومات '!$G1424,التفاصيل!$M:$M,0)),IFERROR(J1424*I1424,\"\"))","v":""},""]
[null,null,null,null,null,null,null,null,null,"","",{"$f":"IF($E1425=\"كابينات\",INDEX(التفاصيل!$P:$P,MATCH('المعلومات '!$G1425,التفاصيل!$M:$M,0)),IFERROR(J1425*I1425,\"\"))","v":""},""]
[null,null,null,null,null,null,null,null,null,"","",{"$f":"IF($E1426=\"كابينات\",INDEX(التفاصيل!$P:$P,MATCH('المعلومات '!$G1426,التفاصيل!$M:$M,0)),IFERROR(J1426*I1426,\"\"))","v":""},{"$f":"IFERROR(H1426-L1426-(K1426*L1426),\"\")","v":""}]
[null,null,null,null,null,null,null,null,null,"","",{"$f":"IF($E1427=\"كابينات\",INDEX(التفاصيل!$P:$P,MATCH('المعلومات '!$G1427,التفاصيل!$M:$M,0)),IFERROR(J1427*I1427,\"\"))","v":""},""]
[null,null,null,null,null,null,null,null,null,"","",{"$f":"IF($E1428=\"كابينات\",INDEX(التفاصيل!$P:$P,MATCH('المعلومات '!$G1428,التفاصيل!$M:$M,0)),IFERROR(J1428*I1428,\"\"))","v":""},""]
[null,null,null,null,null,null,null,null,null,"","",{"$f":"IF($E1429=\"كابينات\",INDEX(التفاصيل!$P:$P,MATCH('المعلومات '!$G1429,التفاصيل!$M:$M,0)),IFERROR(J1429*I1429,\"\"))","v":""},""]
[null,null,null,null,null,null,null,null,null,"","",{"$f":"IF($E1430=\"كابينات\",INDEX(التفاصيل!$P:$P,MATCH('المعلومات '!$G1430,التفاصيل!$M:$M,0)),IFERROR(J1430*I1430,\"\"))","v":""},""]
[null,null,null,null,null,null,null,null,null,"","",{"$f":"IF($E1431=\"كابينات\",INDEX(التفاصيل!$P:$P,MATCH('المعلومات '!$G1431,التفاصيل!$M:$M,0)),IFERROR(J1431*I1431,\"\"))","v":""},""]
[null,null,null,null,null,null,null,null,null,"","",{"$f":"IF($E1432=\"كابينات\",INDEX(التفاصيل!$P:$P,MATCH('المعلومات '!$G1432,التفاصيل!$M:$M,0)),IFERROR(J1432*I1432,\"\"))","v":""},""]
[null,null,null,null,null,null,null,null,null,"","",{"$f":"IF($E1433=\"كابينات\",INDEX(التفاصيل!$P:$P,MATCH('المعلومات '!$G1433,التفاصيل!$M:$M,0)),IFERROR(J1433*I1433,\"\"))","v":""},""]
[null,null,null,null,null,null,null,null,null,"","",{"$f":"IF($E1434=\"كابينات\",INDEX(التفاصيل!$P:$P,MATCH('المعلومات '!$G1434,التفاصيل!$M:$M,0)),IFERROR(J1434*I1434,\"\"))","v":""},""]
[null,null,null,null,null,null,null,null,null,"","",{"$f":"IF($E1435=\"كابينات\",INDEX(التفاصيل!$P:$P,MATCH('المعلومات '!$G1435,التفاصيل!$M:$M,0)),IFERROR(J1435*I1435,\"\"))","v":""},""]
[null,null,null,null,null,null,null,null,null,"","",{"$f":"IF($E1436=\"كابينات\",INDEX(التفاصيل!$P:$P,MATCH('المعلومات '!$G1436,التفاصيل!$M:$M,0)),IFERROR(J1436*I1436,\"\"))","v":""},""]
[null,null,null,null,null,null,null,null,null,"","",{"$f":"IF($E1437=\"كابينات\",INDEX(التفاصيل!$P:$P,MATCH('المعلومات '!$G1437,التفاصيل!$M:$M,0)),IFERROR(J1437*I1437,\"\"))","v":""},""]
[null,null,null,null,null,null,null,null,null,"","",{"$f":"IF($E1438=\"كابينات\",INDEX(التفاصيل!$P:$P,MATCH('المعلومات '!$G1438,التفاصيل!$M:$M,0)),IFERROR(J1438*I1438,\"\"))","v":""},""]
[null,null,null,null,null,null,null,null,null,"","",{"$f":"IF($E1439=\"كابينات\",INDEX(التفاصيل!$P:$P,MATCH('المعلومات '!$G1439,التفاصيل!$M:$M,0)),IFERROR(J1439*I1439,\"\"))","v":""},""]
[null,null,null,null,null,null,null,null,null,"","",{"$f":"IF($E1440=\"كابينات\",INDEX(التفاصيل!$P:$P,MATCH('المعلومات '!$G1440,التفاصيل!$M:$M,0)),IFERROR(J1440*I1440,\"\"))","v":""},""]
[null,null,null,null,null,null,null,null,null,"","",{"$f":"IF($E1441=\"كابينات\",INDEX(التفاصيل!$P:$P,MATCH('المعلومات '!$G1441,التفاصيل!$M:$M,0)),IFERROR(J1441*I1441,\"\"))","v":""},""]
[null,null,null,null,null,null,null,null,null,"","",{"$f":"IF($E1442=\"كابينات\",INDEX(التفاصيل!$P:$P,MATCH('المعلومات '!$G1442,التفاصيل!$M:$M,0)),IFERROR(J1442*I1442,\"\"))","v":""},""]
[null,null,null,null,null,null,null,null,null,"","",{"$f":"IF($E1443=\"كابينات\",INDEX(التفاصيل!$P:$P,MATCH('المعلومات '!$G1443,التفاصيل!$M:$M,0)),IFERROR(J1443*I1443,\"\"))","v":""},""]
[null,null,null,null,null,null,null,null,null,"","",{"$f":"IF($E1444=\"كابينات\",INDEX(التفاصيل!$P:$P,MATCH('المعلومات '!$G1444,التفاصيل!$M:$M,0)),IFERROR(J1444*I1444,\"\"))","v":""},""]
[null,null,null,null,null,null,null,null,null,"","",{"$f":"IF($E1445=\"كابينات\",INDEX(التفاصيل!$P:$P,MATCH('المعلومات '!$G1445,التفاصيل!$M:$M,0)),IFERROR(J1445*I1445,\"\"))","v":""},""]
[null,null,null,null,null,null,null,null,null,"","",{"$f":"IF($E1446=\"كابينات\",INDEX(التفاصيل!$P:$P,MATCH('المعلومات '!$G1446,التفاصيل!$M:$M,0)),IFERROR(J1446*I1446,\"\"))","v":""},""]
[null,null,null,null,null,null,null,null,null,"","",{"$f":"IF($E1447=\"كابينات\",INDEX(التفاصيل!$P:$P,MATCH('المعلومات '!$G1447,التفاصيل!$M:$M,0)),IFERROR(J1447*I1447,\"\"))","v":""},""]
[null,null,null,null,null,null,null,null,null,"","",{"$f":"IF($E1448=\"كابينات\",INDEX(التفاصيل!$P:$P,MATCH('المعلومات '!$G1448,التفاصيل!$M:$M,0)),IFERROR(J1448*I1448,\"\"))","v":""},""]
[null,null,null,null,null,null,null,null,null,"","",{"$f":"IF($E1449=\"كابينات\",INDEX(التفاصيل!$P:$P,MATCH('المعلومات '!$G1449,التفاصيل!$M:$M,0)),IFERROR(J1449*I1449,\"\"))","v":""},""]
[null,null,null,null,null,null,null,null,null,"","",{"$f":"IF($E1450=\"كابينات\",INDEX(التفاصيل!$P:$P,MATCH('المعلومات '!$G1450,التفاصيل!$M:$M,0)),IFERROR(J1450*I1450,\"\"))","v":""},""]
[null,null,null,null,null,null,null,null,null,"","",{"$f":"IF($E1451=\"كابينات\",INDEX(التفاصيل!$P:$P,MATCH('المعلومات '!$G1451,التفاصيل!$M:$M,0)),IFERROR(J1451*I1451,\"\"))","v":""},""]
[null,null,null,null,null,null,null,null,null,"","",{"$f":"IF($E1452=\"كابينات\",INDEX(التفاصيل!$P:$P,MATCH('المعلومات '!$G1452,التفاصيل!$M:$M,0)),IFERROR(J1452*I1452,\"\"))","v":""},""]
[null,null,null,null,null,null,null,null,null,"","",{"$f":"IF($E1453=\"كابينات\",INDEX(التفاصيل!$P:$P,MATCH('المعلومات '!$G1453,التفاصيل!$M:$M,0)),IFERROR(J1453*I1453,\"\"))","v":""},""]
[null,null,null,null,null,null,null,null,null,"","",{"$f":"IF($E1454=\"كابينات\",INDEX(التفاصيل!$P:$P,MATCH('المعلومات '!$G1454,التفاصيل!$M:$M,0)),IFERROR(J1454*I1454,\"\"))","v":""},""]
[null,null,null,null,null,null,null,null,null,"","",{"$f":"IF($E1455=\"كابينات\",INDEX(التفاصيل!$P:$P,MATCH('المعلومات '!$G1455,التفاصيل!$M:$M,0)),IFERROR(J1455*I1455,\"\"))","v":""},""]
[null,null,null,null,null,null,null,null,null,"","",{"$f":"IF($E1456=\"كابينات\",INDEX(التفاصيل!$P:$P,MATCH('المعلومات '!$G1456,التفاصيل!$M:$M,0)),IFERROR(J1456*I1456,\"\"))","v":""},""]
[null,null,null,null,null,null,null,null,null,"","",{"$f":"IF($E1457=\"كابينات\",INDEX(التفاصيل!$P:$P,MATCH('المعلومات '!$G1457,التفاصيل!$M:$M,0)),IFERROR(J1457*I1457,\"\"))","v":""},""]
[null,null,null,null,null,null,null,null,null,"","",{"$f":"IF($E1458=\"كابينات\",INDEX(التفاصيل!$P:$P,MATCH('المعلومات '!$G1458,التفاصيل!$M:$M,0)),IFERROR(J1458*I1458,\"\"))","v":""},""]
[null,null,null,null,null,null,null,null,null,"","",{"$f":"IF($E1459=\"كابينات\",INDEX(التفاصيل!$P:$P,MATCH('المعلومات '!$G1459,التفاصيل!$M:$M,0)),IFERROR(J1459*I1459,\"\"))","v":""},""]
[null,null,null,null,null,null,null,null,null,"","",{"$f":"IF($E1460=\"كابينات\",INDEX(التفاصيل!$P:$P,MATCH('المعلومات '!$G1460,التفاصيل!$M:$M,0)),IFERROR(J1460*I1460,\"\"))","v":""},""]
[null,null,null,null,null,null,null,null,null,"","",{"$f":"IF($E1461=\"كابينات\",INDEX(التفاصيل!$P:$P,MATCH('المعلومات '!$G1461,التفاصيل!$M:$M,0)),IFERROR(J1461*I1461,\"\"))","v":""},""]
[null,null,null,null,null,null,null,null,null,"","",{"$f":"IF($E1462=\"كابينات\",INDEX(التفاصيل!$P:$P,MATCH('المعلومات '!$G1462,التفاصيل!$M:$M,0)),IFERROR(J1462*I1462,\"\"))","v":""},""]
[null,null,null,null,null,null,null,null,null,"","",{"$f":"IF($E1463=\"كابينات\",INDEX(التفاصيل!$P:$P,MATCH('المعلومات '!$G1463,التفاصيل!$M:$M,0)),IFERROR(J1463*I1463,\"\"))","v":""},""]
[null,null,null,null,null,null,null,null,null,"","",{"$f":"IF($E1464=\"كابينات\",INDEX(التفاصيل!$P:$P,MATCH('المعلومات '!$G1464,التفاصيل!$M:$M,0)),IFERROR(J1464*I1464,\"\"))","v":""},""]
[null,null,null,null,null,null,null,null,null,"","",{"$f":"IF($E1465=\"كابينات\",INDEX(التفاصيل!$P:$P,MATCH('المعلومات '!$G1465,التفاصيل!$M:$M,0)),IFERROR(J1465*I1465,\"\"))","v":""},""]
[null,null,null,null,null,null,null,null,null,"","",{"$f":"IF($E1466=\"كابينات\",INDEX(التفاصيل!$P:$P,MATCH('المعلومات '!$G1466,التفاصيل!$M:$M,0)),IFERROR(J1466*I1466,\"\"))","v":""},""]
[null,null,null,null,null,null,null,null,null,"","",{"$f":"IF($E1467=\"كابينات\",INDEX(التفاصيل!$P:$P,MATCH('المعلومات '!$G1467,التفاصيل!$M:$M,0)),IFERROR(J1467*I1467,\"\"))","v":""},""]
[null,null,null,null,null,null,null,null,null,"","",{"$f":"IF($E1468=\"كابينات\",INDEX(التفاصيل!$P:$P,MATCH('المعلومات '!$G1468,التفاصيل!$M:$M,0)),IFERROR(J1468*I1468,\"\"))","v":""},""]
[null,null,null,null,null,null,null,null,null,"","",{"$f":"IF($E1469=\"كابينات\",INDEX(التفاصيل!$P:$P,MATCH('المعلومات '!$G1469,التفاصيل!$M:$M,0)),IFERROR(J1469*I1469,\"\"))","v":""},""]
[null,null,null,null,null,null,null,null,null,"","",{"$f":"IF($E1470=\"كابينات\",INDEX(التفاصيل!$P:$P,MATCH('المعلومات '!$G1470,التفاصيل!$M:$M,0)),IFERROR(J1470*I1470,\"\"))","v":""},""]
[null,null,null,null,null,null,null,null,null,"","",{"$f":"IF($E1471=\"كابينات\",INDEX(التفاصيل!$P:$P,MATCH('المعلومات '!$G1471,التفاصيل!$M:$M,0)),IFERROR(J1471*I1471,\"\"))","v":""},""]
[null,null,null,null,null,null,null,null,null,"","",{"$f":"IF($E1472=\"كابينات\",INDEX(التفاصيل!$P:$P,MATCH('المعلومات '!$G1472,التفاصيل!$M:$M,0)),IFERROR(J1472*I1472,\"\"))","v":""},""]
[null,null,null,null,null,null,null,null,null,"","",{"$f":"IF($E1473=\"كابينات\",INDEX(التفاصيل!$P:$P,MATCH('المعلومات '!$G1473,التفاصيل!$M:$M,0)),IFERROR(J1473*I1473,\"\"))","v":""},""]
[null,null,null,null,null,null,null,null,null,{"$f":"IF(E1474=\"\",\"\",VLOOKUP(E:E,$N$2:$O$12,2,0))","v":""},{"$f":"IF(E1474=\"\",\"\",VLOOKUP(E:E,$P$2:$Q$12,2,0))","v":""},{"$f":"IF($E1474=\"كابينات\",INDEX(التفاصيل!$P:$P,MATCH('المعلومات '!$G1474,التفاصيل!$M:$M,0)),IFERROR(J1474*I1474,\"\"))","v":""},""]
[null,null,null,null,null,null,null,null,null,"","",{"$f":"IF($E1475=\"كابينات\",INDEX(التفاصيل!$P:$P,MATCH('المعلومات '!$G1475,التفاصيل!$M:$M,0)),IFERROR(J1475*I1475,\"\"))","v":""},""]
[null,null,null,null,null,null,null,null,null,"","",{"$f":"IF($E1476=\"كابينات\",INDEX(التفاصيل!$P:$P,MATCH('المعلومات '!$G1476,التفاصيل!$M:$M,0)),IFERROR(J1476*I1476,\"\"))","v":""},""]
[null,null,null,null,null,null,null,null,null,"","",{"$f":"IF($E1477=\"كابينات\",INDEX(التفاصيل!$P:$P,MATCH('المعلومات '!$G1477,التفاصيل!$M:$M,0)),IFERROR(J1477*I1477,\"\"))","v":""},""]
[null,null,null,null,null,null,null,null,null,"","",{"$f":"IF($E1478=\"كابينات\",INDEX(التفاصيل!$P:$P,MATCH('المعلومات '!$G1478,التفاصيل!$M:$M,0)),IFERROR(J1478*I1478,\"\"))","v":""},""]
[null,null,null,null,null,null,null,null,null,"","",{"$f":"IF($E1479=\"كابينات\",INDEX(التفاصيل!$P:$P,MATCH('المعلومات '!$G1479,التفاصيل!$M:$M,0)),IFERROR(J1479*I1479,\"\"))","v":""},""]
[null,null,null,null,null,null,null,null,null,"","",{"$f":"IF($E1480=\"كابينات\",INDEX(التفاصيل!$P:$P,MATCH('المعلومات '!$G1480,التفاصيل!$M:$M,0)),IFERROR(J1480*I1480,\"\"))","v":""},""]
[null,null,null,null,null,null,null,null,null,"","",{"$f":"IF($E1481=\"كابينات\",INDEX(التفاصيل!$P:$P,MATCH('المعلومات '!$G1481,التفاصيل!$M:$M,0)),IFERROR(J1481*I1481,\"\"))","v":""},""]
[null,null,null,null,null,null,null,null,null,"","",{"$f":"IF($E1482=\"كابينات\",INDEX(التفاصيل!$P:$P,MATCH('المعلومات '!$G1482,التفاصيل!$M:$M,0)),IFERROR(J1482*I1482,\"\"))","v":""},""]
[null,null,null,null,null,null,null,null,null,"","",{"$f":"IF($E1483=\"كابينات\",INDEX(التفاصيل!$P:$P,MATCH('المعلومات '!$G1483,التفاصيل!$M:$M,0)),IFERROR(J1483*I1483,\"\"))","v":""},""]
[null,null,null,null,null,null,null,null,null,"","",{"$f":"IF($E1484=\"كابينات\",INDEX(التفاصيل!$P:$P,MATCH('المعلومات '!$G1484,التفاصيل!$M:$M,0)),IFERROR(J1484*I1484,\"\"))","v":""},""]
[null,null,null,null,null,null,null,null,null,"","",{"$f":"IF($E1485=\"كابينات\",INDEX(التفاصيل!$P:$P,MATCH('المعلومات '!$G1485,التفاصيل!$M:$M,0)),IFERROR(J1485*I1485,\"\"))","v":""},""]
[null,null,null,null,null,null,null,null,null,"","",{"$f":"IF($E1486=\"كابينات\",INDEX(التفاصيل!$P:$P,MATCH('المعلومات '!$G1486,التفاصيل!$M:$M,0)),IFERROR(J1486*I1486,\"\"))","v":""},""]
[null,null,null,null,null,null,null,null,null,"","",{"$f":"IF($E1487=\"كابينات\",INDEX(التفاصيل!$P:$P,MATCH('المعلومات '!$G1487,التفاصيل!$M:$M,0)),IFERROR(J1487*I1487,\"\"))","v":""},""]
[null,null,null,null,null,null,null,null,null,"","",{"$f":"IF($E1488=\"كابينات\",INDEX(التفاصيل!$P:$P,MATCH('المعلومات '!$G1488,التفاصيل!$M:$M,0)),IFERROR(J1488*I1488,\"\"))","v":""},""]
[null,null,null,null,null,null,null,null,null,"","",{"$f":"IF($E1489=\"كابينات\",INDEX(التفاصيل!$P:$P,MATCH('المعلومات '!$G1489,التفاصيل!$M:$M,0)),IFERROR(J1489*I1489,\"\"))","v":""},""]
[null,null,null,null,null,null,null,null,null,"","",{"$f":"IF($E1490=\"كابينات\",INDEX(التفاصيل!$P:$P,MATCH('المعلومات '!$G1490,التفاصيل!$M:$M,0)),IFERROR(J1490*I1490,\"\"))","v":""},{"$f":"IFERROR(H1490-L1490-(K1490*L1490),\"\")","v":""}]
[null,null,null,null,null,null,null,null,null,"","",{"$f":"IF($E1491=\"كابينات\",INDEX(التفاصيل!$P:$P,MATCH('المعلومات '!$G1491,التفاصيل!$M:$M,0)),IFERROR(J1491*I1491,\"\"))","v":""},""]
[null,null,null,null,null,null,null,null,null,"","",{"$f":"IF($E1492=\"كابينات\",INDEX(التفاصيل!$P:$P,MATCH('المعلومات '!$G1492,التفاصيل!$M:$M,0)),IFERROR(J1492*I1492,\"\"))","v":""},""]
[null,null,null,null,null,null,null,null,null,"","",{"$f":"IF($E1493=\"كابينات\",INDEX(التفاصيل!$P:$P,MATCH('المعلومات '!$G1493,التفاصيل!$M:$M,0)),IFERROR(J1493*I1493,\"\"))","v":""},""]
[null,null,null,null,null,null,null,null,null,"","",{"$f":"IF($E1494=\"كابينات\",INDEX(التفاصيل!$P:$P,MATCH('المعلومات '!$G1494,التفاصيل!$M:$M,0)),IFERROR(J1494*I1494,\"\"))","v":""},""]
[null,null,null,null,null,null,null,null,null,"","",{"$f":"IF($E1495=\"كابينات\",INDEX(التفاصيل!$P:$P,MATCH('المعلومات '!$G1495,التفاصيل!$M:$M,0)),IFERROR(J1495*I1495,\"\"))","v":""},""]
[null,null,null,null,null,null,null,null,null,"","",{"$f":"IF($E1496=\"كابينات\",INDEX(التفاصيل!$P:$P,MATCH('المعلومات '!$G1496,التفاصيل!$M:$M,0)),IFERROR(J1496*I1496,\"\"))","v":""},""]
[null,null,null,null,null,null,null,null,null,"","",{"$f":"IF($E1497=\"كابينات\",INDEX(التفاصيل!$P:$P,MATCH('المعلومات '!$G1497,التفاصيل!$M:$M,0)),IFERROR(J1497*I1497,\"\"))","v":""},""]
[null,null,null,null,null,null,null,null,null,"","",{"$f":"IF($E1498=\"كابينات\",INDEX(التفاصيل!$P:$P,MATCH('المعلومات '!$G1498,التفاصيل!$M:$M,0)),IFERROR(J1498*I1498,\"\"))","v":""},""]
[null,null,null,null,null,null,null,null,null,"","",{"$f":"IF($E1499=\"كابينات\",INDEX(التفاصيل!$P:$P,MATCH('المعلومات '!$G1499,التفاصيل!$M:$M,0)),IFERROR(J1499*I1499,\"\"))","v":""},""]
[null,null,null,null,null,null,null,null,null,"","",{"$f":"IF($E1500=\"كابينات\",INDEX(التفاصيل!$P:$P,MATCH('المعلومات '!$G1500,التفاصيل!$M:$M,0)),IFERROR(J1500*I1500,\"\"))","v":""},""]
[null,null,null,null,null,null,null,null,null,"","",{"$f":"IF($E1501=\"كابينات\",INDEX(التفاصيل!$P:$P,MATCH('المعلومات '!$G1501,التفاصيل!$M:$M,0)),IFERROR(J1501*I1501,\"\"))","v":""},""]
[null,null,null,null,null,null,null,null,null,"","",{"$f":"IF($E1502=\"كابينات\",INDEX(التفاصيل!$P:$P,MATCH('المعلومات '!$G1502,التفاصيل!$M:$M,0)),IFERROR(J1502*I1502,\"\"))","v":""},""]
[null,null,null,null,null,null,null,null,null,"","",{"$f":"IF($E1503=\"كابينات\",INDEX(التفاصيل!$P:$P,MATCH('المعلومات '!$G1503,التفاصيل!$M:$M,0)),IFERROR(J1503*I1503,\"\"))","v":""},""]
[null,null,null,null,null,null,null,null,null,"","",{"$f":"IF($E1504=\"كابينات\",INDEX(التفاصيل!$P:$P,MATCH('المعلومات '!$G1504,التفاصيل!$M:$M,0)),IFERROR(J1504*I1504,\"\"))","v":""},""]
[null,null,null,null,null,null,null,null,null,"","",{"$f":"IF($E1505=\"كابينات\",INDEX(التفاصيل!$P:$P,MATCH('المعلومات '!$G1505,التفاصيل!$M:$M,0)),IFERROR(J1505*I1505,\"\"))","v":""},""]
[null,null,null,null,null,null,null,null,null,"","",{"$f":"IF($E1506=\"كابينات\",INDEX(التفاصيل!$P:$P,MATCH('المعلومات '!$G1506,التفاصيل!$M:$M,0)),IFERROR(J1506*I1506,\"\"))","v":""},""]
[null,null,null,null,null,null,null,null,null,"","",{"$f":"IF($E1507=\"كابينات\",INDEX(التفاصيل!$P:$P,MATCH('المعلومات '!$G1507,التفاصيل!$M:$M,0)),IFERROR(J1507*I1507,\"\"))","v":""},""]
[null,null,null,null,null,null,null,null,null,"","",{"$f":"IF($E1508=\"كابينات\",INDEX(التفاصيل!$P:$P,MATCH('المعلومات '!$G1508,التفاصيل!$M:$M,0)),IFERROR(J1508*I1508,\"\"))","v":""},""]
[null,null,null,null,null,null,null,null,null,"","",{"$f":"IF($E1509=\"كابينات\",INDEX(التفاصيل!$P:$P,MATCH('المعلومات '!$G1509,التفاصيل!$M:$M,0)),IFERROR(J1509*I1509,\"\"))","v":""},""]
[null,null,null,null,null,null,null,null,null,"","",{"$f":"IF($E1510=\"كابينات\",INDEX(التفاصيل!$P:$P,MATCH('المعلومات '!$G1510,التفاصيل!$M:$M,0)),IFERROR(J1510*I1510,\"\"))","v":""},""]
[null,null,null,null,null,null,null,null,null,"","",{"$f":"IF($E1511=\"كابينات\",INDEX(التفاصيل!$P:$P,MATCH('المعلومات '!$G1511,التفاصيل!$M:$M,0)),IFERROR(J1511*I1511,\"\"))","v":""},""]
[null,null,null,null,null,null,null,null,null,"","",{"$f":"IF($E1512=\"كابينات\",INDEX(التفاصيل!$P:$P,MATCH('المعلومات '!$G1512,التفاصيل!$M:$M,0)),IFERROR(J1512*I1512,\"\"))","v":""},""]
[null,null,null,null,null,null,null,null,null,"","",{"$f":"IF($E1513=\"كابينات\",INDEX(التفاصيل!$P:$P,MATCH('المعلومات '!$G1513,التفاصيل!$M:$M,0)),IFERROR(J1513*I1513,\"\"))","v":""},""]
[null,null,null,null,null,null,null,null,null,"","",{"$f":"IF($E1514=\"كابينات\",INDEX(التفاصيل!$P:$P,MATCH('المعلومات '!$G1514,التفاصيل!$M:$M,0)),IFERROR(J1514*I1514,\"\"))","v":""},""]
[null,null,null,null,null,null,null,null,null,"","",{"$f":"IF($E1515=\"كابينات\",INDEX(التفاصيل!$P:$P,MATCH('المعلومات '!$G1515,التفاصيل!$M:$M,0)),IFERROR(J1515*I1515,\"\"))","v":""},""]
[null,null,null,null,null,null,null,null,null,"","",{"$f":"IF($E1516=\"كابينات\",INDEX(التفاصيل!$P:$P,MATCH('المعلومات '!$G1516,التفاصيل!$M:$M,0)),IFERROR(J1516*I1516,\"\"))","v":""},""]
[null,null,null,null,null,null,null,null,null,"","",{"$f":"IF($E1517=\"كابينات\",INDEX(التفاصيل!$P:$P,MATCH('المعلومات '!$G1517,التفاصيل!$M:$M,0)),IFERROR(J1517*I1517,\"\"))","v":""},""]
[null,null,null,null,null,null,null,null,null,"","",{"$f":"IF($E1518=\"كابينات\",INDEX(التفاصيل!$P:$P,MATCH('المعلومات '!$G1518,التفاصيل!$M:$M,0)),IFERROR(J1518*I1518,\"\"))","v":""},""]
[null,null,null,null,null,null,null,null,null,"","",{"$f":"IF($E1519=\"كابينات\",INDEX(التفاصيل!$P:$P,MATCH('المعلومات '!$G1519,التفاصيل!$M:$M,0)),IFERROR(J1519*I1519,\"\"))","v":""},""]
[null,null,null,null,null,null,null,null,null,"","",{"$f":"IF($E1520=\"كابينات\",INDEX(التفاصيل!$P:$P,MATCH('المعلومات '!$G1520,التفاصيل!$M:$M,0)),IFERROR(J1520*I1520,\"\"))","v":""},""]
[null,null,null,null,null,null,null,null,null,"","",{"$f":"IF($E1521=\"كابينات\",INDEX(التفاصيل!$P:$P,MATCH('المعلومات '!$G1521,التفاصيل!$M:$M,0)),IFERROR(J1521*I1521,\"\"))","v":""},""]
[null,null,null,null,null,null,null,null,null,"","",{"$f":"IF($E1522=\"كابينات\",INDEX(التفاصيل!$P:$P,MATCH('المعلومات '!$G1522,التفاصيل!$M:$M,0)),IFERROR(J1522*I1522,\"\"))","v":""},""]
[null,null,null,null,null,null,null,null,null,"","",{"$f":"IF($E1523=\"كابينات\",INDEX(التفاصيل!$P:$P,MATCH('المعلومات '!$G1523,التفاصيل!$M:$M,0)),IFERROR(J1523*I1523,\"\"))","v":""},""]
[null,null,null,null,null,null,null,null,null,"","",{"$f":"IF($E1524=\"كابينات\",INDEX(التفاصيل!$P:$P,MATCH('المعلومات '!$G1524,التفاصيل!$M:$M,0)),IFERROR(J1524*I1524,\"\"))","v":""},""]
[null,null,null,null,null,null,null,null,null,"","",{"$f":"IF($E1525=\"كابينات\",INDEX(التفاصيل!$P:$P,MATCH('المعلومات '!$G1525,التفاصيل!$M:$M,0)),IFERROR(J1525*I1525,\"\"))","v":""},""]
[null,null,null,null,null,null,null,null,null,"","",{"$f":"IF($E1526=\"كابينات\",INDEX(التفاصيل!$P:$P,MATCH('المعلومات '!$G1526,التفاصيل!$M:$M,0)),IFERROR(J1526*I1526,\"\"))","v":""},""]
[null,null,null,null,null,null,null,null,null,"","",{"$f":"IF($E1527=\"كابينات\",INDEX(التفاصيل!$P:$P,MATCH('المعلومات '!$G1527,التفاصيل!$M:$M,0)),IFERROR(J1527*I1527,\"\"))","v":""},""]
[null,null,null,null,null,null,null,null,null,"","",{"$f":"IF($E1528=\"كابينات\",INDEX(التفاصيل!$P:$P,MATCH('المعلومات '!$G1528,التفاصيل!$M:$M,0)),IFERROR(J1528*I1528,\"\"))","v":""},""]
[null,null,null,null,null,null,null,null,null,"","",{"$f":"IF($E1529=\"كابينات\",INDEX(التفاصيل!$P:$P,MATCH('المعلومات '!$G1529,التفاصيل!$M:$M,0)),IFERROR(J1529*I1529,\"\"))","v":""},""]
[null,null,null,null,null,null,null,null,null,"","",{"$f":"IF($E1530=\"كابينات\",INDEX(التفاصيل!$P:$P,MATCH('المعلومات '!$G1530,التفاصيل!$M:$M,0)),IFERROR(J1530*I1530,\"\"))","v":""},""]
[null,null,null,null,null,null,null,null,null,"","",{"$f":"IF($E1531=\"كابينات\",INDEX(التفاصيل!$P:$P,MATCH('المعلومات '!$G1531,التفاصيل!$M:$M,0)),IFERROR(J1531*I1531,\"\"))","v":""},""]
[null,null,null,null,null,null,null,null,null,"","",{"$f":"IF($E1532=\"كابينات\",INDEX(التفاصيل!$P:$P,MATCH('المعلومات '!$G1532,التفاصيل!$M:$M,0)),IFERROR(J1532*I1532,\"\"))","v":""},""]
[null,null,null,null,null,null,null,null,null,"","",{"$f":"IF($E1533=\"كابينات\",INDEX(التفاصيل!$P:$P,MATCH('المعلومات '!$G1533,التفاصيل!$M:$M,0)),IFERROR(J1533*I1533,\"\"))","v":""},""]
[null,null,null,null,null,null,null,null,null,"","",{"$f":"IF($E1534=\"كابينات\",INDEX(التفاصيل!$P:$P,MATCH('المعلومات '!$G1534,التفاصيل!$M:$M,0)),IFERROR(J1534*I1534,\"\"))","v":""},""]
[null,null,null,null,null,null,null,null,null,"","",{"$f":"IF($E1535=\"كابينات\",INDEX(التفاصيل!$P:$P,MATCH('المعلومات '!$G1535,التفاصيل!$M:$M,0)),IFERROR(J1535*I1535,\"\"))","v":""},""]
[null,null,null,null,null,null,null,null,null,"","",{"$f":"IF($E1536=\"كابينات\",INDEX(التفاصيل!$P:$P,MATCH('المعلومات '!$G1536,التفاصيل!$M:$M,0)),IFERROR(J1536*I1536,\"\"))","v":""},""]
[null,null,null,null,null,null,null,null,null,"","",{"$f":"IF($E1537=\"كابينات\",INDEX(التفاصيل!$P:$P,MATCH('المعلومات '!$G1537,التفاصيل!$M:$M,0)),IFERROR(J1537*I1537,\"\"))","v":""},""]
[null,null,null,null,null,null,null,null,null,{"$f":"IF(E1538=\"\",\"\",VLOOKUP(E:E,$N$2:$O$12,2,0))","v":""},{"$f":"IF(E1538=\"\",\"\",VLOOKUP(E:E,$P$2:$Q$12,2,0))","v":""},{"$f":"IF($E1538=\"كابينات\",INDEX(التفاصيل!$P:$P,MATCH('المعلومات '!$G1538,التفاصيل!$M:$M,0)),IFERROR(J1538*I1538,\"\"))","v":""},""]
[null,null,null,null,null,null,null,null,null,"","",{"$f":"IF($E1539=\"كابينات\",INDEX(التفاصيل!$P:$P,MATCH('المعلومات '!$G1539,التفاصيل!$M:$M,0)),IFERROR(J1539*I1539,\"\"))","v":""},""]
[null,null,null,null,null,null,null,null,null,"","",{"$f":"IF($E1540=\"كابينات\",INDEX(التفاصيل!$P:$P,MATCH('المعلومات '!$G1540,التفاصيل!$M:$M,0)),IFERROR(J1540*I1540,\"\"))","v":""},""]
[null,null,null,null,null,null,null,null,null,"","",{"$f":"IF($E1541=\"كابينات\",INDEX(التفاصيل!$P:$P,MATCH('المعلومات '!$G1541,التفاصيل!$M:$M,0)),IFERROR(J1541*I1541,\"\"))","v":""},""]
[null,null,null,null,null,null,null,null,null,"","",{"$f":"IF($E1542=\"كابينات\",INDEX(التفاصيل!$P:$P,MATCH('المعلومات '!$G1542,التفاصيل!$M:$M,0)),IFERROR(J1542*I1542,\"\"))","v":""},""]
[null,null,null,null,null,null,null,null,null,"","",{"$f":"IF($E1543=\"كابينات\",INDEX(التفاصيل!$P:$P,MATCH('المعلومات '!$G1543,التفاصيل!$M:$M,0)),IFERROR(J1543*I1543,\"\"))","v":""},""]
[null,null,null,null,null,null,null,null,null,"","",{"$f":"IF($E1544=\"كابينات\",INDEX(التفاصيل!$P:$P,MATCH('المعلومات '!$G1544,التفاصيل!$M:$M,0)),IFERROR(J1544*I1544,\"\"))","v":""},""]
[null,null,null,null,null,null,null,null,null,"","",{"$f":"IF($E1545=\"كابينات\",INDEX(التفاصيل!$P:$P,MATCH('المعلومات '!$G1545,التفاصيل!$M:$M,0)),IFERROR(J1545*I1545,\"\"))","v":""},""]
[null,null,null,null,null,null,null,null,null,"","",{"$f":"IF($E1546=\"كابينات\",INDEX(التفاصيل!$P:$P,MATCH('المعلومات '!$G1546,التفاصيل!$M:$M,0)),IFERROR(J1546*I1546,\"\"))","v":""},""]
[null,null,null,null,null,null,null,null,null,"","",{"$f":"IF($E1547=\"كابينات\",INDEX(التفاصيل!$P:$P,MATCH('المعلومات '!$G1547,التفاصيل!$M:$M,0)),IFERROR(J1547*I1547,\"\"))","v":""},""]
[null,null,null,null,null,null,null,null,null,"","",{"$f":"IF($E1548=\"كابينات\",INDEX(التفاصيل!$P:$P,MATCH('المعلومات '!$G1548,التفاصيل!$M:$M,0)),IFERROR(J1548*I1548,\"\"))","v":""},""]
[null,null,null,null,null,null,null,null,null,"","",{"$f":"IF($E1549=\"كابينات\",INDEX(التفاصيل!$P:$P,MATCH('المعلومات '!$G1549,التفاصيل!$M:$M,0)),IFERROR(J1549*I1549,\"\"))","v":""},""]
[null,null,null,null,null,null,null,null,null,"","",{"$f":"IF($E1550=\"كابينات\",INDEX(التفاصيل!$P:$P,MATCH('المعلومات '!$G1550,التفاصيل!$M:$M,0)),IFERROR(J1550*I1550,\"\"))","v":""},""]
[null,null,null,null,null,null,null,null,null,"","",{"$f":"IF($E1551=\"كابينات\",INDEX(التفاصيل!$P:$P,MATCH('المعلومات '!$G1551,التفاصيل!$M:$M,0)),IFERROR(J1551*I1551,\"\"))","v":""},""]
[null,null,null,null,null,null,null,null,null,"","",{"$f":"IF($E1552=\"كابينات\",INDEX(التفاصيل!$P:$P,MATCH('المعلومات '!$G1552,التفاصيل!$M:$M,0)),IFERROR(J1552*I1552,\"\"))","v":""},""]
[null,null,null,null,null,null,null,null,null,"","",{"$f":"IF($E1553=\"كابينات\",INDEX(التفاصيل!$P:$P,MATCH('المعلومات '!$G1553,التفاصيل!$M:$M,0)),IFERROR(J1553*I1553,\"\"))","v":""},""]
[null,null,null,null,null,null,null,null,null,"","",{"$f":"IF($E1554=\"كابينات\",INDEX(التفاصيل!$P:$P,MATCH('المعلومات '!$G1554,التفاصيل!$M:$M,0)),IFERROR(J1554*I1554,\"\"))","v":""},{"$f":"IFERROR(H1554-L1554-(K1554*L1554),\"\")","v":""}]
[null,null,null,null,null,null,null,null,null,"","",{"$f":"IF($E1555=\"كابينات\",INDEX(التفاصيل!$P:$P,MATCH('المعلومات '!$G1555,التفاصيل!$M:$M,0)),IFERROR(J1555*I1555,\"\"))","v":""},""]
[null,null,null,null,null,null,null,null,null,"","",{"$f":"IF($E1556=\"كابينات\",INDEX(التفاصيل!$P:$P,MATCH('المعلومات '!$G1556,التفاصيل!$M:$M,0)),IFERROR(J1556*I1556,\"\"))","v":""},""]
[null,null,null,null,null,null,null,null,null,"","",{"$f":"IF($E1557=\"كابينات\",INDEX(التفاصيل!$P:$P,MATCH('المعلومات '!$G1557,التفاصيل!$M:$M,0)),IFERROR(J1557*I1557,\"\"))","v":""},""]
[null,null,null,null,null,null,null,null,null,"","",{"$f":"IF($E1558=\"كابينات\",INDEX(التفاصيل!$P:$P,MATCH('المعلومات '!$G1558,التفاصيل!$M:$M,0)),IFERROR(J1558*I1558,\"\"))","v":""},""]
[null,null,null,null,null,null,null,null,null,"","",{"$f":"IF($E1559=\"كابينات\",INDEX(التفاصيل!$P:$P,MATCH('المعلومات '!$G1559,التفاصيل!$M:$M,0)),IFERROR(J1559*I1559,\"\"))","v":""},""]
[null,null,null,null,null,null,null,null,null,"","",{"$f":"IF($E1560=\"كابينات\",INDEX(التفاصيل!$P:$P,MATCH('المعلومات '!$G1560,التفاصيل!$M:$M,0)),IFERROR(J1560*I1560,\"\"))","v":""},""]
[null,null,null,null,null,null,null,null,null,"","",{"$f":"IF($E1561=\"كابينات\",INDEX(التفاصيل!$P:$P,MATCH('المعلومات '!$G1561,التفاصيل!$M:$M,0)),IFERROR(J1561*I1561,\"\"))","v":""},""]
[null,null,null,null,null,null,null,null,null,"","",{"$f":"IF($E1562=\"كابينات\",INDEX(التفاصيل!$P:$P,MATCH('المعلومات '!$G1562,التفاصيل!$M:$M,0)),IFERROR(J1562*I1562,\"\"))","v":""},""]
[null,null,null,null,null,null,null,null,null,"","",{"$f":"IF($E1563=\"كابينات\",INDEX(التفاصيل!$P:$P,MATCH('المعلومات '!$G1563,التفاصيل!$M:$M,0)),IFERROR(J1563*I1563,\"\"))","v":""},""]
[null,null,null,null,null,null,null,null,null,"","",{"$f":"IF($E1564=\"كابينات\",INDEX(التفاصيل!$P:$P,MATCH('المعلومات '!$G1564,التفاصيل!$M:$M,0)),IFERROR(J1564*I1564,\"\"))","v":""},""]
[null,null,null,null,null,null,null,null,null,"","",{"$f":"IF($E1565=\"كابينات\",INDEX(التفاصيل!$P:$P,MATCH('المعلومات '!$G1565,التفاصيل!$M:$M,0)),IFERROR(J1565*I1565,\"\"))","v":""},""]
[null,null,null,null,null,null,null,null,null,"","",{"$f":"IF($E1566=\"كابينات\",INDEX(التفاصيل!$P:$P,MATCH('المعلومات '!$G1566,التفاصيل!$M:$M,0)),IFERROR(J1566*I1566,\"\"))","v":""},""]
[null,null,null,null,null,null,null,null,null,"","",{"$f":"IF($E1567=\"كابينات\",INDEX(التفاصيل!$P:$P,MATCH('المعلومات '!$G1567,التفاصيل!$M:$M,0)),IFERROR(J1567*I1567,\"\"))","v":""},""]
[null,null,null,null,null,null,null,null,null,"","",{"$f":"IF($E1568=\"كابينات\",INDEX(التفاصيل!$P:$P,MATCH('المعلومات '!$G1568,التفاصيل!$M:$M,0)),IFERROR(J1568*I1568,\"\"))","v":""},""]
[null,null,null,null,null,null,null,null,null,"","",{"$f":"IF($E1569=\"كابينات\",INDEX(التفاصيل!$P:$P,MATCH('المعلومات '!$G1569,التفاصيل!$M:$M,0)),IFERROR(J1569*I1569,\"\"))","v":""},""]
[null,null,null,null,null,null,null,null,null,"","",{"$f":"IF($E1570=\"كابينات\",INDEX(التفاصيل!$P:$P,MATCH('المعلومات '!$G1570,التفاصيل!$M:$M,0)),IFERROR(J1570*I1570,\"\"))","v":""},""]
[null,null,null,null,null,null,null,null,null,"","",{"$f":"IF($E1571=\"كابينات\",INDEX(التفاصيل!$P:$P,MATCH('المعلومات '!$G1571,التفاصيل!$M:$M,0)),IFERROR(J1571*I1571,\"\"))","v":""},""]
[null,null,null,null,null,null,null,null,null,"","",{"$f":"IF($E1572=\"كابينات\",INDEX(التفاصيل!$P:$P,MATCH('المعلومات '!$G1572,التفاصيل!$M:$M,0)),IFERROR(J1572*I1572,\"\"))","v":""},""]
[null,null,null,null,null,null,null,null,null,"","",{"$f":"IF($E1573=\"كابينات\",INDEX(التفاصيل!$P:$P,MATCH('المعلومات '!$G1573,التفاصيل!$M:$M,0)),IFERROR(J1573*I1573,\"\"))","v":""},""]
[null,null,null,null,null,null,null,null,null,"","",{"$f":"IF($E1574=\"كابينات\",INDEX(التفاصيل!$P:$P,MATCH('المعلومات '!$G1574,التفاصيل!$M:$M,0)),IFERROR(J1574*I1574,\"\"))","v":""},""]
[null,null,null,null,null,null,null,null,null,"","",{"$f":"IF($E1575=\"كابينات\",INDEX(التفاصيل!$P:$P,MATCH('المعلومات '!$G1575,التفاصيل!$M:$M,0)),IFERROR(J1575*I1575,\"\"))","v":""},""]
[null,null,null,null,null,null,null,null,null,"","",{"$f":"IF($E1576=\"كابينات\",INDEX(التفاصيل!$P:$P,MATCH('المعلومات '!$G1576,التفاصيل!$M:$M,0)),IFERROR(J1576*I1576,\"\"))","v":""},""]
[null,null,null,null,null,null,null,null,null,"","",{"$f":"IF($E1577=\"كابينات\",INDEX(التفاصيل!$P:$P,MATCH('المعلومات '!$G1577,التفاصيل!$M:$M,0)),IFERROR(J1577*I1577,\"\"))","v":""},""]
[null,null,null,null,null,null,null,null,null,"","",{"$f":"IF($E1578=\"كابينات\",INDEX(التفاصيل!$P:$P,MATCH('المعلومات '!$G1578,التفاصيل!$M:$M,0)),IFERROR(J1578*I1578,\"\"))","v":""},""]
[null,null,null,null,null,null,null,null,null,"","",{"$f":"IF($E1579=\"كابينات\",INDEX(التفاصيل!$P:$P,MATCH('المعلومات '!$G1579,التفاصيل!$M:$M,0)),IFERROR(J1579*I1579,\"\"))","v":""},""]
[null,null,null,null,null,null,null,null,null,"","",{"$f":"IF($E1580=\"كابينات\",INDEX(التفاصيل!$P:$P,MATCH('المعلومات '!$G1580,التفاصيل!$M:$M,0)),IFERROR(J1580*I1580,\"\"))","v":""},""]
[null,null,null,null,null,null,null,null,null,"","",{"$f":"IF($E1581=\"كابينات\",INDEX(التفاصيل!$P:$P,MATCH('المعلومات '!$G1581,التفاصيل!$M:$M,0)),IFERROR(J1581*I1581,\"\"))","v":""},""]
[null,null,null,null,null,null,null,null,null,"","",{"$f":"IF($E1582=\"كابينات\",INDEX(التفاصيل!$P:$P,MATCH('المعلومات '!$G1582,التفاصيل!$M:$M,0)),IFERROR(J1582*I1582,\"\"))","v":""},""]
[null,null,null,null,null,null,null,null,null,"","",{"$f":"IF($E1583=\"كابينات\",INDEX(التفاصيل!$P:$P,MATCH('المعلومات '!$G1583,التفاصيل!$M:$M,0)),IFERROR(J1583*I1583,\"\"))","v":""},""]
[null,null,null,null,null,null,null,null,null,"","",{"$f":"IF($E1584=\"كابينات\",INDEX(التفاصيل!$P:$P,MATCH('المعلومات '!$G1584,التفاصيل!$M:$M,0)),IFERROR(J1584*I1584,\"\"))","v":""},""]
[null,null,null,null,null,null,null,null,null,"","",{"$f":"IF($E1585=\"كابينات\",INDEX(التفاصيل!$P:$P,MATCH('المعلومات '!$G1585,التفاصيل!$M:$M,0)),IFERROR(J1585*I1585,\"\"))","v":""},""]
[null,null,null,null,null,null,null,null,null,"","",{"$f":"IF($E1586=\"كابينات\",INDEX(التفاصيل!$P:$P,MATCH('المعلومات '!$G1586,التفاصيل!$M:$M,0)),IFERROR(J1586*I1586,\"\"))","v":""},""]
[null,null,null,null,null,null,null,null,null,"","",{"$f":"IF($E1587=\"كابينات\",INDEX(التفاصيل!$P:$P,MATCH('المعلومات '!$G1587,التفاصيل!$M:$M,0)),IFERROR(J1587*I1587,\"\"))","v":""},""]
[null,null,null,null,null,null,null,null,null,"","",{"$f":"IF($E1588=\"كابينات\",INDEX(التفاصيل!$P:$P,MATCH('المعلومات '!$G1588,التفاصيل!$M:$M,0)),IFERROR(J1588*I1588,\"\"))","v":""},""]
[null,null,null,null,null,null,null,null,null,"","",{"$f":"IF($E1589=\"كابينات\",INDEX(التفاصيل!$P:$P,MATCH('المعلومات '!$G1589,التفاصيل!$M:$M,0)),IFERROR(J1589*I1589,\"\"))","v":""},""]
[null,null,null,null,null,null,null,null,null,"","",{"$f":"IF($E1590=\"كابينات\",INDEX(التفاصيل!$P:$P,MATCH('المعلومات '!$G1590,التفاصيل!$M:$M,0)),IFERROR(J1590*I1590,\"\"))","v":""},""]
[null,null,null,null,null,null,null,null,null,"","",{"$f":"IF($E1591=\"كابينات\",INDEX(التفاصيل!$P:$P,MATCH('المعلومات '!$G1591,التفاصيل!$M:$M,0)),IFERROR(J1591*I1591,\"\"))","v":""},""]
[null,null,null,null,null,null,null,null,null,"","",{"$f":"IF($E1592=\"كابينات\",INDEX(التفاصيل!$P:$P,MATCH('المعلومات '!$G1592,التفاصيل!$M:$M,0)),IFERROR(J1592*I1592,\"\"))","v":""},""]
[null,null,null,null,null,null,null,null,null,"","",{"$f":"IF($E1593=\"كابينات\",INDEX(التفاصيل!$P:$P,MATCH('المعلومات '!$G1593,التفاصيل!$M:$M,0)),IFERROR(J1593*I1593,\"\"))","v":""},""]
[null,null,null,null,null,null,null,null,null,"","",{"$f":"IF($E1594=\"كابينات\",INDEX(التفاصيل!$P:$P,MATCH('المعلومات '!$G1594,التفاصيل!$M:$M,0)),IFERROR(J1594*I1594,\"\"))","v":""},""]
[null,null,null,null,null,null,null,null,null,"","",{"$f":"IF($E1595=\"كابينات\",INDEX(التفاصيل!$P:$P,MATCH('المعلومات '!$G1595,التفاصيل!$M:$M,0)),IFERROR(J1595*I1595,\"\"))","v":""},""]
[null,null,null,null,null,null,null,null,null,"","",{"$f":"IF($E1596=\"كابينات\",INDEX(التفاصيل!$P:$P,MATCH('المعلومات '!$G1596,التفاصيل!$M:$M,0)),IFERROR(J1596*I1596,\"\"))","v":""},""]
[null,null,null,null,null,null,null,null,null,"","",{"$f":"IF($E1597=\"كابينات\",INDEX(التفاصيل!$P:$P,MATCH('المعلومات '!$G1597,التفاصيل!$M:$M,0)),IFERROR(J1597*I1597,\"\"))","v":""},""]
[null,null,null,null,null,null,null,null,null,"","",{"$f":"IF($E1598=\"كابينات\",INDEX(التفاصيل!$P:$P,MATCH('المعلومات '!$G1598,التفاصيل!$M:$M,0)),IFERROR(J1598*I1598,\"\"))","v":""},""]
[null,null,null,null,null,null,null,null,null,"","",{"$f":"IF($E1599=\"كابينات\",INDEX(التفاصيل!$P:$P,MATCH('المعلومات '!$G1599,التفاصيل!$M:$M,0)),IFERROR(J1599*I1599,\"\"))","v":""},""]
[null,null,null,null,null,null,null,null,null,"","",{"$f":"IF($E1600=\"كابينات\",INDEX(التفاصيل!$P:$P,MATCH('المعلومات '!$G1600,التفاصيل!$M:$M,0)),IFERROR(J1600*I1600,\"\"))","v":""},""]
[null,null,null,null,null,null,null,null,null,"","",{"$f":"IF($E1601=\"كابينات\",INDEX(التفاصيل!$P:$P,MATCH('المعلومات '!$G1601,التفاصيل!$M:$M,0)),IFERROR(J1601*I1601,\"\"))","v":""},""]
[null,null,null,null,null,null,null,null,null,{"$f":"IF(E1602=\"\",\"\",VLOOKUP(E:E,$N$2:$O$12,2,0))","v":""},{"$f":"IF(E1602=\"\",\"\",VLOOKUP(E:E,$P$2:$Q$12,2,0))","v":""},{"$f":"IF($E1602=\"كابينات\",INDEX(التفاصيل!$P:$P,MATCH('المعلومات '!$G1602,التفاصيل!$M:$M,0)),IFERROR(J1602*I1602,\"\"))","v":""},""]
[null,null,null,null,null,null,null,null,null,"","",{"$f":"IF($E1603=\"كابينات\",INDEX(التفاصيل!$P:$P,MATCH('المعلومات '!$G1603,التفاصيل!$M:$M,0)),IFERROR(J1603*I1603,\"\"))","v":""},""]
[null,null,null,null,null,null,null,null,null,"","",{"$f":"IF($E1604=\"كابينات\",INDEX(التفاصيل!$P:$P,MATCH('المعلومات '!$G1604,التفاصيل!$M:$M,0)),IFERROR(J1604*I1604,\"\"))","v":""},""]
[null,null,null,null,null,null,null,null,null,"","",{"$f":"IF($E1605=\"كابينات\",INDEX(التفاصيل!$P:$P,MATCH('المعلومات '!$G1605,التفاصيل!$M:$M,0)),IFERROR(J1605*I1605,\"\"))","v":""},""]
[null,null,null,null,null,null,null,null,null,"","",{"$f":"IF($E1606=\"كابينات\",INDEX(التفاصيل!$P:$P,MATCH('المعلومات '!$G1606,التفاصيل!$M:$M,0)),IFERROR(J1606*I1606,\"\"))","v":""},""]
[null,null,null,null,null,null,null,null,null,"","",{"$f":"IF($E1607=\"كابينات\",INDEX(التفاصيل!$P:$P,MATCH('المعلومات '!$G1607,التفاصيل!$M:$M,0)),IFERROR(J1607*I1607,\"\"))","v":""},""]
[null,null,null,null,null,null,null,null,null,"","",{"$f":"IF($E1608=\"كابينات\",INDEX(التفاصيل!$P:$P,MATCH('المعلومات '!$G1608,التفاصيل!$M:$M,0)),IFERROR(J1608*I1608,\"\"))","v":""},""]
[null,null,null,null,null,null,null,null,null,"","",{"$f":"IF($E1609=\"كابينات\",INDEX(التفاصيل!$P:$P,MATCH('المعلومات '!$G1609,التفاصيل!$M:$M,0)),IFERROR(J1609*I1609,\"\"))","v":""},""]
[null,null,null,null,null,null,null,null,null,"","",{"$f":"IF($E1610=\"كابينات\",INDEX(التفاصيل!$P:$P,MATCH('المعلومات '!$G1610,التفاصيل!$M:$M,0)),IFERROR(J1610*I1610,\"\"))","v":""},""]
[null,null,null,null,null,null,null,null,null,"","",{"$f":"IF($E1611=\"كابينات\",INDEX(التفاصيل!$P:$P,MATCH('المعلومات '!$G1611,التفاصيل!$M:$M,0)),IFERROR(J1611*I1611,\"\"))","v":""},""]
[null,null,null,null,null,null,null,null,null,"","",{"$f":"IF($E1612=\"كابينات\",INDEX(التفاصيل!$P:$P,MATCH('المعلومات '!$G1612,التفاصيل!$M:$M,0)),IFERROR(J1612*I1612,\"\"))","v":""},""]
[null,null,null,null,null,null,null,null,null,"","",{"$f":"IF($E1613=\"كابينات\",INDEX(التفاصيل!$P:$P,MATCH('المعلومات '!$G1613,التفاصيل!$M:$M,0)),IFERROR(J1613*I1613,\"\"))","v":""},""]
[null,null,null,null,null,null,null,null,null,"","",{"$f":"IF($E1614=\"كابينات\",INDEX(التفاصيل!$P:$P,MATCH('المعلومات '!$G1614,التفاصيل!$M:$M,0)),IFERROR(J1614*I1614,\"\"))","v":""},""]
[null,null,null,null,null,null,null,null,null,"","",{"$f":"IF($E1615=\"كابينات\",INDEX(التفاصيل!$P:$P,MATCH('المعلومات '!$G1615,التفاصيل!$M:$M,0)),IFERROR(J1615*I1615,\"\"))","v":""},""]
[null,null,null,null,null,null,null,null,null,"","",{"$f":"IF($E1616=\"كابينات\",INDEX(التفاصيل!$P:$P,MATCH('المعلومات '!$G1616,التفاصيل!$M:$M,0)),IFERROR(J1616*I1616,\"\"))","v":""},""]
[null,null,null,null,null,null,null,null,null,"","",{"$f":"IF($E1617=\"كابينات\",INDEX(التفاصيل!$P:$P,MATCH('المعلومات '!$G1617,التفاصيل!$M:$M,0)),IFERROR(J1617*I1617,\"\"))","v":""},""]
[null,null,null,null,null,null,null,null,null,"","",{"$f":"IF($E1618=\"كابينات\",INDEX(التفاصيل!$P:$P,MATCH('المعلومات '!$G1618,التفاصيل!$M:$M,0)),IFERROR(J1618*I1618,\"\"))","v":""},{"$f":"IFERROR(H1618-L1618-(K1618*L1618),\"\")","v":""}]
[null,null,null,null,null,null,null,null,null,"","",{"$f":"IF($E1619=\"كابينات\",INDEX(التفاصيل!$P:$P,MATCH('المعلومات '!$G1619,التفاصيل!$M:$M,0)),IFERROR(J1619*I1619,\"\"))","v":""},""]
[null,null,null,null,null,null,null,null,null,"","",{"$f":"IF($E1620=\"كابينات\",INDEX(التفاصيل!$P:$P,MATCH('المعلومات '!$G1620,التفاصيل!$M:$M,0)),IFERROR(J1620*I1620,\"\"))","v":""},""]
[null,null,null,null,null,null,null,null,null,"","",{"$f":"IF($E1621=\"كابينات\",INDEX(التفاصيل!$P:$P,MATCH('المعلومات '!$G1621,التفاصيل!$M:$M,0)),IFERROR(J1621*I1621,\"\"))","v":""},""]
[null,null,null,null,null,null,null,null,null,"","",{"$f":"IF($E1622=\"كابينات\",INDEX(التفاصيل!$P:$P,MATCH('المعلومات '!$G1622,التفاصيل!$M:$M,0)),IFERROR(J1622*I1622,\"\"))","v":""},""]
[null,null,null,null,null,null,null,null,null,"","",{"$f":"IF($E1623=\"كابينات\",INDEX(التفاصيل!$P:$P,MATCH('المعلومات '!$G1623,التفاصيل!$M:$M,0)),IFERROR(J1623*I1623,\"\"))","v":""},""]
[null,null,null,null,null,null,null,null,null,"","",{"$f":"IF($E1624=\"كابينات\",INDEX(التفاصيل!$P:$P,MATCH('المعلومات '!$G1624,التفاصيل!$M:$M,0)),IFERROR(J1624*I1624,\"\"))","v":""},""]
[null,null,null,null,null,null,null,null,null,"","",{"$f":"IF($E1625=\"كابينات\",INDEX(التفاصيل!$P:$P,MATCH('المعلومات '!$G1625,التفاصيل!$M:$M,0)),IFERROR(J1625*I1625,\"\"))","v":""},""]
[null,null,null,null,null,null,null,null,null,"","",{"$f":"IF($E1626=\"كابينات\",INDEX(التفاصيل!$P:$P,MATCH('المعلومات '!$G1626,التفاصيل!$M:$M,0)),IFERROR(J1626*I1626,\"\"))","v":""},""]
[null,null,null,null,null,null,null,null,null,"","",{"$f":"IF($E1627=\"كابينات\",INDEX(التفاصيل!$P:$P,MATCH('المعلومات '!$G1627,التفاصيل!$M:$M,0)),IFERROR(J1627*I1627,\"\"))","v":""},""]
[null,null,null,null,null,null,null,null,null,"","",{"$f":"IF($E1628=\"كابينات\",INDEX(التفاصيل!$P:$P,MATCH('المعلومات '!$G1628,التفاصيل!$M:$M,0)),IFERROR(J1628*I1628,\"\"))","v":""},""]
[null,null,null,null,null,null,null,null,null,"","",{"$f":"IF($E1629=\"كابينات\",INDEX(التفاصيل!$P:$P,MATCH('المعلومات '!$G1629,التفاصيل!$M:$M,0)),IFERROR(J1629*I1629,\"\"))","v":""},""]
[null,null,null,null,null,null,null,null,null,"","",{"$f":"IF($E1630=\"كابينات\",INDEX(التفاصيل!$P:$P,MATCH('المعلومات '!$G1630,التفاصيل!$M:$M,0)),IFERROR(J1630*I1630,\"\"))","v":""},""]
[null,null,null,null,null,null,null,null,null,"","",{"$f":"IF($E1631=\"كابينات\",INDEX(التفاصيل!$P:$P,MATCH('المعلومات '!$G1631,التفاصيل!$M:$M,0)),IFERROR(J1631*I1631,\"\"))","v":""},""]
[null,null,null,null,null,null,null,null,null,"","",{"$f":"IF($E1632=\"كابينات\",INDEX(التفاصيل!$P:$P,MATCH('المعلومات '!$G1632,التفاصيل!$M:$M,0)),IFERROR(J1632*I1632,\"\"))","v":""},""]
[null,null,null,null,null,null,null,null,null,"","",{"$f":"IF($E1633=\"كابينات\",INDEX(التفاصيل!$P:$P,MATCH('المعلومات '!$G1633,التفاصيل!$M:$M,0)),IFERROR(J1633*I1633,\"\"))","v":""},""]
[null,null,null,null,null,null,null,null,null,"","",{"$f":"IF($E1634=\"كابينات\",INDEX(التفاصيل!$P:$P,MATCH('المعلومات '!$G1634,التفاصيل!$M:$M,0)),IFERROR(J1634*I1634,\"\"))","v":""},""]
[null,null,null,null,null,null,null,null,null,"","",{"$f":"IF($E1635=\"كابينات\",INDEX(التفاصيل!$P:$P,MATCH('المعلومات '!$G1635,التفاصيل!$M:$M,0)),IFERROR(J1635*I1635,\"\"))","v":""},""]
[null,null,null,null,null,null,null,null,null,"","",{"$f":"IF($E1636=\"كابينات\",INDEX(التفاصيل!$P:$P,MATCH('المعلومات '!$G1636,التفاصيل!$M:$M,0)),IFERROR(J1636*I1636,\"\"))","v":""},""]
[null,null,null,null,null,null,null,null,null,"","",{"$f":"IF($E1637=\"كابينات\",INDEX(التفاصيل!$P:$P,MATCH('المعلومات '!$G1637,التفاصيل!$M:$M,0)),IFERROR(J1637*I1637,\"\"))","v":""},""]
[null,null,null,null,null,null,null,null,null,"","",{"$f":"IF($E1638=\"كابينات\",INDEX(التفاصيل!$P:$P,MATCH('المعلومات '!$G1638,التفاصيل!$M:$M,0)),IFERROR(J1638*I1638,\"\"))","v":""},""]
[null,null,null,null,null,null,null,null,null,"","",{"$f":"IF($E1639=\"كابينات\",INDEX(التفاصيل!$P:$P,MATCH('المعلومات '!$G1639,التفاصيل!$M:$M,0)),IFERROR(J1639*I1639,\"\"))","v":""},""]
[null,null,null,null,null,null,null,null,null,"","",{"$f":"IF($E1640=\"كابينات\",INDEX(التفاصيل!$P:$P,MATCH('المعلومات '!$G1640,التفاصيل!$M:$M,0)),IFERROR(J1640*I1640,\"\"))","v":""},""]
[null,null,null,null,null,null,null,null,null,"","",{"$f":"IF($E1641=\"كابينات\",INDEX(التفاصيل!$P:$P,MATCH('المعلومات '!$G1641,التفاصيل!$M:$M,0)),IFERROR(J1641*I1641,\"\"))","v":""},""]
[null,null,null,null,null,null,null,null,null,"","",{"$f":"IF($E1642=\"كابينات\",INDEX(التفاصيل!$P:$P,MATCH('المعلومات '!$G1642,التفاصيل!$M:$M,0)),IFERROR(J1642*I1642,\"\"))","v":""},""]
[null,null,null,null,null,null,null,null,null,"","",{"$f":"IF($E1643=\"كابينات\",INDEX(التفاصيل!$P:$P,MATCH('المعلومات '!$G1643,التفاصيل!$M:$M,0)),IFERROR(J1643*I1643,\"\"))","v":""},""]
[null,null,null,null,null,null,null,null,null,"","",{"$f":"IF($E1644=\"كابينات\",INDEX(التفاصيل!$P:$P,MATCH('المعلومات '!$G1644,التفاصيل!$M:$M,0)),IFERROR(J1644*I1644,\"\"))","v":""},""]
[null,null,null,null,null,null,null,null,null,"","",{"$f":"IF($E1645=\"كابينات\",INDEX(التفاصيل!$P:$P,MATCH('المعلومات '!$G1645,التفاصيل!$M:$M,0)),IFERROR(J1645*I1645,\"\"))","v":""},""]
[null,null,null,null,null,null,null,null,null,"","",{"$f":"IF($E1646=\"كابينات\",INDEX(التفاصيل!$P:$P,MATCH('المعلومات '!$G1646,التفاصيل!$M:$M,0)),IFERROR(J1646*I1646,\"\"))","v":""},""]
[null,null,null,null,null,null,null,null,null,"","",{"$f":"IF($E1647=\"كابينات\",INDEX(التفاصيل!$P:$P,MATCH('المعلومات '!$G1647,التفاصيل!$M:$M,0)),IFERROR(J1647*I1647,\"\"))","v":""},""]
[null,null,null,null,null,null,null,null,null,"","",{"$f":"IF($E1648=\"كابينات\",INDEX(التفاصيل!$P:$P,MATCH('المعلومات '!$G1648,التفاصيل!$M:$M,0)),IFERROR(J1648*I1648,\"\"))","v":""},""]
[null,null,null,null,null,null,null,null,null,"","",{"$f":"IF($E1649=\"كابينات\",INDEX(التفاصيل!$P:$P,MATCH('المعلومات '!$G1649,التفاصيل!$M:$M,0)),IFERROR(J1649*I1649,\"\"))","v":""},""]
[null,null,null,null,null,null,null,null,null,"","",{"$f":"IF($E1650=\"كابينات\",INDEX(التفاصيل!$P:$P,MATCH('المعلومات '!$G1650,التفاصيل!$M:$M,0)),IFERROR(J1650*I1650,\"\"))","v":""},""]
[null,null,null,null,null,null,null,null,null,"","",{"$f":"IF($E1651=\"كابينات\",INDEX(التفاصيل!$P:$P,MATCH('المعلومات '!$G1651,التفاصيل!$M:$M,0)),IFERROR(J1651*I1651,\"\"))","v":""},""]
[null,null,null,null,null,null,null,null,null,"","",{"$f":"IF($E1652=\"كابينات\",INDEX(التفاصيل!$P:$P,MATCH('المعلومات '!$G1652,التفاصيل!$M:$M,0)),IFERROR(J1652*I1652,\"\"))","v":""},""]
[null,null,null,null,null,null,null,null,null,"","",{"$f":"IF($E1653=\"كابينات\",INDEX(التفاصيل!$P:$P,MATCH('المعلومات '!$G1653,التفاصيل!$M:$M,0)),IFERROR(J1653*I1653,\"\"))","v":""},""]
[null,null,null,null,null,null,null,null,null,"","",{"$f":"IF($E1654=\"كابينات\",INDEX(التفاصيل!$P:$P,MATCH('المعلومات '!$G1654,التفاصيل!$M:$M,0)),IFERROR(J1654*I1654,\"\"))","v":""},""]
[null,null,null,null,null,null,null,null,null,"","",{"$f":"IF($E1655=\"كابينات\",INDEX(التفاصيل!$P:$P,MATCH('المعلومات '!$G1655,التفاصيل!$M:$M,0)),IFERROR(J1655*I1655,\"\"))","v":""},""]
[null,null,null,null,null,null,null,null,null,"","",{"$f":"IF($E1656=\"كابينات\",INDEX(التفاصيل!$P:$P,MATCH('المعلومات '!$G1656,التفاصيل!$M:$M,0)),IFERROR(J1656*I1656,\"\"))","v":""},""]
[null,null,null,null,null,null,null,null,null,"","",{"$f":"IF($E1657=\"كابينات\",INDEX(التفاصيل!$P:$P,MATCH('المعلومات '!$G1657,التفاصيل!$M:$M,0)),IFERROR(J1657*I1657,\"\"))","v":""},""]
[null,null,null,null,null,null,null,null,null,"","",{"$f":"IF($E1658=\"كابينات\",INDEX(التفاصيل!$P:$P,MATCH('المعلومات '!$G1658,التفاصيل!$M:$M,0)),IFERROR(J1658*I1658,\"\"))","v":""},""]
[null,null,null,null,null,null,null,null,null,"","",{"$f":"IF($E1659=\"كابينات\",INDEX(التفاصيل!$P:$P,MATCH('المعلومات '!$G1659,التفاصيل!$M:$M,0)),IFERROR(J1659*I1659,\"\"))","v":""},""]
[null,null,null,null,null,null,null,null,null,"","",{"$f":"IF($E1660=\"كابينات\",INDEX(التفاصيل!$P:$P,MATCH('المعلومات '!$G1660,التفاصيل!$M:$M,0)),IFERROR(J1660*I1660,\"\"))","v":""},""]
[null,null,null,null,null,null,null,null,null,"","",{"$f":"IF($E1661=\"كابينات\",INDEX(التفاصيل!$P:$P,MATCH('المعلومات '!$G1661,التفاصيل!$M:$M,0)),IFERROR(J1661*I1661,\"\"))","v":""},""]
[null,null,null,null,null,null,null,null,null,"","",{"$f":"IF($E1662=\"كابينات\",INDEX(التفاصيل!$P:$P,MATCH('المعلومات '!$G1662,التفاصيل!$M:$M,0)),IFERROR(J1662*I1662,\"\"))","v":""},""]
[null,null,null,null,null,null,null,null,null,"","",{"$f":"IF($E1663=\"كابينات\",INDEX(التفاصيل!$P:$P,MATCH('المعلومات '!$G1663,التفاصيل!$M:$M,0)),IFERROR(J1663*I1663,\"\"))","v":""},""]
[null,null,null,null,null,null,null,null,null,"","",{"$f":"IF($E1664=\"كابينات\",INDEX(التفاصيل!$P:$P,MATCH('المعلومات '!$G1664,التفاصيل!$M:$M,0)),IFERROR(J1664*I1664,\"\"))","v":""},""]
[null,null,null,null,null,null,null,null,null,"","",{"$f":"IF($E1665=\"كابينات\",INDEX(التفاصيل!$P:$P,MATCH('المعلومات '!$G1665,التفاصيل!$M:$M,0)),IFERROR(J1665*I1665,\"\"))","v":""},""]
[null,null,null,null,null,null,null,null,null,{"$f":"IF(E1666=\"\",\"\",VLOOKUP(E:E,$N$2:$O$12,2,0))","v":""},{"$f":"IF(E1666=\"\",\"\",VLOOKUP(E:E,$P$2:$Q$12,2,0))","v":""},{"$f":"IF($E1666=\"كابينات\",INDEX(التفاصيل!$P:$P,MATCH('المعلومات '!$G1666,التفاصيل!$M:$M,0)),IFERROR(J1666*I1666,\"\"))","v":""},""]
[null,null,null,null,null,null,null,null,null,"","",{"$f":"IF($E1667=\"كابينات\",INDEX(التفاصيل!$P:$P,MATCH('المعلومات '!$G1667,التفاصيل!$M:$M,0)),IFERROR(J1667*I1667,\"\"))","v":""},""]
[null,null,null,null,null,null,null,null,null,"","",{"$f":"IF($E1668=\"كابينات\",INDEX(التفاصيل!$P:$P,MATCH('المعلومات '!$G1668,التفاصيل!$M:$M,0)),IFERROR(J1668*I1668,\"\"))","v":""},""]
[null,null,null,null,null,null,null,null,null,"","",{"$f":"IF($E1669=\"كابينات\",INDEX(التفاصيل!$P:$P,MATCH('المعلومات '!$G1669,التفاصيل!$M:$M,0)),IFERROR(J1669*I1669,\"\"))","v":""},""]
[null,null,null,null,null,null,null,null,null,"","",{"$f":"IF($E1670=\"كابينات\",INDEX(التفاصيل!$P:$P,MATCH('المعلومات '!$G1670,التفاصيل!$M:$M,0)),IFERROR(J1670*I1670,\"\"))","v":""},""]
[null,null,null,null,null,null,null,null,null,"","",{"$f":"IF($E1671=\"كابينات\",INDEX(التفاصيل!$P:$P,MATCH('المعلومات '!$G1671,التفاصيل!$M:$M,0)),IFERROR(J1671*I1671,\"\"))","v":""},""]
[null,null,null,null,null,null,null,null,null,"","",{"$f":"IF($E1672=\"كابينات\",INDEX(التفاصيل!$P:$P,MATCH('المعلومات '!$G1672,التفاصيل!$M:$M,0)),IFERROR(J1672*I1672,\"\"))","v":""},""]
[null,null,null,null,null,null,null,null,null,"","",{"$f":"IF($E1673=\"كابينات\",INDEX(التفاصيل!$P:$P,MATCH('المعلومات '!$G1673,التفاصيل!$M:$M,0)),IFERROR(J1673*I1673,\"\"))","v":""},""]
[null,null,null,null,null,null,null,null,null,"","",{"$f":"IF($E1674=\"كابينات\",INDEX(التفاصيل!$P:$P,MATCH('المعلومات '!$G1674,التفاصيل!$M:$M,0)),IFERROR(J1674*I1674,\"\"))","v":""},""]
[null,null,null,null,null,null,null,null,null,"","",{"$f":"IF($E1675=\"كابينات\",INDEX(التفاصيل!$P:$P,MATCH('المعلومات '!$G1675,التفاصيل!$M:$M,0)),IFERROR(J1675*I1675,\"\"))","v":""},""]
[null,null,null,null,null,null,null,null,null,"","",{"$f":"IF($E1676=\"كابينات\",INDEX(التفاصيل!$P:$P,MATCH('المعلومات '!$G1676,التفاصيل!$M:$M,0)),IFERROR(J1676*I1676,\"\"))","v":""},""]
[null,null,null,null,null,null,null,null,null,"","",{"$f":"IF($E1677=\"كابينات\",INDEX(التفاصيل!$P:$P,MATCH('المعلومات '!$G1677,التفاصيل!$M:$M,0)),IFERROR(J1677*I1677,\"\"))","v":""},""]
[null,null,null,null,null,null,null,null,null,"","",{"$f":"IF($E1678=\"كابينات\",INDEX(التفاصيل!$P:$P,MATCH('المعلومات '!$G1678,التفاصيل!$M:$M,0)),IFERROR(J1678*I1678,\"\"))","v":""},""]
[null,null,null,null,null,null,null,null,null,"","",{"$f":"IF($E1679=\"كابينات\",INDEX(التفاصيل!$P:$P,MATCH('المعلومات '!$G1679,التفاصيل!$M:$M,0)),IFERROR(J1679*I1679,\"\"))","v":""},""]
[null,null,null,null,null,null,null,null,null,"","",{"$f":"IF($E1680=\"كابينات\",INDEX(التفاصيل!$P:$P,MATCH('المعلومات '!$G1680,التفاصيل!$M:$M,0)),IFERROR(J1680*I1680,\"\"))","v":""},""]
[null,null,null,null,null,null,null,null,null,"","",{"$f":"IF($E1681=\"كابينات\",INDEX(التفاصيل!$P:$P,MATCH('المعلومات '!$G1681,التفاصيل!$M:$M,0)),IFERROR(J1681*I1681,\"\"))","v":""},""]
[null,null,null,null,null,null,null,null,null,"","",{"$f":"IF($E1682=\"كابينات\",INDEX(التفاصيل!$P:$P,MATCH('المعلومات '!$G1682,التفاصيل!$M:$M,0)),IFERROR(J1682*I1682,\"\"))","v":""},{"$f":"IFERROR(H1682-L1682-(K1682*L1682),\"\")","v":""}]
[null,null,null,null,null,null,null,null,null,"","",{"$f":"IF($E1683=\"كابينات\",INDEX(التفاصيل!$P:$P,MATCH('المعلومات '!$G1683,التفاصيل!$M:$M,0)),IFERROR(J1683*I1683,\"\"))","v":""},""]
[null,null,null,null,null,null,null,null,null,"","",{"$f":"IF($E1684=\"كابينات\",INDEX(التفاصيل!$P:$P,MATCH('المعلومات '!$G1684,التفاصيل!$M:$M,0)),IFERROR(J1684*I1684,\"\"))","v":""},""]
[null,null,null,null,null,null,null,null,null,"","",{"$f":"IF($E1685=\"كابينات\",INDEX(التفاصيل!$P:$P,MATCH('المعلومات '!$G1685,التفاصيل!$M:$M,0)),IFERROR(J1685*I1685,\"\"))","v":""},""]

{"sheet":"التفاصيل","index":1,"n_rows":3,"n_cols":16,"rows_kept":3,"cut":false,"hidden":false,"merged":[]}
["نوع الكابينة ","مبلغ التكلفة ","العدد","المساحة","PVC","الظهر","اجمالي التكلفة ","اجمالي البيع ","الربح","رقم الفاتورة ","الجهة ","اسم الزبون ","الكود ","تاريخ","الملاحظات","قيمة التكلفة "]
["AB 100*56*75",{"$f":"IFERROR(VLOOKUP($A2,البيانات!$B$2:$L$3,11,FALSE),\"\")","v":99},1,{"$f":"IFERROR(VLOOKUP($A2,البيانات!$B$2:$L$27964,2,FALSE)*C:C,\"\")","v":9},{"$f":"IFERROR(VLOOKUP($A2,البيانات!$B$2:$L$27964,3,FALSE)*C:C,\"\")","v":10},{"$f":"IFERROR(VLOOKUP($A2,البيانات!$B$2:$L$27964,4,FALSE)*C:C,\"\")","v":11},{"$f":"IFERROR(C2*B2,\"\")","v":99},21.69,{"$f":"IFERROR(H2-G2,\"\")","v":-77.31},null,"معرض 1","سعد سي سي","KH53","2018-01-18",null,{"$f":"SUMIF(M$2:M3,M2,G$2:G3)","v":198}]
["AB 100*56*75",{"$f":"IFERROR(VLOOKUP($A3,البيانات!$B$2:$L$3,11,FALSE),\"\")","v":99},1,{"$f":"IFERROR(VLOOKUP($A3,البيانات!$B$2:$L$27964,2,FALSE)*C:C,\"\")","v":9},{"$f":"IFERROR(VLOOKUP($A3,البيانات!$B$2:$L$27964,3,FALSE)*C:C,\"\")","v":10},{"$f":"IFERROR(VLOOKUP($A3,البيانات!$B$2:$L$27964,4,FALSE)*C:C,\"\")","v":11},99,21.69,-77.31,null,"معرض 1","ابراهيم جاسم كاطعZ33","KH53","2018-01-18",null,{"$f":"SUMIF(M$2:M3,M3,G$2:G3)","v":198}]

{"sheet":"البيانات","index":2,"n_rows":3,"n_cols":16,"rows_kept":3,"cut":false,"hidden":false,"merged":[]}
["ت","قياس الكابينة","MDFنوع الخشب"," شريط PVC","ظهر( طبقة الفايبر)","مسند بلاستك","سعر MDF","سعر PVC","سعر الظهر","سعر المسند","مواد تشغيل ","الأجمالي",null,null,"السعر ","المبلغ "]
[1,"AB 100*56*75",9,10,11,12,25,{"$f":"IF(D2=\"\",\"\",VLOOKUP($H$1,$O$2:$P$3,2,0)*D2)","v":50},22,2,null,{"$f":"SUM(G2:K2)","v":99},null,null,"سعر MDF",4]
[2,"AB 90*56*75","1.99",{"$f":"C3*700/100","v":13.93},{"$f":"C3*30/100","v":0.59699999999999998},{"$f":"C3*4","v":7.96},{"$f":"IF(C3=\"\",\"\",VLOOKUP($G$1,$O$2:$P$3,2,0)*C3)","v":7.96},{"$f":"IF(D3=\"\",\"\",VLOOKUP($H$1,$O$2:$P$3,2,0)*D3)","v":69.650000000000006},22,2,null,101.61,null,null,"سعر PVC",5]